Workbook

Sheet Velkomst

Sheet Tabel 1 H
A1: Tabel 1. Forsikrede medlemmer
A3: Hovedstaden
C5: Mænd | E5: Kvinder | G5: I alt
A7: Civ. ing. | C7: 12346 | E7: 4884 | G7: 17230
A8: Diplom ing. | C8: 9927 | E8: 2523 | G8: 12450
A9: Cand. Scient. Tek. | C9: 5151 | E9: 4784 | G9: 9935
A10: MA. Hum. | C10: 6097 | E10: 13632 | G10: 19729
A11: MA. Nat. | C11: 3588 | E11: 3592 | G11: 7180
A12: MA. Ph.d. | C12: 706 | E12: 551 | G12: 1257
A13: MA. Samf. | C13: 918 | E13: 2255 | G13: 3173
A14: Øvrige Mag. | C14: 533 | E14: 1030 | G14: 1563
A15: Agronom | C15: 382 | E15: 426 | G15: 808
A16: Landsk. Arkt. | C16: 129 | E16: 343 | G16: 472
A17: Hortonom | C17: 55 | E17: 100 | G17: 155
A18: Forstkand. | C18: 187 | E18: 67 | G18: 254
A19: Jordbrugsakad. | C19: 753 | E19: 936 | G19: 1689
A20: Mejeriing. | C20: 60 | E20: 80 | G20: 140
A21: Levn.m.kand. | C21: 44 | E21: 272 | G21: 316
A22: Dyrlæge | C22: 167 | E22: 776 | G22: 943
A23: Farmaceut | C23: 1017 | E23: 2685 | G23: 3702
A24: Læge | C24: 1480 | E24: 3643 | G24: 5123
A25: Tandlæge | C25: 131 | E25: 691 | G25: 822
A26: Arkitekt | C26: 1628 | E26: 1990 | G26: 3618
A27: Landinspek. | C27: 140 | E27: 52 | G27: 192
A28: Bibliotekar | C28: 459 | E28: 1253 | G28: 1712
A29: Musikudd. | C29: 137 | E29: 179 | G29: 316
A30: Teolog | C30: 207 | E30: 349 | G30: 556
A31: Psykolog | C31: 664 | E31: 2901 | G31: 3565
A32: Jurist | C32: 3178 | E32: 6371 | G32: 9549
A33: Økonom | C33: 3375 | E33: 2103 | G33: 5478
A34: Samf. Adm. | C34: 6734 | E34: 10007 | G34: 16741
A35: Cand. Merc. | C35: 9956 | E35: 9736 | G35: 19692
A36: HA | C36: 1278 | E36: 1077 | G36: 2355
A37: HD | C37: 1334 | E37: 1194 | G37: 2528
A38: Komm. og Sprog | C38: 618 | E38: 3338 | G38: 3956
A39: Cand. IT. | C39: 1377 | E39: 1117 | G39: 2494
A40: Bac. Samf. | C40: 350 | E40: 411 | G40: 761
A41: Bac. Hum. | C41: 660 | E41: 1168 | G41: 1828
A42: Bac. Nat. | C42: 735 | E42: 537 | G42: 1272
A43: Andre | C43: 5914 | E43: 6944 | G43: 12858
A45: Total | C45: 81662 | E45: 93061 | G45: 174723
A47: Ingeniører i alt | C47: 22273 | E47: 7407 | G47: 29680
A48: Magistre i alt | C48: 11842 | E48: 21060 | G48: 32902
A49: DJØF'ere i alt | C49: 24521 | E49: 29294 | G49: 53815
A56: København
C58: Mænd | E58: Kvinder | G58: I alt
A60: Civ. ing. | C60: 4146 | E60: 1610 | G60: 5756
A61: Diplom ing. | C61: 2578 | E61: 636 | G61: 3214
A62: Cand. Scient. Tek. | C62: 2818 | E62: 2644 | G62: 5462
A63: MA. Hum. | C63: 4047 | E63: 8268 | G63: 12315
A64: MA. Nat. | C64: 1523 | E64: 1551 | G64: 3074
A65: MA. Ph.d. | C65: 373 | E65: 279 | G65: 652
A66: MA. Samf. | C66: 649 | E66: 1567 | G66: 2216
A67: Øvrige Mag. | C67: 320 | E67: 590 | G67: 910
A68: Agronom | C68: 129 | E68: 151 | G68: 280
A69: Landsk. Arkt. | C69: 76 | E69: 179 | G69: 255
A70: Hortonom | C70: 21 | E70: 31 | G70: 52
A71: Forstkand. | C71: 58 | E71: 26 | G71: 84
A72: Jordbrugsakad. | C72: 284 | E72: 387 | G72: 671
A73: Mejeriing. | C73: 19 | E73: 35 | G73: 54
A74: Levn.m.kand. | C74: 25 | E74: 137 | G74: 162
A75: Dyrlæge | C75: 55 | E75: 277 | G75: 332
A76: Farmaceut | C76: 400 | E76: 841 | G76: 1241
A77: Læge | C77: 688 | E77: 1710 | G77: 2398
A78: Tandlæge | C78: 51 | E78: 251 | G78: 302
A79: Arkitekt | C79: 1039 | E79: 1226 | G79: 2265
A80: Landinspek. | C80: 44 | E80: 15 | G80: 59
A81: Bibliotekar | C81: 259 | E81: 558 | G81: 817
A82: Musikudd. | C82: 66 | E82: 80 | G82: 146
A83: Teolog | C83: 93 | E83: 154 | G83: 247
A84: Psykolog | C84: 426 | E84: 1618 | G84: 2044
A85: Jurist | C85: 1557 | E85: 2798 | G85: 4355
A86: Økonom | C86: 1599 | E86: 964 | G86: 2563
A87: Samf. Adm. | C87: 3989 | E87: 5882 | G87: 9871
A88: Cand. Merc. | C88: 4820 | E88: 4714 | G88: 9534
A89: HA | C89: 535 | E89: 452 | G89: 987
A90: HD | C90: 478 | E90: 576 | G90: 1054
A91: Komm. og Sprog | C91: 405 | E91: 1478 | G91: 1883
A92: Cand. IT. | C92: 849 | E92: 711 | G92: 1560
A93: Bac. Samf. | C93: 215 | E93: 249 | G93: 464
A94: Bac. Hum. | C94: 437 | E94: 722 | G94: 1159
A95: Bac. Nat. | C95: 392 | E95: 313 | G95: 705
A96: Andre | C96: 3127 | E96: 3741 | G96: 6868
A98: Total | C98: 38306 | E98: 47034 | G98: 85340
A100: Ingeniører i alt | C100: 6724 | E100: 2246 | G100: 8970
A101: Magistre i alt | C101: 6912 | E101: 12255 | G101: 19167
A102: DJØF'ere i alt | C102: 12500 | E102: 14810 | G102: 27310
A109: Frederiksberg
C111: Mænd | E111: Kvinder | G111: I alt
A113: Civ. ing. | C113: 766 | E113: 301 | G113: 1067
A114: Diplom ing. | C114: 460 | E114: 113 | G114: 573
A115: Cand. Scient. Tek. | C115: 409 | E115: 390 | G115: 799
A116: MA. Hum. | C116: 547 | E116: 1269 | G116: 1816
A117: MA. Nat. | C117: 263 | E117: 237 | G117: 500
A118: MA. Ph.d. | C118: 70 | E118: 67 | G118: 137
A119: MA. Samf. | C119: 91 | E119: 208 | G119: 299
A120: Øvrige Mag. | C120: 39 | E120: 79 | G120: 118
A121: Agronom | C121: 48 | E121: 31 | G121: 79
A122: Landsk. Arkt. | C122: 12 | E122: 24 | G122: 36
A123: Hortonom | C123: 0 | E123: 7 | G123: 7
A124: Forstkand. | C124: 6 | E124: 5 | G124: 11
A125: Jordbrugsakad. | C125: 66 | E125: 67 | G125: 133
A126: Mejeriing. | C126: 9 | E126: 5 | G126: 14
A127: Levn.m.kand. | C127: 9 | E127: 29 | G127: 38
A128: Dyrlæge | C128: 18 | E128: 62 | G128: 80
A129: Farmaceut | C129: 63 | E129: 177 | G129: 240
A130: Læge | C130: 150 | E130: 331 | G130: 481
A131: Tandlæge | C131: 6 | E131: 54 | G131: 60
A132: Arkitekt | C132: 197 | E132: 224 | G132: 421
A133: Landinspek. | C133: 11 | E133: 3 | G133: 14
A134: Bibliotekar | C134: 37 | E134: 103 | G134: 140
A135: Musikudd. | C135: 12 | E135: 9 | G135: 21
A136: Teolog | C136: 7 | E136: 31 | G136: 38
A137: Psykolog | C137: 56 | E137: 275 | G137: 331
A138: Jurist | C138: 382 | E138: 650 | G138: 1032
A139: Økonom | C139: 342 | E139: 230 | G139: 572
A140: Samf. Adm. | C140: 669 | E140: 1017 | G140: 1686
A141: Cand. Merc. | C141: 1140 | E141: 1116 | G141: 2256
A142: HA | C142: 109 | E142: 92 | G142: 201
A143: HD | C143: 123 | E143: 90 | G143: 213
A144: Komm. og Sprog | C144: 54 | E144: 337 | G144: 391
A145: Cand. IT. | C145: 113 | E145: 88 | G145: 201
A146: Bac. Samf. | C146: 29 | E146: 34 | G146: 63
A147: Bac. Hum. | C147: 57 | E147: 128 | G147: 185
A148: Bac. Nat. | C148: 48 | E148: 42 | G148: 90
A149: Andre | C149: 531 | E149: 643 | G149: 1174
A151: Total | C151: 6883 | E151: 8501 | G151: 15384
A153: Ingeniører i alt | C153: 1226 | E153: 414 | G153: 1640
A154: Magistre i alt | C154: 1010 | E154: 1860 | G154: 2870
A155: DJØF'ere i alt | C155: 2642 | E155: 3105 | G155: 5747
A162: Ballerup
C164: Mænd | E164: Kvinder | G164: I alt
A166: Civ. ing. | C166: 361 | E166: 144 | G166: 505
A167: Diplom ing. | C167: 394 | E167: 109 | G167: 503
A168: Cand. Scient. Tek. | C168: 101 | E168: 89 | G168: 190
A169: MA. Hum. | C169: 65 | E169: 147 | G169: 212
A170: MA. Nat. | C170: 83 | E170: 85 | G170: 168
A171: MA. Ph.d. | C171: 13 | E171: 9 | G171: 22
A172: MA. Samf. | C172: 13 | E172: 13 | G172: 26
A173: Øvrige Mag. | C173: 8 | E173: 17 | G173: 25
A174: Agronom | C174: 10 | E174: 13 | G174: 23
A175: Landsk. Arkt. | C175: 2 | E175: 7 | G175: 9
A176: Hortonom | C176: 1 | E176: 2 | G176: 3
A177: Forstkand. | C177: 3 | E177: 1 | G177: 4
A178: Jordbrugsakad. | C178: 16 | E178: 23 | G178: 39
A179: Mejeriing. | C179: 1 | E179: 2 | G179: 3
A180: Levn.m.kand. | C180: 0 | E180: 3 | G180: 3
A181: Dyrlæge | C181: 3 | E181: 23 | G181: 26
A182: Farmaceut | C182: 33 | E182: 89 | G182: 122
A183: Læge | C183: 31 | E183: 52 | G183: 83
A184: Tandlæge | C184: 1 | E184: 14 | G184: 15
A185: Arkitekt | C185: 8 | E185: 10 | G185: 18
A186: Landinspek. | C186: 4 | E186: 1 | G186: 5
A187: Bibliotekar | C187: 13 | E187: 31 | G187: 44
A188: Musikudd. | C188: 2 | E188: 5 | G188: 7
A189: Teolog | C189: 3 | E189: 6 | G189: 9
A190: Psykolog | C190: 8 | E190: 37 | G190: 45
A191: Jurist | C191: 26 | E191: 77 | G191: 103
A192: Økonom | C192: 51 | E192: 22 | G192: 73
A193: Samf. Adm. | C193: 79 | E193: 108 | G193: 187
A194: Cand. Merc. | C194: 129 | E194: 139 | G194: 268
A195: HA | C195: 21 | E195: 16 | G195: 37
A196: HD | C196: 20 | E196: 15 | G196: 35
A197: Komm. og Sprog | C197: 9 | E197: 63 | G197: 72
A198: Cand. IT. | C198: 18 | E198: 17 | G198: 35
A199: Bac. Samf. | C199: 1 | E199: 6 | G199: 7
A200: Bac. Hum. | C200: 5 | E200: 7 | G200: 12
A201: Bac. Nat. | C201: 17 | E201: 6 | G201: 23
A202: Andre | C202: 97 | E202: 79 | G202: 176
A204: Total | C204: 1634 | E204: 1464 | G204: 3098
A206: Ingeniører i alt | C206: 755 | E206: 253 | G206: 1008
A207: Magistre i alt | C207: 182 | E207: 271 | G207: 453
A208: DJØF'ere i alt | C208: 306 | E208: 362 | G208: 668
A215: Brøndby
C217: Mænd | E217: Kvinder | G217: I alt
A219: Civ. ing. | C219: 95 | E219: 31 | G219: 126
A220: Diplom ing. | C220: 140 | E220: 25 | G220: 165
A221: Cand. Scient. Tek. | C221: 39 | E221: 24 | G221: 63
A222: MA. Hum. | C222: 21 | E222: 59 | G222: 80
A223: MA. Nat. | C223: 32 | E223: 26 | G223: 58
A224: MA. Ph.d. | C224: 3 | E224: 3 | G224: 6
A225: MA. Samf. | C225: 10 | E225: 8 | G225: 18
A226: Øvrige Mag. | C226: 7 | E226: 7 | G226: 14
A227: Agronom | C227: 2 | E227: 4 | G227: 6
A228: Landsk. Arkt. | C228: 0 | E228: 5 | G228: 5
A229: Hortonom | C229: 0 | E229: 2 | G229: 2
A230: Forstkand. | C230: 0 | E230: 1 | G230: 1
A231: Jordbrugsakad. | C231: 2 | E231: 12 | G231: 14
A232: Mejeriing. | C232: 0 | E232: 0 | G232: 0
A233: Levn.m.kand. | C233: 0 | E233: 1 | G233: 1
A234: Dyrlæge | C234: 2 | E234: 4 | G234: 6
A235: Farmaceut | C235: 11 | E235: 23 | G235: 34
A236: Læge | C236: 12 | E236: 20 | G236: 32
A237: Tandlæge | C237: 3 | E237: 9 | G237: 12
A238: Arkitekt | C238: 1 | E238: 3 | G238: 4
A239: Landinspek. | C239: 1 | E239: 0 | G239: 1
A240: Bibliotekar | C240: 6 | E240: 9 | G240: 15
A241: Musikudd. | C241: 0 | E241: 0 | G241: 0
A242: Teolog | C242: 3 | E242: 3 | G242: 6
A243: Psykolog | C243: 4 | E243: 9 | G243: 13
... 1048 more rows

Sheet Tabel 2 H
A1: Tabel 2. Antal bruttoledighedsberørte og gennemsnitlig antal ledige brutto
A3: Hovedstaden
C5: Mænd | F5: Kvinder | I5: I alt
C6: Ledigheds- berørte | D6: Gns. brutto- ledighed | F6: Ledigheds- berørte | G6: Gns. brutto- ledighed | I6: Ledigheds- berørte | J6: Gns. brutto- ledighed
A9: Civ. ing. | C9: 443 | D9: 395.8834903 | F9: 241 | G9: 209.0569451 | I9: 684 | J9: 604.9404354
A10: Diplom ing. | C10: 359 | D10: 320.7023015 | F10: 121 | G10: 105.3951226 | I10: 480 | J10: 426.0974241
A11: Cand. Scient. Tek. | C11: 447 | D11: 405.2579056 | F11: 539 | G11: 472.2940186 | I11: 986 | J11: 877.5519242
A12: MA. Hum. | C12: 654 | D12: 568.1500655 | F12: 1528 | G12: 1311.340361 | I12: 2182 | J12: 1879.490426
A13: MA. Nat. | C13: 134 | D13: 116.6076218 | F13: 198 | G13: 165.5735046 | I13: 332 | J13: 282.1811264
A14: MA. Ph.d. | C14: 36 | D14: 31.36156677 | F14: 39 | G14: 32.61772594 | I14: 75 | J14: 63.97929271
A15: MA. Samf. | C15: 144 | D15: 128.8355267 | F15: 317 | G15: 275.0608121 | I15: 461 | J15: 403.8963388
A16: Øvrige Mag. | C16: 56 | D16: 50.03243311 | F16: 96 | G16: 84.40528909 | I16: 152 | J16: 134.4377222
A17: Agronom | C17: 18 | D17: 15.80739724 | F17: 33 | G17: 27.85255411 | I17: 51 | J17: 43.65995135
A18: Landsk. Arkt. | C18: 12 | D18: 11.66344415 | F18: 29 | G18: 26.92821057 | I18: 41 | J18: 38.59165471
A19: Hortonom | C19: 2 | D19: 1.630387326 | F19: 4 | G19: 2.845381401 | I19: 6 | J19: 4.475768727
A20: Forstkand. | C20: 9 | D20: 8.194972868 | F20: 7 | G20: 6.304496975 | I20: 16 | J20: 14.49946984
A21: Jordbrugsakad. | C21: 41 | D21: 37.29620158 | F21: 73 | G21: 63.93064305 | I21: 114 | J21: 101.2268446
A22: Mejeriing. | C22: 3 | D22: 2.491735795 | F22: 12 | G22: 10.73161604 | I22: 15 | J22: 13.22335184
A23: Levn.m.kand. | C23: 8 | D23: 6.194723383 | F23: 25 | G23: 22.32832283 | I23: 33 | J23: 28.52304622
A24: Dyrlæge | C24: 11 | D24: 6.819060687 | F24: 79 | G24: 64.84687831 | I24: 90 | J24: 71.665939
A25: Farmaceut | C25: 43 | D25: 38.86047527 | F25: 106 | G25: 93.00629951 | I25: 149 | J25: 131.8667748
A26: Læge | C26: 26 | D26: 20.96114264 | F26: 90 | G26: 72.14806961 | I26: 116 | J26: 93.10921225
A27: Tandlæge | C27: 6 | D27: 2.873448512 | F27: 34 | G27: 23.66930705 | I27: 40 | J27: 26.54275557
A28: Arkitekt | C28: 135 | D28: 117.7066051 | F28: 153 | G28: 128.6926963 | I28: 288 | J28: 246.3993014
A29: Landinspek. | C29: 3 | D29: 2.999438658 | F29: 1 | G29: 0.2151811888 | I29: 4 | J29: 3.214619847
A30: Bibliotekar | C30: 22 | D30: 18.13447265 | F30: 64 | G30: 56.73361193 | I30: 86 | J30: 74.86808458
A31: Musikudd. | C31: 15 | D31: 12.70255099 | F31: 8 | G31: 6.375600324 | I31: 23 | J31: 19.07815131
A32: Teolog | C32: 10 | D32: 9.150502089 | F32: 21 | G32: 16.73485935 | I32: 31 | J32: 25.88536144
A33: Psykolog | C33: 46 | D33: 40.22266575 | F33: 176 | G33: 144.9572756 | I33: 222 | J33: 185.1799414
A34: Jurist | C34: 73 | D34: 65.80178382 | F34: 149 | G34: 125.1718331 | I34: 222 | J34: 190.9736169
A35: Økonom | C35: 90 | D35: 77.63487806 | F35: 48 | G35: 41.76448575 | I35: 138 | J35: 119.3993638
A36: Samf. Adm. | C36: 388 | D36: 345.4163288 | F36: 652 | G36: 576.287033 | I36: 1040 | J36: 921.7033618
A37: Cand. Merc. | C37: 497 | D37: 442.1461985 | F37: 522 | G37: 447.5856047 | I37: 1019 | J37: 889.7318032
A38: HA | C38: 98 | D38: 89.01079025 | F38: 100 | G38: 86.23900705 | I38: 198 | J38: 175.2497973
A39: HD | C39: 111 | D39: 103.730431 | F39: 104 | G39: 92.50233893 | I39: 215 | J39: 196.2327699
A40: Komm. og Sprog | C40: 61 | D40: 55.27599326 | F40: 292 | G40: 245.0527038 | I40: 353 | J40: 300.3286971
A41: Cand. IT. | C41: 73 | D41: 66.01509387 | F41: 95 | G41: 85.02338926 | I41: 168 | J41: 151.0384831
A42: Bac. Samf. | C42: 29 | D42: 26.55959583 | F42: 49 | G42: 43.49778582 | I42: 78 | J42: 70.05738165
A43: Bac. Hum. | C43: 118 | D43: 103.1335371 | F43: 208 | G43: 170.4060375 | I43: 326 | J43: 273.5395746
A44: Bac. Nat. | C44: 71 | D44: 63.78968378 | F44: 88 | G44: 77.6822803 | I44: 159 | J44: 141.4719641
A45: Andre | C45: 437 | D45: 382.9676293 | F45: 782 | G45: 659.7031123 | I45: 1219 | J45: 1042.670742
A47: Total | C47: 4688 | D47: 4154.725878 | F47: 7010 | G47: 6011.029751 | I47: 11698 | J47: 10165.75563
A49: Ingeniører i alt | C49: 802 | D49: 716.5857918 | F49: 362 | G49: 314.4520676 | I49: 1164 | J49: 1031.037859
A50: Magistre i alt | C50: 1024 | D50: 894.9872139 | F50: 2178 | G50: 1868.997692 | I50: 3202 | J50: 2763.984906
A51: DJØF'ere i alt | C51: 1146 | D51: 1020.009979 | F51: 1471 | G51: 1277.047964 | I51: 2617 | J51: 2297.057943
A56: København
C58: Mænd | F58: Kvinder | I58: I alt
C59: Ledigheds- berørte | D59: Gns. brutto- ledighed | F59: Ledigheds- berørte | G59: Gns. brutto- ledighed | I59: Ledigheds- berørte | J59: Gns. brutto- ledighed
A62: Civ. ing. | C62: 200 | D62: 183.2882181 | F62: 107 | G62: 93.20900642 | I62: 307 | J62: 276.4972245
A63: Diplom ing. | C63: 134 | D63: 120.2862845 | F63: 53 | G63: 46.34067236 | I63: 187 | J63: 166.6269569
A64: Cand. Scient. Tek. | C64: 295 | D64: 268.6353147 | F64: 362 | G64: 317.147134 | I64: 657 | J64: 585.7824487
A65: MA. Hum. | C65: 514 | D65: 446.9176074 | F65: 1053 | G65: 904.2206699 | I65: 1567 | J65: 1351.138277
A66: MA. Nat. | C66: 90 | D66: 78.78001622 | F66: 115 | G66: 97.049211 | I66: 205 | J66: 175.8292272
A67: MA. Ph.d. | C67: 26 | D67: 22.84039169 | F67: 28 | G67: 22.67198902 | I67: 54 | J67: 45.51238071
A68: MA. Samf. | C68: 112 | D68: 101.3160357 | F68: 239 | G68: 206.4810079 | I68: 351 | J68: 307.7970436
A69: Øvrige Mag. | C69: 43 | D69: 39.09935758 | F69: 65 | G69: 57.00617476 | I69: 108 | J69: 96.10553234
A70: Agronom | C70: 10 | D70: 9.137404104 | F70: 18 | G70: 16.10740348 | I70: 28 | J70: 25.24480758
A71: Landsk. Arkt. | C71: 11 | D71: 10.66363126 | F71: 22 | G71: 19.92952036 | I71: 33 | J71: 30.59315162
A72: Hortonom | C72: 1 | D72: 0.9998128859 | F72: 1 | G72: 0.3074908002 | I72: 2 | J72: 1.307303686
A73: Forstkand. | C73: 6 | D73: 5.472463045 | F73: 5 | G73: 4.445206761 | I73: 11 | J73: 9.917669806
A74: Jordbrugsakad. | C74: 28 | D74: 26.2733113 | F74: 46 | G74: 40.78962141 | I74: 74 | J74: 67.0629327
A75: Mejeriing. | C75: 1 | D75: 0.9998128859 | F75: 8 | G75: 7.47084139 | I75: 9 | J75: 8.470654276
A76: Levn.m.kand. | C76: 5 | D76: 3.320027443 | F76: 15 | G76: 12.83789684 | I76: 20 | J76: 16.15792428
A77: Dyrlæge | C77: 6 | D77: 2.983222104 | F77: 44 | G77: 36.14170773 | I77: 50 | J77: 39.12492983
A78: Farmaceut | C78: 27 | D78: 25.0757812 | F78: 53 | G78: 46.84213809 | I78: 80 | J78: 71.91791929
A79: Læge | C79: 18 | D79: 14.27992266 | F79: 55 | G79: 44.7726564 | I79: 73 | J79: 59.05257906
A80: Tandlæge | C80: 3 | D80: 1.363437909 | F80: 17 | G80: 11.19004553 | I80: 20 | J80: 12.55348344
A81: Arkitekt | C81: 99 | D81: 88.15879748 | F81: 118 | G81: 101.5705108 | I81: 217 | J81: 189.7293083
A82: Landinspek. | C82: 1 | D82: 0.9998128859 | F82: 0 | G82: 0 | I82: 1 | J82: 0.9998128859
A83: Bibliotekar | C83: 17 | D83: 13.6530905 | F83: 35 | G83: 33.07802657 | I83: 52 | J83: 46.73111707
A84: Musikudd. | C84: 7 | D84: 5.779330132 | F84: 3 | G84: 2.512942057 | I84: 10 | J84: 8.292272189
A85: Teolog | C85: 8 | D85: 7.998503087 | F85: 14 | G85: 11.14825672 | I85: 22 | J85: 19.14675981
A86: Psykolog | C86: 32 | D86: 28.40641178 | F86: 116 | G86: 95.68265453 | I86: 148 | J86: 124.0890663
A87: Jurist | C87: 49 | D87: 45.28534897 | F87: 73 | G87: 58.28042163 | I87: 122 | J87: 103.5657706
A88: Økonom | C88: 52 | D88: 45.26040042 | F88: 33 | G88: 30.05675794 | I88: 85 | J88: 75.31715836
A89: Samf. Adm. | C89: 278 | D89: 252.9788561 | F89: 451 | G89: 399.8708913 | I89: 729 | J89: 652.8497474
A90: Cand. Merc. | C90: 308 | D90: 275.276617 | F90: 298 | G90: 255.8298509 | I90: 606 | J90: 531.1064679
A91: HA | C91: 54 | D91: 50.17588723 | F91: 56 | G91: 49.86964386 | I91: 110 | J91: 100.0455311
A92: HD | C92: 62 | D92: 58.29476704 | F92: 64 | G92: 58.41701491 | I92: 126 | J92: 116.7117819
A93: Komm. og Sprog | C93: 41 | D93: 36.54462671 | F93: 166 | G93: 136.5209256 | I93: 207 | J93: 173.0655523
A94: Cand. IT. | C94: 54 | D94: 48.98833656 | F94: 65 | G94: 58.03842076 | I94: 119 | J94: 107.0267573
A95: Bac. Samf. | C95: 16 | D95: 14.89552797 | F95: 34 | G95: 30.23451631 | I95: 50 | J95: 45.13004428
A96: Bac. Hum. | C96: 85 | D96: 75.5485561 | F96: 150 | G96: 121.1919167 | I96: 235 | J96: 196.7404728
A97: Bac. Nat. | C97: 48 | D97: 42.51730805 | F97: 65 | G97: 56.36811576 | I97: 113 | J97: 98.88542381
A98: Andre | C98: 281 | D98: 248.6914489 | F98: 477 | G98: 401.9684401 | I98: 758 | J98: 650.659889
A100: Total | C100: 2994 | D100: 2674.912368 | F100: 4478 | G100: 3844.810079 | I100: 7472 | J100: 6519.722447
A102: Ingeniører i alt | C102: 334 | D102: 303.5745026 | F102: 160 | G102: 139.5496788 | I102: 494 | J102: 443.1241814
A103: Magistre i alt | C103: 785 | D103: 688.9534086 | F103: 1500 | G103: 1287.429053 | I103: 2285 | J103: 1976.382461
A104: DJØF'ere i alt | C104: 741 | D104: 668.9771097 | F104: 911 | G104: 793.9075656 | I104: 1652 | J104: 1462.884675
A109: Frederiksberg
C111: Mænd | F111: Kvinder | I111: I alt
C112: Ledigheds- berørte | D112: Gns. brutto- ledighed | F112: Ledigheds- berørte | G112: Gns. brutto- ledighed | I112: Ledigheds- berørte | J112: Gns. brutto- ledighed
A115: Civ. ing. | C115: 30 | D115: 25.17245681 | F115: 14 | G115: 12.09193538 | I115: 44 | J115: 37.26439219
A116: Diplom ing. | C116: 19 | D116: 17.51200649 | F116: 6 | G116: 5.50115387 | I116: 25 | J116: 23.01316036
A117: Cand. Scient. Tek. | C117: 25 | D117: 22.64891162 | F117: 33 | G117: 30.0274434 | I117: 58 | J117: 52.67635502
A118: MA. Hum. | C118: 52 | D118: 46.44171396 | F118: 125 | G118: 108.183746 | I118: 177 | J118: 154.62546
A119: MA. Nat. | C119: 11 | D119: 10.21642862 | F119: 11 | G119: 7.787687894 | I119: 22 | J119: 18.00411651
A120: MA. Ph.d. | C120: 5 | D120: 4.99906443 | F120: 2 | G120: 1.999625772 | I120: 7 | J120: 6.998690201
A121: MA. Samf. | C121: 12 | D121: 10.47838832 | F121: 22 | G121: 19.9769226 | I121: 34 | J121: 30.45531092
A122: Øvrige Mag. | C122: 3 | D122: 2.307116572 | F122: 11 | G122: 10.48337803 | I122: 14 | J122: 12.7904946
A123: Agronom | C123: 3 | D123: 2.768664629 | F123: 3 | G123: 2.999438658 | I123: 6 | J123: 5.768103287
A124: Landsk. Arkt. | C124: 0 | D124: 0 | F124: 0 | G124: 0 | I124: 0 | J124: 0
A125: Hortonom | C125: 0 | D125: 0 | F125: 0 | G125: 0 | I125: 0 | J125: 0
A126: Forstkand. | C126: 0 | D126: 0 | F126: 0 | G126: 0 | I126: 0 | J126: 0
A127: Jordbrugsakad. | C127: 3 | D127: 2.768664629 | F127: 3 | G127: 2.999438658 | I127: 6 | J127: 5.768103287
A128: Mejeriing. | C128: 2 | D128: 1.491922909 | F128: 0 | G128: 0 | I128: 2 | J128: 1.491922909
A129: Levn.m.kand. | C129: 3 | D129: 2.87469594 | F129: 3 | G129: 2.999438658 | I129: 6 | J129: 5.874134597
A130: Dyrlæge | C130: 2 | D130: 1.619160482 | F130: 7 | G130: 5.371421443 | I130: 9 | J130: 6.990581925
A131: Farmaceut | C131: 1 | D131: 0.9998128859 | F131: 7 | G131: 6.352522921 | I131: 8 | J131: 7.352335807
A132: Læge | C132: 2 | D132: 1.999625772 | F132: 8 | G132: 5.783072413 | I132: 10 | J132: 7.782698185
A133: Tandlæge | C133: 0 | D133: 0 | F133: 1 | G133: 0.2981350964 | I133: 1 | J133: 0.2981350964
A134: Arkitekt | C134: 16 | D134: 14.91735795 | F134: 10 | G134: 7.457119691 | I134: 26 | J134: 22.37447764
A135: Landinspek. | C135: 1 | D135: 0.9998128859 | F135: 1 | G135: 0.2151811888 | I135: 2 | J135: 1.214994075
A136: Bibliotekar | C136: 1 | D136: 0.9998128859 | F136: 4 | G136: 3.46535271 | I136: 5 | J136: 4.465165596
A137: Musikudd. | C137: 2 | D137: 1.682779268 | F137: 0 | G137: 0 | I137: 2 | J137: 1.682779268
A138: Teolog | C138: 0 | D138: 0 | F138: 3 | G138: 2.464292397 | I138: 3 | J138: 2.464292397
A139: Psykolog | C139: 4 | D139: 3.722322709 | F139: 14 | G139: 12.15118817 | I139: 18 | J139: 15.87351088
A140: Jurist | C140: 9 | D140: 7.876878937 | F140: 15 | G140: 13.43167218 | I140: 24 | J140: 21.30855111
A141: Økonom | C141: 3 | D141: 2.445580989 | F141: 1 | G141: 0.9998128859 | I141: 4 | J141: 3.445393875
A142: Samf. Adm. | C142: 35 | D142: 29.26963139 | F142: 56 | G142: 48.73074284 | I142: 91 | J142: 78.00037423
A143: Cand. Merc. | C143: 48 | D143: 44.0659889 | F143: 66 | G143: 57.46148569 | I143: 114 | J143: 101.5274746
A144: HA | C144: 11 | D144: 10.8445082 | F144: 10 | G144: 7.610553234 | I144: 21 | J144: 18.45506144
A145: HD | C145: 7 | D145: 5.918418262 | F145: 10 | G145: 9.536580802 | I145: 17 | J145: 15.45499906
A146: Komm. og Sprog | C146: 5 | D146: 4.952909624 | F146: 29 | G146: 25.8604129 | I146: 34 | J146: 30.81332252
A147: Cand. IT. | C147: 1 | D147: 0.9998128859 | F147: 6 | G147: 5.357699744 | I147: 7 | J147: 6.35751263
A148: Bac. Samf. | C148: 5 | D148: 4.316098048 | F148: 3 | G148: 2.353271378 | I148: 8 | J148: 6.669369426
A149: Bac. Hum. | C149: 8 | D149: 6.149192291 | F149: 21 | G149: 18.25173081 | I149: 29 | J149: 24.4009231
A150: Bac. Nat. | C150: 8 | D150: 7.733424811 | F150: 8 | G150: 7.790182748 | I150: 16 | J150: 15.52360756
A151: Andre | C151: 28 | D151: 23.82211688 | F151: 76 | G151: 64.0291898 | I151: 104 | J151: 87.85130668
A153: Total | C153: 362 | D153: 322.2466164 | F153: 586 | G153: 507.0223913 | I153: 948 | J153: 829.2690077
A155: Ingeniører i alt | C155: 49 | D155: 42.68446329 | F155: 20 | G155: 17.59308925 | I155: 69 | J155: 60.27755255
A156: Magistre i alt | C156: 83 | D156: 74.44271191 | F156: 171 | G156: 148.4313603 | I156: 254 | J156: 222.8740722
A157: DJØF'ere i alt | C157: 106 | D157: 94.50258841 | F157: 148 | G157: 128.2342668 | I157: 254 | J157: 222.7368552
A162: Ballerup
C164: Mænd | F164: Kvinder | I164: I alt
C165: Ledigheds- berørte | D165: Gns. brutto- ledighed | F165: Ledigheds- berørte | G165: Gns. brutto- ledighed | I165: Ledigheds- berørte | J165: Gns. brutto- ledighed
A168: Civ. ing. | C168: 8 | D168: 6.152310859 | F168: 4 | G168: 3.399239069 | I168: 12 | J168: 9.551549928
A169: Diplom ing. | C169: 12 | D169: 10.0916859 | F169: 3 | G169: 2.81045344 | I169: 15 | J169: 12.90213934
A170: Cand. Scient. Tek. | C170: 9 | D170: 7.425934011 | F170: 7 | G170: 6.998690201 | I170: 16 | J170: 14.42462421
A171: MA. Hum. | C171: 3 | D171: 2.265951475 | F171: 12 | G171: 10.28129483 | I171: 15 | J171: 12.5472463
A172: MA. Nat. | C172: 0 | D172: 0 | F172: 3 | G172: 1.528098297 | I172: 3 | J172: 1.528098297
A173: MA. Ph.d. | C173: 1 | D173: 0.9998128859 | F173: 0 | G173: 0 | I173: 1 | J173: 0.9998128859
A174: MA. Samf. | C174: 1 | D174: 0.9998128859 | F174: 1 | G174: 0.5788062122 | I174: 2 | J174: 1.578619098
A175: Øvrige Mag. | C175: 1 | D175: 0.9998128859 | F175: 1 | G175: 0.9998128859 | I175: 2 | J175: 1.999625772
A176: Agronom | C176: 0 | D176: 0 | F176: 1 | G176: 0.3998004117 | I176: 1 | J176: 0.3998004117
A177: Landsk. Arkt. | C177: 0 | D177: 0 | F177: 1 | G177: 0.9998128859 | I177: 1 | J177: 0.9998128859
A178: Hortonom | C178: 0 | D178: 0 | F178: 0 | G178: 0 | I178: 0 | J178: 0
A179: Forstkand. | C179: 0 | D179: 0 | F179: 0 | G179: 0 | I179: 0 | J179: 0
A180: Jordbrugsakad. | C180: 0 | D180: 0 | F180: 2 | G180: 1.399613298 | I180: 2 | J180: 1.399613298
A181: Mejeriing. | C181: 0 | D181: 0 | F181: 0 | G181: 0 | I181: 0 | J181: 0
A182: Levn.m.kand. | C182: 0 | D182: 0 | F182: 0 | G182: 0 | I182: 0 | J182: 0
A183: Dyrlæge | C183: 0 | D183: 0 | F183: 2 | G183: 1.353458492 | I183: 2 | J183: 1.353458492
A184: Farmaceut | C184: 0 | D184: 0 | F184: 2 | G184: 1.999625772 | I184: 2 | J184: 1.999625772
A185: Læge | C185: 0 | D185: 0 | F185: 3 | G185: 1.522484875 | I185: 3 | J185: 1.522484875
A186: Tandlæge | C186: 0 | D186: 0 | F186: 1 | G186: 0.7690388574 | I186: 1 | J186: 0.7690388574
A187: Arkitekt | C187: 1 | D187: 0.9998128859 | F187: 0 | G187: 0 | I187: 1 | J187: 0.9998128859
A188: Landinspek. | C188: 0 | D188: 0 | F188: 0 | G188: 0 | I188: 0 | J188: 0
A189: Bibliotekar | C189: 1 | D189: 0.8052142456 | F189: 3 | G189: 2.584045406 | I189: 4 | J189: 3.389259652
A190: Musikudd. | C190: 1 | D190: 0.8613484688 | F190: 0 | G190: 0 | I190: 1 | J190: 0.8613484688
A191: Teolog | C191: 0 | D191: 0 | F191: 0 | G191: 0 | I191: 0 | J191: 0
A192: Psykolog | C192: 2 | D192: 1.999625772 | F192: 1 | G192: 0.9998128859 | I192: 3 | J192: 2.999438658
A193: Jurist | C193: 1 | D193: 0.9998128859 | F193: 4 | G193: 3.353084264 | I193: 5 | J193: 4.35289715
A194: Økonom | C194: 0 | D194: 0 | F194: 2 | G194: 1.756377471 | I194: 2 | J194: 1.756377471
A195: Samf. Adm. | C195: 5 | D195: 3.877627394 | F195: 5 | G195: 4.877440279 | I195: 10 | J195: 8.755067673
A196: Cand. Merc. | C196: 3 | D196: 2.612112518 | F196: 4 | G196: 3.999251544 | I196: 7 | J196: 6.611364062
A197: HA | C197: 3 | D197: 2.27904946 | F197: 1 | G197: 0.9998128859 | I197: 4 | J197: 3.278862346
A198: HD | C198: 3 | D198: 2.744963513 | F198: 0 | G198: 0 | I198: 3 | J198: 2.744963513
A199: Komm. og Sprog | C199: 0 | D199: 0 | F199: 4 | G199: 3.491548681 | I199: 4 | J199: 3.491548681
A200: Cand. IT. | C200: 0 | D200: 0 | F200: 1 | G200: 0.9998128859 | I200: 1 | J200: 0.9998128859
A201: Bac. Samf. | C201: 0 | D201: 0 | F201: 0 | G201: 0 | I201: 0 | J201: 0
A202: Bac. Hum. | C202: 0 | D202: 0 | F202: 2 | G202: 1.999625772 | I202: 2 | J202: 1.999625772
A203: Bac. Nat. | C203: 1 | D203: 0.2513565771 | F203: 0 | G203: 0 | I203: 1 | J203: 0.2513565771
A204: Andre | C204: 5 | D204: 4.99906443 | F204: 4 | G204: 3.399239069 | I204: 9 | J204: 8.398303499
A206: Total | C206: 61 | D206: 51.36530905 | F206: 72 | G206: 62.10066737 | I206: 133 | J206: 113.4659764
A208: Ingeniører i alt | C208: 20 | D208: 16.24399676 | F208: 7 | G208: 6.209692509 | I208: 27 | J208: 22.45368927
A209: Magistre i alt | C209: 6 | D209: 5.265390133 | F209: 17 | G209: 13.38801222 | I209: 23 | J209: 18.65340236
A210: DJØF'ere i alt | C210: 12 | D210: 9.768602258 | F210: 16 | G210: 14.98596644 | I210: 28 | J210: 24.7545687
A215: Brøndby
C217: Mænd | F217: Kvinder | I217: I alt
C218: Ledigheds- berørte | D218: Gns. brutto- ledighed | F218: Ledigheds- berørte | G218: Gns. brutto- ledighed | I218: Ledigheds- berørte | J218: Gns. brutto- ledighed
A221: Civ. ing. | C221: 5 | D221: 4.99906443 | F221: 2 | G221: 1.491922909 | I221: 7 | J221: 6.490987339
A222: Diplom ing. | C222: 4 | D222: 3.306929458 | F222: 2 | G222: 1.999625772 | I222: 6 | J222: 5.30655523
A223: Cand. Scient. Tek. | C223: 4 | D223: 3.109835963 | F223: 5 | G223: 4.491361567 | I223: 9 | J223: 7.60119753
A224: MA. Hum. | C224: 2 | D224: 1.968440092 | F224: 6 | G224: 3.88573567 | I224: 8 | J224: 5.854175762
A225: MA. Nat. | C225: 1 | D225: 0.9998128859 | F225: 4 | G225: 3.860787127 | I225: 5 | J225: 4.860600012
A226: MA. Ph.d. | C226: 0 | D226: 0 | F226: 0 | G226: 0 | I226: 0 | J226: 0
A227: MA. Samf. | C227: 2 | D227: 1.999625772 | F227: 1 | G227: 0.9998128859 | I227: 3 | J227: 2.999438658
A228: Øvrige Mag. | C228: 1 | D228: 0.5382648288 | F228: 2 | G228: 1.999625772 | I228: 3 | J228: 2.537890601
A229: Agronom | C229: 0 | D229: 0 | F229: 1 | G229: 0.4459552174 | I229: 1 | J229: 0.4459552174
A230: Landsk. Arkt. | C230: 0 | D230: 0 | F230: 0 | G230: 0 | I230: 0 | J230: 0
A231: Hortonom | C231: 0 | D231: 0 | F231: 0 | G231: 0 | I231: 0 | J231: 0
A232: Forstkand. | C232: 0 | D232: 0 | F232: 0 | G232: 0 | I232: 0 | J232: 0
A233: Jordbrugsakad. | C233: 0 | D233: 0 | F233: 1 | G233: 0.4459552174 | I233: 1 | J233: 0.4459552174
A234: Mejeriing. | C234: 0 | D234: 0 | F234: 0 | G234: 0 | I234: 0 | J234: 0
A235: Levn.m.kand. | C235: 0 | D235: 0 | F235: 0 | G235: 0 | I235: 0 | J235: 0
A236: Dyrlæge | C236: 0 | D236: 0 | F236: 0 | G236: 0 | I236: 0 | J236: 0
A237: Farmaceut | C237: 1 | D237: 0.9998128859 | F237: 0 | G237: 0 | I237: 1 | J237: 0.9998128859
A238: Læge | C238: 0 | D238: 0 | F238: 1 | G238: 0.9075032745 | I238: 1 | J238: 0.9075032745
A239: Tandlæge | C239: 0 | D239: 0 | F239: 1 | G239: 0.9998128859 | I239: 1 | J239: 0.9998128859
A240: Arkitekt | C240: 0 | D240: 0 | F240: 0 | G240: 0 | I240: 0 | J240: 0
... 1079 more rows

Sheet Tabel 3 H
A1: Tabel 3. Ledige i procent af forsikrede
A3: Hovedstaden
C5: Mænd | F5: Kvinder | I5: I alt
C6: Ledigheds- berørte | D6: Gns. brutto- ledighed | F6: Ledigheds- berørte | G6: Gns. brutto- ledighed | I6: Ledigheds- berørte | J6: Gns. brutto- ledighed
A9: Civ. ing. | C9: =IF(OR('Tabel 1 H'!C7<5,'Tabel 2 H'!C9<0.5),"-",IFERROR('Tabel 2 H'!C9/'Tabel 1 H'!C7*100,"-")) -> 3.588206707 | D9: =IF(OR('Tabel 1 H'!C7<5,'Tabel 2 H'!D9<0.5),"-",IFERROR('Tabel 2 H'!D9/'Tabel 1 H'!C7*100,"-")) -> 3.206572901 | F9: =IF(OR('Tabel 1 H'!E7<5,'Tabel 2 H'!F9<0.5),"-",IFERROR('Tabel 2 H'!F9/'Tabel 1 H'!E7*100,"-")) -> 4.934479934 | G9: =IF(OR('Tabel 1 H'!E7<5,'Tabel 2 H'!G9<0.5),"-",IFERROR('Tabel 2 H'!G9/'Tabel 1 H'!E7*100,"-")) -> 4.28044523 | I9: =IF(OR('Tabel 1 H'!G7<5,'Tabel 2 H'!I9<0.5),"-",IFERROR('Tabel 2 H'!I9/'Tabel 1 H'!G7*100,"-")) -> 3.969820081 | J9: =IF(OR('Tabel 1 H'!G7<5,'Tabel 2 H'!J9<0.5),"-",IFERROR('Tabel 2 H'!J9/'Tabel 1 H'!G7*100,"-")) -> 3.510971766
A10: Diplom ing. | C10: =IF(OR('Tabel 1 H'!C8<5,'Tabel 2 H'!C10<0.5),"-",IFERROR('Tabel 2 H'!C10/'Tabel 1 H'!C8*100,"-")) -> 3.616399718 | D10: =IF(OR('Tabel 1 H'!C8<5,'Tabel 2 H'!D10<0.5),"-",IFERROR('Tabel 2 H'!D10/'Tabel 1 H'!C8*100,"-")) -> 3.230606442 | F10: =IF(OR('Tabel 1 H'!E8<5,'Tabel 2 H'!F10<0.5),"-",IFERROR('Tabel 2 H'!F10/'Tabel 1 H'!E8*100,"-")) -> 4.795877923 | G10: =IF(OR('Tabel 1 H'!E8<5,'Tabel 2 H'!G10<0.5),"-",IFERROR('Tabel 2 H'!G10/'Tabel 1 H'!E8*100,"-")) -> 4.17737307 | I10: =IF(OR('Tabel 1 H'!G8<5,'Tabel 2 H'!I10<0.5),"-",IFERROR('Tabel 2 H'!I10/'Tabel 1 H'!G8*100,"-")) -> 3.855421687 | J10: =IF(OR('Tabel 1 H'!G8<5,'Tabel 2 H'!J10<0.5),"-",IFERROR('Tabel 2 H'!J10/'Tabel 1 H'!G8*100,"-")) -> 3.42246927
A11: Cand. Scient. Tek. | C11: =IF(OR('Tabel 1 H'!C9<5,'Tabel 2 H'!C11<0.5),"-",IFERROR('Tabel 2 H'!C11/'Tabel 1 H'!C9*100,"-")) -> 8.677926616 | D11: =IF(OR('Tabel 1 H'!C9<5,'Tabel 2 H'!D11<0.5),"-",IFERROR('Tabel 2 H'!D11/'Tabel 1 H'!C9*100,"-")) -> 7.867557864 | F11: =IF(OR('Tabel 1 H'!E9<5,'Tabel 2 H'!F11<0.5),"-",IFERROR('Tabel 2 H'!F11/'Tabel 1 H'!E9*100,"-")) -> 11.26672241 | G11: =IF(OR('Tabel 1 H'!E9<5,'Tabel 2 H'!G11<0.5),"-",IFERROR('Tabel 2 H'!G11/'Tabel 1 H'!E9*100,"-")) -> 9.872366609 | I11: =IF(OR('Tabel 1 H'!G9<5,'Tabel 2 H'!I11<0.5),"-",IFERROR('Tabel 2 H'!I11/'Tabel 1 H'!G9*100,"-")) -> 9.924509311 | J11: =IF(OR('Tabel 1 H'!G9<5,'Tabel 2 H'!J11<0.5),"-",IFERROR('Tabel 2 H'!J11/'Tabel 1 H'!G9*100,"-")) -> 8.832933308
A12: MA. Hum. | C12: =IF(OR('Tabel 1 H'!C10<5,'Tabel 2 H'!C12<0.5),"-",IFERROR('Tabel 2 H'!C12/'Tabel 1 H'!C10*100,"-")) -> 10.72658685 | D12: =IF(OR('Tabel 1 H'!C10<5,'Tabel 2 H'!D12<0.5),"-",IFERROR('Tabel 2 H'!D12/'Tabel 1 H'!C10*100,"-")) -> 9.318518378 | F12: =IF(OR('Tabel 1 H'!E10<5,'Tabel 2 H'!F12<0.5),"-",IFERROR('Tabel 2 H'!F12/'Tabel 1 H'!E10*100,"-")) -> 11.20892019 | G12: =IF(OR('Tabel 1 H'!E10<5,'Tabel 2 H'!G12<0.5),"-",IFERROR('Tabel 2 H'!G12/'Tabel 1 H'!E10*100,"-")) -> 9.619574241 | I12: =IF(OR('Tabel 1 H'!G10<5,'Tabel 2 H'!I12<0.5),"-",IFERROR('Tabel 2 H'!I12/'Tabel 1 H'!G10*100,"-")) -> 11.05986112 | J12: =IF(OR('Tabel 1 H'!G10<5,'Tabel 2 H'!J12<0.5),"-",IFERROR('Tabel 2 H'!J12/'Tabel 1 H'!G10*100,"-")) -> 9.526536702
A13: MA. Nat. | C13: =IF(OR('Tabel 1 H'!C11<5,'Tabel 2 H'!C13<0.5),"-",IFERROR('Tabel 2 H'!C13/'Tabel 1 H'!C11*100,"-")) -> 3.734671126 | D13: =IF(OR('Tabel 1 H'!C11<5,'Tabel 2 H'!D13<0.5),"-",IFERROR('Tabel 2 H'!D13/'Tabel 1 H'!C11*100,"-")) -> 3.249933717 | F13: =IF(OR('Tabel 1 H'!E11<5,'Tabel 2 H'!F13<0.5),"-",IFERROR('Tabel 2 H'!F13/'Tabel 1 H'!E11*100,"-")) -> 5.512249443 | G13: =IF(OR('Tabel 1 H'!E11<5,'Tabel 2 H'!G13<0.5),"-",IFERROR('Tabel 2 H'!G13/'Tabel 1 H'!E11*100,"-")) -> 4.609507368 | I13: =IF(OR('Tabel 1 H'!G11<5,'Tabel 2 H'!I13<0.5),"-",IFERROR('Tabel 2 H'!I13/'Tabel 1 H'!G11*100,"-")) -> 4.623955432 | J13: =IF(OR('Tabel 1 H'!G11<5,'Tabel 2 H'!J13<0.5),"-",IFERROR('Tabel 2 H'!J13/'Tabel 1 H'!G11*100,"-")) -> 3.930099254
A14: MA. Ph.d. | C14: =IF(OR('Tabel 1 H'!C12<5,'Tabel 2 H'!C14<0.5),"-",IFERROR('Tabel 2 H'!C14/'Tabel 1 H'!C12*100,"-")) -> 5.099150142 | D14: =IF(OR('Tabel 1 H'!C12<5,'Tabel 2 H'!D14<0.5),"-",IFERROR('Tabel 2 H'!D14/'Tabel 1 H'!C12*100,"-")) -> 4.442148267 | F14: =IF(OR('Tabel 1 H'!E12<5,'Tabel 2 H'!F14<0.5),"-",IFERROR('Tabel 2 H'!F14/'Tabel 1 H'!E12*100,"-")) -> 7.078039927 | G14: =IF(OR('Tabel 1 H'!E12<5,'Tabel 2 H'!G14<0.5),"-",IFERROR('Tabel 2 H'!G14/'Tabel 1 H'!E12*100,"-")) -> 5.919732476 | I14: =IF(OR('Tabel 1 H'!G12<5,'Tabel 2 H'!I14<0.5),"-",IFERROR('Tabel 2 H'!I14/'Tabel 1 H'!G12*100,"-")) -> 5.966587112 | J14: =IF(OR('Tabel 1 H'!G12<5,'Tabel 2 H'!J14<0.5),"-",IFERROR('Tabel 2 H'!J14/'Tabel 1 H'!G12*100,"-")) -> 5.089840311
A15: MA. Samf. | C15: =IF(OR('Tabel 1 H'!C13<5,'Tabel 2 H'!C15<0.5),"-",IFERROR('Tabel 2 H'!C15/'Tabel 1 H'!C13*100,"-")) -> 15.68627451 | D15: =IF(OR('Tabel 1 H'!C13<5,'Tabel 2 H'!D15<0.5),"-",IFERROR('Tabel 2 H'!D15/'Tabel 1 H'!C13*100,"-")) -> 14.0343711 | F15: =IF(OR('Tabel 1 H'!E13<5,'Tabel 2 H'!F15<0.5),"-",IFERROR('Tabel 2 H'!F15/'Tabel 1 H'!E13*100,"-")) -> 14.05764967 | G15: =IF(OR('Tabel 1 H'!E13<5,'Tabel 2 H'!G15<0.5),"-",IFERROR('Tabel 2 H'!G15/'Tabel 1 H'!E13*100,"-")) -> 12.19781872 | I15: =IF(OR('Tabel 1 H'!G13<5,'Tabel 2 H'!I15<0.5),"-",IFERROR('Tabel 2 H'!I15/'Tabel 1 H'!G13*100,"-")) -> 14.52883706 | J15: =IF(OR('Tabel 1 H'!G13<5,'Tabel 2 H'!J15<0.5),"-",IFERROR('Tabel 2 H'!J15/'Tabel 1 H'!G13*100,"-")) -> 12.7291629
A16: Øvrige Mag. | C16: =IF(OR('Tabel 1 H'!C14<5,'Tabel 2 H'!C16<0.5),"-",IFERROR('Tabel 2 H'!C16/'Tabel 1 H'!C14*100,"-")) -> 10.5065666 | D16: =IF(OR('Tabel 1 H'!C14<5,'Tabel 2 H'!D16<0.5),"-",IFERROR('Tabel 2 H'!D16/'Tabel 1 H'!C14*100,"-")) -> 9.38694805 | F16: =IF(OR('Tabel 1 H'!E14<5,'Tabel 2 H'!F16<0.5),"-",IFERROR('Tabel 2 H'!F16/'Tabel 1 H'!E14*100,"-")) -> 9.32038835 | G16: =IF(OR('Tabel 1 H'!E14<5,'Tabel 2 H'!G16<0.5),"-",IFERROR('Tabel 2 H'!G16/'Tabel 1 H'!E14*100,"-")) -> 8.194688261 | I16: =IF(OR('Tabel 1 H'!G14<5,'Tabel 2 H'!I16<0.5),"-",IFERROR('Tabel 2 H'!I16/'Tabel 1 H'!G14*100,"-")) -> 9.724888036 | J16: =IF(OR('Tabel 1 H'!G14<5,'Tabel 2 H'!J16<0.5),"-",IFERROR('Tabel 2 H'!J16/'Tabel 1 H'!G14*100,"-")) -> 8.601261817
A17: Agronom | C17: =IF(OR('Tabel 1 H'!C15<5,'Tabel 2 H'!C17<0.5),"-",IFERROR('Tabel 2 H'!C17/'Tabel 1 H'!C15*100,"-")) -> 4.712041885 | D17: =IF(OR('Tabel 1 H'!C15<5,'Tabel 2 H'!D17<0.5),"-",IFERROR('Tabel 2 H'!D17/'Tabel 1 H'!C15*100,"-")) -> 4.138062106 | F17: =IF(OR('Tabel 1 H'!E15<5,'Tabel 2 H'!F17<0.5),"-",IFERROR('Tabel 2 H'!F17/'Tabel 1 H'!E15*100,"-")) -> 7.746478873 | G17: =IF(OR('Tabel 1 H'!E15<5,'Tabel 2 H'!G17<0.5),"-",IFERROR('Tabel 2 H'!G17/'Tabel 1 H'!E15*100,"-")) -> 6.538158241 | I17: =IF(OR('Tabel 1 H'!G15<5,'Tabel 2 H'!I17<0.5),"-",IFERROR('Tabel 2 H'!I17/'Tabel 1 H'!G15*100,"-")) -> 6.311881188 | J17: =IF(OR('Tabel 1 H'!G15<5,'Tabel 2 H'!J17<0.5),"-",IFERROR('Tabel 2 H'!J17/'Tabel 1 H'!G15*100,"-")) -> 5.403459326
A18: Landsk. Arkt. | C18: =IF(OR('Tabel 1 H'!C16<5,'Tabel 2 H'!C18<0.5),"-",IFERROR('Tabel 2 H'!C18/'Tabel 1 H'!C16*100,"-")) -> 9.302325581 | D18: =IF(OR('Tabel 1 H'!C16<5,'Tabel 2 H'!D18<0.5),"-",IFERROR('Tabel 2 H'!D18/'Tabel 1 H'!C16*100,"-")) -> 9.041429571 | F18: =IF(OR('Tabel 1 H'!E16<5,'Tabel 2 H'!F18<0.5),"-",IFERROR('Tabel 2 H'!F18/'Tabel 1 H'!E16*100,"-")) -> 8.454810496 | G18: =IF(OR('Tabel 1 H'!E16<5,'Tabel 2 H'!G18<0.5),"-",IFERROR('Tabel 2 H'!G18/'Tabel 1 H'!E16*100,"-")) -> 7.850790252 | I18: =IF(OR('Tabel 1 H'!G16<5,'Tabel 2 H'!I18<0.5),"-",IFERROR('Tabel 2 H'!I18/'Tabel 1 H'!G16*100,"-")) -> 8.686440678 | J18: =IF(OR('Tabel 1 H'!G16<5,'Tabel 2 H'!J18<0.5),"-",IFERROR('Tabel 2 H'!J18/'Tabel 1 H'!G16*100,"-")) -> 8.176198032
A19: Hortonom | C19: =IF(OR('Tabel 1 H'!C17<5,'Tabel 2 H'!C19<0.5),"-",IFERROR('Tabel 2 H'!C19/'Tabel 1 H'!C17*100,"-")) -> 3.636363636 | D19: =IF(OR('Tabel 1 H'!C17<5,'Tabel 2 H'!D19<0.5),"-",IFERROR('Tabel 2 H'!D19/'Tabel 1 H'!C17*100,"-")) -> 2.964340593 | F19: =IF(OR('Tabel 1 H'!E17<5,'Tabel 2 H'!F19<0.5),"-",IFERROR('Tabel 2 H'!F19/'Tabel 1 H'!E17*100,"-")) -> 4 | G19: =IF(OR('Tabel 1 H'!E17<5,'Tabel 2 H'!G19<0.5),"-",IFERROR('Tabel 2 H'!G19/'Tabel 1 H'!E17*100,"-")) -> 2.845381401 | I19: =IF(OR('Tabel 1 H'!G17<5,'Tabel 2 H'!I19<0.5),"-",IFERROR('Tabel 2 H'!I19/'Tabel 1 H'!G17*100,"-")) -> 3.870967742 | J19: =IF(OR('Tabel 1 H'!G17<5,'Tabel 2 H'!J19<0.5),"-",IFERROR('Tabel 2 H'!J19/'Tabel 1 H'!G17*100,"-")) -> 2.887592727
A20: Forstkand. | C20: =IF(OR('Tabel 1 H'!C18<5,'Tabel 2 H'!C20<0.5),"-",IFERROR('Tabel 2 H'!C20/'Tabel 1 H'!C18*100,"-")) -> 4.812834225 | D20: =IF(OR('Tabel 1 H'!C18<5,'Tabel 2 H'!D20<0.5),"-",IFERROR('Tabel 2 H'!D20/'Tabel 1 H'!C18*100,"-")) -> 4.382338432 | F20: =IF(OR('Tabel 1 H'!E18<5,'Tabel 2 H'!F20<0.5),"-",IFERROR('Tabel 2 H'!F20/'Tabel 1 H'!E18*100,"-")) -> 10.44776119 | G20: =IF(OR('Tabel 1 H'!E18<5,'Tabel 2 H'!G20<0.5),"-",IFERROR('Tabel 2 H'!G20/'Tabel 1 H'!E18*100,"-")) -> 9.409696978 | I20: =IF(OR('Tabel 1 H'!G18<5,'Tabel 2 H'!I20<0.5),"-",IFERROR('Tabel 2 H'!I20/'Tabel 1 H'!G18*100,"-")) -> 6.299212598 | J20: =IF(OR('Tabel 1 H'!G18<5,'Tabel 2 H'!J20<0.5),"-",IFERROR('Tabel 2 H'!J20/'Tabel 1 H'!G18*100,"-")) -> 5.708452694
A21: Jordbrugsakad. | C21: =IF(OR('Tabel 1 H'!C19<5,'Tabel 2 H'!C21<0.5),"-",IFERROR('Tabel 2 H'!C21/'Tabel 1 H'!C19*100,"-")) -> 5.444887118 | D21: =IF(OR('Tabel 1 H'!C19<5,'Tabel 2 H'!D21<0.5),"-",IFERROR('Tabel 2 H'!D21/'Tabel 1 H'!C19*100,"-")) -> 4.953014819 | F21: =IF(OR('Tabel 1 H'!E19<5,'Tabel 2 H'!F21<0.5),"-",IFERROR('Tabel 2 H'!F21/'Tabel 1 H'!E19*100,"-")) -> 7.799145299 | G21: =IF(OR('Tabel 1 H'!E19<5,'Tabel 2 H'!G21<0.5),"-",IFERROR('Tabel 2 H'!G21/'Tabel 1 H'!E19*100,"-")) -> 6.830196907 | I21: =IF(OR('Tabel 1 H'!G19<5,'Tabel 2 H'!I21<0.5),"-",IFERROR('Tabel 2 H'!I21/'Tabel 1 H'!G19*100,"-")) -> 6.74955595 | J21: =IF(OR('Tabel 1 H'!G19<5,'Tabel 2 H'!J21<0.5),"-",IFERROR('Tabel 2 H'!J21/'Tabel 1 H'!G19*100,"-")) -> 5.993300452
A22: Mejeriing. | C22: =IF(OR('Tabel 1 H'!C20<5,'Tabel 2 H'!C22<0.5),"-",IFERROR('Tabel 2 H'!C22/'Tabel 1 H'!C20*100,"-")) -> 5 | D22: =IF(OR('Tabel 1 H'!C20<5,'Tabel 2 H'!D22<0.5),"-",IFERROR('Tabel 2 H'!D22/'Tabel 1 H'!C20*100,"-")) -> 4.152892992 | F22: =IF(OR('Tabel 1 H'!E20<5,'Tabel 2 H'!F22<0.5),"-",IFERROR('Tabel 2 H'!F22/'Tabel 1 H'!E20*100,"-")) -> 15 | G22: =IF(OR('Tabel 1 H'!E20<5,'Tabel 2 H'!G22<0.5),"-",IFERROR('Tabel 2 H'!G22/'Tabel 1 H'!E20*100,"-")) -> 13.41452005 | I22: =IF(OR('Tabel 1 H'!G20<5,'Tabel 2 H'!I22<0.5),"-",IFERROR('Tabel 2 H'!I22/'Tabel 1 H'!G20*100,"-")) -> 10.71428571 | J22: =IF(OR('Tabel 1 H'!G20<5,'Tabel 2 H'!J22<0.5),"-",IFERROR('Tabel 2 H'!J22/'Tabel 1 H'!G20*100,"-")) -> 9.445251312
A23: Levn.m.kand. | C23: =IF(OR('Tabel 1 H'!C21<5,'Tabel 2 H'!C23<0.5),"-",IFERROR('Tabel 2 H'!C23/'Tabel 1 H'!C21*100,"-")) -> 18.18181818 | D23: =IF(OR('Tabel 1 H'!C21<5,'Tabel 2 H'!D23<0.5),"-",IFERROR('Tabel 2 H'!D23/'Tabel 1 H'!C21*100,"-")) -> 14.07891678 | F23: =IF(OR('Tabel 1 H'!E21<5,'Tabel 2 H'!F23<0.5),"-",IFERROR('Tabel 2 H'!F23/'Tabel 1 H'!E21*100,"-")) -> 9.191176471 | G23: =IF(OR('Tabel 1 H'!E21<5,'Tabel 2 H'!G23<0.5),"-",IFERROR('Tabel 2 H'!G23/'Tabel 1 H'!E21*100,"-")) -> 8.208942218 | I23: =IF(OR('Tabel 1 H'!G21<5,'Tabel 2 H'!I23<0.5),"-",IFERROR('Tabel 2 H'!I23/'Tabel 1 H'!G21*100,"-")) -> 10.44303797 | J23: =IF(OR('Tabel 1 H'!G21<5,'Tabel 2 H'!J23<0.5),"-",IFERROR('Tabel 2 H'!J23/'Tabel 1 H'!G21*100,"-")) -> 9.026280448
A24: Dyrlæge | C24: =IF(OR('Tabel 1 H'!C22<5,'Tabel 2 H'!C24<0.5),"-",IFERROR('Tabel 2 H'!C24/'Tabel 1 H'!C22*100,"-")) -> 6.586826347 | D24: =IF(OR('Tabel 1 H'!C22<5,'Tabel 2 H'!D24<0.5),"-",IFERROR('Tabel 2 H'!D24/'Tabel 1 H'!C22*100,"-")) -> 4.083269873 | F24: =IF(OR('Tabel 1 H'!E22<5,'Tabel 2 H'!F24<0.5),"-",IFERROR('Tabel 2 H'!F24/'Tabel 1 H'!E22*100,"-")) -> 10.18041237 | G24: =IF(OR('Tabel 1 H'!E22<5,'Tabel 2 H'!G24<0.5),"-",IFERROR('Tabel 2 H'!G24/'Tabel 1 H'!E22*100,"-")) -> 8.356556484 | I24: =IF(OR('Tabel 1 H'!G22<5,'Tabel 2 H'!I24<0.5),"-",IFERROR('Tabel 2 H'!I24/'Tabel 1 H'!G22*100,"-")) -> 9.544008484 | J24: =IF(OR('Tabel 1 H'!G22<5,'Tabel 2 H'!J24<0.5),"-",IFERROR('Tabel 2 H'!J24/'Tabel 1 H'!G22*100,"-")) -> 7.599781442
A25: Farmaceut | C25: =IF(OR('Tabel 1 H'!C23<5,'Tabel 2 H'!C25<0.5),"-",IFERROR('Tabel 2 H'!C25/'Tabel 1 H'!C23*100,"-")) -> 4.228121927 | D25: =IF(OR('Tabel 1 H'!C23<5,'Tabel 2 H'!D25<0.5),"-",IFERROR('Tabel 2 H'!D25/'Tabel 1 H'!C23*100,"-")) -> 3.821089014 | F25: =IF(OR('Tabel 1 H'!E23<5,'Tabel 2 H'!F25<0.5),"-",IFERROR('Tabel 2 H'!F25/'Tabel 1 H'!E23*100,"-")) -> 3.947858473 | G25: =IF(OR('Tabel 1 H'!E23<5,'Tabel 2 H'!G25<0.5),"-",IFERROR('Tabel 2 H'!G25/'Tabel 1 H'!E23*100,"-")) -> 3.463921769 | I25: =IF(OR('Tabel 1 H'!G23<5,'Tabel 2 H'!I25<0.5),"-",IFERROR('Tabel 2 H'!I25/'Tabel 1 H'!G23*100,"-")) -> 4.024851432 | J25: =IF(OR('Tabel 1 H'!G23<5,'Tabel 2 H'!J25<0.5),"-",IFERROR('Tabel 2 H'!J25/'Tabel 1 H'!G23*100,"-")) -> 3.562041458
A26: Læge | C26: =IF(OR('Tabel 1 H'!C24<5,'Tabel 2 H'!C26<0.5),"-",IFERROR('Tabel 2 H'!C26/'Tabel 1 H'!C24*100,"-")) -> 1.756756757 | D26: =IF(OR('Tabel 1 H'!C24<5,'Tabel 2 H'!D26<0.5),"-",IFERROR('Tabel 2 H'!D26/'Tabel 1 H'!C24*100,"-")) -> 1.416293422 | F26: =IF(OR('Tabel 1 H'!E24<5,'Tabel 2 H'!F26<0.5),"-",IFERROR('Tabel 2 H'!F26/'Tabel 1 H'!E24*100,"-")) -> 2.470491353 | G26: =IF(OR('Tabel 1 H'!E24<5,'Tabel 2 H'!G26<0.5),"-",IFERROR('Tabel 2 H'!G26/'Tabel 1 H'!E24*100,"-")) -> 1.980457579 | I26: =IF(OR('Tabel 1 H'!G24<5,'Tabel 2 H'!I26<0.5),"-",IFERROR('Tabel 2 H'!I26/'Tabel 1 H'!G24*100,"-")) -> 2.264298263 | J26: =IF(OR('Tabel 1 H'!G24<5,'Tabel 2 H'!J26<0.5),"-",IFERROR('Tabel 2 H'!J26/'Tabel 1 H'!G24*100,"-")) -> 1.817474375
A27: Tandlæge | C27: =IF(OR('Tabel 1 H'!C25<5,'Tabel 2 H'!C27<0.5),"-",IFERROR('Tabel 2 H'!C27/'Tabel 1 H'!C25*100,"-")) -> 4.580152672 | D27: =IF(OR('Tabel 1 H'!C25<5,'Tabel 2 H'!D27<0.5),"-",IFERROR('Tabel 2 H'!D27/'Tabel 1 H'!C25*100,"-")) -> 2.193472147 | F27: =IF(OR('Tabel 1 H'!E25<5,'Tabel 2 H'!F27<0.5),"-",IFERROR('Tabel 2 H'!F27/'Tabel 1 H'!E25*100,"-")) -> 4.92040521 | G27: =IF(OR('Tabel 1 H'!E25<5,'Tabel 2 H'!G27<0.5),"-",IFERROR('Tabel 2 H'!G27/'Tabel 1 H'!E25*100,"-")) -> 3.425370051 | I27: =IF(OR('Tabel 1 H'!G25<5,'Tabel 2 H'!I27<0.5),"-",IFERROR('Tabel 2 H'!I27/'Tabel 1 H'!G25*100,"-")) -> 4.866180049 | J27: =IF(OR('Tabel 1 H'!G25<5,'Tabel 2 H'!J27<0.5),"-",IFERROR('Tabel 2 H'!J27/'Tabel 1 H'!G25*100,"-")) -> 3.229045689
A28: Arkitekt | C28: =IF(OR('Tabel 1 H'!C26<5,'Tabel 2 H'!C28<0.5),"-",IFERROR('Tabel 2 H'!C28/'Tabel 1 H'!C26*100,"-")) -> 8.292383292 | D28: =IF(OR('Tabel 1 H'!C26<5,'Tabel 2 H'!D28<0.5),"-",IFERROR('Tabel 2 H'!D28/'Tabel 1 H'!C26*100,"-")) -> 7.23013545 | F28: =IF(OR('Tabel 1 H'!E26<5,'Tabel 2 H'!F28<0.5),"-",IFERROR('Tabel 2 H'!F28/'Tabel 1 H'!E26*100,"-")) -> 7.688442211 | G28: =IF(OR('Tabel 1 H'!E26<5,'Tabel 2 H'!G28<0.5),"-",IFERROR('Tabel 2 H'!G28/'Tabel 1 H'!E26*100,"-")) -> 6.466969664 | I28: =IF(OR('Tabel 1 H'!G26<5,'Tabel 2 H'!I28<0.5),"-",IFERROR('Tabel 2 H'!I28/'Tabel 1 H'!G26*100,"-")) -> 7.960199005 | J28: =IF(OR('Tabel 1 H'!G26<5,'Tabel 2 H'!J28<0.5),"-",IFERROR('Tabel 2 H'!J28/'Tabel 1 H'!G26*100,"-")) -> 6.810373174
A29: Landinspek. | C29: =IF(OR('Tabel 1 H'!C27<5,'Tabel 2 H'!C29<0.5),"-",IFERROR('Tabel 2 H'!C29/'Tabel 1 H'!C27*100,"-")) -> 2.142857143 | D29: =IF(OR('Tabel 1 H'!C27<5,'Tabel 2 H'!D29<0.5),"-",IFERROR('Tabel 2 H'!D29/'Tabel 1 H'!C27*100,"-")) -> 2.142456184 | F29: =IF(OR('Tabel 1 H'!E27<5,'Tabel 2 H'!F29<0.5),"-",IFERROR('Tabel 2 H'!F29/'Tabel 1 H'!E27*100,"-")) -> 1.923076923 | G29: =IF(OR('Tabel 1 H'!E27<5,'Tabel 2 H'!G29<0.5),"-",IFERROR('Tabel 2 H'!G29/'Tabel 1 H'!E27*100,"-")) -> - | I29: =IF(OR('Tabel 1 H'!G27<5,'Tabel 2 H'!I29<0.5),"-",IFERROR('Tabel 2 H'!I29/'Tabel 1 H'!G27*100,"-")) -> 2.083333333 | J29: =IF(OR('Tabel 1 H'!G27<5,'Tabel 2 H'!J29<0.5),"-",IFERROR('Tabel 2 H'!J29/'Tabel 1 H'!G27*100,"-")) -> 1.67428117
A30: Bibliotekar | C30: =IF(OR('Tabel 1 H'!C28<5,'Tabel 2 H'!C30<0.5),"-",IFERROR('Tabel 2 H'!C30/'Tabel 1 H'!C28*100,"-")) -> 4.793028322 | D30: =IF(OR('Tabel 1 H'!C28<5,'Tabel 2 H'!D30<0.5),"-",IFERROR('Tabel 2 H'!D30/'Tabel 1 H'!C28*100,"-")) -> 3.950865501 | F30: =IF(OR('Tabel 1 H'!E28<5,'Tabel 2 H'!F30<0.5),"-",IFERROR('Tabel 2 H'!F30/'Tabel 1 H'!E28*100,"-")) -> 5.107741421 | G30: =IF(OR('Tabel 1 H'!E28<5,'Tabel 2 H'!G30<0.5),"-",IFERROR('Tabel 2 H'!G30/'Tabel 1 H'!E28*100,"-")) -> 4.527822181 | I30: =IF(OR('Tabel 1 H'!G28<5,'Tabel 2 H'!I30<0.5),"-",IFERROR('Tabel 2 H'!I30/'Tabel 1 H'!G28*100,"-")) -> 5.023364486 | J30: =IF(OR('Tabel 1 H'!G28<5,'Tabel 2 H'!J30<0.5),"-",IFERROR('Tabel 2 H'!J30/'Tabel 1 H'!G28*100,"-")) -> 4.373135781
A31: Musikudd. | C31: =IF(OR('Tabel 1 H'!C29<5,'Tabel 2 H'!C31<0.5),"-",IFERROR('Tabel 2 H'!C31/'Tabel 1 H'!C29*100,"-")) -> 10.94890511 | D31: =IF(OR('Tabel 1 H'!C29<5,'Tabel 2 H'!D31<0.5),"-",IFERROR('Tabel 2 H'!D31/'Tabel 1 H'!C29*100,"-")) -> 9.271935028 | F31: =IF(OR('Tabel 1 H'!E29<5,'Tabel 2 H'!F31<0.5),"-",IFERROR('Tabel 2 H'!F31/'Tabel 1 H'!E29*100,"-")) -> 4.469273743 | G31: =IF(OR('Tabel 1 H'!E29<5,'Tabel 2 H'!G31<0.5),"-",IFERROR('Tabel 2 H'!G31/'Tabel 1 H'!E29*100,"-")) -> 3.561787891 | I31: =IF(OR('Tabel 1 H'!G29<5,'Tabel 2 H'!I31<0.5),"-",IFERROR('Tabel 2 H'!I31/'Tabel 1 H'!G29*100,"-")) -> 7.278481013 | J31: =IF(OR('Tabel 1 H'!G29<5,'Tabel 2 H'!J31<0.5),"-",IFERROR('Tabel 2 H'!J31/'Tabel 1 H'!G29*100,"-")) -> 6.037389656
A32: Teolog | C32: =IF(OR('Tabel 1 H'!C30<5,'Tabel 2 H'!C32<0.5),"-",IFERROR('Tabel 2 H'!C32/'Tabel 1 H'!C30*100,"-")) -> 4.830917874 | D32: =IF(OR('Tabel 1 H'!C30<5,'Tabel 2 H'!D32<0.5),"-",IFERROR('Tabel 2 H'!D32/'Tabel 1 H'!C30*100,"-")) -> 4.42053241 | F32: =IF(OR('Tabel 1 H'!E30<5,'Tabel 2 H'!F32<0.5),"-",IFERROR('Tabel 2 H'!F32/'Tabel 1 H'!E30*100,"-")) -> 6.017191977 | G32: =IF(OR('Tabel 1 H'!E30<5,'Tabel 2 H'!G32<0.5),"-",IFERROR('Tabel 2 H'!G32/'Tabel 1 H'!E30*100,"-")) -> 4.79508864 | I32: =IF(OR('Tabel 1 H'!G30<5,'Tabel 2 H'!I32<0.5),"-",IFERROR('Tabel 2 H'!I32/'Tabel 1 H'!G30*100,"-")) -> 5.575539568 | J32: =IF(OR('Tabel 1 H'!G30<5,'Tabel 2 H'!J32<0.5),"-",IFERROR('Tabel 2 H'!J32/'Tabel 1 H'!G30*100,"-")) -> 4.655640547
A33: Psykolog | C33: =IF(OR('Tabel 1 H'!C31<5,'Tabel 2 H'!C33<0.5),"-",IFERROR('Tabel 2 H'!C33/'Tabel 1 H'!C31*100,"-")) -> 6.927710843 | D33: =IF(OR('Tabel 1 H'!C31<5,'Tabel 2 H'!D33<0.5),"-",IFERROR('Tabel 2 H'!D33/'Tabel 1 H'!C31*100,"-")) -> 6.057630384 | F33: =IF(OR('Tabel 1 H'!E31<5,'Tabel 2 H'!F33<0.5),"-",IFERROR('Tabel 2 H'!F33/'Tabel 1 H'!E31*100,"-")) -> 6.066873492 | G33: =IF(OR('Tabel 1 H'!E31<5,'Tabel 2 H'!G33<0.5),"-",IFERROR('Tabel 2 H'!G33/'Tabel 1 H'!E31*100,"-")) -> 4.99680371 | I33: =IF(OR('Tabel 1 H'!G31<5,'Tabel 2 H'!I33<0.5),"-",IFERROR('Tabel 2 H'!I33/'Tabel 1 H'!G31*100,"-")) -> 6.227208976 | J33: =IF(OR('Tabel 1 H'!G31<5,'Tabel 2 H'!J33<0.5),"-",IFERROR('Tabel 2 H'!J33/'Tabel 1 H'!G31*100,"-")) -> 5.194388257
A34: Jurist | C34: =IF(OR('Tabel 1 H'!C32<5,'Tabel 2 H'!C34<0.5),"-",IFERROR('Tabel 2 H'!C34/'Tabel 1 H'!C32*100,"-")) -> 2.297042165 | D34: =IF(OR('Tabel 1 H'!C32<5,'Tabel 2 H'!D34<0.5),"-",IFERROR('Tabel 2 H'!D34/'Tabel 1 H'!C32*100,"-")) -> 2.070540712 | F34: =IF(OR('Tabel 1 H'!E32<5,'Tabel 2 H'!F34<0.5),"-",IFERROR('Tabel 2 H'!F34/'Tabel 1 H'!E32*100,"-")) -> 2.338722336 | G34: =IF(OR('Tabel 1 H'!E32<5,'Tabel 2 H'!G34<0.5),"-",IFERROR('Tabel 2 H'!G34/'Tabel 1 H'!E32*100,"-")) -> 1.964712496 | I34: =IF(OR('Tabel 1 H'!G32<5,'Tabel 2 H'!I34<0.5),"-",IFERROR('Tabel 2 H'!I34/'Tabel 1 H'!G32*100,"-")) -> 2.32485077 | J34: =IF(OR('Tabel 1 H'!G32<5,'Tabel 2 H'!J34<0.5),"-",IFERROR('Tabel 2 H'!J34/'Tabel 1 H'!G32*100,"-")) -> 1.999933154
A35: Økonom | C35: =IF(OR('Tabel 1 H'!C33<5,'Tabel 2 H'!C35<0.5),"-",IFERROR('Tabel 2 H'!C35/'Tabel 1 H'!C33*100,"-")) -> 2.666666667 | D35: =IF(OR('Tabel 1 H'!C33<5,'Tabel 2 H'!D35<0.5),"-",IFERROR('Tabel 2 H'!D35/'Tabel 1 H'!C33*100,"-")) -> 2.300292683 | F35: =IF(OR('Tabel 1 H'!E33<5,'Tabel 2 H'!F35<0.5),"-",IFERROR('Tabel 2 H'!F35/'Tabel 1 H'!E33*100,"-")) -> 2.282453638 | G35: =IF(OR('Tabel 1 H'!E33<5,'Tabel 2 H'!G35<0.5),"-",IFERROR('Tabel 2 H'!G35/'Tabel 1 H'!E33*100,"-")) -> 1.985947967 | I35: =IF(OR('Tabel 1 H'!G33<5,'Tabel 2 H'!I35<0.5),"-",IFERROR('Tabel 2 H'!I35/'Tabel 1 H'!G33*100,"-")) -> 2.519167579 | J35: =IF(OR('Tabel 1 H'!G33<5,'Tabel 2 H'!J35<0.5),"-",IFERROR('Tabel 2 H'!J35/'Tabel 1 H'!G33*100,"-")) -> 2.179615988
A36: Samf. Adm. | C36: =IF(OR('Tabel 1 H'!C34<5,'Tabel 2 H'!C36<0.5),"-",IFERROR('Tabel 2 H'!C36/'Tabel 1 H'!C34*100,"-")) -> 5.761805762 | D36: =IF(OR('Tabel 1 H'!C34<5,'Tabel 2 H'!D36<0.5),"-",IFERROR('Tabel 2 H'!D36/'Tabel 1 H'!C34*100,"-")) -> 5.129437612 | F36: =IF(OR('Tabel 1 H'!E34<5,'Tabel 2 H'!F36<0.5),"-",IFERROR('Tabel 2 H'!F36/'Tabel 1 H'!E34*100,"-")) -> 6.515439193 | G36: =IF(OR('Tabel 1 H'!E34<5,'Tabel 2 H'!G36<0.5),"-",IFERROR('Tabel 2 H'!G36/'Tabel 1 H'!E34*100,"-")) -> 5.758839143 | I36: =IF(OR('Tabel 1 H'!G34<5,'Tabel 2 H'!I36<0.5),"-",IFERROR('Tabel 2 H'!I36/'Tabel 1 H'!G34*100,"-")) -> 6.212293172 | J36: =IF(OR('Tabel 1 H'!G34<5,'Tabel 2 H'!J36<0.5),"-",IFERROR('Tabel 2 H'!J36/'Tabel 1 H'!G34*100,"-")) -> 5.505664905
A37: Cand. Merc. | C37: =IF(OR('Tabel 1 H'!C35<5,'Tabel 2 H'!C37<0.5),"-",IFERROR('Tabel 2 H'!C37/'Tabel 1 H'!C35*100,"-")) -> 4.991964644 | D37: =IF(OR('Tabel 1 H'!C35<5,'Tabel 2 H'!D37<0.5),"-",IFERROR('Tabel 2 H'!D37/'Tabel 1 H'!C35*100,"-")) -> 4.441002395 | F37: =IF(OR('Tabel 1 H'!E35<5,'Tabel 2 H'!F37<0.5),"-",IFERROR('Tabel 2 H'!F37/'Tabel 1 H'!E35*100,"-")) -> 5.361544782 | G37: =IF(OR('Tabel 1 H'!E35<5,'Tabel 2 H'!G37<0.5),"-",IFERROR('Tabel 2 H'!G37/'Tabel 1 H'!E35*100,"-")) -> 4.597222727 | I37: =IF(OR('Tabel 1 H'!G35<5,'Tabel 2 H'!I37<0.5),"-",IFERROR('Tabel 2 H'!I37/'Tabel 1 H'!G35*100,"-")) -> 5.17469023 | J37: =IF(OR('Tabel 1 H'!G35<5,'Tabel 2 H'!J37<0.5),"-",IFERROR('Tabel 2 H'!J37/'Tabel 1 H'!G35*100,"-")) -> 4.51823991
A38: HA | C38: =IF(OR('Tabel 1 H'!C36<5,'Tabel 2 H'!C38<0.5),"-",IFERROR('Tabel 2 H'!C38/'Tabel 1 H'!C36*100,"-")) -> 7.668231612 | D38: =IF(OR('Tabel 1 H'!C36<5,'Tabel 2 H'!D38<0.5),"-",IFERROR('Tabel 2 H'!D38/'Tabel 1 H'!C36*100,"-")) -> 6.964850567 | F38: =IF(OR('Tabel 1 H'!E36<5,'Tabel 2 H'!F38<0.5),"-",IFERROR('Tabel 2 H'!F38/'Tabel 1 H'!E36*100,"-")) -> 9.285051068 | G38: =IF(OR('Tabel 1 H'!E36<5,'Tabel 2 H'!G38<0.5),"-",IFERROR('Tabel 2 H'!G38/'Tabel 1 H'!E36*100,"-")) -> 8.007335845 | I38: =IF(OR('Tabel 1 H'!G36<5,'Tabel 2 H'!I38<0.5),"-",IFERROR('Tabel 2 H'!I38/'Tabel 1 H'!G36*100,"-")) -> 8.407643312 | J38: =IF(OR('Tabel 1 H'!G36<5,'Tabel 2 H'!J38<0.5),"-",IFERROR('Tabel 2 H'!J38/'Tabel 1 H'!G36*100,"-")) -> 7.441604981
A39: HD | C39: =IF(OR('Tabel 1 H'!C37<5,'Tabel 2 H'!C39<0.5),"-",IFERROR('Tabel 2 H'!C39/'Tabel 1 H'!C37*100,"-")) -> 8.32083958 | D39: =IF(OR('Tabel 1 H'!C37<5,'Tabel 2 H'!D39<0.5),"-",IFERROR('Tabel 2 H'!D39/'Tabel 1 H'!C37*100,"-")) -> 7.775894377 | F39: =IF(OR('Tabel 1 H'!E37<5,'Tabel 2 H'!F39<0.5),"-",IFERROR('Tabel 2 H'!F39/'Tabel 1 H'!E37*100,"-")) -> 8.710217755 | G39: =IF(OR('Tabel 1 H'!E37<5,'Tabel 2 H'!G39<0.5),"-",IFERROR('Tabel 2 H'!G39/'Tabel 1 H'!E37*100,"-")) -> 7.747264567 | I39: =IF(OR('Tabel 1 H'!G37<5,'Tabel 2 H'!I39<0.5),"-",IFERROR('Tabel 2 H'!I39/'Tabel 1 H'!G37*100,"-")) -> 8.504746835 | J39: =IF(OR('Tabel 1 H'!G37<5,'Tabel 2 H'!J39<0.5),"-",IFERROR('Tabel 2 H'!J39/'Tabel 1 H'!G37*100,"-")) -> 7.762372228
A40: Komm. og Sprog | C40: =IF(OR('Tabel 1 H'!C38<5,'Tabel 2 H'!C40<0.5),"-",IFERROR('Tabel 2 H'!C40/'Tabel 1 H'!C38*100,"-")) -> 9.870550162 | D40: =IF(OR('Tabel 1 H'!C38<5,'Tabel 2 H'!D40<0.5),"-",IFERROR('Tabel 2 H'!D40/'Tabel 1 H'!C38*100,"-")) -> 8.94433548 | F40: =IF(OR('Tabel 1 H'!E38<5,'Tabel 2 H'!F40<0.5),"-",IFERROR('Tabel 2 H'!F40/'Tabel 1 H'!E38*100,"-")) -> 8.747753146 | G40: =IF(OR('Tabel 1 H'!E38<5,'Tabel 2 H'!G40<0.5),"-",IFERROR('Tabel 2 H'!G40/'Tabel 1 H'!E38*100,"-")) -> 7.341303289 | I40: =IF(OR('Tabel 1 H'!G38<5,'Tabel 2 H'!I40<0.5),"-",IFERROR('Tabel 2 H'!I40/'Tabel 1 H'!G38*100,"-")) -> 8.923154702 | J40: =IF(OR('Tabel 1 H'!G38<5,'Tabel 2 H'!J40<0.5),"-",IFERROR('Tabel 2 H'!J40/'Tabel 1 H'!G38*100,"-")) -> 7.591726417
A41: Cand. IT. | C41: =IF(OR('Tabel 1 H'!C39<5,'Tabel 2 H'!C41<0.5),"-",IFERROR('Tabel 2 H'!C41/'Tabel 1 H'!C39*100,"-")) -> 5.301379811 | D41: =IF(OR('Tabel 1 H'!C39<5,'Tabel 2 H'!D41<0.5),"-",IFERROR('Tabel 2 H'!D41/'Tabel 1 H'!C39*100,"-")) -> 4.794124464 | F41: =IF(OR('Tabel 1 H'!E39<5,'Tabel 2 H'!F41<0.5),"-",IFERROR('Tabel 2 H'!F41/'Tabel 1 H'!E39*100,"-")) -> 8.504923903 | G41: =IF(OR('Tabel 1 H'!E39<5,'Tabel 2 H'!G41<0.5),"-",IFERROR('Tabel 2 H'!G41/'Tabel 1 H'!E39*100,"-")) -> 7.611762691 | I41: =IF(OR('Tabel 1 H'!G39<5,'Tabel 2 H'!I41<0.5),"-",IFERROR('Tabel 2 H'!I41/'Tabel 1 H'!G39*100,"-")) -> 6.7361668 | J41: =IF(OR('Tabel 1 H'!G39<5,'Tabel 2 H'!J41<0.5),"-",IFERROR('Tabel 2 H'!J41/'Tabel 1 H'!G39*100,"-")) -> 6.056073903
A42: Bac. Samf. | C42: =IF(OR('Tabel 1 H'!C40<5,'Tabel 2 H'!C42<0.5),"-",IFERROR('Tabel 2 H'!C42/'Tabel 1 H'!C40*100,"-")) -> 8.285714286 | D42: =IF(OR('Tabel 1 H'!C40<5,'Tabel 2 H'!D42<0.5),"-",IFERROR('Tabel 2 H'!D42/'Tabel 1 H'!C40*100,"-")) -> 7.588455952 | F42: =IF(OR('Tabel 1 H'!E40<5,'Tabel 2 H'!F42<0.5),"-",IFERROR('Tabel 2 H'!F42/'Tabel 1 H'!E40*100,"-")) -> 11.92214112 | G42: =IF(OR('Tabel 1 H'!E40<5,'Tabel 2 H'!G42<0.5),"-",IFERROR('Tabel 2 H'!G42/'Tabel 1 H'!E40*100,"-")) -> 10.58340288 | I42: =IF(OR('Tabel 1 H'!G40<5,'Tabel 2 H'!I42<0.5),"-",IFERROR('Tabel 2 H'!I42/'Tabel 1 H'!G40*100,"-")) -> 10.24967148 | J42: =IF(OR('Tabel 1 H'!G40<5,'Tabel 2 H'!J42<0.5),"-",IFERROR('Tabel 2 H'!J42/'Tabel 1 H'!G40*100,"-")) -> 9.205963423
A43: Bac. Hum. | C43: =IF(OR('Tabel 1 H'!C41<5,'Tabel 2 H'!C43<0.5),"-",IFERROR('Tabel 2 H'!C43/'Tabel 1 H'!C41*100,"-")) -> 17.87878788 | D43: =IF(OR('Tabel 1 H'!C41<5,'Tabel 2 H'!D43<0.5),"-",IFERROR('Tabel 2 H'!D43/'Tabel 1 H'!C41*100,"-")) -> 15.6262935 | F43: =IF(OR('Tabel 1 H'!E41<5,'Tabel 2 H'!F43<0.5),"-",IFERROR('Tabel 2 H'!F43/'Tabel 1 H'!E41*100,"-")) -> 17.80821918 | G43: =IF(OR('Tabel 1 H'!E41<5,'Tabel 2 H'!G43<0.5),"-",IFERROR('Tabel 2 H'!G43/'Tabel 1 H'!E41*100,"-")) -> 14.58955801 | I43: =IF(OR('Tabel 1 H'!G41<5,'Tabel 2 H'!I43<0.5),"-",IFERROR('Tabel 2 H'!I43/'Tabel 1 H'!G41*100,"-")) -> 17.83369803 | J43: =IF(OR('Tabel 1 H'!G41<5,'Tabel 2 H'!J43<0.5),"-",IFERROR('Tabel 2 H'!J43/'Tabel 1 H'!G41*100,"-")) -> 14.9638717
A44: Bac. Nat. | C44: =IF(OR('Tabel 1 H'!C42<5,'Tabel 2 H'!C44<0.5),"-",IFERROR('Tabel 2 H'!C44/'Tabel 1 H'!C42*100,"-")) -> 9.659863946 | D44: =IF(OR('Tabel 1 H'!C42<5,'Tabel 2 H'!D44<0.5),"-",IFERROR('Tabel 2 H'!D44/'Tabel 1 H'!C42*100,"-")) -> 8.678868541 | F44: =IF(OR('Tabel 1 H'!E42<5,'Tabel 2 H'!F44<0.5),"-",IFERROR('Tabel 2 H'!F44/'Tabel 1 H'!E42*100,"-")) -> 16.38733706 | G44: =IF(OR('Tabel 1 H'!E42<5,'Tabel 2 H'!G44<0.5),"-",IFERROR('Tabel 2 H'!G44/'Tabel 1 H'!E42*100,"-")) -> 14.46597398 | I44: =IF(OR('Tabel 1 H'!G42<5,'Tabel 2 H'!I44<0.5),"-",IFERROR('Tabel 2 H'!I44/'Tabel 1 H'!G42*100,"-")) -> 12.5 | J44: =IF(OR('Tabel 1 H'!G42<5,'Tabel 2 H'!J44<0.5),"-",IFERROR('Tabel 2 H'!J44/'Tabel 1 H'!G42*100,"-")) -> 11.12200975
A45: Andre | C45: =IF(OR('Tabel 1 H'!C43<5,'Tabel 2 H'!C45<0.5),"-",IFERROR('Tabel 2 H'!C45/'Tabel 1 H'!C43*100,"-")) -> 7.389245857 | D45: =IF(OR('Tabel 1 H'!C43<5,'Tabel 2 H'!D45<0.5),"-",IFERROR('Tabel 2 H'!D45/'Tabel 1 H'!C43*100,"-")) -> 6.475610911 | F45: =IF(OR('Tabel 1 H'!E43<5,'Tabel 2 H'!F45<0.5),"-",IFERROR('Tabel 2 H'!F45/'Tabel 1 H'!E43*100,"-")) -> 11.26152074 | G45: =IF(OR('Tabel 1 H'!E43<5,'Tabel 2 H'!G45<0.5),"-",IFERROR('Tabel 2 H'!G45/'Tabel 1 H'!E43*100,"-")) -> 9.500332839 | I45: =IF(OR('Tabel 1 H'!G43<5,'Tabel 2 H'!I45<0.5),"-",IFERROR('Tabel 2 H'!I45/'Tabel 1 H'!G43*100,"-")) -> 9.480479079 | J45: =IF(OR('Tabel 1 H'!G43<5,'Tabel 2 H'!J45<0.5),"-",IFERROR('Tabel 2 H'!J45/'Tabel 1 H'!G43*100,"-")) -> 8.109120715
A47: Total | C47: =IF(OR('Tabel 1 H'!C45<5,'Tabel 2 H'!C47<0.5),"-",IFERROR('Tabel 2 H'!C47/'Tabel 1 H'!C45*100,"-")) -> 5.740736205 | D47: =IF(OR('Tabel 1 H'!C45<5,'Tabel 2 H'!D47<0.5),"-",IFERROR('Tabel 2 H'!D47/'Tabel 1 H'!C45*100,"-")) -> 5.087710169 | F47: =IF(OR('Tabel 1 H'!E45<5,'Tabel 2 H'!F47<0.5),"-",IFERROR('Tabel 2 H'!F47/'Tabel 1 H'!E45*100,"-")) -> 7.53269361 | G47: =IF(OR('Tabel 1 H'!E45<5,'Tabel 2 H'!G47<0.5),"-",IFERROR('Tabel 2 H'!G47/'Tabel 1 H'!E45*100,"-")) -> 6.459236147 | I47: =IF(OR('Tabel 1 H'!G45<5,'Tabel 2 H'!I47<0.5),"-",IFERROR('Tabel 2 H'!I47/'Tabel 1 H'!G45*100,"-")) -> 6.695168925 | J47: =IF(OR('Tabel 1 H'!G45<5,'Tabel 2 H'!J47<0.5),"-",IFERROR('Tabel 2 H'!J47/'Tabel 1 H'!G45*100,"-")) -> 5.818212616
A49: Ingeniører i alt | C49: =IF(OR('Tabel 1 H'!C47<5,'Tabel 2 H'!C49<0.5),"-",IFERROR('Tabel 2 H'!C49/'Tabel 1 H'!C47*100,"-")) -> 3.600772235 | D49: =IF(OR('Tabel 1 H'!C47<5,'Tabel 2 H'!D49<0.5),"-",IFERROR('Tabel 2 H'!D49/'Tabel 1 H'!C47*100,"-")) -> 3.217284568 | F49: =IF(OR('Tabel 1 H'!E47<5,'Tabel 2 H'!F49<0.5),"-",IFERROR('Tabel 2 H'!F49/'Tabel 1 H'!E47*100,"-")) -> 4.8872688 | G49: =IF(OR('Tabel 1 H'!E47<5,'Tabel 2 H'!G49<0.5),"-",IFERROR('Tabel 2 H'!G49/'Tabel 1 H'!E47*100,"-")) -> 4.245336406 | I49: =IF(OR('Tabel 1 H'!G47<5,'Tabel 2 H'!I49<0.5),"-",IFERROR('Tabel 2 H'!I49/'Tabel 1 H'!G47*100,"-")) -> 3.921832884 | J49: =IF(OR('Tabel 1 H'!G47<5,'Tabel 2 H'!J49<0.5),"-",IFERROR('Tabel 2 H'!J49/'Tabel 1 H'!G47*100,"-")) -> 3.473847235
A50: Magistre i alt | C50: =IF(OR('Tabel 1 H'!C48<5,'Tabel 2 H'!C50<0.5),"-",IFERROR('Tabel 2 H'!C50/'Tabel 1 H'!C48*100,"-")) -> 8.647187975 | D50: =IF(OR('Tabel 1 H'!C48<5,'Tabel 2 H'!D50<0.5),"-",IFERROR('Tabel 2 H'!D50/'Tabel 1 H'!C48*100,"-")) -> 7.557736986 | F50: =IF(OR('Tabel 1 H'!E48<5,'Tabel 2 H'!F50<0.5),"-",IFERROR('Tabel 2 H'!F50/'Tabel 1 H'!E48*100,"-")) -> 10.34188034 | G50: =IF(OR('Tabel 1 H'!E48<5,'Tabel 2 H'!G50<0.5),"-",IFERROR('Tabel 2 H'!G50/'Tabel 1 H'!E48*100,"-")) -> 8.874632917 | I50: =IF(OR('Tabel 1 H'!G48<5,'Tabel 2 H'!I50<0.5),"-",IFERROR('Tabel 2 H'!I50/'Tabel 1 H'!G48*100,"-")) -> 9.73193119 | J50: =IF(OR('Tabel 1 H'!G48<5,'Tabel 2 H'!J50<0.5),"-",IFERROR('Tabel 2 H'!J50/'Tabel 1 H'!G48*100,"-")) -> 8.400659249
A51: DJØF'ere i alt | C51: =IF(OR('Tabel 1 H'!C49<5,'Tabel 2 H'!C51<0.5),"-",IFERROR('Tabel 2 H'!C51/'Tabel 1 H'!C49*100,"-")) -> 4.673545125 | D51: =IF(OR('Tabel 1 H'!C49<5,'Tabel 2 H'!D51<0.5),"-",IFERROR('Tabel 2 H'!D51/'Tabel 1 H'!C49*100,"-")) -> 4.159740547 | F51: =IF(OR('Tabel 1 H'!E49<5,'Tabel 2 H'!F51<0.5),"-",IFERROR('Tabel 2 H'!F51/'Tabel 1 H'!E49*100,"-")) -> 5.02150611 | G51: =IF(OR('Tabel 1 H'!E49<5,'Tabel 2 H'!G51<0.5),"-",IFERROR('Tabel 2 H'!G51/'Tabel 1 H'!E49*100,"-")) -> 4.359418187 | I51: =IF(OR('Tabel 1 H'!G49<5,'Tabel 2 H'!I51<0.5),"-",IFERROR('Tabel 2 H'!I51/'Tabel 1 H'!G49*100,"-")) -> 4.862956425 | J51: =IF(OR('Tabel 1 H'!G49<5,'Tabel 2 H'!J51<0.5),"-",IFERROR('Tabel 2 H'!J51/'Tabel 1 H'!G49*100,"-")) -> 4.268434345
A56: København
C58: Mænd | F58: Kvinder | I58: I alt
C59: Ledigheds- berørte | D59: Gns. brutto- ledighed | F59: Ledigheds- berørte | G59: Gns. brutto- ledighed | I59: Ledigheds- berørte | J59: Gns. brutto- ledighed
A62: Civ. ing. | C62: =IF(OR('Tabel 1 H'!C60<5,'Tabel 2 H'!C62<0.5),"-",IFERROR('Tabel 2 H'!C62/'Tabel 1 H'!C60*100,"-")) -> 4.823926676 | D62: =IF(OR('Tabel 1 H'!C60<5,'Tabel 2 H'!D62<0.5),"-",IFERROR('Tabel 2 H'!D62/'Tabel 1 H'!C60*100,"-")) -> 4.420844623 | F62: =IF(OR('Tabel 1 H'!E60<5,'Tabel 2 H'!F62<0.5),"-",IFERROR('Tabel 2 H'!F62/'Tabel 1 H'!E60*100,"-")) -> 6.645962733 | G62: =IF(OR('Tabel 1 H'!E60<5,'Tabel 2 H'!G62<0.5),"-",IFERROR('Tabel 2 H'!G62/'Tabel 1 H'!E60*100,"-")) -> 5.789379281 | I62: =IF(OR('Tabel 1 H'!G60<5,'Tabel 2 H'!I62<0.5),"-",IFERROR('Tabel 2 H'!I62/'Tabel 1 H'!G60*100,"-")) -> 5.333564976 | J62: =IF(OR('Tabel 1 H'!G60<5,'Tabel 2 H'!J62<0.5),"-",IFERROR('Tabel 2 H'!J62/'Tabel 1 H'!G60*100,"-")) -> 4.803634894
A63: Diplom ing. | C63: =IF(OR('Tabel 1 H'!C61<5,'Tabel 2 H'!C63<0.5),"-",IFERROR('Tabel 2 H'!C63/'Tabel 1 H'!C61*100,"-")) -> 5.197827773 | D63: =IF(OR('Tabel 1 H'!C61<5,'Tabel 2 H'!D63<0.5),"-",IFERROR('Tabel 2 H'!D63/'Tabel 1 H'!C61*100,"-")) -> 4.665876049 | F63: =IF(OR('Tabel 1 H'!E61<5,'Tabel 2 H'!F63<0.5),"-",IFERROR('Tabel 2 H'!F63/'Tabel 1 H'!E61*100,"-")) -> 8.333333333 | G63: =IF(OR('Tabel 1 H'!E61<5,'Tabel 2 H'!G63<0.5),"-",IFERROR('Tabel 2 H'!G63/'Tabel 1 H'!E61*100,"-")) -> 7.28626924 | I63: =IF(OR('Tabel 1 H'!G61<5,'Tabel 2 H'!I63<0.5),"-",IFERROR('Tabel 2 H'!I63/'Tabel 1 H'!G61*100,"-")) -> 5.81829496 | J63: =IF(OR('Tabel 1 H'!G61<5,'Tabel 2 H'!J63<0.5),"-",IFERROR('Tabel 2 H'!J63/'Tabel 1 H'!G61*100,"-")) -> 5.184410607
A64: Cand. Scient. Tek. | C64: =IF(OR('Tabel 1 H'!C62<5,'Tabel 2 H'!C64<0.5),"-",IFERROR('Tabel 2 H'!C64/'Tabel 1 H'!C62*100,"-")) -> 10.46841732 | D64: =IF(OR('Tabel 1 H'!C62<5,'Tabel 2 H'!D64<0.5),"-",IFERROR('Tabel 2 H'!D64/'Tabel 1 H'!C62*100,"-")) -> 9.532835865 | F64: =IF(OR('Tabel 1 H'!E62<5,'Tabel 2 H'!F64<0.5),"-",IFERROR('Tabel 2 H'!F64/'Tabel 1 H'!E62*100,"-")) -> 13.6913767 | G64: =IF(OR('Tabel 1 H'!E62<5,'Tabel 2 H'!G64<0.5),"-",IFERROR('Tabel 2 H'!G64/'Tabel 1 H'!E62*100,"-")) -> 11.99497481 | I64: =IF(OR('Tabel 1 H'!G62<5,'Tabel 2 H'!I64<0.5),"-",IFERROR('Tabel 2 H'!I64/'Tabel 1 H'!G62*100,"-")) -> 12.02856097 | J64: =IF(OR('Tabel 1 H'!G62<5,'Tabel 2 H'!J64<0.5),"-",IFERROR('Tabel 2 H'!J64/'Tabel 1 H'!G62*100,"-")) -> 10.72468782
A65: MA. Hum. | C65: =IF(OR('Tabel 1 H'!C63<5,'Tabel 2 H'!C65<0.5),"-",IFERROR('Tabel 2 H'!C65/'Tabel 1 H'!C63*100,"-")) -> 12.700766 | D65: =IF(OR('Tabel 1 H'!C63<5,'Tabel 2 H'!D65<0.5),"-",IFERROR('Tabel 2 H'!D65/'Tabel 1 H'!C63*100,"-")) -> 11.04318279 | F65: =IF(OR('Tabel 1 H'!E63<5,'Tabel 2 H'!F65<0.5),"-",IFERROR('Tabel 2 H'!F65/'Tabel 1 H'!E63*100,"-")) -> 12.73584906 | G65: =IF(OR('Tabel 1 H'!E63<5,'Tabel 2 H'!G65<0.5),"-",IFERROR('Tabel 2 H'!G65/'Tabel 1 H'!E63*100,"-")) -> 10.93638933 | I65: =IF(OR('Tabel 1 H'!G63<5,'Tabel 2 H'!I65<0.5),"-",IFERROR('Tabel 2 H'!I65/'Tabel 1 H'!G63*100,"-")) -> 12.72431994 | J65: =IF(OR('Tabel 1 H'!G63<5,'Tabel 2 H'!J65<0.5),"-",IFERROR('Tabel 2 H'!J65/'Tabel 1 H'!G63*100,"-")) -> 10.97148418
A66: MA. Nat. | C66: =IF(OR('Tabel 1 H'!C64<5,'Tabel 2 H'!C66<0.5),"-",IFERROR('Tabel 2 H'!C66/'Tabel 1 H'!C64*100,"-")) -> 5.909389363 | D66: =IF(OR('Tabel 1 H'!C64<5,'Tabel 2 H'!D66<0.5),"-",IFERROR('Tabel 2 H'!D66/'Tabel 1 H'!C64*100,"-")) -> 5.172686554 | F66: =IF(OR('Tabel 1 H'!E64<5,'Tabel 2 H'!F66<0.5),"-",IFERROR('Tabel 2 H'!F66/'Tabel 1 H'!E64*100,"-")) -> 7.414571244 | G66: =IF(OR('Tabel 1 H'!E64<5,'Tabel 2 H'!G66<0.5),"-",IFERROR('Tabel 2 H'!G66/'Tabel 1 H'!E64*100,"-")) -> 6.257202515 | I66: =IF(OR('Tabel 1 H'!G64<5,'Tabel 2 H'!I66<0.5),"-",IFERROR('Tabel 2 H'!I66/'Tabel 1 H'!G64*100,"-")) -> 6.668835394 | J66: =IF(OR('Tabel 1 H'!G64<5,'Tabel 2 H'!J66<0.5),"-",IFERROR('Tabel 2 H'!J66/'Tabel 1 H'!G64*100,"-")) -> 5.719883774
A67: MA. Ph.d. | C67: =IF(OR('Tabel 1 H'!C65<5,'Tabel 2 H'!C67<0.5),"-",IFERROR('Tabel 2 H'!C67/'Tabel 1 H'!C65*100,"-")) -> 6.970509383 | D67: =IF(OR('Tabel 1 H'!C65<5,'Tabel 2 H'!D67<0.5),"-",IFERROR('Tabel 2 H'!D67/'Tabel 1 H'!C65*100,"-")) -> 6.123429408 | F67: =IF(OR('Tabel 1 H'!E65<5,'Tabel 2 H'!F67<0.5),"-",IFERROR('Tabel 2 H'!F67/'Tabel 1 H'!E65*100,"-")) -> 10.03584229 | G67: =IF(OR('Tabel 1 H'!E65<5,'Tabel 2 H'!G67<0.5),"-",IFERROR('Tabel 2 H'!G67/'Tabel 1 H'!E65*100,"-")) -> 8.12616094 | I67: =IF(OR('Tabel 1 H'!G65<5,'Tabel 2 H'!I67<0.5),"-",IFERROR('Tabel 2 H'!I67/'Tabel 1 H'!G65*100,"-")) -> 8.282208589 | J67: =IF(OR('Tabel 1 H'!G65<5,'Tabel 2 H'!J67<0.5),"-",IFERROR('Tabel 2 H'!J67/'Tabel 1 H'!G65*100,"-")) -> 6.98042649
A68: MA. Samf. | C68: =IF(OR('Tabel 1 H'!C66<5,'Tabel 2 H'!C68<0.5),"-",IFERROR('Tabel 2 H'!C68/'Tabel 1 H'!C66*100,"-")) -> 17.25731895 | D68: =IF(OR('Tabel 1 H'!C66<5,'Tabel 2 H'!D68<0.5),"-",IFERROR('Tabel 2 H'!D68/'Tabel 1 H'!C66*100,"-")) -> 15.61109949 | F68: =IF(OR('Tabel 1 H'!E66<5,'Tabel 2 H'!F68<0.5),"-",IFERROR('Tabel 2 H'!F68/'Tabel 1 H'!E66*100,"-")) -> 15.25207403 | G68: =IF(OR('Tabel 1 H'!E66<5,'Tabel 2 H'!G68<0.5),"-",IFERROR('Tabel 2 H'!G68/'Tabel 1 H'!E66*100,"-")) -> 13.17683522 | I68: =IF(OR('Tabel 1 H'!G66<5,'Tabel 2 H'!I68<0.5),"-",IFERROR('Tabel 2 H'!I68/'Tabel 1 H'!G66*100,"-")) -> 15.83935018 | J68: =IF(OR('Tabel 1 H'!G66<5,'Tabel 2 H'!J68<0.5),"-",IFERROR('Tabel 2 H'!J68/'Tabel 1 H'!G66*100,"-")) -> 13.88975829
A69: Øvrige Mag. | C69: =IF(OR('Tabel 1 H'!C67<5,'Tabel 2 H'!C69<0.5),"-",IFERROR('Tabel 2 H'!C69/'Tabel 1 H'!C67*100,"-")) -> 13.4375 | D69: =IF(OR('Tabel 1 H'!C67<5,'Tabel 2 H'!D69<0.5),"-",IFERROR('Tabel 2 H'!D69/'Tabel 1 H'!C67*100,"-")) -> 12.21854924 | F69: =IF(OR('Tabel 1 H'!E67<5,'Tabel 2 H'!F69<0.5),"-",IFERROR('Tabel 2 H'!F69/'Tabel 1 H'!E67*100,"-")) -> 11.01694915 | G69: =IF(OR('Tabel 1 H'!E67<5,'Tabel 2 H'!G69<0.5),"-",IFERROR('Tabel 2 H'!G69/'Tabel 1 H'!E67*100,"-")) -> 9.662063519 | I69: =IF(OR('Tabel 1 H'!G67<5,'Tabel 2 H'!I69<0.5),"-",IFERROR('Tabel 2 H'!I69/'Tabel 1 H'!G67*100,"-")) -> 11.86813187 | J69: =IF(OR('Tabel 1 H'!G67<5,'Tabel 2 H'!J69<0.5),"-",IFERROR('Tabel 2 H'!J69/'Tabel 1 H'!G67*100,"-")) -> 10.56104751
A70: Agronom | C70: =IF(OR('Tabel 1 H'!C68<5,'Tabel 2 H'!C70<0.5),"-",IFERROR('Tabel 2 H'!C70/'Tabel 1 H'!C68*100,"-")) -> 7.751937984 | D70: =IF(OR('Tabel 1 H'!C68<5,'Tabel 2 H'!D70<0.5),"-",IFERROR('Tabel 2 H'!D70/'Tabel 1 H'!C68*100,"-")) -> 7.083258995 | F70: =IF(OR('Tabel 1 H'!E68<5,'Tabel 2 H'!F70<0.5),"-",IFERROR('Tabel 2 H'!F70/'Tabel 1 H'!E68*100,"-")) -> 11.9205298 | G70: =IF(OR('Tabel 1 H'!E68<5,'Tabel 2 H'!G70<0.5),"-",IFERROR('Tabel 2 H'!G70/'Tabel 1 H'!E68*100,"-")) -> 10.66715462 | I70: =IF(OR('Tabel 1 H'!G68<5,'Tabel 2 H'!I70<0.5),"-",IFERROR('Tabel 2 H'!I70/'Tabel 1 H'!G68*100,"-")) -> 10 | J70: =IF(OR('Tabel 1 H'!G68<5,'Tabel 2 H'!J70<0.5),"-",IFERROR('Tabel 2 H'!J70/'Tabel 1 H'!G68*100,"-")) -> 9.016002709
A71: Landsk. Arkt. | C71: =IF(OR('Tabel 1 H'!C69<5,'Tabel 2 H'!C71<0.5),"-",IFERROR('Tabel 2 H'!C71/'Tabel 1 H'!C69*100,"-")) -> 14.47368421 | D71: =IF(OR('Tabel 1 H'!C69<5,'Tabel 2 H'!D71<0.5),"-",IFERROR('Tabel 2 H'!D71/'Tabel 1 H'!C69*100,"-")) -> 14.03109376 | F71: =IF(OR('Tabel 1 H'!E69<5,'Tabel 2 H'!F71<0.5),"-",IFERROR('Tabel 2 H'!F71/'Tabel 1 H'!E69*100,"-")) -> 12.29050279 | G71: =IF(OR('Tabel 1 H'!E69<5,'Tabel 2 H'!G71<0.5),"-",IFERROR('Tabel 2 H'!G71/'Tabel 1 H'!E69*100,"-")) -> 11.13381026 | I71: =IF(OR('Tabel 1 H'!G69<5,'Tabel 2 H'!I71<0.5),"-",IFERROR('Tabel 2 H'!I71/'Tabel 1 H'!G69*100,"-")) -> 12.94117647 | J71: =IF(OR('Tabel 1 H'!G69<5,'Tabel 2 H'!J71<0.5),"-",IFERROR('Tabel 2 H'!J71/'Tabel 1 H'!G69*100,"-")) -> 11.99731436
A72: Hortonom | C72: =IF(OR('Tabel 1 H'!C70<5,'Tabel 2 H'!C72<0.5),"-",IFERROR('Tabel 2 H'!C72/'Tabel 1 H'!C70*100,"-")) -> 4.761904762 | D72: =IF(OR('Tabel 1 H'!C70<5,'Tabel 2 H'!D72<0.5),"-",IFERROR('Tabel 2 H'!D72/'Tabel 1 H'!C70*100,"-")) -> 4.761013742 | F72: =IF(OR('Tabel 1 H'!E70<5,'Tabel 2 H'!F72<0.5),"-",IFERROR('Tabel 2 H'!F72/'Tabel 1 H'!E70*100,"-")) -> 3.225806452 | G72: =IF(OR('Tabel 1 H'!E70<5,'Tabel 2 H'!G72<0.5),"-",IFERROR('Tabel 2 H'!G72/'Tabel 1 H'!E70*100,"-")) -> - | I72: =IF(OR('Tabel 1 H'!G70<5,'Tabel 2 H'!I72<0.5),"-",IFERROR('Tabel 2 H'!I72/'Tabel 1 H'!G70*100,"-")) -> 3.846153846 | J72: =IF(OR('Tabel 1 H'!G70<5,'Tabel 2 H'!J72<0.5),"-",IFERROR('Tabel 2 H'!J72/'Tabel 1 H'!G70*100,"-")) -> 2.51404555
A73: Forstkand. | C73: =IF(OR('Tabel 1 H'!C71<5,'Tabel 2 H'!C73<0.5),"-",IFERROR('Tabel 2 H'!C73/'Tabel 1 H'!C71*100,"-")) -> 10.34482759 | D73: =IF(OR('Tabel 1 H'!C71<5,'Tabel 2 H'!D73<0.5),"-",IFERROR('Tabel 2 H'!D73/'Tabel 1 H'!C71*100,"-")) -> 9.435281112 | F73: =IF(OR('Tabel 1 H'!E71<5,'Tabel 2 H'!F73<0.5),"-",IFERROR('Tabel 2 H'!F73/'Tabel 1 H'!E71*100,"-")) -> 19.23076923 | G73: =IF(OR('Tabel 1 H'!E71<5,'Tabel 2 H'!G73<0.5),"-",IFERROR('Tabel 2 H'!G73/'Tabel 1 H'!E71*100,"-")) -> 17.09694908 | I73: =IF(OR('Tabel 1 H'!G71<5,'Tabel 2 H'!I73<0.5),"-",IFERROR('Tabel 2 H'!I73/'Tabel 1 H'!G71*100,"-")) -> 13.0952381 | J73: =IF(OR('Tabel 1 H'!G71<5,'Tabel 2 H'!J73<0.5),"-",IFERROR('Tabel 2 H'!J73/'Tabel 1 H'!G71*100,"-")) -> 11.80674977
A74: Jordbrugsakad. | C74: =IF(OR('Tabel 1 H'!C72<5,'Tabel 2 H'!C74<0.5),"-",IFERROR('Tabel 2 H'!C74/'Tabel 1 H'!C72*100,"-")) -> 9.85915493 | D74: =IF(OR('Tabel 1 H'!C72<5,'Tabel 2 H'!D74<0.5),"-",IFERROR('Tabel 2 H'!D74/'Tabel 1 H'!C72*100,"-")) -> 9.251165949 | F74: =IF(OR('Tabel 1 H'!E72<5,'Tabel 2 H'!F74<0.5),"-",IFERROR('Tabel 2 H'!F74/'Tabel 1 H'!E72*100,"-")) -> 11.88630491 | G74: =IF(OR('Tabel 1 H'!E72<5,'Tabel 2 H'!G74<0.5),"-",IFERROR('Tabel 2 H'!G74/'Tabel 1 H'!E72*100,"-")) -> 10.53995385 | I74: =IF(OR('Tabel 1 H'!G72<5,'Tabel 2 H'!I74<0.5),"-",IFERROR('Tabel 2 H'!I74/'Tabel 1 H'!G72*100,"-")) -> 11.02831595 | J74: =IF(OR('Tabel 1 H'!G72<5,'Tabel 2 H'!J74<0.5),"-",IFERROR('Tabel 2 H'!J74/'Tabel 1 H'!G72*100,"-")) -> 9.994475812
A75: Mejeriing. | C75: =IF(OR('Tabel 1 H'!C73<5,'Tabel 2 H'!C75<0.5),"-",IFERROR('Tabel 2 H'!C75/'Tabel 1 H'!C73*100,"-")) -> 5.263157895 | D75: =IF(OR('Tabel 1 H'!C73<5,'Tabel 2 H'!D75<0.5),"-",IFERROR('Tabel 2 H'!D75/'Tabel 1 H'!C73*100,"-")) -> 5.262173084 | F75: =IF(OR('Tabel 1 H'!E73<5,'Tabel 2 H'!F75<0.5),"-",IFERROR('Tabel 2 H'!F75/'Tabel 1 H'!E73*100,"-")) -> 22.85714286 | G75: =IF(OR('Tabel 1 H'!E73<5,'Tabel 2 H'!G75<0.5),"-",IFERROR('Tabel 2 H'!G75/'Tabel 1 H'!E73*100,"-")) -> 21.34526111 | I75: =IF(OR('Tabel 1 H'!G73<5,'Tabel 2 H'!I75<0.5),"-",IFERROR('Tabel 2 H'!I75/'Tabel 1 H'!G73*100,"-")) -> 16.66666667 | J75: =IF(OR('Tabel 1 H'!G73<5,'Tabel 2 H'!J75<0.5),"-",IFERROR('Tabel 2 H'!J75/'Tabel 1 H'!G73*100,"-")) -> 15.68639681
A76: Levn.m.kand. | C76: =IF(OR('Tabel 1 H'!C74<5,'Tabel 2 H'!C76<0.5),"-",IFERROR('Tabel 2 H'!C76/'Tabel 1 H'!C74*100,"-")) -> 20 | D76: =IF(OR('Tabel 1 H'!C74<5,'Tabel 2 H'!D76<0.5),"-",IFERROR('Tabel 2 H'!D76/'Tabel 1 H'!C74*100,"-")) -> 13.28010977 | F76: =IF(OR('Tabel 1 H'!E74<5,'Tabel 2 H'!F76<0.5),"-",IFERROR('Tabel 2 H'!F76/'Tabel 1 H'!E74*100,"-")) -> 10.94890511 | G76: =IF(OR('Tabel 1 H'!E74<5,'Tabel 2 H'!G76<0.5),"-",IFERROR('Tabel 2 H'!G76/'Tabel 1 H'!E74*100,"-")) -> 9.370727619 | I76: =IF(OR('Tabel 1 H'!G74<5,'Tabel 2 H'!I76<0.5),"-",IFERROR('Tabel 2 H'!I76/'Tabel 1 H'!G74*100,"-")) -> 12.34567901 | J76: =IF(OR('Tabel 1 H'!G74<5,'Tabel 2 H'!J76<0.5),"-",IFERROR('Tabel 2 H'!J76/'Tabel 1 H'!G74*100,"-")) -> 9.974027334
A77: Dyrlæge | C77: =IF(OR('Tabel 1 H'!C75<5,'Tabel 2 H'!C77<0.5),"-",IFERROR('Tabel 2 H'!C77/'Tabel 1 H'!C75*100,"-")) -> 10.90909091 | D77: =IF(OR('Tabel 1 H'!C75<5,'Tabel 2 H'!D77<0.5),"-",IFERROR('Tabel 2 H'!D77/'Tabel 1 H'!C75*100,"-")) -> 5.42404019 | F77: =IF(OR('Tabel 1 H'!E75<5,'Tabel 2 H'!F77<0.5),"-",IFERROR('Tabel 2 H'!F77/'Tabel 1 H'!E75*100,"-")) -> 15.88447653 | G77: =IF(OR('Tabel 1 H'!E75<5,'Tabel 2 H'!G77<0.5),"-",IFERROR('Tabel 2 H'!G77/'Tabel 1 H'!E75*100,"-")) -> 13.04754792 | I77: =IF(OR('Tabel 1 H'!G75<5,'Tabel 2 H'!I77<0.5),"-",IFERROR('Tabel 2 H'!I77/'Tabel 1 H'!G75*100,"-")) -> 15.06024096 | J77: =IF(OR('Tabel 1 H'!G75<5,'Tabel 2 H'!J77<0.5),"-",IFERROR('Tabel 2 H'!J77/'Tabel 1 H'!G75*100,"-")) -> 11.78461742
A78: Farmaceut | C78: =IF(OR('Tabel 1 H'!C76<5,'Tabel 2 H'!C78<0.5),"-",IFERROR('Tabel 2 H'!C78/'Tabel 1 H'!C76*100,"-")) -> 6.75 | D78: =IF(OR('Tabel 1 H'!C76<5,'Tabel 2 H'!D78<0.5),"-",IFERROR('Tabel 2 H'!D78/'Tabel 1 H'!C76*100,"-")) -> 6.2689453 | F78: =IF(OR('Tabel 1 H'!E76<5,'Tabel 2 H'!F78<0.5),"-",IFERROR('Tabel 2 H'!F78/'Tabel 1 H'!E76*100,"-")) -> 6.302021403 | G78: =IF(OR('Tabel 1 H'!E76<5,'Tabel 2 H'!G78<0.5),"-",IFERROR('Tabel 2 H'!G78/'Tabel 1 H'!E76*100,"-")) -> 5.569814279 | I78: =IF(OR('Tabel 1 H'!G76<5,'Tabel 2 H'!I78<0.5),"-",IFERROR('Tabel 2 H'!I78/'Tabel 1 H'!G76*100,"-")) -> 6.446414182 | J78: =IF(OR('Tabel 1 H'!G76<5,'Tabel 2 H'!J78<0.5),"-",IFERROR('Tabel 2 H'!J78/'Tabel 1 H'!G76*100,"-")) -> 5.795158686
A79: Læge | C79: =IF(OR('Tabel 1 H'!C77<5,'Tabel 2 H'!C79<0.5),"-",IFERROR('Tabel 2 H'!C79/'Tabel 1 H'!C77*100,"-")) -> 2.61627907 | D79: =IF(OR('Tabel 1 H'!C77<5,'Tabel 2 H'!D79<0.5),"-",IFERROR('Tabel 2 H'!D79/'Tabel 1 H'!C77*100,"-")) -> 2.075570154 | F79: =IF(OR('Tabel 1 H'!E77<5,'Tabel 2 H'!F79<0.5),"-",IFERROR('Tabel 2 H'!F79/'Tabel 1 H'!E77*100,"-")) -> 3.216374269 | G79: =IF(OR('Tabel 1 H'!E77<5,'Tabel 2 H'!G79<0.5),"-",IFERROR('Tabel 2 H'!G79/'Tabel 1 H'!E77*100,"-")) -> 2.618284 | I79: =IF(OR('Tabel 1 H'!G77<5,'Tabel 2 H'!I79<0.5),"-",IFERROR('Tabel 2 H'!I79/'Tabel 1 H'!G77*100,"-")) -> 3.044203503 | J79: =IF(OR('Tabel 1 H'!G77<5,'Tabel 2 H'!J79<0.5),"-",IFERROR('Tabel 2 H'!J79/'Tabel 1 H'!G77*100,"-")) -> 2.462576274
A80: Tandlæge | C80: =IF(OR('Tabel 1 H'!C78<5,'Tabel 2 H'!C80<0.5),"-",IFERROR('Tabel 2 H'!C80/'Tabel 1 H'!C78*100,"-")) -> 5.882352941 | D80: =IF(OR('Tabel 1 H'!C78<5,'Tabel 2 H'!D80<0.5),"-",IFERROR('Tabel 2 H'!D80/'Tabel 1 H'!C78*100,"-")) -> 2.673407665 | F80: =IF(OR('Tabel 1 H'!E78<5,'Tabel 2 H'!F80<0.5),"-",IFERROR('Tabel 2 H'!F80/'Tabel 1 H'!E78*100,"-")) -> 6.772908367 | G80: =IF(OR('Tabel 1 H'!E78<5,'Tabel 2 H'!G80<0.5),"-",IFERROR('Tabel 2 H'!G80/'Tabel 1 H'!E78*100,"-")) -> 4.458185471 | I80: =IF(OR('Tabel 1 H'!G78<5,'Tabel 2 H'!I80<0.5),"-",IFERROR('Tabel 2 H'!I80/'Tabel 1 H'!G78*100,"-")) -> 6.622516556 | J80: =IF(OR('Tabel 1 H'!G78<5,'Tabel 2 H'!J80<0.5),"-",IFERROR('Tabel 2 H'!J80/'Tabel 1 H'!G78*100,"-")) -> 4.156782596
A81: Arkitekt | C81: =IF(OR('Tabel 1 H'!C79<5,'Tabel 2 H'!C81<0.5),"-",IFERROR('Tabel 2 H'!C81/'Tabel 1 H'!C79*100,"-")) -> 9.528392685 | D81: =IF(OR('Tabel 1 H'!C79<5,'Tabel 2 H'!D81<0.5),"-",IFERROR('Tabel 2 H'!D81/'Tabel 1 H'!C79*100,"-")) -> 8.484966071 | F81: =IF(OR('Tabel 1 H'!E79<5,'Tabel 2 H'!F81<0.5),"-",IFERROR('Tabel 2 H'!F81/'Tabel 1 H'!E79*100,"-")) -> 9.624796085 | G81: =IF(OR('Tabel 1 H'!E79<5,'Tabel 2 H'!G81<0.5),"-",IFERROR('Tabel 2 H'!G81/'Tabel 1 H'!E79*100,"-")) -> 8.284707245 | I81: =IF(OR('Tabel 1 H'!G79<5,'Tabel 2 H'!I81<0.5),"-",IFERROR('Tabel 2 H'!I81/'Tabel 1 H'!G79*100,"-")) -> 9.580573951 | J81: =IF(OR('Tabel 1 H'!G79<5,'Tabel 2 H'!J81<0.5),"-",IFERROR('Tabel 2 H'!J81/'Tabel 1 H'!G79*100,"-")) -> 8.376569903
A82: Landinspek. | C82: =IF(OR('Tabel 1 H'!C80<5,'Tabel 2 H'!C82<0.5),"-",IFERROR('Tabel 2 H'!C82/'Tabel 1 H'!C80*100,"-")) -> 2.272727273 | D82: =IF(OR('Tabel 1 H'!C80<5,'Tabel 2 H'!D82<0.5),"-",IFERROR('Tabel 2 H'!D82/'Tabel 1 H'!C80*100,"-")) -> 2.272302013 | F82: =IF(OR('Tabel 1 H'!E80<5,'Tabel 2 H'!F82<0.5),"-",IFERROR('Tabel 2 H'!F82/'Tabel 1 H'!E80*100,"-")) -> - | G82: =IF(OR('Tabel 1 H'!E80<5,'Tabel 2 H'!G82<0.5),"-",IFERROR('Tabel 2 H'!G82/'Tabel 1 H'!E80*100,"-")) -> - | I82: =IF(OR('Tabel 1 H'!G80<5,'Tabel 2 H'!I82<0.5),"-",IFERROR('Tabel 2 H'!I82/'Tabel 1 H'!G80*100,"-")) -> 1.694915254 | J82: =IF(OR('Tabel 1 H'!G80<5,'Tabel 2 H'!J82<0.5),"-",IFERROR('Tabel 2 H'!J82/'Tabel 1 H'!G80*100,"-")) -> 1.694598112
A83: Bibliotekar | C83: =IF(OR('Tabel 1 H'!C81<5,'Tabel 2 H'!C83<0.5),"-",IFERROR('Tabel 2 H'!C83/'Tabel 1 H'!C81*100,"-")) -> 6.563706564 | D83: =IF(OR('Tabel 1 H'!C81<5,'Tabel 2 H'!D83<0.5),"-",IFERROR('Tabel 2 H'!D83/'Tabel 1 H'!C81*100,"-")) -> 5.271463514 | F83: =IF(OR('Tabel 1 H'!E81<5,'Tabel 2 H'!F83<0.5),"-",IFERROR('Tabel 2 H'!F83/'Tabel 1 H'!E81*100,"-")) -> 6.272401434 | G83: =IF(OR('Tabel 1 H'!E81<5,'Tabel 2 H'!G83<0.5),"-",IFERROR('Tabel 2 H'!G83/'Tabel 1 H'!E81*100,"-")) -> 5.927961751 | I83: =IF(OR('Tabel 1 H'!G81<5,'Tabel 2 H'!I83<0.5),"-",IFERROR('Tabel 2 H'!I83/'Tabel 1 H'!G81*100,"-")) -> 6.364749082 | J83: =IF(OR('Tabel 1 H'!G81<5,'Tabel 2 H'!J83<0.5),"-",IFERROR('Tabel 2 H'!J83/'Tabel 1 H'!G81*100,"-")) -> 5.719842971
A84: Musikudd. | C84: =IF(OR('Tabel 1 H'!C82<5,'Tabel 2 H'!C84<0.5),"-",IFERROR('Tabel 2 H'!C84/'Tabel 1 H'!C82*100,"-")) -> 10.60606061 | D84: =IF(OR('Tabel 1 H'!C82<5,'Tabel 2 H'!D84<0.5),"-",IFERROR('Tabel 2 H'!D84/'Tabel 1 H'!C82*100,"-")) -> 8.756560805 | F84: =IF(OR('Tabel 1 H'!E82<5,'Tabel 2 H'!F84<0.5),"-",IFERROR('Tabel 2 H'!F84/'Tabel 1 H'!E82*100,"-")) -> 3.75 | G84: =IF(OR('Tabel 1 H'!E82<5,'Tabel 2 H'!G84<0.5),"-",IFERROR('Tabel 2 H'!G84/'Tabel 1 H'!E82*100,"-")) -> 3.141177571 | I84: =IF(OR('Tabel 1 H'!G82<5,'Tabel 2 H'!I84<0.5),"-",IFERROR('Tabel 2 H'!I84/'Tabel 1 H'!G82*100,"-")) -> 6.849315068 | J84: =IF(OR('Tabel 1 H'!G82<5,'Tabel 2 H'!J84<0.5),"-",IFERROR('Tabel 2 H'!J84/'Tabel 1 H'!G82*100,"-")) -> 5.679638485
A85: Teolog | C85: =IF(OR('Tabel 1 H'!C83<5,'Tabel 2 H'!C85<0.5),"-",IFERROR('Tabel 2 H'!C85/'Tabel 1 H'!C83*100,"-")) -> 8.602150538 | D85: =IF(OR('Tabel 1 H'!C83<5,'Tabel 2 H'!D85<0.5),"-",IFERROR('Tabel 2 H'!D85/'Tabel 1 H'!C83*100,"-")) -> 8.600540954 | F85: =IF(OR('Tabel 1 H'!E83<5,'Tabel 2 H'!F85<0.5),"-",IFERROR('Tabel 2 H'!F85/'Tabel 1 H'!E83*100,"-")) -> 9.090909091 | G85: =IF(OR('Tabel 1 H'!E83<5,'Tabel 2 H'!G85<0.5),"-",IFERROR('Tabel 2 H'!G85/'Tabel 1 H'!E83*100,"-")) -> 7.239127741 | I85: =IF(OR('Tabel 1 H'!G83<5,'Tabel 2 H'!I85<0.5),"-",IFERROR('Tabel 2 H'!I85/'Tabel 1 H'!G83*100,"-")) -> 8.906882591 | J85: =IF(OR('Tabel 1 H'!G83<5,'Tabel 2 H'!J85<0.5),"-",IFERROR('Tabel 2 H'!J85/'Tabel 1 H'!G83*100,"-")) -> 7.751724619
A86: Psykolog | C86: =IF(OR('Tabel 1 H'!C84<5,'Tabel 2 H'!C86<0.5),"-",IFERROR('Tabel 2 H'!C86/'Tabel 1 H'!C84*100,"-")) -> 7.511737089 | D86: =IF(OR('Tabel 1 H'!C84<5,'Tabel 2 H'!D86<0.5),"-",IFERROR('Tabel 2 H'!D86/'Tabel 1 H'!C84*100,"-")) -> 6.668171778 | F86: =IF(OR('Tabel 1 H'!E84<5,'Tabel 2 H'!F86<0.5),"-",IFERROR('Tabel 2 H'!F86/'Tabel 1 H'!E84*100,"-")) -> 7.16934487 | G86: =IF(OR('Tabel 1 H'!E84<5,'Tabel 2 H'!G86<0.5),"-",IFERROR('Tabel 2 H'!G86/'Tabel 1 H'!E84*100,"-")) -> 5.913637486 | I86: =IF(OR('Tabel 1 H'!G84<5,'Tabel 2 H'!I86<0.5),"-",IFERROR('Tabel 2 H'!I86/'Tabel 1 H'!G84*100,"-")) -> 7.240704501 | J86: =IF(OR('Tabel 1 H'!G84<5,'Tabel 2 H'!J86<0.5),"-",IFERROR('Tabel 2 H'!J86/'Tabel 1 H'!G84*100,"-")) -> 6.070893655
A87: Jurist | C87: =IF(OR('Tabel 1 H'!C85<5,'Tabel 2 H'!C87<0.5),"-",IFERROR('Tabel 2 H'!C87/'Tabel 1 H'!C85*100,"-")) -> 3.147077714 | D87: =IF(OR('Tabel 1 H'!C85<5,'Tabel 2 H'!D87<0.5),"-",IFERROR('Tabel 2 H'!D87/'Tabel 1 H'!C85*100,"-")) -> 2.908500255 | F87: =IF(OR('Tabel 1 H'!E85<5,'Tabel 2 H'!F87<0.5),"-",IFERROR('Tabel 2 H'!F87/'Tabel 1 H'!E85*100,"-")) -> 2.609006433 | G87: =IF(OR('Tabel 1 H'!E85<5,'Tabel 2 H'!G87<0.5),"-",IFERROR('Tabel 2 H'!G87/'Tabel 1 H'!E85*100,"-")) -> 2.082931438 | I87: =IF(OR('Tabel 1 H'!G85<5,'Tabel 2 H'!I87<0.5),"-",IFERROR('Tabel 2 H'!I87/'Tabel 1 H'!G85*100,"-")) -> 2.801377727 | J87: =IF(OR('Tabel 1 H'!G85<5,'Tabel 2 H'!J87<0.5),"-",IFERROR('Tabel 2 H'!J87/'Tabel 1 H'!G85*100,"-")) -> 2.378088877
A88: Økonom | C88: =IF(OR('Tabel 1 H'!C86<5,'Tabel 2 H'!C88<0.5),"-",IFERROR('Tabel 2 H'!C88/'Tabel 1 H'!C86*100,"-")) -> 3.25203252 | D88: =IF(OR('Tabel 1 H'!C86<5,'Tabel 2 H'!D88<0.5),"-",IFERROR('Tabel 2 H'!D88/'Tabel 1 H'!C86*100,"-")) -> 2.830544117 | F88: =IF(OR('Tabel 1 H'!E86<5,'Tabel 2 H'!F88<0.5),"-",IFERROR('Tabel 2 H'!F88/'Tabel 1 H'!E86*100,"-")) -> 3.423236515 | G88: =IF(OR('Tabel 1 H'!E86<5,'Tabel 2 H'!G88<0.5),"-",IFERROR('Tabel 2 H'!G88/'Tabel 1 H'!E86*100,"-")) -> 3.117920948 | I88: =IF(OR('Tabel 1 H'!G86<5,'Tabel 2 H'!I88<0.5),"-",IFERROR('Tabel 2 H'!I88/'Tabel 1 H'!G86*100,"-")) -> 3.316426063 | J88: =IF(OR('Tabel 1 H'!G86<5,'Tabel 2 H'!J88<0.5),"-",IFERROR('Tabel 2 H'!J88/'Tabel 1 H'!G86*100,"-")) -> 2.938632788
A89: Samf. Adm. | C89: =IF(OR('Tabel 1 H'!C87<5,'Tabel 2 H'!C89<0.5),"-",IFERROR('Tabel 2 H'!C89/'Tabel 1 H'!C87*100,"-")) -> 6.969165204 | D89: =IF(OR('Tabel 1 H'!C87<5,'Tabel 2 H'!D89<0.5),"-",IFERROR('Tabel 2 H'!D89/'Tabel 1 H'!C87*100,"-")) -> 6.34191166 | F89: =IF(OR('Tabel 1 H'!E87<5,'Tabel 2 H'!F89<0.5),"-",IFERROR('Tabel 2 H'!F89/'Tabel 1 H'!E87*100,"-")) -> 7.667460048 | G89: =IF(OR('Tabel 1 H'!E87<5,'Tabel 2 H'!G89<0.5),"-",IFERROR('Tabel 2 H'!G89/'Tabel 1 H'!E87*100,"-")) -> 6.798213045 | I89: =IF(OR('Tabel 1 H'!G87<5,'Tabel 2 H'!I89<0.5),"-",IFERROR('Tabel 2 H'!I89/'Tabel 1 H'!G87*100,"-")) -> 7.385269983 | J89: =IF(OR('Tabel 1 H'!G87<5,'Tabel 2 H'!J89<0.5),"-",IFERROR('Tabel 2 H'!J89/'Tabel 1 H'!G87*100,"-")) -> 6.613815696
A90: Cand. Merc. | C90: =IF(OR('Tabel 1 H'!C88<5,'Tabel 2 H'!C90<0.5),"-",IFERROR('Tabel 2 H'!C90/'Tabel 1 H'!C88*100,"-")) -> 6.390041494 | D90: =IF(OR('Tabel 1 H'!C88<5,'Tabel 2 H'!D90<0.5),"-",IFERROR('Tabel 2 H'!D90/'Tabel 1 H'!C88*100,"-")) -> 5.711133132 | F90: =IF(OR('Tabel 1 H'!E88<5,'Tabel 2 H'!F90<0.5),"-",IFERROR('Tabel 2 H'!F90/'Tabel 1 H'!E88*100,"-")) -> 6.321595248 | G90: =IF(OR('Tabel 1 H'!E88<5,'Tabel 2 H'!G90<0.5),"-",IFERROR('Tabel 2 H'!G90/'Tabel 1 H'!E88*100,"-")) -> 5.427022718 | I90: =IF(OR('Tabel 1 H'!G88<5,'Tabel 2 H'!I90<0.5),"-",IFERROR('Tabel 2 H'!I90/'Tabel 1 H'!G88*100,"-")) -> 6.356198867 | J90: =IF(OR('Tabel 1 H'!G88<5,'Tabel 2 H'!J90<0.5),"-",IFERROR('Tabel 2 H'!J90/'Tabel 1 H'!G88*100,"-")) -> 5.57065731
A91: HA | C91: =IF(OR('Tabel 1 H'!C89<5,'Tabel 2 H'!C91<0.5),"-",IFERROR('Tabel 2 H'!C91/'Tabel 1 H'!C89*100,"-")) -> 10.09345794 | D91: =IF(OR('Tabel 1 H'!C89<5,'Tabel 2 H'!D91<0.5),"-",IFERROR('Tabel 2 H'!D91/'Tabel 1 H'!C89*100,"-")) -> 9.378670511 | F91: =IF(OR('Tabel 1 H'!E89<5,'Tabel 2 H'!F91<0.5),"-",IFERROR('Tabel 2 H'!F91/'Tabel 1 H'!E89*100,"-")) -> 12.38938053 | G91: =IF(OR('Tabel 1 H'!E89<5,'Tabel 2 H'!G91<0.5),"-",IFERROR('Tabel 2 H'!G91/'Tabel 1 H'!E89*100,"-")) -> 11.03310705 | I91: =IF(OR('Tabel 1 H'!G89<5,'Tabel 2 H'!I91<0.5),"-",IFERROR('Tabel 2 H'!I91/'Tabel 1 H'!G89*100,"-")) -> 11.14488349 | J91: =IF(OR('Tabel 1 H'!G89<5,'Tabel 2 H'!J91<0.5),"-",IFERROR('Tabel 2 H'!J91/'Tabel 1 H'!G89*100,"-")) -> 10.13632534
A92: HD | C92: =IF(OR('Tabel 1 H'!C90<5,'Tabel 2 H'!C92<0.5),"-",IFERROR('Tabel 2 H'!C92/'Tabel 1 H'!C90*100,"-")) -> 12.9707113 | D92: =IF(OR('Tabel 1 H'!C90<5,'Tabel 2 H'!D92<0.5),"-",IFERROR('Tabel 2 H'!D92/'Tabel 1 H'!C90*100,"-")) -> 12.19555796 | F92: =IF(OR('Tabel 1 H'!E90<5,'Tabel 2 H'!F92<0.5),"-",IFERROR('Tabel 2 H'!F92/'Tabel 1 H'!E90*100,"-")) -> 11.11111111 | G92: =IF(OR('Tabel 1 H'!E90<5,'Tabel 2 H'!G92<0.5),"-",IFERROR('Tabel 2 H'!G92/'Tabel 1 H'!E90*100,"-")) -> 10.14184287 | I92: =IF(OR('Tabel 1 H'!G90<5,'Tabel 2 H'!I92<0.5),"-",IFERROR('Tabel 2 H'!I92/'Tabel 1 H'!G90*100,"-")) -> 11.9544592 | J92: =IF(OR('Tabel 1 H'!G90<5,'Tabel 2 H'!J92<0.5),"-",IFERROR('Tabel 2 H'!J92/'Tabel 1 H'!G90*100,"-")) -> 11.07322409
A93: Komm. og Sprog | C93: =IF(OR('Tabel 1 H'!C91<5,'Tabel 2 H'!C93<0.5),"-",IFERROR('Tabel 2 H'!C93/'Tabel 1 H'!C91*100,"-")) -> 10.12345679 | D93: =IF(OR('Tabel 1 H'!C91<5,'Tabel 2 H'!D93<0.5),"-",IFERROR('Tabel 2 H'!D93/'Tabel 1 H'!C91*100,"-")) -> 9.023364619 | F93: =IF(OR('Tabel 1 H'!E91<5,'Tabel 2 H'!F93<0.5),"-",IFERROR('Tabel 2 H'!F93/'Tabel 1 H'!E91*100,"-")) -> 11.23139378 | G93: =IF(OR('Tabel 1 H'!E91<5,'Tabel 2 H'!G93<0.5),"-",IFERROR('Tabel 2 H'!G93/'Tabel 1 H'!E91*100,"-")) -> 9.23686912 | I93: =IF(OR('Tabel 1 H'!G91<5,'Tabel 2 H'!I93<0.5),"-",IFERROR('Tabel 2 H'!I93/'Tabel 1 H'!G91*100,"-")) -> 10.99309612 | J93: =IF(OR('Tabel 1 H'!G91<5,'Tabel 2 H'!J93<0.5),"-",IFERROR('Tabel 2 H'!J93/'Tabel 1 H'!G91*100,"-")) -> 9.190948077
A94: Cand. IT. | C94: =IF(OR('Tabel 1 H'!C92<5,'Tabel 2 H'!C94<0.5),"-",IFERROR('Tabel 2 H'!C94/'Tabel 1 H'!C92*100,"-")) -> 6.360424028 | D94: =IF(OR('Tabel 1 H'!C92<5,'Tabel 2 H'!D94<0.5),"-",IFERROR('Tabel 2 H'!D94/'Tabel 1 H'!C92*100,"-")) -> 5.770122091 | F94: =IF(OR('Tabel 1 H'!E92<5,'Tabel 2 H'!F94<0.5),"-",IFERROR('Tabel 2 H'!F94/'Tabel 1 H'!E92*100,"-")) -> 9.142053446 | G94: =IF(OR('Tabel 1 H'!E92<5,'Tabel 2 H'!G94<0.5),"-",IFERROR('Tabel 2 H'!G94/'Tabel 1 H'!E92*100,"-")) -> 8.162928377 | I94: =IF(OR('Tabel 1 H'!G92<5,'Tabel 2 H'!I94<0.5),"-",IFERROR('Tabel 2 H'!I94/'Tabel 1 H'!G92*100,"-")) -> 7.628205128 | J94: =IF(OR('Tabel 1 H'!G92<5,'Tabel 2 H'!J94<0.5),"-",IFERROR('Tabel 2 H'!J94/'Tabel 1 H'!G92*100,"-")) -> 6.860689571
A95: Bac. Samf. | C95: =IF(OR('Tabel 1 H'!C93<5,'Tabel 2 H'!C95<0.5),"-",IFERROR('Tabel 2 H'!C95/'Tabel 1 H'!C93*100,"-")) -> 7.441860465 | D95: =IF(OR('Tabel 1 H'!C93<5,'Tabel 2 H'!D95<0.5),"-",IFERROR('Tabel 2 H'!D95/'Tabel 1 H'!C93*100,"-")) -> 6.928152546 | F95: =IF(OR('Tabel 1 H'!E93<5,'Tabel 2 H'!F95<0.5),"-",IFERROR('Tabel 2 H'!F95/'Tabel 1 H'!E93*100,"-")) -> 13.65461847 | G95: =IF(OR('Tabel 1 H'!E93<5,'Tabel 2 H'!G95<0.5),"-",IFERROR('Tabel 2 H'!G95/'Tabel 1 H'!E93*100,"-")) -> 12.14237603 | I95: =IF(OR('Tabel 1 H'!G93<5,'Tabel 2 H'!I95<0.5),"-",IFERROR('Tabel 2 H'!I95/'Tabel 1 H'!G93*100,"-")) -> 10.77586207 | J95: =IF(OR('Tabel 1 H'!G93<5,'Tabel 2 H'!J95<0.5),"-",IFERROR('Tabel 2 H'!J95/'Tabel 1 H'!G93*100,"-")) -> 9.726302647
A96: Bac. Hum. | C96: =IF(OR('Tabel 1 H'!C94<5,'Tabel 2 H'!C96<0.5),"-",IFERROR('Tabel 2 H'!C96/'Tabel 1 H'!C94*100,"-")) -> 19.45080092 | D96: =IF(OR('Tabel 1 H'!C94<5,'Tabel 2 H'!D96<0.5),"-",IFERROR('Tabel 2 H'!D96/'Tabel 1 H'!C94*100,"-")) -> 17.28799911 | F96: =IF(OR('Tabel 1 H'!E94<5,'Tabel 2 H'!F96<0.5),"-",IFERROR('Tabel 2 H'!F96/'Tabel 1 H'!E94*100,"-")) -> 20.77562327 | G96: =IF(OR('Tabel 1 H'!E94<5,'Tabel 2 H'!G96<0.5),"-",IFERROR('Tabel 2 H'!G96/'Tabel 1 H'!E94*100,"-")) -> 16.78558403 | I96: =IF(OR('Tabel 1 H'!G94<5,'Tabel 2 H'!I96<0.5),"-",IFERROR('Tabel 2 H'!I96/'Tabel 1 H'!G94*100,"-")) -> 20.27610009 | J96: =IF(OR('Tabel 1 H'!G94<5,'Tabel 2 H'!J96<0.5),"-",IFERROR('Tabel 2 H'!J96/'Tabel 1 H'!G94*100,"-")) -> 16.97501922
A97: Bac. Nat. | C97: =IF(OR('Tabel 1 H'!C95<5,'Tabel 2 H'!C97<0.5),"-",IFERROR('Tabel 2 H'!C97/'Tabel 1 H'!C95*100,"-")) -> 12.24489796 | D97: =IF(OR('Tabel 1 H'!C95<5,'Tabel 2 H'!D97<0.5),"-",IFERROR('Tabel 2 H'!D97/'Tabel 1 H'!C95*100,"-")) -> 10.84625205 | F97: =IF(OR('Tabel 1 H'!E95<5,'Tabel 2 H'!F97<0.5),"-",IFERROR('Tabel 2 H'!F97/'Tabel 1 H'!E95*100,"-")) -> 20.76677316 | G97: =IF(OR('Tabel 1 H'!E95<5,'Tabel 2 H'!G97<0.5),"-",IFERROR('Tabel 2 H'!G97/'Tabel 1 H'!E95*100,"-")) -> 18.00898267 | I97: =IF(OR('Tabel 1 H'!G95<5,'Tabel 2 H'!I97<0.5),"-",IFERROR('Tabel 2 H'!I97/'Tabel 1 H'!G95*100,"-")) -> 16.02836879 | J97: =IF(OR('Tabel 1 H'!G95<5,'Tabel 2 H'!J97<0.5),"-",IFERROR('Tabel 2 H'!J97/'Tabel 1 H'!G95*100,"-")) -> 14.02630125
A98: Andre | C98: =IF(OR('Tabel 1 H'!C96<5,'Tabel 2 H'!C98<0.5),"-",IFERROR('Tabel 2 H'!C98/'Tabel 1 H'!C96*100,"-")) -> 8.986248801 | D98: =IF(OR('Tabel 1 H'!C96<5,'Tabel 2 H'!D98<0.5),"-",IFERROR('Tabel 2 H'!D98/'Tabel 1 H'!C96*100,"-")) -> 7.953036421 | F98: =IF(OR('Tabel 1 H'!E96<5,'Tabel 2 H'!F98<0.5),"-",IFERROR('Tabel 2 H'!F98/'Tabel 1 H'!E96*100,"-")) -> 12.75060144 | G98: =IF(OR('Tabel 1 H'!E96<5,'Tabel 2 H'!G98<0.5),"-",IFERROR('Tabel 2 H'!G98/'Tabel 1 H'!E96*100,"-")) -> 10.74494627 | I98: =IF(OR('Tabel 1 H'!G96<5,'Tabel 2 H'!I98<0.5),"-",IFERROR('Tabel 2 H'!I98/'Tabel 1 H'!G96*100,"-")) -> 11.0366919 | J98: =IF(OR('Tabel 1 H'!G96<5,'Tabel 2 H'!J98<0.5),"-",IFERROR('Tabel 2 H'!J98/'Tabel 1 H'!G96*100,"-")) -> 9.47378988
A100: Total | C100: =IF(OR('Tabel 1 H'!C98<5,'Tabel 2 H'!C100<0.5),"-",IFERROR('Tabel 2 H'!C100/'Tabel 1 H'!C98*100,"-")) -> 7.816007936 | D100: =IF(OR('Tabel 1 H'!C98<5,'Tabel 2 H'!D100<0.5),"-",IFERROR('Tabel 2 H'!D100/'Tabel 1 H'!C98*100,"-")) -> 6.983011456 | F100: =IF(OR('Tabel 1 H'!E98<5,'Tabel 2 H'!F100<0.5),"-",IFERROR('Tabel 2 H'!F100/'Tabel 1 H'!E98*100,"-")) -> 9.520772207 | G100: =IF(OR('Tabel 1 H'!E98<5,'Tabel 2 H'!G100<0.5),"-",IFERROR('Tabel 2 H'!G100/'Tabel 1 H'!E98*100,"-")) -> 8.174533485 | I100: =IF(OR('Tabel 1 H'!G98<5,'Tabel 2 H'!I100<0.5),"-",IFERROR('Tabel 2 H'!I100/'Tabel 1 H'!G98*100,"-")) -> 8.755565971 | J100: =IF(OR('Tabel 1 H'!G98<5,'Tabel 2 H'!J100<0.5),"-",IFERROR('Tabel 2 H'!J100/'Tabel 1 H'!G98*100,"-")) -> 7.639702891
A102: Ingeniører i alt | C102: =IF(OR('Tabel 1 H'!C100<5,'Tabel 2 H'!C102<0.5),"-",IFERROR('Tabel 2 H'!C102/'Tabel 1 H'!C100*100,"-")) -> 4.96728138 | D102: =IF(OR('Tabel 1 H'!C100<5,'Tabel 2 H'!D102<0.5),"-",IFERROR('Tabel 2 H'!D102/'Tabel 1 H'!C100*100,"-")) -> 4.514790342 | F102: =IF(OR('Tabel 1 H'!E100<5,'Tabel 2 H'!F102<0.5),"-",IFERROR('Tabel 2 H'!F102/'Tabel 1 H'!E100*100,"-")) -> 7.123775601 | G102: =IF(OR('Tabel 1 H'!E100<5,'Tabel 2 H'!G102<0.5),"-",IFERROR('Tabel 2 H'!G102/'Tabel 1 H'!E100*100,"-")) -> 6.213253731 | I102: =IF(OR('Tabel 1 H'!G100<5,'Tabel 2 H'!I102<0.5),"-",IFERROR('Tabel 2 H'!I102/'Tabel 1 H'!G100*100,"-")) -> 5.507246377 | J102: =IF(OR('Tabel 1 H'!G100<5,'Tabel 2 H'!J102<0.5),"-",IFERROR('Tabel 2 H'!J102/'Tabel 1 H'!G100*100,"-")) -> 4.940068912
A103: Magistre i alt | C103: =IF(OR('Tabel 1 H'!C101<5,'Tabel 2 H'!C103<0.5),"-",IFERROR('Tabel 2 H'!C103/'Tabel 1 H'!C101*100,"-")) -> 11.35706019 | D103: =IF(OR('Tabel 1 H'!C101<5,'Tabel 2 H'!D103<0.5),"-",IFERROR('Tabel 2 H'!D103/'Tabel 1 H'!C101*100,"-")) -> 9.967497231 | F103: =IF(OR('Tabel 1 H'!E101<5,'Tabel 2 H'!F103<0.5),"-",IFERROR('Tabel 2 H'!F103/'Tabel 1 H'!E101*100,"-")) -> 12.23990208 | G103: =IF(OR('Tabel 1 H'!E101<5,'Tabel 2 H'!G103<0.5),"-",IFERROR('Tabel 2 H'!G103/'Tabel 1 H'!E101*100,"-")) -> 10.50533703 | I103: =IF(OR('Tabel 1 H'!G101<5,'Tabel 2 H'!I103<0.5),"-",IFERROR('Tabel 2 H'!I103/'Tabel 1 H'!G101*100,"-")) -> 11.9215318 | J103: =IF(OR('Tabel 1 H'!G101<5,'Tabel 2 H'!J103<0.5),"-",IFERROR('Tabel 2 H'!J103/'Tabel 1 H'!G101*100,"-")) -> 10.31138134
A104: DJØF'ere i alt | C104: =IF(OR('Tabel 1 H'!C102<5,'Tabel 2 H'!C104<0.5),"-",IFERROR('Tabel 2 H'!C104/'Tabel 1 H'!C102*100,"-")) -> 5.928 | D104: =IF(OR('Tabel 1 H'!C102<5,'Tabel 2 H'!D104<0.5),"-",IFERROR('Tabel 2 H'!D104/'Tabel 1 H'!C102*100,"-")) -> 5.351816878 | F104: =IF(OR('Tabel 1 H'!E102<5,'Tabel 2 H'!F104<0.5),"-",IFERROR('Tabel 2 H'!F104/'Tabel 1 H'!E102*100,"-")) -> 6.151249156 | G104: =IF(OR('Tabel 1 H'!E102<5,'Tabel 2 H'!G104<0.5),"-",IFERROR('Tabel 2 H'!G104/'Tabel 1 H'!E102*100,"-")) -> 5.360618269 | I104: =IF(OR('Tabel 1 H'!G102<5,'Tabel 2 H'!I104<0.5),"-",IFERROR('Tabel 2 H'!I104/'Tabel 1 H'!G102*100,"-")) -> 6.049066276 | J104: =IF(OR('Tabel 1 H'!G102<5,'Tabel 2 H'!J104<0.5),"-",IFERROR('Tabel 2 H'!J104/'Tabel 1 H'!G102*100,"-")) -> 5.356589804
A109: Frederiksberg
C111: Mænd | F111: Kvinder | I111: I alt
C112: Ledigheds- berørte | D112: Gns. brutto- ledighed | F112: Ledigheds- berørte | G112: Gns. brutto- ledighed | I112: Ledigheds- berørte | J112: Gns. brutto- ledighed
A115: Civ. ing. | C115: =IF(OR('Tabel 1 H'!C113<5,'Tabel 2 H'!C115<0.5),"-",IFERROR('Tabel 2 H'!C115/'Tabel 1 H'!C113*100,"-")) -> 3.916449086 | D115: =IF(OR('Tabel 1 H'!C113<5,'Tabel 2 H'!D115<0.5),"-",IFERROR('Tabel 2 H'!D115/'Tabel 1 H'!C113*100,"-")) -> 3.286221515 | F115: =IF(OR('Tabel 1 H'!E113<5,'Tabel 2 H'!F115<0.5),"-",IFERROR('Tabel 2 H'!F115/'Tabel 1 H'!E113*100,"-")) -> 4.651162791 | G115: =IF(OR('Tabel 1 H'!E113<5,'Tabel 2 H'!G115<0.5),"-",IFERROR('Tabel 2 H'!G115/'Tabel 1 H'!E113*100,"-")) -> 4.01725428 | I115: =IF(OR('Tabel 1 H'!G113<5,'Tabel 2 H'!I115<0.5),"-",IFERROR('Tabel 2 H'!I115/'Tabel 1 H'!G113*100,"-")) -> 4.12371134 | J115: =IF(OR('Tabel 1 H'!G113<5,'Tabel 2 H'!J115<0.5),"-",IFERROR('Tabel 2 H'!J115/'Tabel 1 H'!G113*100,"-")) -> 3.492445379
A116: Diplom ing. | C116: =IF(OR('Tabel 1 H'!C114<5,'Tabel 2 H'!C116<0.5),"-",IFERROR('Tabel 2 H'!C116/'Tabel 1 H'!C114*100,"-")) -> 4.130434783 | D116: =IF(OR('Tabel 1 H'!C114<5,'Tabel 2 H'!D116<0.5),"-",IFERROR('Tabel 2 H'!D116/'Tabel 1 H'!C114*100,"-")) -> 3.806957932 | F116: =IF(OR('Tabel 1 H'!E114<5,'Tabel 2 H'!F116<0.5),"-",IFERROR('Tabel 2 H'!F116/'Tabel 1 H'!E114*100,"-")) -> 5.309734513 | G116: =IF(OR('Tabel 1 H'!E114<5,'Tabel 2 H'!G116<0.5),"-",IFERROR('Tabel 2 H'!G116/'Tabel 1 H'!E114*100,"-")) -> 4.868277761 | I116: =IF(OR('Tabel 1 H'!G114<5,'Tabel 2 H'!I116<0.5),"-",IFERROR('Tabel 2 H'!I116/'Tabel 1 H'!G114*100,"-")) -> 4.363001745 | J116: =IF(OR('Tabel 1 H'!G114<5,'Tabel 2 H'!J116<0.5),"-",IFERROR('Tabel 2 H'!J116/'Tabel 1 H'!G114*100,"-")) -> 4.016258352
A117: Cand. Scient. Tek. | C117: =IF(OR('Tabel 1 H'!C115<5,'Tabel 2 H'!C117<0.5),"-",IFERROR('Tabel 2 H'!C117/'Tabel 1 H'!C115*100,"-")) -> 6.112469438 | D117: =IF(OR('Tabel 1 H'!C115<5,'Tabel 2 H'!D117<0.5),"-",IFERROR('Tabel 2 H'!D117/'Tabel 1 H'!C115*100,"-")) -> 5.537631203 | F117: =IF(OR('Tabel 1 H'!E115<5,'Tabel 2 H'!F117<0.5),"-",IFERROR('Tabel 2 H'!F117/'Tabel 1 H'!E115*100,"-")) -> 8.461538462 | G117: =IF(OR('Tabel 1 H'!E115<5,'Tabel 2 H'!G117<0.5),"-",IFERROR('Tabel 2 H'!G117/'Tabel 1 H'!E115*100,"-")) -> 7.699344461 | I117: =IF(OR('Tabel 1 H'!G115<5,'Tabel 2 H'!I117<0.5),"-",IFERROR('Tabel 2 H'!I117/'Tabel 1 H'!G115*100,"-")) -> 7.259073842 | J117: =IF(OR('Tabel 1 H'!G115<5,'Tabel 2 H'!J117<0.5),"-",IFERROR('Tabel 2 H'!J117/'Tabel 1 H'!G115*100,"-")) -> 6.592785359
A118: MA. Hum. | C118: =IF(OR('Tabel 1 H'!C116<5,'Tabel 2 H'!C118<0.5),"-",IFERROR('Tabel 2 H'!C118/'Tabel 1 H'!C116*100,"-")) -> 9.506398537 | D118: =IF(OR('Tabel 1 H'!C116<5,'Tabel 2 H'!D118<0.5),"-",IFERROR('Tabel 2 H'!D118/'Tabel 1 H'!C116*100,"-")) -> 8.490258495 | F118: =IF(OR('Tabel 1 H'!E116<5,'Tabel 2 H'!F118<0.5),"-",IFERROR('Tabel 2 H'!F118/'Tabel 1 H'!E116*100,"-")) -> 9.850275808 | G118: =IF(OR('Tabel 1 H'!E116<5,'Tabel 2 H'!G118<0.5),"-",IFERROR('Tabel 2 H'!G118/'Tabel 1 H'!E116*100,"-")) -> 8.52511789 | I118: =IF(OR('Tabel 1 H'!G116<5,'Tabel 2 H'!I118<0.5),"-",IFERROR('Tabel 2 H'!I118/'Tabel 1 H'!G116*100,"-")) -> 9.746696035 | J118: =IF(OR('Tabel 1 H'!G116<5,'Tabel 2 H'!J118<0.5),"-",IFERROR('Tabel 2 H'!J118/'Tabel 1 H'!G116*100,"-")) -> 8.514617841
A119: MA. Nat. | C119: =IF(OR('Tabel 1 H'!C117<5,'Tabel 2 H'!C119<0.5),"-",IFERROR('Tabel 2 H'!C119/'Tabel 1 H'!C117*100,"-")) -> 4.182509506 | D119: =IF(OR('Tabel 1 H'!C117<5,'Tabel 2 H'!D119<0.5),"-",IFERROR('Tabel 2 H'!D119/'Tabel 1 H'!C117*100,"-")) -> 3.884573618 | F119: =IF(OR('Tabel 1 H'!E117<5,'Tabel 2 H'!F119<0.5),"-",IFERROR('Tabel 2 H'!F119/'Tabel 1 H'!E117*100,"-")) -> 4.641350211 | G119: =IF(OR('Tabel 1 H'!E117<5,'Tabel 2 H'!G119<0.5),"-",IFERROR('Tabel 2 H'!G119/'Tabel 1 H'!E117*100,"-")) -> 3.285944259 | I119: =IF(OR('Tabel 1 H'!G117<5,'Tabel 2 H'!I119<0.5),"-",IFERROR('Tabel 2 H'!I119/'Tabel 1 H'!G117*100,"-")) -> 4.4 | J119: =IF(OR('Tabel 1 H'!G117<5,'Tabel 2 H'!J119<0.5),"-",IFERROR('Tabel 2 H'!J119/'Tabel 1 H'!G117*100,"-")) -> 3.600823302
A120: MA. Ph.d. | C120: =IF(OR('Tabel 1 H'!C118<5,'Tabel 2 H'!C120<0.5),"-",IFERROR('Tabel 2 H'!C120/'Tabel 1 H'!C118*100,"-")) -> 7.142857143 | D120: =IF(OR('Tabel 1 H'!C118<5,'Tabel 2 H'!D120<0.5),"-",IFERROR('Tabel 2 H'!D120/'Tabel 1 H'!C118*100,"-")) -> 7.141520614 | F120: =IF(OR('Tabel 1 H'!E118<5,'Tabel 2 H'!F120<0.5),"-",IFERROR('Tabel 2 H'!F120/'Tabel 1 H'!E118*100,"-")) -> 2.985074627 | G120: =IF(OR('Tabel 1 H'!E118<5,'Tabel 2 H'!G120<0.5),"-",IFERROR('Tabel 2 H'!G120/'Tabel 1 H'!E118*100,"-")) -> 2.984516077 | I120: =IF(OR('Tabel 1 H'!G118<5,'Tabel 2 H'!I120<0.5),"-",IFERROR('Tabel 2 H'!I120/'Tabel 1 H'!G118*100,"-")) -> 5.109489051 | J120: =IF(OR('Tabel 1 H'!G118<5,'Tabel 2 H'!J120<0.5),"-",IFERROR('Tabel 2 H'!J120/'Tabel 1 H'!G118*100,"-")) -> 5.108532994
A121: MA. Samf. | C121: =IF(OR('Tabel 1 H'!C119<5,'Tabel 2 H'!C121<0.5),"-",IFERROR('Tabel 2 H'!C121/'Tabel 1 H'!C119*100,"-")) -> 13.18681319 | D121: =IF(OR('Tabel 1 H'!C119<5,'Tabel 2 H'!D121<0.5),"-",IFERROR('Tabel 2 H'!D121/'Tabel 1 H'!C119*100,"-")) -> 11.51471244 | F121: =IF(OR('Tabel 1 H'!E119<5,'Tabel 2 H'!F121<0.5),"-",IFERROR('Tabel 2 H'!F121/'Tabel 1 H'!E119*100,"-")) -> 10.57692308 | G121: =IF(OR('Tabel 1 H'!E119<5,'Tabel 2 H'!G121<0.5),"-",IFERROR('Tabel 2 H'!G121/'Tabel 1 H'!E119*100,"-")) -> 9.60428971 | I121: =IF(OR('Tabel 1 H'!G119<5,'Tabel 2 H'!I121<0.5),"-",IFERROR('Tabel 2 H'!I121/'Tabel 1 H'!G119*100,"-")) -> 11.37123746 | J121: =IF(OR('Tabel 1 H'!G119<5,'Tabel 2 H'!J121<0.5),"-",IFERROR('Tabel 2 H'!J121/'Tabel 1 H'!G119*100,"-")) -> 10.18572272
A122: Øvrige Mag. | C122: =IF(OR('Tabel 1 H'!C120<5,'Tabel 2 H'!C122<0.5),"-",IFERROR('Tabel 2 H'!C122/'Tabel 1 H'!C120*100,"-")) -> 7.692307692 | D122: =IF(OR('Tabel 1 H'!C120<5,'Tabel 2 H'!D122<0.5),"-",IFERROR('Tabel 2 H'!D122/'Tabel 1 H'!C120*100,"-")) -> 5.915683518 | F122: =IF(OR('Tabel 1 H'!E120<5,'Tabel 2 H'!F122<0.5),"-",IFERROR('Tabel 2 H'!F122/'Tabel 1 H'!E120*100,"-")) -> 13.92405063 | G122: =IF(OR('Tabel 1 H'!E120<5,'Tabel 2 H'!G122<0.5),"-",IFERROR('Tabel 2 H'!G122/'Tabel 1 H'!E120*100,"-")) -> 13.27009878 | I122: =IF(OR('Tabel 1 H'!G120<5,'Tabel 2 H'!I122<0.5),"-",IFERROR('Tabel 2 H'!I122/'Tabel 1 H'!G120*100,"-")) -> 11.86440678 | J122: =IF(OR('Tabel 1 H'!G120<5,'Tabel 2 H'!J122<0.5),"-",IFERROR('Tabel 2 H'!J122/'Tabel 1 H'!G120*100,"-")) -> 10.83940221
A123: Agronom | C123: =IF(OR('Tabel 1 H'!C121<5,'Tabel 2 H'!C123<0.5),"-",IFERROR('Tabel 2 H'!C123/'Tabel 1 H'!C121*100,"-")) -> 6.25 | D123: =IF(OR('Tabel 1 H'!C121<5,'Tabel 2 H'!D123<0.5),"-",IFERROR('Tabel 2 H'!D123/'Tabel 1 H'!C121*100,"-")) -> 5.768051311 | F123: =IF(OR('Tabel 1 H'!E121<5,'Tabel 2 H'!F123<0.5),"-",IFERROR('Tabel 2 H'!F123/'Tabel 1 H'!E121*100,"-")) -> 9.677419355 | G123: =IF(OR('Tabel 1 H'!E121<5,'Tabel 2 H'!G123<0.5),"-",IFERROR('Tabel 2 H'!G123/'Tabel 1 H'!E121*100,"-")) -> 9.675608573 | I123: =IF(OR('Tabel 1 H'!G121<5,'Tabel 2 H'!I123<0.5),"-",IFERROR('Tabel 2 H'!I123/'Tabel 1 H'!G121*100,"-")) -> 7.594936709 | J123: =IF(OR('Tabel 1 H'!G121<5,'Tabel 2 H'!J123<0.5),"-",IFERROR('Tabel 2 H'!J123/'Tabel 1 H'!G121*100,"-")) -> 7.301396566
A124: Landsk. Arkt. | C124: =IF(OR('Tabel 1 H'!C122<5,'Tabel 2 H'!C124<0.5),"-",IFERROR('Tabel 2 H'!C124/'Tabel 1 H'!C122*100,"-")) -> - | D124: =IF(OR('Tabel 1 H'!C122<5,'Tabel 2 H'!D124<0.5),"-",IFERROR('Tabel 2 H'!D124/'Tabel 1 H'!C122*100,"-")) -> - | F124: =IF(OR('Tabel 1 H'!E122<5,'Tabel 2 H'!F124<0.5),"-",IFERROR('Tabel 2 H'!F124/'Tabel 1 H'!E122*100,"-")) -> - | G124: =IF(OR('Tabel 1 H'!E122<5,'Tabel 2 H'!G124<0.5),"-",IFERROR('Tabel 2 H'!G124/'Tabel 1 H'!E122*100,"-")) -> - | I124: =IF(OR('Tabel 1 H'!G122<5,'Tabel 2 H'!I124<0.5),"-",IFERROR('Tabel 2 H'!I124/'Tabel 1 H'!G122*100,"-")) -> - | J124: =IF(OR('Tabel 1 H'!G122<5,'Tabel 2 H'!J124<0.5),"-",IFERROR('Tabel 2 H'!J124/'Tabel 1 H'!G122*100,"-")) -> -
A125: Hortonom | C125: =IF(OR('Tabel 1 H'!C123<5,'Tabel 2 H'!C125<0.5),"-",IFERROR('Tabel 2 H'!C125/'Tabel 1 H'!C123*100,"-")) -> - | D125: =IF(OR('Tabel 1 H'!C123<5,'Tabel 2 H'!D125<0.5),"-",IFERROR('Tabel 2 H'!D125/'Tabel 1 H'!C123*100,"-")) -> - | F125: =IF(OR('Tabel 1 H'!E123<5,'Tabel 2 H'!F125<0.5),"-",IFERROR('Tabel 2 H'!F125/'Tabel 1 H'!E123*100,"-")) -> - | G125: =IF(OR('Tabel 1 H'!E123<5,'Tabel 2 H'!G125<0.5),"-",IFERROR('Tabel 2 H'!G125/'Tabel 1 H'!E123*100,"-")) -> - | I125: =IF(OR('Tabel 1 H'!G123<5,'Tabel 2 H'!I125<0.5),"-",IFERROR('Tabel 2 H'!I125/'Tabel 1 H'!G123*100,"-")) -> - | J125: =IF(OR('Tabel 1 H'!G123<5,'Tabel 2 H'!J125<0.5),"-",IFERROR('Tabel 2 H'!J125/'Tabel 1 H'!G123*100,"-")) -> -
A126: Forstkand. | C126: =IF(OR('Tabel 1 H'!C124<5,'Tabel 2 H'!C126<0.5),"-",IFERROR('Tabel 2 H'!C126/'Tabel 1 H'!C124*100,"-")) -> - | D126: =IF(OR('Tabel 1 H'!C124<5,'Tabel 2 H'!D126<0.5),"-",IFERROR('Tabel 2 H'!D126/'Tabel 1 H'!C124*100,"-")) -> - | F126: =IF(OR('Tabel 1 H'!E124<5,'Tabel 2 H'!F126<0.5),"-",IFERROR('Tabel 2 H'!F126/'Tabel 1 H'!E124*100,"-")) -> - | G126: =IF(OR('Tabel 1 H'!E124<5,'Tabel 2 H'!G126<0.5),"-",IFERROR('Tabel 2 H'!G126/'Tabel 1 H'!E124*100,"-")) -> - | I126: =IF(OR('Tabel 1 H'!G124<5,'Tabel 2 H'!I126<0.5),"-",IFERROR('Tabel 2 H'!I126/'Tabel 1 H'!G124*100,"-")) -> - | J126: =IF(OR('Tabel 1 H'!G124<5,'Tabel 2 H'!J126<0.5),"-",IFERROR('Tabel 2 H'!J126/'Tabel 1 H'!G124*100,"-")) -> -
A127: Jordbrugsakad. | C127: =IF(OR('Tabel 1 H'!C125<5,'Tabel 2 H'!C127<0.5),"-",IFERROR('Tabel 2 H'!C127/'Tabel 1 H'!C125*100,"-")) -> 4.545454545 | D127: =IF(OR('Tabel 1 H'!C125<5,'Tabel 2 H'!D127<0.5),"-",IFERROR('Tabel 2 H'!D127/'Tabel 1 H'!C125*100,"-")) -> 4.194946408 | F127: =IF(OR('Tabel 1 H'!E125<5,'Tabel 2 H'!F127<0.5),"-",IFERROR('Tabel 2 H'!F127/'Tabel 1 H'!E125*100,"-")) -> 4.47761194 | G127: =IF(OR('Tabel 1 H'!E125<5,'Tabel 2 H'!G127<0.5),"-",IFERROR('Tabel 2 H'!G127/'Tabel 1 H'!E125*100,"-")) -> 4.476774116 | I127: =IF(OR('Tabel 1 H'!G125<5,'Tabel 2 H'!I127<0.5),"-",IFERROR('Tabel 2 H'!I127/'Tabel 1 H'!G125*100,"-")) -> 4.511278195 | J127: =IF(OR('Tabel 1 H'!G125<5,'Tabel 2 H'!J127<0.5),"-",IFERROR('Tabel 2 H'!J127/'Tabel 1 H'!G125*100,"-")) -> 4.336919765
A128: Mejeriing. | C128: =IF(OR('Tabel 1 H'!C126<5,'Tabel 2 H'!C128<0.5),"-",IFERROR('Tabel 2 H'!C128/'Tabel 1 H'!C126*100,"-")) -> 22.22222222 | D128: =IF(OR('Tabel 1 H'!C126<5,'Tabel 2 H'!D128<0.5),"-",IFERROR('Tabel 2 H'!D128/'Tabel 1 H'!C126*100,"-")) -> 16.57692121 | F128: =IF(OR('Tabel 1 H'!E126<5,'Tabel 2 H'!F128<0.5),"-",IFERROR('Tabel 2 H'!F128/'Tabel 1 H'!E126*100,"-")) -> - | G128: =IF(OR('Tabel 1 H'!E126<5,'Tabel 2 H'!G128<0.5),"-",IFERROR('Tabel 2 H'!G128/'Tabel 1 H'!E126*100,"-")) -> - | I128: =IF(OR('Tabel 1 H'!G126<5,'Tabel 2 H'!I128<0.5),"-",IFERROR('Tabel 2 H'!I128/'Tabel 1 H'!G126*100,"-")) -> 14.28571429 | J128: =IF(OR('Tabel 1 H'!G126<5,'Tabel 2 H'!J128<0.5),"-",IFERROR('Tabel 2 H'!J128/'Tabel 1 H'!G126*100,"-")) -> 10.65659221
A129: Levn.m.kand. | C129: =IF(OR('Tabel 1 H'!C127<5,'Tabel 2 H'!C129<0.5),"-",IFERROR('Tabel 2 H'!C129/'Tabel 1 H'!C127*100,"-")) -> 33.33333333 | D129: =IF(OR('Tabel 1 H'!C127<5,'Tabel 2 H'!D129<0.5),"-",IFERROR('Tabel 2 H'!D129/'Tabel 1 H'!C127*100,"-")) -> 31.941066 | F129: =IF(OR('Tabel 1 H'!E127<5,'Tabel 2 H'!F129<0.5),"-",IFERROR('Tabel 2 H'!F129/'Tabel 1 H'!E127*100,"-")) -> 10.34482759 | G129: =IF(OR('Tabel 1 H'!E127<5,'Tabel 2 H'!G129<0.5),"-",IFERROR('Tabel 2 H'!G129/'Tabel 1 H'!E127*100,"-")) -> 10.34289192 | I129: =IF(OR('Tabel 1 H'!G127<5,'Tabel 2 H'!I129<0.5),"-",IFERROR('Tabel 2 H'!I129/'Tabel 1 H'!G127*100,"-")) -> 15.78947368 | J129: =IF(OR('Tabel 1 H'!G127<5,'Tabel 2 H'!J129<0.5),"-",IFERROR('Tabel 2 H'!J129/'Tabel 1 H'!G127*100,"-")) -> 15.45824894
A130: Dyrlæge | C130: =IF(OR('Tabel 1 H'!C128<5,'Tabel 2 H'!C130<0.5),"-",IFERROR('Tabel 2 H'!C130/'Tabel 1 H'!C128*100,"-")) -> 11.11111111 | D130: =IF(OR('Tabel 1 H'!C128<5,'Tabel 2 H'!D130<0.5),"-",IFERROR('Tabel 2 H'!D130/'Tabel 1 H'!C128*100,"-")) -> 8.995336008 | F130: =IF(OR('Tabel 1 H'!E128<5,'Tabel 2 H'!F130<0.5),"-",IFERROR('Tabel 2 H'!F130/'Tabel 1 H'!E128*100,"-")) -> 11.29032258 | G130: =IF(OR('Tabel 1 H'!E128<5,'Tabel 2 H'!G130<0.5),"-",IFERROR('Tabel 2 H'!G130/'Tabel 1 H'!E128*100,"-")) -> 8.663582973 | I130: =IF(OR('Tabel 1 H'!G128<5,'Tabel 2 H'!I130<0.5),"-",IFERROR('Tabel 2 H'!I130/'Tabel 1 H'!G128*100,"-")) -> 11.25 | J130: =IF(OR('Tabel 1 H'!G128<5,'Tabel 2 H'!J130<0.5),"-",IFERROR('Tabel 2 H'!J130/'Tabel 1 H'!G128*100,"-")) -> 8.738227406
A131: Farmaceut | C131: =IF(OR('Tabel 1 H'!C129<5,'Tabel 2 H'!C131<0.5),"-",IFERROR('Tabel 2 H'!C131/'Tabel 1 H'!C129*100,"-")) -> 1.587301587 | D131: =IF(OR('Tabel 1 H'!C129<5,'Tabel 2 H'!D131<0.5),"-",IFERROR('Tabel 2 H'!D131/'Tabel 1 H'!C129*100,"-")) -> 1.587004581 | F131: =IF(OR('Tabel 1 H'!E129<5,'Tabel 2 H'!F131<0.5),"-",IFERROR('Tabel 2 H'!F131/'Tabel 1 H'!E129*100,"-")) -> 3.95480226 | G131: =IF(OR('Tabel 1 H'!E129<5,'Tabel 2 H'!G131<0.5),"-",IFERROR('Tabel 2 H'!G131/'Tabel 1 H'!E129*100,"-")) -> 3.588996001 | I131: =IF(OR('Tabel 1 H'!G129<5,'Tabel 2 H'!I131<0.5),"-",IFERROR('Tabel 2 H'!I131/'Tabel 1 H'!G129*100,"-")) -> 3.333333333 | J131: =IF(OR('Tabel 1 H'!G129<5,'Tabel 2 H'!J131<0.5),"-",IFERROR('Tabel 2 H'!J131/'Tabel 1 H'!G129*100,"-")) -> 3.063473253
A132: Læge | C132: =IF(OR('Tabel 1 H'!C130<5,'Tabel 2 H'!C132<0.5),"-",IFERROR('Tabel 2 H'!C132/'Tabel 1 H'!C130*100,"-")) -> 1.333333333 | D132: =IF(OR('Tabel 1 H'!C130<5,'Tabel 2 H'!D132<0.5),"-",IFERROR('Tabel 2 H'!D132/'Tabel 1 H'!C130*100,"-")) -> 1.333083848 | F132: =IF(OR('Tabel 1 H'!E130<5,'Tabel 2 H'!F132<0.5),"-",IFERROR('Tabel 2 H'!F132/'Tabel 1 H'!E130*100,"-")) -> 2.416918429 | G132: =IF(OR('Tabel 1 H'!E130<5,'Tabel 2 H'!G132<0.5),"-",IFERROR('Tabel 2 H'!G132/'Tabel 1 H'!E130*100,"-")) -> 1.747151786 | I132: =IF(OR('Tabel 1 H'!G130<5,'Tabel 2 H'!I132<0.5),"-",IFERROR('Tabel 2 H'!I132/'Tabel 1 H'!G130*100,"-")) -> 2.079002079 | J132: =IF(OR('Tabel 1 H'!G130<5,'Tabel 2 H'!J132<0.5),"-",IFERROR('Tabel 2 H'!J132/'Tabel 1 H'!G130*100,"-")) -> 1.618024571
A133: Tandlæge | C133: =IF(OR('Tabel 1 H'!C131<5,'Tabel 2 H'!C133<0.5),"-",IFERROR('Tabel 2 H'!C133/'Tabel 1 H'!C131*100,"-")) -> - | D133: =IF(OR('Tabel 1 H'!C131<5,'Tabel 2 H'!D133<0.5),"-",IFERROR('Tabel 2 H'!D133/'Tabel 1 H'!C131*100,"-")) -> - | F133: =IF(OR('Tabel 1 H'!E131<5,'Tabel 2 H'!F133<0.5),"-",IFERROR('Tabel 2 H'!F133/'Tabel 1 H'!E131*100,"-")) -> 1.851851852 | G133: =IF(OR('Tabel 1 H'!E131<5,'Tabel 2 H'!G133<0.5),"-",IFERROR('Tabel 2 H'!G133/'Tabel 1 H'!E131*100,"-")) -> - | I133: =IF(OR('Tabel 1 H'!G131<5,'Tabel 2 H'!I133<0.5),"-",IFERROR('Tabel 2 H'!I133/'Tabel 1 H'!G131*100,"-")) -> 1.666666667 | J133: =IF(OR('Tabel 1 H'!G131<5,'Tabel 2 H'!J133<0.5),"-",IFERROR('Tabel 2 H'!J133/'Tabel 1 H'!G131*100,"-")) -> -
A134: Arkitekt | C134: =IF(OR('Tabel 1 H'!C132<5,'Tabel 2 H'!C134<0.5),"-",IFERROR('Tabel 2 H'!C134/'Tabel 1 H'!C132*100,"-")) -> 8.121827411 | D134: =IF(OR('Tabel 1 H'!C132<5,'Tabel 2 H'!D134<0.5),"-",IFERROR('Tabel 2 H'!D134/'Tabel 1 H'!C132*100,"-")) -> 7.572262918 | F134: =IF(OR('Tabel 1 H'!E132<5,'Tabel 2 H'!F134<0.5),"-",IFERROR('Tabel 2 H'!F134/'Tabel 1 H'!E132*100,"-")) -> 4.464285714 | G134: =IF(OR('Tabel 1 H'!E132<5,'Tabel 2 H'!G134<0.5),"-",IFERROR('Tabel 2 H'!G134/'Tabel 1 H'!E132*100,"-")) -> 3.32907129 | I134: =IF(OR('Tabel 1 H'!G132<5,'Tabel 2 H'!I134<0.5),"-",IFERROR('Tabel 2 H'!I134/'Tabel 1 H'!G132*100,"-")) -> 6.175771971 | J134: =IF(OR('Tabel 1 H'!G132<5,'Tabel 2 H'!J134<0.5),"-",IFERROR('Tabel 2 H'!J134/'Tabel 1 H'!G132*100,"-")) -> 5.314602765
A135: Landinspek. | C135: =IF(OR('Tabel 1 H'!C133<5,'Tabel 2 H'!C135<0.5),"-",IFERROR('Tabel 2 H'!C135/'Tabel 1 H'!C133*100,"-")) -> 9.090909091 | D135: =IF(OR('Tabel 1 H'!C133<5,'Tabel 2 H'!D135<0.5),"-",IFERROR('Tabel 2 H'!D135/'Tabel 1 H'!C133*100,"-")) -> 9.089208054 | F135: =IF(OR('Tabel 1 H'!E133<5,'Tabel 2 H'!F135<0.5),"-",IFERROR('Tabel 2 H'!F135/'Tabel 1 H'!E133*100,"-")) -> - | G135: =IF(OR('Tabel 1 H'!E133<5,'Tabel 2 H'!G135<0.5),"-",IFERROR('Tabel 2 H'!G135/'Tabel 1 H'!E133*100,"-")) -> - | I135: =IF(OR('Tabel 1 H'!G133<5,'Tabel 2 H'!I135<0.5),"-",IFERROR('Tabel 2 H'!I135/'Tabel 1 H'!G133*100,"-")) -> 14.28571429 | J135: =IF(OR('Tabel 1 H'!G133<5,'Tabel 2 H'!J135<0.5),"-",IFERROR('Tabel 2 H'!J135/'Tabel 1 H'!G133*100,"-")) -> 8.678529105
A136: Bibliotekar | C136: =IF(OR('Tabel 1 H'!C134<5,'Tabel 2 H'!C136<0.5),"-",IFERROR('Tabel 2 H'!C136/'Tabel 1 H'!C134*100,"-")) -> 2.702702703 | D136: =IF(OR('Tabel 1 H'!C134<5,'Tabel 2 H'!D136<0.5),"-",IFERROR('Tabel 2 H'!D136/'Tabel 1 H'!C134*100,"-")) -> 2.702196989 | F136: =IF(OR('Tabel 1 H'!E134<5,'Tabel 2 H'!F136<0.5),"-",IFERROR('Tabel 2 H'!F136/'Tabel 1 H'!E134*100,"-")) -> 3.883495146 | G136: =IF(OR('Tabel 1 H'!E134<5,'Tabel 2 H'!G136<0.5),"-",IFERROR('Tabel 2 H'!G136/'Tabel 1 H'!E134*100,"-")) -> 3.364420107 | I136: =IF(OR('Tabel 1 H'!G134<5,'Tabel 2 H'!I136<0.5),"-",IFERROR('Tabel 2 H'!I136/'Tabel 1 H'!G134*100,"-")) -> 3.571428571 | J136: =IF(OR('Tabel 1 H'!G134<5,'Tabel 2 H'!J136<0.5),"-",IFERROR('Tabel 2 H'!J136/'Tabel 1 H'!G134*100,"-")) -> 3.189403997
A137: Musikudd. | C137: =IF(OR('Tabel 1 H'!C135<5,'Tabel 2 H'!C137<0.5),"-",IFERROR('Tabel 2 H'!C137/'Tabel 1 H'!C135*100,"-")) -> 16.66666667 | D137: =IF(OR('Tabel 1 H'!C135<5,'Tabel 2 H'!D137<0.5),"-",IFERROR('Tabel 2 H'!D137/'Tabel 1 H'!C135*100,"-")) -> 14.02316056 | F137: =IF(OR('Tabel 1 H'!E135<5,'Tabel 2 H'!F137<0.5),"-",IFERROR('Tabel 2 H'!F137/'Tabel 1 H'!E135*100,"-")) -> - | G137: =IF(OR('Tabel 1 H'!E135<5,'Tabel 2 H'!G137<0.5),"-",IFERROR('Tabel 2 H'!G137/'Tabel 1 H'!E135*100,"-")) -> - | I137: =IF(OR('Tabel 1 H'!G135<5,'Tabel 2 H'!I137<0.5),"-",IFERROR('Tabel 2 H'!I137/'Tabel 1 H'!G135*100,"-")) -> 9.523809524 | J137: =IF(OR('Tabel 1 H'!G135<5,'Tabel 2 H'!J137<0.5),"-",IFERROR('Tabel 2 H'!J137/'Tabel 1 H'!G135*100,"-")) -> 8.013234608
A138: Teolog | C138: =IF(OR('Tabel 1 H'!C136<5,'Tabel 2 H'!C138<0.5),"-",IFERROR('Tabel 2 H'!C138/'Tabel 1 H'!C136*100,"-")) -> - | D138: =IF(OR('Tabel 1 H'!C136<5,'Tabel 2 H'!D138<0.5),"-",IFERROR('Tabel 2 H'!D138/'Tabel 1 H'!C136*100,"-")) -> - | F138: =IF(OR('Tabel 1 H'!E136<5,'Tabel 2 H'!F138<0.5),"-",IFERROR('Tabel 2 H'!F138/'Tabel 1 H'!E136*100,"-")) -> 9.677419355 | G138: =IF(OR('Tabel 1 H'!E136<5,'Tabel 2 H'!G138<0.5),"-",IFERROR('Tabel 2 H'!G138/'Tabel 1 H'!E136*100,"-")) -> 7.949330313 | I138: =IF(OR('Tabel 1 H'!G136<5,'Tabel 2 H'!I138<0.5),"-",IFERROR('Tabel 2 H'!I138/'Tabel 1 H'!G136*100,"-")) -> 7.894736842 | J138: =IF(OR('Tabel 1 H'!G136<5,'Tabel 2 H'!J138<0.5),"-",IFERROR('Tabel 2 H'!J138/'Tabel 1 H'!G136*100,"-")) -> 6.484979992
A139: Psykolog | C139: =IF(OR('Tabel 1 H'!C137<5,'Tabel 2 H'!C139<0.5),"-",IFERROR('Tabel 2 H'!C139/'Tabel 1 H'!C137*100,"-")) -> 7.142857143 | D139: =IF(OR('Tabel 1 H'!C137<5,'Tabel 2 H'!D139<0.5),"-",IFERROR('Tabel 2 H'!D139/'Tabel 1 H'!C137*100,"-")) -> 6.647004838 | F139: =IF(OR('Tabel 1 H'!E137<5,'Tabel 2 H'!F139<0.5),"-",IFERROR('Tabel 2 H'!F139/'Tabel 1 H'!E137*100,"-")) -> 5.090909091 | G139: =IF(OR('Tabel 1 H'!E137<5,'Tabel 2 H'!G139<0.5),"-",IFERROR('Tabel 2 H'!G139/'Tabel 1 H'!E137*100,"-")) -> 4.418613882 | I139: =IF(OR('Tabel 1 H'!G137<5,'Tabel 2 H'!I139<0.5),"-",IFERROR('Tabel 2 H'!I139/'Tabel 1 H'!G137*100,"-")) -> 5.438066465 | J139: =IF(OR('Tabel 1 H'!G137<5,'Tabel 2 H'!J139<0.5),"-",IFERROR('Tabel 2 H'!J139/'Tabel 1 H'!G137*100,"-")) -> 4.795622624
A140: Jurist | C140: =IF(OR('Tabel 1 H'!C138<5,'Tabel 2 H'!C140<0.5),"-",IFERROR('Tabel 2 H'!C140/'Tabel 1 H'!C138*100,"-")) -> 2.356020942 | D140: =IF(OR('Tabel 1 H'!C138<5,'Tabel 2 H'!D140<0.5),"-",IFERROR('Tabel 2 H'!D140/'Tabel 1 H'!C138*100,"-")) -> 2.062010193 | F140: =IF(OR('Tabel 1 H'!E138<5,'Tabel 2 H'!F140<0.5),"-",IFERROR('Tabel 2 H'!F140/'Tabel 1 H'!E138*100,"-")) -> 2.307692308 | G140: =IF(OR('Tabel 1 H'!E138<5,'Tabel 2 H'!G140<0.5),"-",IFERROR('Tabel 2 H'!G140/'Tabel 1 H'!E138*100,"-")) -> 2.066411104 | I140: =IF(OR('Tabel 1 H'!G138<5,'Tabel 2 H'!I140<0.5),"-",IFERROR('Tabel 2 H'!I140/'Tabel 1 H'!G138*100,"-")) -> 2.325581395 | J140: =IF(OR('Tabel 1 H'!G138<5,'Tabel 2 H'!J140<0.5),"-",IFERROR('Tabel 2 H'!J140/'Tabel 1 H'!G138*100,"-")) -> 2.064782085
A141: Økonom | C141: =IF(OR('Tabel 1 H'!C139<5,'Tabel 2 H'!C141<0.5),"-",IFERROR('Tabel 2 H'!C141/'Tabel 1 H'!C139*100,"-")) -> 0.8771929825 | D141: =IF(OR('Tabel 1 H'!C139<5,'Tabel 2 H'!D141<0.5),"-",IFERROR('Tabel 2 H'!D141/'Tabel 1 H'!C139*100,"-")) -> 0.7150821606 | F141: =IF(OR('Tabel 1 H'!E139<5,'Tabel 2 H'!F141<0.5),"-",IFERROR('Tabel 2 H'!F141/'Tabel 1 H'!E139*100,"-")) -> 0.4347826087 | G141: =IF(OR('Tabel 1 H'!E139<5,'Tabel 2 H'!G141<0.5),"-",IFERROR('Tabel 2 H'!G141/'Tabel 1 H'!E139*100,"-")) -> 0.4347012547 | I141: =IF(OR('Tabel 1 H'!G139<5,'Tabel 2 H'!I141<0.5),"-",IFERROR('Tabel 2 H'!I141/'Tabel 1 H'!G139*100,"-")) -> 0.6993006993 | J141: =IF(OR('Tabel 1 H'!G139<5,'Tabel 2 H'!J141<0.5),"-",IFERROR('Tabel 2 H'!J141/'Tabel 1 H'!G139*100,"-")) -> 0.6023415866
A142: Samf. Adm. | C142: =IF(OR('Tabel 1 H'!C140<5,'Tabel 2 H'!C142<0.5),"-",IFERROR('Tabel 2 H'!C142/'Tabel 1 H'!C140*100,"-")) -> 5.231689088 | D142: =IF(OR('Tabel 1 H'!C140<5,'Tabel 2 H'!D142<0.5),"-",IFERROR('Tabel 2 H'!D142/'Tabel 1 H'!C140*100,"-")) -> 4.375131747 | F142: =IF(OR('Tabel 1 H'!E140<5,'Tabel 2 H'!F142<0.5),"-",IFERROR('Tabel 2 H'!F142/'Tabel 1 H'!E140*100,"-")) -> 5.506391347 | G142: =IF(OR('Tabel 1 H'!E140<5,'Tabel 2 H'!G142<0.5),"-",IFERROR('Tabel 2 H'!G142/'Tabel 1 H'!E140*100,"-")) -> 4.791616799 | I142: =IF(OR('Tabel 1 H'!G140<5,'Tabel 2 H'!I142<0.5),"-",IFERROR('Tabel 2 H'!I142/'Tabel 1 H'!G140*100,"-")) -> 5.397390273 | J142: =IF(OR('Tabel 1 H'!G140<5,'Tabel 2 H'!J142<0.5),"-",IFERROR('Tabel 2 H'!J142/'Tabel 1 H'!G140*100,"-")) -> 4.626356716
A143: Cand. Merc. | C143: =IF(OR('Tabel 1 H'!C141<5,'Tabel 2 H'!C143<0.5),"-",IFERROR('Tabel 2 H'!C143/'Tabel 1 H'!C141*100,"-")) -> 4.210526316 | D143: =IF(OR('Tabel 1 H'!C141<5,'Tabel 2 H'!D143<0.5),"-",IFERROR('Tabel 2 H'!D143/'Tabel 1 H'!C141*100,"-")) -> 3.865437623 | F143: =IF(OR('Tabel 1 H'!E141<5,'Tabel 2 H'!F143<0.5),"-",IFERROR('Tabel 2 H'!F143/'Tabel 1 H'!E141*100,"-")) -> 5.913978495 | G143: =IF(OR('Tabel 1 H'!E141<5,'Tabel 2 H'!G143<0.5),"-",IFERROR('Tabel 2 H'!G143/'Tabel 1 H'!E141*100,"-")) -> 5.148878646 | I143: =IF(OR('Tabel 1 H'!G141<5,'Tabel 2 H'!I143<0.5),"-",IFERROR('Tabel 2 H'!I143/'Tabel 1 H'!G141*100,"-")) -> 5.053191489 | J143: =IF(OR('Tabel 1 H'!G141<5,'Tabel 2 H'!J143<0.5),"-",IFERROR('Tabel 2 H'!J143/'Tabel 1 H'!G141*100,"-")) -> 4.50033132
A144: HA | C144: =IF(OR('Tabel 1 H'!C142<5,'Tabel 2 H'!C144<0.5),"-",IFERROR('Tabel 2 H'!C144/'Tabel 1 H'!C142*100,"-")) -> 10.09174312 | D144: =IF(OR('Tabel 1 H'!C142<5,'Tabel 2 H'!D144<0.5),"-",IFERROR('Tabel 2 H'!D144/'Tabel 1 H'!C142*100,"-")) -> 9.949090093 | F144: =IF(OR('Tabel 1 H'!E142<5,'Tabel 2 H'!F144<0.5),"-",IFERROR('Tabel 2 H'!F144/'Tabel 1 H'!E142*100,"-")) -> 10.86956522 | G144: =IF(OR('Tabel 1 H'!E142<5,'Tabel 2 H'!G144<0.5),"-",IFERROR('Tabel 2 H'!G144/'Tabel 1 H'!E142*100,"-")) -> 8.272340472 | I144: =IF(OR('Tabel 1 H'!G142<5,'Tabel 2 H'!I144<0.5),"-",IFERROR('Tabel 2 H'!I144/'Tabel 1 H'!G142*100,"-")) -> 10.44776119 | J144: =IF(OR('Tabel 1 H'!G142<5,'Tabel 2 H'!J144<0.5),"-",IFERROR('Tabel 2 H'!J144/'Tabel 1 H'!G142*100,"-")) -> 9.181622605
A145: HD | C145: =IF(OR('Tabel 1 H'!C143<5,'Tabel 2 H'!C145<0.5),"-",IFERROR('Tabel 2 H'!C145/'Tabel 1 H'!C143*100,"-")) -> 5.691056911 | D145: =IF(OR('Tabel 1 H'!C143<5,'Tabel 2 H'!D145<0.5),"-",IFERROR('Tabel 2 H'!D145/'Tabel 1 H'!C143*100,"-")) -> 4.811722164 | F145: =IF(OR('Tabel 1 H'!E143<5,'Tabel 2 H'!F145<0.5),"-",IFERROR('Tabel 2 H'!F145/'Tabel 1 H'!E143*100,"-")) -> 11.11111111 | G145: =IF(OR('Tabel 1 H'!E143<5,'Tabel 2 H'!G145<0.5),"-",IFERROR('Tabel 2 H'!G145/'Tabel 1 H'!E143*100,"-")) -> 10.59620089 | I145: =IF(OR('Tabel 1 H'!G143<5,'Tabel 2 H'!I145<0.5),"-",IFERROR('Tabel 2 H'!I145/'Tabel 1 H'!G143*100,"-")) -> 7.981220657 | J145: =IF(OR('Tabel 1 H'!G143<5,'Tabel 2 H'!J145<0.5),"-",IFERROR('Tabel 2 H'!J145/'Tabel 1 H'!G143*100,"-")) -> 7.255868105
A146: Komm. og Sprog | C146: =IF(OR('Tabel 1 H'!C144<5,'Tabel 2 H'!C146<0.5),"-",IFERROR('Tabel 2 H'!C146/'Tabel 1 H'!C144*100,"-")) -> 9.259259259 | D146: =IF(OR('Tabel 1 H'!C144<5,'Tabel 2 H'!D146<0.5),"-",IFERROR('Tabel 2 H'!D146/'Tabel 1 H'!C144*100,"-")) -> 9.172054859 | F146: =IF(OR('Tabel 1 H'!E144<5,'Tabel 2 H'!F146<0.5),"-",IFERROR('Tabel 2 H'!F146/'Tabel 1 H'!E144*100,"-")) -> 8.605341246 | G146: =IF(OR('Tabel 1 H'!E144<5,'Tabel 2 H'!G146<0.5),"-",IFERROR('Tabel 2 H'!G146/'Tabel 1 H'!E144*100,"-")) -> 7.673713026 | I146: =IF(OR('Tabel 1 H'!G144<5,'Tabel 2 H'!I146<0.5),"-",IFERROR('Tabel 2 H'!I146/'Tabel 1 H'!G144*100,"-")) -> 8.695652174 | J146: =IF(OR('Tabel 1 H'!G144<5,'Tabel 2 H'!J146<0.5),"-",IFERROR('Tabel 2 H'!J146/'Tabel 1 H'!G144*100,"-")) -> 7.880645146
A147: Cand. IT. | C147: =IF(OR('Tabel 1 H'!C145<5,'Tabel 2 H'!C147<0.5),"-",IFERROR('Tabel 2 H'!C147/'Tabel 1 H'!C145*100,"-")) -> 0.8849557522 | D147: =IF(OR('Tabel 1 H'!C145<5,'Tabel 2 H'!D147<0.5),"-",IFERROR('Tabel 2 H'!D147/'Tabel 1 H'!C145*100,"-")) -> 0.8847901645 | F147: =IF(OR('Tabel 1 H'!E145<5,'Tabel 2 H'!F147<0.5),"-",IFERROR('Tabel 2 H'!F147/'Tabel 1 H'!E145*100,"-")) -> 6.818181818 | G147: =IF(OR('Tabel 1 H'!E145<5,'Tabel 2 H'!G147<0.5),"-",IFERROR('Tabel 2 H'!G147/'Tabel 1 H'!E145*100,"-")) -> 6.088295164 | I147: =IF(OR('Tabel 1 H'!G145<5,'Tabel 2 H'!I147<0.5),"-",IFERROR('Tabel 2 H'!I147/'Tabel 1 H'!G145*100,"-")) -> 3.482587065 | J147: =IF(OR('Tabel 1 H'!G145<5,'Tabel 2 H'!J147<0.5),"-",IFERROR('Tabel 2 H'!J147/'Tabel 1 H'!G145*100,"-")) -> 3.162941607
A148: Bac. Samf. | C148: =IF(OR('Tabel 1 H'!C146<5,'Tabel 2 H'!C148<0.5),"-",IFERROR('Tabel 2 H'!C148/'Tabel 1 H'!C146*100,"-")) -> 17.24137931 | D148: =IF(OR('Tabel 1 H'!C146<5,'Tabel 2 H'!D148<0.5),"-",IFERROR('Tabel 2 H'!D148/'Tabel 1 H'!C146*100,"-")) -> 14.88309672 | F148: =IF(OR('Tabel 1 H'!E146<5,'Tabel 2 H'!F148<0.5),"-",IFERROR('Tabel 2 H'!F148/'Tabel 1 H'!E146*100,"-")) -> 8.823529412 | G148: =IF(OR('Tabel 1 H'!E146<5,'Tabel 2 H'!G148<0.5),"-",IFERROR('Tabel 2 H'!G148/'Tabel 1 H'!E146*100,"-")) -> 6.921386405 | I148: =IF(OR('Tabel 1 H'!G146<5,'Tabel 2 H'!I148<0.5),"-",IFERROR('Tabel 2 H'!I148/'Tabel 1 H'!G146*100,"-")) -> 12.6984127 | J148: =IF(OR('Tabel 1 H'!G146<5,'Tabel 2 H'!J148<0.5),"-",IFERROR('Tabel 2 H'!J148/'Tabel 1 H'!G146*100,"-")) -> 10.58630068
A149: Bac. Hum. | C149: =IF(OR('Tabel 1 H'!C147<5,'Tabel 2 H'!C149<0.5),"-",IFERROR('Tabel 2 H'!C149/'Tabel 1 H'!C147*100,"-")) -> 14.03508772 | D149: =IF(OR('Tabel 1 H'!C147<5,'Tabel 2 H'!D149<0.5),"-",IFERROR('Tabel 2 H'!D149/'Tabel 1 H'!C147*100,"-")) -> 10.78805665 | F149: =IF(OR('Tabel 1 H'!E147<5,'Tabel 2 H'!F149<0.5),"-",IFERROR('Tabel 2 H'!F149/'Tabel 1 H'!E147*100,"-")) -> 16.40625 | G149: =IF(OR('Tabel 1 H'!E147<5,'Tabel 2 H'!G149<0.5),"-",IFERROR('Tabel 2 H'!G149/'Tabel 1 H'!E147*100,"-")) -> 14.25916469 | I149: =IF(OR('Tabel 1 H'!G147<5,'Tabel 2 H'!I149<0.5),"-",IFERROR('Tabel 2 H'!I149/'Tabel 1 H'!G147*100,"-")) -> 15.67567568 | J149: =IF(OR('Tabel 1 H'!G147<5,'Tabel 2 H'!J149<0.5),"-",IFERROR('Tabel 2 H'!J149/'Tabel 1 H'!G147*100,"-")) -> 13.18968816
A150: Bac. Nat. | C150: =IF(OR('Tabel 1 H'!C148<5,'Tabel 2 H'!C150<0.5),"-",IFERROR('Tabel 2 H'!C150/'Tabel 1 H'!C148*100,"-")) -> 16.66666667 | D150: =IF(OR('Tabel 1 H'!C148<5,'Tabel 2 H'!D150<0.5),"-",IFERROR('Tabel 2 H'!D150/'Tabel 1 H'!C148*100,"-")) -> 16.11130169 | F150: =IF(OR('Tabel 1 H'!E148<5,'Tabel 2 H'!F150<0.5),"-",IFERROR('Tabel 2 H'!F150/'Tabel 1 H'!E148*100,"-")) -> 19.04761905 | G150: =IF(OR('Tabel 1 H'!E148<5,'Tabel 2 H'!G150<0.5),"-",IFERROR('Tabel 2 H'!G150/'Tabel 1 H'!E148*100,"-")) -> 18.54805416 | I150: =IF(OR('Tabel 1 H'!G148<5,'Tabel 2 H'!I150<0.5),"-",IFERROR('Tabel 2 H'!I150/'Tabel 1 H'!G148*100,"-")) -> 17.77777778 | J150: =IF(OR('Tabel 1 H'!G148<5,'Tabel 2 H'!J150<0.5),"-",IFERROR('Tabel 2 H'!J150/'Tabel 1 H'!G148*100,"-")) -> 17.24845284
A151: Andre | C151: =IF(OR('Tabel 1 H'!C149<5,'Tabel 2 H'!C151<0.5),"-",IFERROR('Tabel 2 H'!C151/'Tabel 1 H'!C149*100,"-")) -> 5.27306968 | D151: =IF(OR('Tabel 1 H'!C149<5,'Tabel 2 H'!D151<0.5),"-",IFERROR('Tabel 2 H'!D151/'Tabel 1 H'!C149*100,"-")) -> 4.486274366 | F151: =IF(OR('Tabel 1 H'!E149<5,'Tabel 2 H'!F151<0.5),"-",IFERROR('Tabel 2 H'!F151/'Tabel 1 H'!E149*100,"-")) -> 11.81959565 | G151: =IF(OR('Tabel 1 H'!E149<5,'Tabel 2 H'!G151<0.5),"-",IFERROR('Tabel 2 H'!G151/'Tabel 1 H'!E149*100,"-")) -> 9.957883328 | I151: =IF(OR('Tabel 1 H'!G149<5,'Tabel 2 H'!I151<0.5),"-",IFERROR('Tabel 2 H'!I151/'Tabel 1 H'!G149*100,"-")) -> 8.858603066 | J151: =IF(OR('Tabel 1 H'!G149<5,'Tabel 2 H'!J151<0.5),"-",IFERROR('Tabel 2 H'!J151/'Tabel 1 H'!G149*100,"-")) -> 7.483075526
A153: Total | C153: =IF(OR('Tabel 1 H'!C151<5,'Tabel 2 H'!C153<0.5),"-",IFERROR('Tabel 2 H'!C153/'Tabel 1 H'!C151*100,"-")) -> 5.259334592 | D153: =IF(OR('Tabel 1 H'!C151<5,'Tabel 2 H'!D153<0.5),"-",IFERROR('Tabel 2 H'!D153/'Tabel 1 H'!C151*100,"-")) -> 4.681775626 | F153: =IF(OR('Tabel 1 H'!E151<5,'Tabel 2 H'!F153<0.5),"-",IFERROR('Tabel 2 H'!F153/'Tabel 1 H'!E151*100,"-")) -> 6.89330667 | G153: =IF(OR('Tabel 1 H'!E151<5,'Tabel 2 H'!G153<0.5),"-",IFERROR('Tabel 2 H'!G153/'Tabel 1 H'!E151*100,"-")) -> 5.964267631 | I153: =IF(OR('Tabel 1 H'!G151<5,'Tabel 2 H'!I153<0.5),"-",IFERROR('Tabel 2 H'!I153/'Tabel 1 H'!G151*100,"-")) -> 6.16224649 | J153: =IF(OR('Tabel 1 H'!G151<5,'Tabel 2 H'!J153<0.5),"-",IFERROR('Tabel 2 H'!J153/'Tabel 1 H'!G151*100,"-")) -> 5.390464168
A155: Ingeniører i alt | C155: =IF(OR('Tabel 1 H'!C153<5,'Tabel 2 H'!C155<0.5),"-",IFERROR('Tabel 2 H'!C155/'Tabel 1 H'!C153*100,"-")) -> 3.996737357 | D155: =IF(OR('Tabel 1 H'!C153<5,'Tabel 2 H'!D155<0.5),"-",IFERROR('Tabel 2 H'!D155/'Tabel 1 H'!C153*100,"-")) -> 3.481603858 | F155: =IF(OR('Tabel 1 H'!E153<5,'Tabel 2 H'!F155<0.5),"-",IFERROR('Tabel 2 H'!F155/'Tabel 1 H'!E153*100,"-")) -> 4.830917874 | G155: =IF(OR('Tabel 1 H'!E153<5,'Tabel 2 H'!G155<0.5),"-",IFERROR('Tabel 2 H'!G155/'Tabel 1 H'!E153*100,"-")) -> 4.249538467 | I155: =IF(OR('Tabel 1 H'!G153<5,'Tabel 2 H'!I155<0.5),"-",IFERROR('Tabel 2 H'!I155/'Tabel 1 H'!G153*100,"-")) -> 4.207317073 | J155: =IF(OR('Tabel 1 H'!G153<5,'Tabel 2 H'!J155<0.5),"-",IFERROR('Tabel 2 H'!J155/'Tabel 1 H'!G153*100,"-")) -> 3.675460521
A156: Magistre i alt | C156: =IF(OR('Tabel 1 H'!C154<5,'Tabel 2 H'!C156<0.5),"-",IFERROR('Tabel 2 H'!C156/'Tabel 1 H'!C154*100,"-")) -> 8.217821782 | D156: =IF(OR('Tabel 1 H'!C154<5,'Tabel 2 H'!D156<0.5),"-",IFERROR('Tabel 2 H'!D156/'Tabel 1 H'!C154*100,"-")) -> 7.370565535 | F156: =IF(OR('Tabel 1 H'!E154<5,'Tabel 2 H'!F156<0.5),"-",IFERROR('Tabel 2 H'!F156/'Tabel 1 H'!E154*100,"-")) -> 9.193548387 | G156: =IF(OR('Tabel 1 H'!E154<5,'Tabel 2 H'!G156<0.5),"-",IFERROR('Tabel 2 H'!G156/'Tabel 1 H'!E154*100,"-")) -> 7.980180662 | I156: =IF(OR('Tabel 1 H'!G154<5,'Tabel 2 H'!I156<0.5),"-",IFERROR('Tabel 2 H'!I156/'Tabel 1 H'!G154*100,"-")) -> 8.850174216 | J156: =IF(OR('Tabel 1 H'!G154<5,'Tabel 2 H'!J156<0.5),"-",IFERROR('Tabel 2 H'!J156/'Tabel 1 H'!G154*100,"-")) -> 7.765647116
A157: DJØF'ere i alt | C157: =IF(OR('Tabel 1 H'!C155<5,'Tabel 2 H'!C157<0.5),"-",IFERROR('Tabel 2 H'!C157/'Tabel 1 H'!C155*100,"-")) -> 4.012112036 | D157: =IF(OR('Tabel 1 H'!C155<5,'Tabel 2 H'!D157<0.5),"-",IFERROR('Tabel 2 H'!D157/'Tabel 1 H'!C155*100,"-")) -> 3.576933702 | F157: =IF(OR('Tabel 1 H'!E155<5,'Tabel 2 H'!F157<0.5),"-",IFERROR('Tabel 2 H'!F157/'Tabel 1 H'!E155*100,"-")) -> 4.766505636 | G157: =IF(OR('Tabel 1 H'!E155<5,'Tabel 2 H'!G157<0.5),"-",IFERROR('Tabel 2 H'!G157/'Tabel 1 H'!E155*100,"-")) -> 4.129928078 | I157: =IF(OR('Tabel 1 H'!G155<5,'Tabel 2 H'!I157<0.5),"-",IFERROR('Tabel 2 H'!I157/'Tabel 1 H'!G155*100,"-")) -> 4.419697233 | J157: =IF(OR('Tabel 1 H'!G155<5,'Tabel 2 H'!J157<0.5),"-",IFERROR('Tabel 2 H'!J157/'Tabel 1 H'!G155*100,"-")) -> 3.875706547
A162: Ballerup
C164: Mænd | F164: Kvinder | I164: I alt
C165: Ledigheds- berørte | D165: Gns. brutto- ledighed | F165: Ledigheds- berørte | G165: Gns. brutto- ledighed | I165: Ledigheds- berørte | J165: Gns. brutto- ledighed
A168: Civ. ing. | C168: =IF(OR('Tabel 1 H'!C166<5,'Tabel 2 H'!C168<0.5),"-",IFERROR('Tabel 2 H'!C168/'Tabel 1 H'!C166*100,"-")) -> 2.216066482 | D168: =IF(OR('Tabel 1 H'!C166<5,'Tabel 2 H'!D168<0.5),"-",IFERROR('Tabel 2 H'!D168/'Tabel 1 H'!C166*100,"-")) -> 1.704241235 | F168: =IF(OR('Tabel 1 H'!E166<5,'Tabel 2 H'!F168<0.5),"-",IFERROR('Tabel 2 H'!F168/'Tabel 1 H'!E166*100,"-")) -> 2.777777778 | G168: =IF(OR('Tabel 1 H'!E166<5,'Tabel 2 H'!G168<0.5),"-",IFERROR('Tabel 2 H'!G168/'Tabel 1 H'!E166*100,"-")) -> 2.360582687 | I168: =IF(OR('Tabel 1 H'!G166<5,'Tabel 2 H'!I168<0.5),"-",IFERROR('Tabel 2 H'!I168/'Tabel 1 H'!G166*100,"-")) -> 2.376237624 | J168: =IF(OR('Tabel 1 H'!G166<5,'Tabel 2 H'!J168<0.5),"-",IFERROR('Tabel 2 H'!J168/'Tabel 1 H'!G166*100,"-")) -> 1.891396025
A169: Diplom ing. | C169: =IF(OR('Tabel 1 H'!C167<5,'Tabel 2 H'!C169<0.5),"-",IFERROR('Tabel 2 H'!C169/'Tabel 1 H'!C167*100,"-")) -> 3.045685279 | D169: =IF(OR('Tabel 1 H'!C167<5,'Tabel 2 H'!D169<0.5),"-",IFERROR('Tabel 2 H'!D169/'Tabel 1 H'!C167*100,"-")) -> 2.561341598 | F169: =IF(OR('Tabel 1 H'!E167<5,'Tabel 2 H'!F169<0.5),"-",IFERROR('Tabel 2 H'!F169/'Tabel 1 H'!E167*100,"-")) -> 2.752293578 | G169: =IF(OR('Tabel 1 H'!E167<5,'Tabel 2 H'!G169<0.5),"-",IFERROR('Tabel 2 H'!G169/'Tabel 1 H'!E167*100,"-")) -> 2.578397651 | I169: =IF(OR('Tabel 1 H'!G167<5,'Tabel 2 H'!I169<0.5),"-",IFERROR('Tabel 2 H'!I169/'Tabel 1 H'!G167*100,"-")) -> 2.982107356 | J169: =IF(OR('Tabel 1 H'!G167<5,'Tabel 2 H'!J169<0.5),"-",IFERROR('Tabel 2 H'!J169/'Tabel 1 H'!G167*100,"-")) -> 2.565037642
A170: Cand. Scient. Tek. | C170: =IF(OR('Tabel 1 H'!C168<5,'Tabel 2 H'!C170<0.5),"-",IFERROR('Tabel 2 H'!C170/'Tabel 1 H'!C168*100,"-")) -> 8.910891089 | D170: =IF(OR('Tabel 1 H'!C168<5,'Tabel 2 H'!D170<0.5),"-",IFERROR('Tabel 2 H'!D170/'Tabel 1 H'!C168*100,"-")) -> 7.352409912 | F170: =IF(OR('Tabel 1 H'!E168<5,'Tabel 2 H'!F170<0.5),"-",IFERROR('Tabel 2 H'!F170/'Tabel 1 H'!E168*100,"-")) -> 7.865168539 | G170: =IF(OR('Tabel 1 H'!E168<5,'Tabel 2 H'!G170<0.5),"-",IFERROR('Tabel 2 H'!G170/'Tabel 1 H'!E168*100,"-")) -> 7.863696856 | I170: =IF(OR('Tabel 1 H'!G168<5,'Tabel 2 H'!I170<0.5),"-",IFERROR('Tabel 2 H'!I170/'Tabel 1 H'!G168*100,"-")) -> 8.421052632 | J170: =IF(OR('Tabel 1 H'!G168<5,'Tabel 2 H'!J170<0.5),"-",IFERROR('Tabel 2 H'!J170/'Tabel 1 H'!G168*100,"-")) -> 7.59190748
A171: MA. Hum. | C171: =IF(OR('Tabel 1 H'!C169<5,'Tabel 2 H'!C171<0.5),"-",IFERROR('Tabel 2 H'!C171/'Tabel 1 H'!C169*100,"-")) -> 4.615384615 | D171: =IF(OR('Tabel 1 H'!C169<5,'Tabel 2 H'!D171<0.5),"-",IFERROR('Tabel 2 H'!D171/'Tabel 1 H'!C169*100,"-")) -> 3.486079192 | F171: =IF(OR('Tabel 1 H'!E169<5,'Tabel 2 H'!F171<0.5),"-",IFERROR('Tabel 2 H'!F171/'Tabel 1 H'!E169*100,"-")) -> 8.163265306 | G171: =IF(OR('Tabel 1 H'!E169<5,'Tabel 2 H'!G171<0.5),"-",IFERROR('Tabel 2 H'!G171/'Tabel 1 H'!E169*100,"-")) -> 6.994078115 | I171: =IF(OR('Tabel 1 H'!G169<5,'Tabel 2 H'!I171<0.5),"-",IFERROR('Tabel 2 H'!I171/'Tabel 1 H'!G169*100,"-")) -> 7.075471698 | J171: =IF(OR('Tabel 1 H'!G169<5,'Tabel 2 H'!J171<0.5),"-",IFERROR('Tabel 2 H'!J171/'Tabel 1 H'!G169*100,"-")) -> 5.918512408
A172: MA. Nat. | C172: =IF(OR('Tabel 1 H'!C170<5,'Tabel 2 H'!C172<0.5),"-",IFERROR('Tabel 2 H'!C172/'Tabel 1 H'!C170*100,"-")) -> - | D172: =IF(OR('Tabel 1 H'!C170<5,'Tabel 2 H'!D172<0.5),"-",IFERROR('Tabel 2 H'!D172/'Tabel 1 H'!C170*100,"-")) -> - | F172: =IF(OR('Tabel 1 H'!E170<5,'Tabel 2 H'!F172<0.5),"-",IFERROR('Tabel 2 H'!F172/'Tabel 1 H'!E170*100,"-")) -> 3.529411765 | G172: =IF(OR('Tabel 1 H'!E170<5,'Tabel 2 H'!G172<0.5),"-",IFERROR('Tabel 2 H'!G172/'Tabel 1 H'!E170*100,"-")) -> 1.797762703 | I172: =IF(OR('Tabel 1 H'!G170<5,'Tabel 2 H'!I172<0.5),"-",IFERROR('Tabel 2 H'!I172/'Tabel 1 H'!G170*100,"-")) -> 1.785714286 | J172: =IF(OR('Tabel 1 H'!G170<5,'Tabel 2 H'!J172<0.5),"-",IFERROR('Tabel 2 H'!J172/'Tabel 1 H'!G170*100,"-")) -> 0.9095823198
A173: MA. Ph.d. | C173: =IF(OR('Tabel 1 H'!C171<5,'Tabel 2 H'!C173<0.5),"-",IFERROR('Tabel 2 H'!C173/'Tabel 1 H'!C171*100,"-")) -> 7.692307692 | D173: =IF(OR('Tabel 1 H'!C171<5,'Tabel 2 H'!D173<0.5),"-",IFERROR('Tabel 2 H'!D173/'Tabel 1 H'!C171*100,"-")) -> 7.690868353 | F173: =IF(OR('Tabel 1 H'!E171<5,'Tabel 2 H'!F173<0.5),"-",IFERROR('Tabel 2 H'!F173/'Tabel 1 H'!E171*100,"-")) -> - | G173: =IF(OR('Tabel 1 H'!E171<5,'Tabel 2 H'!G173<0.5),"-",IFERROR('Tabel 2 H'!G173/'Tabel 1 H'!E171*100,"-")) -> - | I173: =IF(OR('Tabel 1 H'!G171<5,'Tabel 2 H'!I173<0.5),"-",IFERROR('Tabel 2 H'!I173/'Tabel 1 H'!G171*100,"-")) -> 4.545454545 | J173: =IF(OR('Tabel 1 H'!G171<5,'Tabel 2 H'!J173<0.5),"-",IFERROR('Tabel 2 H'!J173/'Tabel 1 H'!G171*100,"-")) -> 4.544604027
A174: MA. Samf. | C174: =IF(OR('Tabel 1 H'!C172<5,'Tabel 2 H'!C174<0.5),"-",IFERROR('Tabel 2 H'!C174/'Tabel 1 H'!C172*100,"-")) -> 7.692307692 | D174: =IF(OR('Tabel 1 H'!C172<5,'Tabel 2 H'!D174<0.5),"-",IFERROR('Tabel 2 H'!D174/'Tabel 1 H'!C172*100,"-")) -> 7.690868353 | F174: =IF(OR('Tabel 1 H'!E172<5,'Tabel 2 H'!F174<0.5),"-",IFERROR('Tabel 2 H'!F174/'Tabel 1 H'!E172*100,"-")) -> 7.692307692 | G174: =IF(OR('Tabel 1 H'!E172<5,'Tabel 2 H'!G174<0.5),"-",IFERROR('Tabel 2 H'!G174/'Tabel 1 H'!E172*100,"-")) -> 4.452355478 | I174: =IF(OR('Tabel 1 H'!G172<5,'Tabel 2 H'!I174<0.5),"-",IFERROR('Tabel 2 H'!I174/'Tabel 1 H'!G172*100,"-")) -> 7.692307692 | J174: =IF(OR('Tabel 1 H'!G172<5,'Tabel 2 H'!J174<0.5),"-",IFERROR('Tabel 2 H'!J174/'Tabel 1 H'!G172*100,"-")) -> 6.071611916
A175: Øvrige Mag. | C175: =IF(OR('Tabel 1 H'!C173<5,'Tabel 2 H'!C175<0.5),"-",IFERROR('Tabel 2 H'!C175/'Tabel 1 H'!C173*100,"-")) -> 12.5 | D175: =IF(OR('Tabel 1 H'!C173<5,'Tabel 2 H'!D175<0.5),"-",IFERROR('Tabel 2 H'!D175/'Tabel 1 H'!C173*100,"-")) -> 12.49766107 | F175: =IF(OR('Tabel 1 H'!E173<5,'Tabel 2 H'!F175<0.5),"-",IFERROR('Tabel 2 H'!F175/'Tabel 1 H'!E173*100,"-")) -> 5.882352941 | G175: =IF(OR('Tabel 1 H'!E173<5,'Tabel 2 H'!G175<0.5),"-",IFERROR('Tabel 2 H'!G175/'Tabel 1 H'!E173*100,"-")) -> 5.88125227 | I175: =IF(OR('Tabel 1 H'!G173<5,'Tabel 2 H'!I175<0.5),"-",IFERROR('Tabel 2 H'!I175/'Tabel 1 H'!G173*100,"-")) -> 8 | J175: =IF(OR('Tabel 1 H'!G173<5,'Tabel 2 H'!J175<0.5),"-",IFERROR('Tabel 2 H'!J175/'Tabel 1 H'!G173*100,"-")) -> 7.998503087
A176: Agronom | C176: =IF(OR('Tabel 1 H'!C174<5,'Tabel 2 H'!C176<0.5),"-",IFERROR('Tabel 2 H'!C176/'Tabel 1 H'!C174*100,"-")) -> - | D176: =IF(OR('Tabel 1 H'!C174<5,'Tabel 2 H'!D176<0.5),"-",IFERROR('Tabel 2 H'!D176/'Tabel 1 H'!C174*100,"-")) -> - | F176: =IF(OR('Tabel 1 H'!E174<5,'Tabel 2 H'!F176<0.5),"-",IFERROR('Tabel 2 H'!F176/'Tabel 1 H'!E174*100,"-")) -> 7.692307692 | G176: =IF(OR('Tabel 1 H'!E174<5,'Tabel 2 H'!G176<0.5),"-",IFERROR('Tabel 2 H'!G176/'Tabel 1 H'!E174*100,"-")) -> - | I176: =IF(OR('Tabel 1 H'!G174<5,'Tabel 2 H'!I176<0.5),"-",IFERROR('Tabel 2 H'!I176/'Tabel 1 H'!G174*100,"-")) -> 4.347826087 | J176: =IF(OR('Tabel 1 H'!G174<5,'Tabel 2 H'!J176<0.5),"-",IFERROR('Tabel 2 H'!J176/'Tabel 1 H'!G174*100,"-")) -> -
A177: Landsk. Arkt. | C177: =IF(OR('Tabel 1 H'!C175<5,'Tabel 2 H'!C177<0.5),"-",IFERROR('Tabel 2 H'!C177/'Tabel 1 H'!C175*100,"-")) -> - | D177: =IF(OR('Tabel 1 H'!C175<5,'Tabel 2 H'!D177<0.5),"-",IFERROR('Tabel 2 H'!D177/'Tabel 1 H'!C175*100,"-")) -> - | F177: =IF(OR('Tabel 1 H'!E175<5,'Tabel 2 H'!F177<0.5),"-",IFERROR('Tabel 2 H'!F177/'Tabel 1 H'!E175*100,"-")) -> 14.28571429 | G177: =IF(OR('Tabel 1 H'!E175<5,'Tabel 2 H'!G177<0.5),"-",IFERROR('Tabel 2 H'!G177/'Tabel 1 H'!E175*100,"-")) -> 14.28304123 | I177: =IF(OR('Tabel 1 H'!G175<5,'Tabel 2 H'!I177<0.5),"-",IFERROR('Tabel 2 H'!I177/'Tabel 1 H'!G175*100,"-")) -> 11.11111111 | J177: =IF(OR('Tabel 1 H'!G175<5,'Tabel 2 H'!J177<0.5),"-",IFERROR('Tabel 2 H'!J177/'Tabel 1 H'!G175*100,"-")) -> 11.10903207
A178: Hortonom | C178: =IF(OR('Tabel 1 H'!C176<5,'Tabel 2 H'!C178<0.5),"-",IFERROR('Tabel 2 H'!C178/'Tabel 1 H'!C176*100,"-")) -> - | D178: =IF(OR('Tabel 1 H'!C176<5,'Tabel 2 H'!D178<0.5),"-",IFERROR('Tabel 2 H'!D178/'Tabel 1 H'!C176*100,"-")) -> - | F178: =IF(OR('Tabel 1 H'!E176<5,'Tabel 2 H'!F178<0.5),"-",IFERROR('Tabel 2 H'!F178/'Tabel 1 H'!E176*100,"-")) -> - | G178: =IF(OR('Tabel 1 H'!E176<5,'Tabel 2 H'!G178<0.5),"-",IFERROR('Tabel 2 H'!G178/'Tabel 1 H'!E176*100,"-")) -> - | I178: =IF(OR('Tabel 1 H'!G176<5,'Tabel 2 H'!I178<0.5),"-",IFERROR('Tabel 2 H'!I178/'Tabel 1 H'!G176*100,"-")) -> - | J178: =IF(OR('Tabel 1 H'!G176<5,'Tabel 2 H'!J178<0.5),"-",IFERROR('Tabel 2 H'!J178/'Tabel 1 H'!G176*100,"-")) -> -
A179: Forstkand. | C179: =IF(OR('Tabel 1 H'!C177<5,'Tabel 2 H'!C179<0.5),"-",IFERROR('Tabel 2 H'!C179/'Tabel 1 H'!C177*100,"-")) -> - | D179: =IF(OR('Tabel 1 H'!C177<5,'Tabel 2 H'!D179<0.5),"-",IFERROR('Tabel 2 H'!D179/'Tabel 1 H'!C177*100,"-")) -> - | F179: =IF(OR('Tabel 1 H'!E177<5,'Tabel 2 H'!F179<0.5),"-",IFERROR('Tabel 2 H'!F179/'Tabel 1 H'!E177*100,"-")) -> - | G179: =IF(OR('Tabel 1 H'!E177<5,'Tabel 2 H'!G179<0.5),"-",IFERROR('Tabel 2 H'!G179/'Tabel 1 H'!E177*100,"-")) -> - | I179: =IF(OR('Tabel 1 H'!G177<5,'Tabel 2 H'!I179<0.5),"-",IFERROR('Tabel 2 H'!I179/'Tabel 1 H'!G177*100,"-")) -> - | J179: =IF(OR('Tabel 1 H'!G177<5,'Tabel 2 H'!J179<0.5),"-",IFERROR('Tabel 2 H'!J179/'Tabel 1 H'!G177*100,"-")) -> -
A180: Jordbrugsakad. | C180: =IF(OR('Tabel 1 H'!C178<5,'Tabel 2 H'!C180<0.5),"-",IFERROR('Tabel 2 H'!C180/'Tabel 1 H'!C178*100,"-")) -> - | D180: =IF(OR('Tabel 1 H'!C178<5,'Tabel 2 H'!D180<0.5),"-",IFERROR('Tabel 2 H'!D180/'Tabel 1 H'!C178*100,"-")) -> - | F180: =IF(OR('Tabel 1 H'!E178<5,'Tabel 2 H'!F180<0.5),"-",IFERROR('Tabel 2 H'!F180/'Tabel 1 H'!E178*100,"-")) -> 8.695652174 | G180: =IF(OR('Tabel 1 H'!E178<5,'Tabel 2 H'!G180<0.5),"-",IFERROR('Tabel 2 H'!G180/'Tabel 1 H'!E178*100,"-")) -> 6.085275207 | I180: =IF(OR('Tabel 1 H'!G178<5,'Tabel 2 H'!I180<0.5),"-",IFERROR('Tabel 2 H'!I180/'Tabel 1 H'!G178*100,"-")) -> 5.128205128 | J180: =IF(OR('Tabel 1 H'!G178<5,'Tabel 2 H'!J180<0.5),"-",IFERROR('Tabel 2 H'!J180/'Tabel 1 H'!G178*100,"-")) -> 3.588752045
A181: Mejeriing. | C181: =IF(OR('Tabel 1 H'!C179<5,'Tabel 2 H'!C181<0.5),"-",IFERROR('Tabel 2 H'!C181/'Tabel 1 H'!C179*100,"-")) -> - | D181: =IF(OR('Tabel 1 H'!C179<5,'Tabel 2 H'!D181<0.5),"-",IFERROR('Tabel 2 H'!D181/'Tabel 1 H'!C179*100,"-")) -> - | F181: =IF(OR('Tabel 1 H'!E179<5,'Tabel 2 H'!F181<0.5),"-",IFERROR('Tabel 2 H'!F181/'Tabel 1 H'!E179*100,"-")) -> - | G181: =IF(OR('Tabel 1 H'!E179<5,'Tabel 2 H'!G181<0.5),"-",IFERROR('Tabel 2 H'!G181/'Tabel 1 H'!E179*100,"-")) -> - | I181: =IF(OR('Tabel 1 H'!G179<5,'Tabel 2 H'!I181<0.5),"-",IFERROR('Tabel 2 H'!I181/'Tabel 1 H'!G179*100,"-")) -> - | J181: =IF(OR('Tabel 1 H'!G179<5,'Tabel 2 H'!J181<0.5),"-",IFERROR('Tabel 2 H'!J181/'Tabel 1 H'!G179*100,"-")) -> -
A182: Levn.m.kand. | C182: =IF(OR('Tabel 1 H'!C180<5,'Tabel 2 H'!C182<0.5),"-",IFERROR('Tabel 2 H'!C182/'Tabel 1 H'!C180*100,"-")) -> - | D182: =IF(OR('Tabel 1 H'!C180<5,'Tabel 2 H'!D182<0.5),"-",IFERROR('Tabel 2 H'!D182/'Tabel 1 H'!C180*100,"-")) -> - | F182: =IF(OR('Tabel 1 H'!E180<5,'Tabel 2 H'!F182<0.5),"-",IFERROR('Tabel 2 H'!F182/'Tabel 1 H'!E180*100,"-")) -> - | G182: =IF(OR('Tabel 1 H'!E180<5,'Tabel 2 H'!G182<0.5),"-",IFERROR('Tabel 2 H'!G182/'Tabel 1 H'!E180*100,"-")) -> - | I182: =IF(OR('Tabel 1 H'!G180<5,'Tabel 2 H'!I182<0.5),"-",IFERROR('Tabel 2 H'!I182/'Tabel 1 H'!G180*100,"-")) -> - | J182: =IF(OR('Tabel 1 H'!G180<5,'Tabel 2 H'!J182<0.5),"-",IFERROR('Tabel 2 H'!J182/'Tabel 1 H'!G180*100,"-")) -> -
A183: Dyrlæge | C183: =IF(OR('Tabel 1 H'!C181<5,'Tabel 2 H'!C183<0.5),"-",IFERROR('Tabel 2 H'!C183/'Tabel 1 H'!C181*100,"-")) -> - | D183: =IF(OR('Tabel 1 H'!C181<5,'Tabel 2 H'!D183<0.5),"-",IFERROR('Tabel 2 H'!D183/'Tabel 1 H'!C181*100,"-")) -> - | F183: =IF(OR('Tabel 1 H'!E181<5,'Tabel 2 H'!F183<0.5),"-",IFERROR('Tabel 2 H'!F183/'Tabel 1 H'!E181*100,"-")) -> 8.695652174 | G183: =IF(OR('Tabel 1 H'!E181<5,'Tabel 2 H'!G183<0.5),"-",IFERROR('Tabel 2 H'!G183/'Tabel 1 H'!E181*100,"-")) -> 5.884602139 | I183: =IF(OR('Tabel 1 H'!G181<5,'Tabel 2 H'!I183<0.5),"-",IFERROR('Tabel 2 H'!I183/'Tabel 1 H'!G181*100,"-")) -> 7.692307692 | J183: =IF(OR('Tabel 1 H'!G181<5,'Tabel 2 H'!J183<0.5),"-",IFERROR('Tabel 2 H'!J183/'Tabel 1 H'!G181*100,"-")) -> 5.205609584
A184: Farmaceut | C184: =IF(OR('Tabel 1 H'!C182<5,'Tabel 2 H'!C184<0.5),"-",IFERROR('Tabel 2 H'!C184/'Tabel 1 H'!C182*100,"-")) -> - | D184: =IF(OR('Tabel 1 H'!C182<5,'Tabel 2 H'!D184<0.5),"-",IFERROR('Tabel 2 H'!D184/'Tabel 1 H'!C182*100,"-")) -> - | F184: =IF(OR('Tabel 1 H'!E182<5,'Tabel 2 H'!F184<0.5),"-",IFERROR('Tabel 2 H'!F184/'Tabel 1 H'!E182*100,"-")) -> 2.247191011 | G184: =IF(OR('Tabel 1 H'!E182<5,'Tabel 2 H'!G184<0.5),"-",IFERROR('Tabel 2 H'!G184/'Tabel 1 H'!E182*100,"-")) -> 2.24677053 | I184: =IF(OR('Tabel 1 H'!G182<5,'Tabel 2 H'!I184<0.5),"-",IFERROR('Tabel 2 H'!I184/'Tabel 1 H'!G182*100,"-")) -> 1.639344262 | J184: =IF(OR('Tabel 1 H'!G182<5,'Tabel 2 H'!J184<0.5),"-",IFERROR('Tabel 2 H'!J184/'Tabel 1 H'!G182*100,"-")) -> 1.639037518
A185: Læge | C185: =IF(OR('Tabel 1 H'!C183<5,'Tabel 2 H'!C185<0.5),"-",IFERROR('Tabel 2 H'!C185/'Tabel 1 H'!C183*100,"-")) -> - | D185: =IF(OR('Tabel 1 H'!C183<5,'Tabel 2 H'!D185<0.5),"-",IFERROR('Tabel 2 H'!D185/'Tabel 1 H'!C183*100,"-")) -> - | F185: =IF(OR('Tabel 1 H'!E183<5,'Tabel 2 H'!F185<0.5),"-",IFERROR('Tabel 2 H'!F185/'Tabel 1 H'!E183*100,"-")) -> 5.769230769 | G185: =IF(OR('Tabel 1 H'!E183<5,'Tabel 2 H'!G185<0.5),"-",IFERROR('Tabel 2 H'!G185/'Tabel 1 H'!E183*100,"-")) -> 2.927855529 | I185: =IF(OR('Tabel 1 H'!G183<5,'Tabel 2 H'!I185<0.5),"-",IFERROR('Tabel 2 H'!I185/'Tabel 1 H'!G183*100,"-")) -> 3.614457831 | J185: =IF(OR('Tabel 1 H'!G183<5,'Tabel 2 H'!J185<0.5),"-",IFERROR('Tabel 2 H'!J185/'Tabel 1 H'!G183*100,"-")) -> 1.834319126
A186: Tandlæge | C186: =IF(OR('Tabel 1 H'!C184<5,'Tabel 2 H'!C186<0.5),"-",IFERROR('Tabel 2 H'!C186/'Tabel 1 H'!C184*100,"-")) -> - | D186: =IF(OR('Tabel 1 H'!C184<5,'Tabel 2 H'!D186<0.5),"-",IFERROR('Tabel 2 H'!D186/'Tabel 1 H'!C184*100,"-")) -> - | F186: =IF(OR('Tabel 1 H'!E184<5,'Tabel 2 H'!F186<0.5),"-",IFERROR('Tabel 2 H'!F186/'Tabel 1 H'!E184*100,"-")) -> 7.142857143 | G186: =IF(OR('Tabel 1 H'!E184<5,'Tabel 2 H'!G186<0.5),"-",IFERROR('Tabel 2 H'!G186/'Tabel 1 H'!E184*100,"-")) -> 5.493134695 | I186: =IF(OR('Tabel 1 H'!G184<5,'Tabel 2 H'!I186<0.5),"-",IFERROR('Tabel 2 H'!I186/'Tabel 1 H'!G184*100,"-")) -> 6.666666667 | J186: =IF(OR('Tabel 1 H'!G184<5,'Tabel 2 H'!J186<0.5),"-",IFERROR('Tabel 2 H'!J186/'Tabel 1 H'!G184*100,"-")) -> 5.126925716
A187: Arkitekt | C187: =IF(OR('Tabel 1 H'!C185<5,'Tabel 2 H'!C187<0.5),"-",IFERROR('Tabel 2 H'!C187/'Tabel 1 H'!C185*100,"-")) -> 12.5 | D187: =IF(OR('Tabel 1 H'!C185<5,'Tabel 2 H'!D187<0.5),"-",IFERROR('Tabel 2 H'!D187/'Tabel 1 H'!C185*100,"-")) -> 12.49766107 | F187: =IF(OR('Tabel 1 H'!E185<5,'Tabel 2 H'!F187<0.5),"-",IFERROR('Tabel 2 H'!F187/'Tabel 1 H'!E185*100,"-")) -> - | G187: =IF(OR('Tabel 1 H'!E185<5,'Tabel 2 H'!G187<0.5),"-",IFERROR('Tabel 2 H'!G187/'Tabel 1 H'!E185*100,"-")) -> - | I187: =IF(OR('Tabel 1 H'!G185<5,'Tabel 2 H'!I187<0.5),"-",IFERROR('Tabel 2 H'!I187/'Tabel 1 H'!G185*100,"-")) -> 5.555555556 | J187: =IF(OR('Tabel 1 H'!G185<5,'Tabel 2 H'!J187<0.5),"-",IFERROR('Tabel 2 H'!J187/'Tabel 1 H'!G185*100,"-")) -> 5.554516033
A188: Landinspek. | C188: =IF(OR('Tabel 1 H'!C186<5,'Tabel 2 H'!C188<0.5),"-",IFERROR('Tabel 2 H'!C188/'Tabel 1 H'!C186*100,"-")) -> - | D188: =IF(OR('Tabel 1 H'!C186<5,'Tabel 2 H'!D188<0.5),"-",IFERROR('Tabel 2 H'!D188/'Tabel 1 H'!C186*100,"-")) -> - | F188: =IF(OR('Tabel 1 H'!E186<5,'Tabel 2 H'!F188<0.5),"-",IFERROR('Tabel 2 H'!F188/'Tabel 1 H'!E186*100,"-")) -> - | G188: =IF(OR('Tabel 1 H'!E186<5,'Tabel 2 H'!G188<0.5),"-",IFERROR('Tabel 2 H'!G188/'Tabel 1 H'!E186*100,"-")) -> - | I188: =IF(OR('Tabel 1 H'!G186<5,'Tabel 2 H'!I188<0.5),"-",IFERROR('Tabel 2 H'!I188/'Tabel 1 H'!G186*100,"-")) -> - | J188: =IF(OR('Tabel 1 H'!G186<5,'Tabel 2 H'!J188<0.5),"-",IFERROR('Tabel 2 H'!J188/'Tabel 1 H'!G186*100,"-")) -> -
A189: Bibliotekar | C189: =IF(OR('Tabel 1 H'!C187<5,'Tabel 2 H'!C189<0.5),"-",IFERROR('Tabel 2 H'!C189/'Tabel 1 H'!C187*100,"-")) -> 7.692307692 | D189: =IF(OR('Tabel 1 H'!C187<5,'Tabel 2 H'!D189<0.5),"-",IFERROR('Tabel 2 H'!D189/'Tabel 1 H'!C187*100,"-")) -> 6.193955736 | F189: =IF(OR('Tabel 1 H'!E187<5,'Tabel 2 H'!F189<0.5),"-",IFERROR('Tabel 2 H'!F189/'Tabel 1 H'!E187*100,"-")) -> 9.677419355 | G189: =IF(OR('Tabel 1 H'!E187<5,'Tabel 2 H'!G189<0.5),"-",IFERROR('Tabel 2 H'!G189/'Tabel 1 H'!E187*100,"-")) -> 8.335630343 | I189: =IF(OR('Tabel 1 H'!G187<5,'Tabel 2 H'!I189<0.5),"-",IFERROR('Tabel 2 H'!I189/'Tabel 1 H'!G187*100,"-")) -> 9.090909091 | J189: =IF(OR('Tabel 1 H'!G187<5,'Tabel 2 H'!J189<0.5),"-",IFERROR('Tabel 2 H'!J189/'Tabel 1 H'!G187*100,"-")) -> 7.702862845
A190: Musikudd. | C190: =IF(OR('Tabel 1 H'!C188<5,'Tabel 2 H'!C190<0.5),"-",IFERROR('Tabel 2 H'!C190/'Tabel 1 H'!C188*100,"-")) -> - | D190: =IF(OR('Tabel 1 H'!C188<5,'Tabel 2 H'!D190<0.5),"-",IFERROR('Tabel 2 H'!D190/'Tabel 1 H'!C188*100,"-")) -> - | F190: =IF(OR('Tabel 1 H'!E188<5,'Tabel 2 H'!F190<0.5),"-",IFERROR('Tabel 2 H'!F190/'Tabel 1 H'!E188*100,"-")) -> - | G190: =IF(OR('Tabel 1 H'!E188<5,'Tabel 2 H'!G190<0.5),"-",IFERROR('Tabel 2 H'!G190/'Tabel 1 H'!E188*100,"-")) -> - | I190: =IF(OR('Tabel 1 H'!G188<5,'Tabel 2 H'!I190<0.5),"-",IFERROR('Tabel 2 H'!I190/'Tabel 1 H'!G188*100,"-")) -> 14.28571429 | J190: =IF(OR('Tabel 1 H'!G188<5,'Tabel 2 H'!J190<0.5),"-",IFERROR('Tabel 2 H'!J190/'Tabel 1 H'!G188*100,"-")) -> 12.30497813
A191: Teolog | C191: =IF(OR('Tabel 1 H'!C189<5,'Tabel 2 H'!C191<0.5),"-",IFERROR('Tabel 2 H'!C191/'Tabel 1 H'!C189*100,"-")) -> - | D191: =IF(OR('Tabel 1 H'!C189<5,'Tabel 2 H'!D191<0.5),"-",IFERROR('Tabel 2 H'!D191/'Tabel 1 H'!C189*100,"-")) -> - | F191: =IF(OR('Tabel 1 H'!E189<5,'Tabel 2 H'!F191<0.5),"-",IFERROR('Tabel 2 H'!F191/'Tabel 1 H'!E189*100,"-")) -> - | G191: =IF(OR('Tabel 1 H'!E189<5,'Tabel 2 H'!G191<0.5),"-",IFERROR('Tabel 2 H'!G191/'Tabel 1 H'!E189*100,"-")) -> - | I191: =IF(OR('Tabel 1 H'!G189<5,'Tabel 2 H'!I191<0.5),"-",IFERROR('Tabel 2 H'!I191/'Tabel 1 H'!G189*100,"-")) -> - | J191: =IF(OR('Tabel 1 H'!G189<5,'Tabel 2 H'!J191<0.5),"-",IFERROR('Tabel 2 H'!J191/'Tabel 1 H'!G189*100,"-")) -> -
A192: Psykolog | C192: =IF(OR('Tabel 1 H'!C190<5,'Tabel 2 H'!C192<0.5),"-",IFERROR('Tabel 2 H'!C192/'Tabel 1 H'!C190*100,"-")) -> 25 | D192: =IF(OR('Tabel 1 H'!C190<5,'Tabel 2 H'!D192<0.5),"-",IFERROR('Tabel 2 H'!D192/'Tabel 1 H'!C190*100,"-")) -> 24.99532215 | F192: =IF(OR('Tabel 1 H'!E190<5,'Tabel 2 H'!F192<0.5),"-",IFERROR('Tabel 2 H'!F192/'Tabel 1 H'!E190*100,"-")) -> 2.702702703 | G192: =IF(OR('Tabel 1 H'!E190<5,'Tabel 2 H'!G192<0.5),"-",IFERROR('Tabel 2 H'!G192/'Tabel 1 H'!E190*100,"-")) -> 2.702196989 | I192: =IF(OR('Tabel 1 H'!G190<5,'Tabel 2 H'!I192<0.5),"-",IFERROR('Tabel 2 H'!I192/'Tabel 1 H'!G190*100,"-")) -> 6.666666667 | J192: =IF(OR('Tabel 1 H'!G190<5,'Tabel 2 H'!J192<0.5),"-",IFERROR('Tabel 2 H'!J192/'Tabel 1 H'!G190*100,"-")) -> 6.665419239
A193: Jurist | C193: =IF(OR('Tabel 1 H'!C191<5,'Tabel 2 H'!C193<0.5),"-",IFERROR('Tabel 2 H'!C193/'Tabel 1 H'!C191*100,"-")) -> 3.846153846 | D193: =IF(OR('Tabel 1 H'!C191<5,'Tabel 2 H'!D193<0.5),"-",IFERROR('Tabel 2 H'!D193/'Tabel 1 H'!C191*100,"-")) -> 3.845434177 | F193: =IF(OR('Tabel 1 H'!E191<5,'Tabel 2 H'!F193<0.5),"-",IFERROR('Tabel 2 H'!F193/'Tabel 1 H'!E191*100,"-")) -> 5.194805195 | G193: =IF(OR('Tabel 1 H'!E191<5,'Tabel 2 H'!G193<0.5),"-",IFERROR('Tabel 2 H'!G193/'Tabel 1 H'!E191*100,"-")) -> 4.354654888 | I193: =IF(OR('Tabel 1 H'!G191<5,'Tabel 2 H'!I193<0.5),"-",IFERROR('Tabel 2 H'!I193/'Tabel 1 H'!G191*100,"-")) -> 4.854368932 | J193: =IF(OR('Tabel 1 H'!G191<5,'Tabel 2 H'!J193<0.5),"-",IFERROR('Tabel 2 H'!J193/'Tabel 1 H'!G191*100,"-")) -> 4.226113738
A194: Økonom | C194: =IF(OR('Tabel 1 H'!C192<5,'Tabel 2 H'!C194<0.5),"-",IFERROR('Tabel 2 H'!C194/'Tabel 1 H'!C192*100,"-")) -> - | D194: =IF(OR('Tabel 1 H'!C192<5,'Tabel 2 H'!D194<0.5),"-",IFERROR('Tabel 2 H'!D194/'Tabel 1 H'!C192*100,"-")) -> - | F194: =IF(OR('Tabel 1 H'!E192<5,'Tabel 2 H'!F194<0.5),"-",IFERROR('Tabel 2 H'!F194/'Tabel 1 H'!E192*100,"-")) -> 9.090909091 | G194: =IF(OR('Tabel 1 H'!E192<5,'Tabel 2 H'!G194<0.5),"-",IFERROR('Tabel 2 H'!G194/'Tabel 1 H'!E192*100,"-")) -> 7.983533961 | I194: =IF(OR('Tabel 1 H'!G192<5,'Tabel 2 H'!I194<0.5),"-",IFERROR('Tabel 2 H'!I194/'Tabel 1 H'!G192*100,"-")) -> 2.739726027 | J194: =IF(OR('Tabel 1 H'!G192<5,'Tabel 2 H'!J194<0.5),"-",IFERROR('Tabel 2 H'!J194/'Tabel 1 H'!G192*100,"-")) -> 2.405996536
A195: Samf. Adm. | C195: =IF(OR('Tabel 1 H'!C193<5,'Tabel 2 H'!C195<0.5),"-",IFERROR('Tabel 2 H'!C195/'Tabel 1 H'!C193*100,"-")) -> 6.329113924 | D195: =IF(OR('Tabel 1 H'!C193<5,'Tabel 2 H'!D195<0.5),"-",IFERROR('Tabel 2 H'!D195/'Tabel 1 H'!C193*100,"-")) -> 4.908389106 | F195: =IF(OR('Tabel 1 H'!E193<5,'Tabel 2 H'!F195<0.5),"-",IFERROR('Tabel 2 H'!F195/'Tabel 1 H'!E193*100,"-")) -> 4.62962963 | G195: =IF(OR('Tabel 1 H'!E193<5,'Tabel 2 H'!G195<0.5),"-",IFERROR('Tabel 2 H'!G195/'Tabel 1 H'!E193*100,"-")) -> 4.516148407 | I195: =IF(OR('Tabel 1 H'!G193<5,'Tabel 2 H'!I195<0.5),"-",IFERROR('Tabel 2 H'!I195/'Tabel 1 H'!G193*100,"-")) -> 5.347593583 | J195: =IF(OR('Tabel 1 H'!G193<5,'Tabel 2 H'!J195<0.5),"-",IFERROR('Tabel 2 H'!J195/'Tabel 1 H'!G193*100,"-")) -> 4.681854371
A196: Cand. Merc. | C196: =IF(OR('Tabel 1 H'!C194<5,'Tabel 2 H'!C196<0.5),"-",IFERROR('Tabel 2 H'!C196/'Tabel 1 H'!C194*100,"-")) -> 2.325581395 | D196: =IF(OR('Tabel 1 H'!C194<5,'Tabel 2 H'!D196<0.5),"-",IFERROR('Tabel 2 H'!D196/'Tabel 1 H'!C194*100,"-")) -> 2.024893425 | F196: =IF(OR('Tabel 1 H'!E194<5,'Tabel 2 H'!F196<0.5),"-",IFERROR('Tabel 2 H'!F196/'Tabel 1 H'!E194*100,"-")) -> 2.877697842 | G196: =IF(OR('Tabel 1 H'!E194<5,'Tabel 2 H'!G196<0.5),"-",IFERROR('Tabel 2 H'!G196/'Tabel 1 H'!E194*100,"-")) -> 2.877159384 | I196: =IF(OR('Tabel 1 H'!G194<5,'Tabel 2 H'!I196<0.5),"-",IFERROR('Tabel 2 H'!I196/'Tabel 1 H'!G194*100,"-")) -> 2.611940299 | J196: =IF(OR('Tabel 1 H'!G194<5,'Tabel 2 H'!J196<0.5),"-",IFERROR('Tabel 2 H'!J196/'Tabel 1 H'!G194*100,"-")) -> 2.466926889
A197: HA | C197: =IF(OR('Tabel 1 H'!C195<5,'Tabel 2 H'!C197<0.5),"-",IFERROR('Tabel 2 H'!C197/'Tabel 1 H'!C195*100,"-")) -> 14.28571429 | D197: =IF(OR('Tabel 1 H'!C195<5,'Tabel 2 H'!D197<0.5),"-",IFERROR('Tabel 2 H'!D197/'Tabel 1 H'!C195*100,"-")) -> 10.85261648 | F197: =IF(OR('Tabel 1 H'!E195<5,'Tabel 2 H'!F197<0.5),"-",IFERROR('Tabel 2 H'!F197/'Tabel 1 H'!E195*100,"-")) -> 6.25 | G197: =IF(OR('Tabel 1 H'!E195<5,'Tabel 2 H'!G197<0.5),"-",IFERROR('Tabel 2 H'!G197/'Tabel 1 H'!E195*100,"-")) -> 6.248830537 | I197: =IF(OR('Tabel 1 H'!G195<5,'Tabel 2 H'!I197<0.5),"-",IFERROR('Tabel 2 H'!I197/'Tabel 1 H'!G195*100,"-")) -> 10.81081081 | J197: =IF(OR('Tabel 1 H'!G195<5,'Tabel 2 H'!J197<0.5),"-",IFERROR('Tabel 2 H'!J197/'Tabel 1 H'!G195*100,"-")) -> 8.861790125
A198: HD | C198: =IF(OR('Tabel 1 H'!C196<5,'Tabel 2 H'!C198<0.5),"-",IFERROR('Tabel 2 H'!C198/'Tabel 1 H'!C196*100,"-")) -> 15 | D198: =IF(OR('Tabel 1 H'!C196<5,'Tabel 2 H'!D198<0.5),"-",IFERROR('Tabel 2 H'!D198/'Tabel 1 H'!C196*100,"-")) -> 13.72481756 | F198: =IF(OR('Tabel 1 H'!E196<5,'Tabel 2 H'!F198<0.5),"-",IFERROR('Tabel 2 H'!F198/'Tabel 1 H'!E196*100,"-")) -> - | G198: =IF(OR('Tabel 1 H'!E196<5,'Tabel 2 H'!G198<0.5),"-",IFERROR('Tabel 2 H'!G198/'Tabel 1 H'!E196*100,"-")) -> - | I198: =IF(OR('Tabel 1 H'!G196<5,'Tabel 2 H'!I198<0.5),"-",IFERROR('Tabel 2 H'!I198/'Tabel 1 H'!G196*100,"-")) -> 8.571428571 | J198: =IF(OR('Tabel 1 H'!G196<5,'Tabel 2 H'!J198<0.5),"-",IFERROR('Tabel 2 H'!J198/'Tabel 1 H'!G196*100,"-")) -> 7.842752894
A199: Komm. og Sprog | C199: =IF(OR('Tabel 1 H'!C197<5,'Tabel 2 H'!C199<0.5),"-",IFERROR('Tabel 2 H'!C199/'Tabel 1 H'!C197*100,"-")) -> - | D199: =IF(OR('Tabel 1 H'!C197<5,'Tabel 2 H'!D199<0.5),"-",IFERROR('Tabel 2 H'!D199/'Tabel 1 H'!C197*100,"-")) -> - | F199: =IF(OR('Tabel 1 H'!E197<5,'Tabel 2 H'!F199<0.5),"-",IFERROR('Tabel 2 H'!F199/'Tabel 1 H'!E197*100,"-")) -> 6.349206349 | G199: =IF(OR('Tabel 1 H'!E197<5,'Tabel 2 H'!G199<0.5),"-",IFERROR('Tabel 2 H'!G199/'Tabel 1 H'!E197*100,"-")) -> 5.542140763 | I199: =IF(OR('Tabel 1 H'!G197<5,'Tabel 2 H'!I199<0.5),"-",IFERROR('Tabel 2 H'!I199/'Tabel 1 H'!G197*100,"-")) -> 5.555555556 | J199: =IF(OR('Tabel 1 H'!G197<5,'Tabel 2 H'!J199<0.5),"-",IFERROR('Tabel 2 H'!J199/'Tabel 1 H'!G197*100,"-")) -> 4.849373168
A200: Cand. IT. | C200: =IF(OR('Tabel 1 H'!C198<5,'Tabel 2 H'!C200<0.5),"-",IFERROR('Tabel 2 H'!C200/'Tabel 1 H'!C198*100,"-")) -> - | D200: =IF(OR('Tabel 1 H'!C198<5,'Tabel 2 H'!D200<0.5),"-",IFERROR('Tabel 2 H'!D200/'Tabel 1 H'!C198*100,"-")) -> - | F200: =IF(OR('Tabel 1 H'!E198<5,'Tabel 2 H'!F200<0.5),"-",IFERROR('Tabel 2 H'!F200/'Tabel 1 H'!E198*100,"-")) -> 5.882352941 | G200: =IF(OR('Tabel 1 H'!E198<5,'Tabel 2 H'!G200<0.5),"-",IFERROR('Tabel 2 H'!G200/'Tabel 1 H'!E198*100,"-")) -> 5.88125227 | I200: =IF(OR('Tabel 1 H'!G198<5,'Tabel 2 H'!I200<0.5),"-",IFERROR('Tabel 2 H'!I200/'Tabel 1 H'!G198*100,"-")) -> 2.857142857 | J200: =IF(OR('Tabel 1 H'!G198<5,'Tabel 2 H'!J200<0.5),"-",IFERROR('Tabel 2 H'!J200/'Tabel 1 H'!G198*100,"-")) -> 2.856608245
A201: Bac. Samf. | C201: =IF(OR('Tabel 1 H'!C199<5,'Tabel 2 H'!C201<0.5),"-",IFERROR('Tabel 2 H'!C201/'Tabel 1 H'!C199*100,"-")) -> - | D201: =IF(OR('Tabel 1 H'!C199<5,'Tabel 2 H'!D201<0.5),"-",IFERROR('Tabel 2 H'!D201/'Tabel 1 H'!C199*100,"-")) -> - | F201: =IF(OR('Tabel 1 H'!E199<5,'Tabel 2 H'!F201<0.5),"-",IFERROR('Tabel 2 H'!F201/'Tabel 1 H'!E199*100,"-")) -> - | G201: =IF(OR('Tabel 1 H'!E199<5,'Tabel 2 H'!G201<0.5),"-",IFERROR('Tabel 2 H'!G201/'Tabel 1 H'!E199*100,"-")) -> - | I201: =IF(OR('Tabel 1 H'!G199<5,'Tabel 2 H'!I201<0.5),"-",IFERROR('Tabel 2 H'!I201/'Tabel 1 H'!G199*100,"-")) -> - | J201: =IF(OR('Tabel 1 H'!G199<5,'Tabel 2 H'!J201<0.5),"-",IFERROR('Tabel 2 H'!J201/'Tabel 1 H'!G199*100,"-")) -> -
A202: Bac. Hum. | C202: =IF(OR('Tabel 1 H'!C200<5,'Tabel 2 H'!C202<0.5),"-",IFERROR('Tabel 2 H'!C202/'Tabel 1 H'!C200*100,"-")) -> - | D202: =IF(OR('Tabel 1 H'!C200<5,'Tabel 2 H'!D202<0.5),"-",IFERROR('Tabel 2 H'!D202/'Tabel 1 H'!C200*100,"-")) -> - | F202: =IF(OR('Tabel 1 H'!E200<5,'Tabel 2 H'!F202<0.5),"-",IFERROR('Tabel 2 H'!F202/'Tabel 1 H'!E200*100,"-")) -> 28.57142857 | G202: =IF(OR('Tabel 1 H'!E200<5,'Tabel 2 H'!G202<0.5),"-",IFERROR('Tabel 2 H'!G202/'Tabel 1 H'!E200*100,"-")) -> 28.56608245 | I202: =IF(OR('Tabel 1 H'!G200<5,'Tabel 2 H'!I202<0.5),"-",IFERROR('Tabel 2 H'!I202/'Tabel 1 H'!G200*100,"-")) -> 16.66666667 | J202: =IF(OR('Tabel 1 H'!G200<5,'Tabel 2 H'!J202<0.5),"-",IFERROR('Tabel 2 H'!J202/'Tabel 1 H'!G200*100,"-")) -> 16.6635481
A203: Bac. Nat. | C203: =IF(OR('Tabel 1 H'!C201<5,'Tabel 2 H'!C203<0.5),"-",IFERROR('Tabel 2 H'!C203/'Tabel 1 H'!C201*100,"-")) -> 5.882352941 | D203: =IF(OR('Tabel 1 H'!C201<5,'Tabel 2 H'!D203<0.5),"-",IFERROR('Tabel 2 H'!D203/'Tabel 1 H'!C201*100,"-")) -> - | F203: =IF(OR('Tabel 1 H'!E201<5,'Tabel 2 H'!F203<0.5),"-",IFERROR('Tabel 2 H'!F203/'Tabel 1 H'!E201*100,"-")) -> - | G203: =IF(OR('Tabel 1 H'!E201<5,'Tabel 2 H'!G203<0.5),"-",IFERROR('Tabel 2 H'!G203/'Tabel 1 H'!E201*100,"-")) -> - | I203: =IF(OR('Tabel 1 H'!G201<5,'Tabel 2 H'!I203<0.5),"-",IFERROR('Tabel 2 H'!I203/'Tabel 1 H'!G201*100,"-")) -> 4.347826087 | J203: =IF(OR('Tabel 1 H'!G201<5,'Tabel 2 H'!J203<0.5),"-",IFERROR('Tabel 2 H'!J203/'Tabel 1 H'!G201*100,"-")) -> -
A204: Andre | C204: =IF(OR('Tabel 1 H'!C202<5,'Tabel 2 H'!C204<0.5),"-",IFERROR('Tabel 2 H'!C204/'Tabel 1 H'!C202*100,"-")) -> 5.154639175 | D204: =IF(OR('Tabel 1 H'!C202<5,'Tabel 2 H'!D204<0.5),"-",IFERROR('Tabel 2 H'!D204/'Tabel 1 H'!C202*100,"-")) -> 5.15367467 | F204: =IF(OR('Tabel 1 H'!E202<5,'Tabel 2 H'!F204<0.5),"-",IFERROR('Tabel 2 H'!F204/'Tabel 1 H'!E202*100,"-")) -> 5.063291139 | G204: =IF(OR('Tabel 1 H'!E202<5,'Tabel 2 H'!G204<0.5),"-",IFERROR('Tabel 2 H'!G204/'Tabel 1 H'!E202*100,"-")) -> 4.302834265 | I204: =IF(OR('Tabel 1 H'!G202<5,'Tabel 2 H'!I204<0.5),"-",IFERROR('Tabel 2 H'!I204/'Tabel 1 H'!G202*100,"-")) -> 5.113636364 | J204: =IF(OR('Tabel 1 H'!G202<5,'Tabel 2 H'!J204<0.5),"-",IFERROR('Tabel 2 H'!J204/'Tabel 1 H'!G202*100,"-")) -> 4.771763352
A206: Total | C206: =IF(OR('Tabel 1 H'!C204<5,'Tabel 2 H'!C206<0.5),"-",IFERROR('Tabel 2 H'!C206/'Tabel 1 H'!C204*100,"-")) -> 3.733170135 | D206: =IF(OR('Tabel 1 H'!C204<5,'Tabel 2 H'!D206<0.5),"-",IFERROR('Tabel 2 H'!D206/'Tabel 1 H'!C204*100,"-")) -> 3.143531766 | F206: =IF(OR('Tabel 1 H'!E204<5,'Tabel 2 H'!F206<0.5),"-",IFERROR('Tabel 2 H'!F206/'Tabel 1 H'!E204*100,"-")) -> 4.918032787 | G206: =IF(OR('Tabel 1 H'!E204<5,'Tabel 2 H'!G206<0.5),"-",IFERROR('Tabel 2 H'!G206/'Tabel 1 H'!E204*100,"-")) -> 4.241848864 | I206: =IF(OR('Tabel 1 H'!G204<5,'Tabel 2 H'!I206<0.5),"-",IFERROR('Tabel 2 H'!I206/'Tabel 1 H'!G204*100,"-")) -> 4.293092318 | J206: =IF(OR('Tabel 1 H'!G204<5,'Tabel 2 H'!J206<0.5),"-",IFERROR('Tabel 2 H'!J206/'Tabel 1 H'!G204*100,"-")) -> 3.662555727
A208: Ingeniører i alt | C208: =IF(OR('Tabel 1 H'!C206<5,'Tabel 2 H'!C208<0.5),"-",IFERROR('Tabel 2 H'!C208/'Tabel 1 H'!C206*100,"-")) -> 2.649006623 | D208: =IF(OR('Tabel 1 H'!C206<5,'Tabel 2 H'!D208<0.5),"-",IFERROR('Tabel 2 H'!D208/'Tabel 1 H'!C206*100,"-")) -> 2.151522749 | F208: =IF(OR('Tabel 1 H'!E206<5,'Tabel 2 H'!F208<0.5),"-",IFERROR('Tabel 2 H'!F208/'Tabel 1 H'!E206*100,"-")) -> 2.766798419 | G208: =IF(OR('Tabel 1 H'!E206<5,'Tabel 2 H'!G208<0.5),"-",IFERROR('Tabel 2 H'!G208/'Tabel 1 H'!E206*100,"-")) -> 2.454423917 | I208: =IF(OR('Tabel 1 H'!G206<5,'Tabel 2 H'!I208<0.5),"-",IFERROR('Tabel 2 H'!I208/'Tabel 1 H'!G206*100,"-")) -> 2.678571429 | J208: =IF(OR('Tabel 1 H'!G206<5,'Tabel 2 H'!J208<0.5),"-",IFERROR('Tabel 2 H'!J208/'Tabel 1 H'!G206*100,"-")) -> 2.227548538
A209: Magistre i alt | C209: =IF(OR('Tabel 1 H'!C207<5,'Tabel 2 H'!C209<0.5),"-",IFERROR('Tabel 2 H'!C209/'Tabel 1 H'!C207*100,"-")) -> 3.296703297 | D209: =IF(OR('Tabel 1 H'!C207<5,'Tabel 2 H'!D209<0.5),"-",IFERROR('Tabel 2 H'!D209/'Tabel 1 H'!C207*100,"-")) -> 2.893071502 | F209: =IF(OR('Tabel 1 H'!E207<5,'Tabel 2 H'!F209<0.5),"-",IFERROR('Tabel 2 H'!F209/'Tabel 1 H'!E207*100,"-")) -> 6.273062731 | G209: =IF(OR('Tabel 1 H'!E207<5,'Tabel 2 H'!G209<0.5),"-",IFERROR('Tabel 2 H'!G209/'Tabel 1 H'!E207*100,"-")) -> 4.940225913 | I209: =IF(OR('Tabel 1 H'!G207<5,'Tabel 2 H'!I209<0.5),"-",IFERROR('Tabel 2 H'!I209/'Tabel 1 H'!G207*100,"-")) -> 5.077262693 | J209: =IF(OR('Tabel 1 H'!G207<5,'Tabel 2 H'!J209<0.5),"-",IFERROR('Tabel 2 H'!J209/'Tabel 1 H'!G207*100,"-")) -> 4.117748865
A210: DJØF'ere i alt | C210: =IF(OR('Tabel 1 H'!C208<5,'Tabel 2 H'!C210<0.5),"-",IFERROR('Tabel 2 H'!C210/'Tabel 1 H'!C208*100,"-")) -> 3.921568627 | D210: =IF(OR('Tabel 1 H'!C208<5,'Tabel 2 H'!D210<0.5),"-",IFERROR('Tabel 2 H'!D210/'Tabel 1 H'!C208*100,"-")) -> 3.192353679 | F210: =IF(OR('Tabel 1 H'!E208<5,'Tabel 2 H'!F210<0.5),"-",IFERROR('Tabel 2 H'!F210/'Tabel 1 H'!E208*100,"-")) -> 4.419889503 | G210: =IF(OR('Tabel 1 H'!E208<5,'Tabel 2 H'!G210<0.5),"-",IFERROR('Tabel 2 H'!G210/'Tabel 1 H'!E208*100,"-")) -> 4.139769736 | I210: =IF(OR('Tabel 1 H'!G208<5,'Tabel 2 H'!I210<0.5),"-",IFERROR('Tabel 2 H'!I210/'Tabel 1 H'!G208*100,"-")) -> 4.191616766 | J210: =IF(OR('Tabel 1 H'!G208<5,'Tabel 2 H'!J210<0.5),"-",IFERROR('Tabel 2 H'!J210/'Tabel 1 H'!G208*100,"-")) -> 3.705773758
A215: Brøndby
C217: Mænd | F217: Kvinder | I217: I alt
C218: Ledigheds- berørte | D218: Gns. brutto- ledighed | F218: Ledigheds- berørte | G218: Gns. brutto- ledighed | I218: Ledigheds- berørte | J218: Gns. brutto- ledighed
A221: Civ. ing. | C221: =IF(OR('Tabel 1 H'!C219<5,'Tabel 2 H'!C221<0.5),"-",IFERROR('Tabel 2 H'!C221/'Tabel 1 H'!C219*100,"-")) -> 5.263157895 | D221: =IF(OR('Tabel 1 H'!C219<5,'Tabel 2 H'!D221<0.5),"-",IFERROR('Tabel 2 H'!D221/'Tabel 1 H'!C219*100,"-")) -> 5.262173084 | F221: =IF(OR('Tabel 1 H'!E219<5,'Tabel 2 H'!F221<0.5),"-",IFERROR('Tabel 2 H'!F221/'Tabel 1 H'!E219*100,"-")) -> 6.451612903 | G221: =IF(OR('Tabel 1 H'!E219<5,'Tabel 2 H'!G221<0.5),"-",IFERROR('Tabel 2 H'!G221/'Tabel 1 H'!E219*100,"-")) -> 4.812654545 | I221: =IF(OR('Tabel 1 H'!G219<5,'Tabel 2 H'!I221<0.5),"-",IFERROR('Tabel 2 H'!I221/'Tabel 1 H'!G219*100,"-")) -> 5.555555556 | J221: =IF(OR('Tabel 1 H'!G219<5,'Tabel 2 H'!J221<0.5),"-",IFERROR('Tabel 2 H'!J221/'Tabel 1 H'!G219*100,"-")) -> 5.151577253
A222: Diplom ing. | C222: =IF(OR('Tabel 1 H'!C220<5,'Tabel 2 H'!C222<0.5),"-",IFERROR('Tabel 2 H'!C222/'Tabel 1 H'!C220*100,"-")) -> 2.857142857 | D222: =IF(OR('Tabel 1 H'!C220<5,'Tabel 2 H'!D222<0.5),"-",IFERROR('Tabel 2 H'!D222/'Tabel 1 H'!C220*100,"-")) -> 2.36209247 | F222: =IF(OR('Tabel 1 H'!E220<5,'Tabel 2 H'!F222<0.5),"-",IFERROR('Tabel 2 H'!F222/'Tabel 1 H'!E220*100,"-")) -> 8 | G222: =IF(OR('Tabel 1 H'!E220<5,'Tabel 2 H'!G222<0.5),"-",IFERROR('Tabel 2 H'!G222/'Tabel 1 H'!E220*100,"-")) -> 7.998503087 | I222: =IF(OR('Tabel 1 H'!G220<5,'Tabel 2 H'!I222<0.5),"-",IFERROR('Tabel 2 H'!I222/'Tabel 1 H'!G220*100,"-")) -> 3.636363636 | J222: =IF(OR('Tabel 1 H'!G220<5,'Tabel 2 H'!J222<0.5),"-",IFERROR('Tabel 2 H'!J222/'Tabel 1 H'!G220*100,"-")) -> 3.216094079
A223: Cand. Scient. Tek. | C223: =IF(OR('Tabel 1 H'!C221<5,'Tabel 2 H'!C223<0.5),"-",IFERROR('Tabel 2 H'!C223/'Tabel 1 H'!C221*100,"-")) -> 10.25641026 | D223: =IF(OR('Tabel 1 H'!C221<5,'Tabel 2 H'!D223<0.5),"-",IFERROR('Tabel 2 H'!D223/'Tabel 1 H'!C221*100,"-")) -> 7.973938368 | F223: =IF(OR('Tabel 1 H'!E221<5,'Tabel 2 H'!F223<0.5),"-",IFERROR('Tabel 2 H'!F223/'Tabel 1 H'!E221*100,"-")) -> 20.83333333 | G223: =IF(OR('Tabel 1 H'!E221<5,'Tabel 2 H'!G223<0.5),"-",IFERROR('Tabel 2 H'!G223/'Tabel 1 H'!E221*100,"-")) -> 18.71400653 | I223: =IF(OR('Tabel 1 H'!G221<5,'Tabel 2 H'!I223<0.5),"-",IFERROR('Tabel 2 H'!I223/'Tabel 1 H'!G221*100,"-")) -> 14.28571429 | J223: =IF(OR('Tabel 1 H'!G221<5,'Tabel 2 H'!J223<0.5),"-",IFERROR('Tabel 2 H'!J223/'Tabel 1 H'!G221*100,"-")) -> 12.0653929
A224: MA. Hum. | C224: =IF(OR('Tabel 1 H'!C222<5,'Tabel 2 H'!C224<0.5),"-",IFERROR('Tabel 2 H'!C224/'Tabel 1 H'!C222*100,"-")) -> 9.523809524 | D224: =IF(OR('Tabel 1 H'!C222<5,'Tabel 2 H'!D224<0.5),"-",IFERROR('Tabel 2 H'!D224/'Tabel 1 H'!C222*100,"-")) -> 9.373524249 | F224: =IF(OR('Tabel 1 H'!E222<5,'Tabel 2 H'!F224<0.5),"-",IFERROR('Tabel 2 H'!F224/'Tabel 1 H'!E222*100,"-")) -> 10.16949153 | G224: =IF(OR('Tabel 1 H'!E222<5,'Tabel 2 H'!G224<0.5),"-",IFERROR('Tabel 2 H'!G224/'Tabel 1 H'!E222*100,"-")) -> 6.585992661 | I224: =IF(OR('Tabel 1 H'!G222<5,'Tabel 2 H'!I224<0.5),"-",IFERROR('Tabel 2 H'!I224/'Tabel 1 H'!G222*100,"-")) -> 10 | J224: =IF(OR('Tabel 1 H'!G222<5,'Tabel 2 H'!J224<0.5),"-",IFERROR('Tabel 2 H'!J224/'Tabel 1 H'!G222*100,"-")) -> 7.317719703
A225: MA. Nat. | C225: =IF(OR('Tabel 1 H'!C223<5,'Tabel 2 H'!C225<0.5),"-",IFERROR('Tabel 2 H'!C225/'Tabel 1 H'!C223*100,"-")) -> 3.125 | D225: =IF(OR('Tabel 1 H'!C223<5,'Tabel 2 H'!D225<0.5),"-",IFERROR('Tabel 2 H'!D225/'Tabel 1 H'!C223*100,"-")) -> 3.124415269 | F225: =IF(OR('Tabel 1 H'!E223<5,'Tabel 2 H'!F225<0.5),"-",IFERROR('Tabel 2 H'!F225/'Tabel 1 H'!E223*100,"-")) -> 15.38461538 | G225: =IF(OR('Tabel 1 H'!E223<5,'Tabel 2 H'!G225<0.5),"-",IFERROR('Tabel 2 H'!G225/'Tabel 1 H'!E223*100,"-")) -> 14.84918126 | I225: =IF(OR('Tabel 1 H'!G223<5,'Tabel 2 H'!I225<0.5),"-",IFERROR('Tabel 2 H'!I225/'Tabel 1 H'!G223*100,"-")) -> 8.620689655 | J225: =IF(OR('Tabel 1 H'!G223<5,'Tabel 2 H'!J225<0.5),"-",IFERROR('Tabel 2 H'!J225/'Tabel 1 H'!G223*100,"-")) -> 8.380344849
A226: MA. Ph.d. | C226: =IF(OR('Tabel 1 H'!C224<5,'Tabel 2 H'!C226<0.5),"-",IFERROR('Tabel 2 H'!C226/'Tabel 1 H'!C224*100,"-")) -> - | D226: =IF(OR('Tabel 1 H'!C224<5,'Tabel 2 H'!D226<0.5),"-",IFERROR('Tabel 2 H'!D226/'Tabel 1 H'!C224*100,"-")) -> - | F226: =IF(OR('Tabel 1 H'!E224<5,'Tabel 2 H'!F226<0.5),"-",IFERROR('Tabel 2 H'!F226/'Tabel 1 H'!E224*100,"-")) -> - | G226: =IF(OR('Tabel 1 H'!E224<5,'Tabel 2 H'!G226<0.5),"-",IFERROR('Tabel 2 H'!G226/'Tabel 1 H'!E224*100,"-")) -> - | I226: =IF(OR('Tabel 1 H'!G224<5,'Tabel 2 H'!I226<0.5),"-",IFERROR('Tabel 2 H'!I226/'Tabel 1 H'!G224*100,"-")) -> - | J226: =IF(OR('Tabel 1 H'!G224<5,'Tabel 2 H'!J226<0.5),"-",IFERROR('Tabel 2 H'!J226/'Tabel 1 H'!G224*100,"-")) -> -
A227: MA. Samf. | C227: =IF(OR('Tabel 1 H'!C225<5,'Tabel 2 H'!C227<0.5),"-",IFERROR('Tabel 2 H'!C227/'Tabel 1 H'!C225*100,"-")) -> 20 | D227: =IF(OR('Tabel 1 H'!C225<5,'Tabel 2 H'!D227<0.5),"-",IFERROR('Tabel 2 H'!D227/'Tabel 1 H'!C225*100,"-")) -> 19.99625772 | F227: =IF(OR('Tabel 1 H'!E225<5,'Tabel 2 H'!F227<0.5),"-",IFERROR('Tabel 2 H'!F227/'Tabel 1 H'!E225*100,"-")) -> 12.5 | G227: =IF(OR('Tabel 1 H'!E225<5,'Tabel 2 H'!G227<0.5),"-",IFERROR('Tabel 2 H'!G227/'Tabel 1 H'!E225*100,"-")) -> 12.49766107 | I227: =IF(OR('Tabel 1 H'!G225<5,'Tabel 2 H'!I227<0.5),"-",IFERROR('Tabel 2 H'!I227/'Tabel 1 H'!G225*100,"-")) -> 16.66666667 | J227: =IF(OR('Tabel 1 H'!G225<5,'Tabel 2 H'!J227<0.5),"-",IFERROR('Tabel 2 H'!J227/'Tabel 1 H'!G225*100,"-")) -> 16.6635481
A228: Øvrige Mag. | C228: =IF(OR('Tabel 1 H'!C226<5,'Tabel 2 H'!C228<0.5),"-",IFERROR('Tabel 2 H'!C228/'Tabel 1 H'!C226*100,"-")) -> 14.28571429 | D228: =IF(OR('Tabel 1 H'!C226<5,'Tabel 2 H'!D228<0.5),"-",IFERROR('Tabel 2 H'!D228/'Tabel 1 H'!C226*100,"-")) -> 7.689497554 | F228: =IF(OR('Tabel 1 H'!E226<5,'Tabel 2 H'!F228<0.5),"-",IFERROR('Tabel 2 H'!F228/'Tabel 1 H'!E226*100,"-")) -> 28.57142857 | G228: =IF(OR('Tabel 1 H'!E226<5,'Tabel 2 H'!G228<0.5),"-",IFERROR('Tabel 2 H'!G228/'Tabel 1 H'!E226*100,"-")) -> 28.56608245 | I228: =IF(OR('Tabel 1 H'!G226<5,'Tabel 2 H'!I228<0.5),"-",IFERROR('Tabel 2 H'!I228/'Tabel 1 H'!G226*100,"-")) -> 21.42857143 | J228: =IF(OR('Tabel 1 H'!G226<5,'Tabel 2 H'!J228<0.5),"-",IFERROR('Tabel 2 H'!J228/'Tabel 1 H'!G226*100,"-")) -> 18.12779
A229: Agronom | C229: =IF(OR('Tabel 1 H'!C227<5,'Tabel 2 H'!C229<0.5),"-",IFERROR('Tabel 2 H'!C229/'Tabel 1 H'!C227*100,"-")) -> - | D229: =IF(OR('Tabel 1 H'!C227<5,'Tabel 2 H'!D229<0.5),"-",IFERROR('Tabel 2 H'!D229/'Tabel 1 H'!C227*100,"-")) -> - | F229: =IF(OR('Tabel 1 H'!E227<5,'Tabel 2 H'!F229<0.5),"-",IFERROR('Tabel 2 H'!F229/'Tabel 1 H'!E227*100,"-")) -> - | G229: =IF(OR('Tabel 1 H'!E227<5,'Tabel 2 H'!G229<0.5),"-",IFERROR('Tabel 2 H'!G229/'Tabel 1 H'!E227*100,"-")) -> - | I229: =IF(OR('Tabel 1 H'!G227<5,'Tabel 2 H'!I229<0.5),"-",IFERROR('Tabel 2 H'!I229/'Tabel 1 H'!G227*100,"-")) -> 16.66666667 | J229: =IF(OR('Tabel 1 H'!G227<5,'Tabel 2 H'!J229<0.5),"-",IFERROR('Tabel 2 H'!J229/'Tabel 1 H'!G227*100,"-")) -> -
A230: Landsk. Arkt. | C230: =IF(OR('Tabel 1 H'!C228<5,'Tabel 2 H'!C230<0.5),"-",IFERROR('Tabel 2 H'!C230/'Tabel 1 H'!C228*100,"-")) -> - | D230: =IF(OR('Tabel 1 H'!C228<5,'Tabel 2 H'!D230<0.5),"-",IFERROR('Tabel 2 H'!D230/'Tabel 1 H'!C228*100,"-")) -> - | F230: =IF(OR('Tabel 1 H'!E228<5,'Tabel 2 H'!F230<0.5),"-",IFERROR('Tabel 2 H'!F230/'Tabel 1 H'!E228*100,"-")) -> - | G230: =IF(OR('Tabel 1 H'!E228<5,'Tabel 2 H'!G230<0.5),"-",IFERROR('Tabel 2 H'!G230/'Tabel 1 H'!E228*100,"-")) -> - | I230: =IF(OR('Tabel 1 H'!G228<5,'Tabel 2 H'!I230<0.5),"-",IFERROR('Tabel 2 H'!I230/'Tabel 1 H'!G228*100,"-")) -> - | J230: =IF(OR('Tabel 1 H'!G228<5,'Tabel 2 H'!J230<0.5),"-",IFERROR('Tabel 2 H'!J230/'Tabel 1 H'!G228*100,"-")) -> -
A231: Hortonom | C231: =IF(OR('Tabel 1 H'!C229<5,'Tabel 2 H'!C231<0.5),"-",IFERROR('Tabel 2 H'!C231/'Tabel 1 H'!C229*100,"-")) -> - | D231: =IF(OR('Tabel 1 H'!C229<5,'Tabel 2 H'!D231<0.5),"-",IFERROR('Tabel 2 H'!D231/'Tabel 1 H'!C229*100,"-")) -> - | F231: =IF(OR('Tabel 1 H'!E229<5,'Tabel 2 H'!F231<0.5),"-",IFERROR('Tabel 2 H'!F231/'Tabel 1 H'!E229*100,"-")) -> - | G231: =IF(OR('Tabel 1 H'!E229<5,'Tabel 2 H'!G231<0.5),"-",IFERROR('Tabel 2 H'!G231/'Tabel 1 H'!E229*100,"-")) -> - | I231: =IF(OR('Tabel 1 H'!G229<5,'Tabel 2 H'!I231<0.5),"-",IFERROR('Tabel 2 H'!I231/'Tabel 1 H'!G229*100,"-")) -> - | J231: =IF(OR('Tabel 1 H'!G229<5,'Tabel 2 H'!J231<0.5),"-",IFERROR('Tabel 2 H'!J231/'Tabel 1 H'!G229*100,"-")) -> -
A232: Forstkand. | C232: =IF(OR('Tabel 1 H'!C230<5,'Tabel 2 H'!C232<0.5),"-",IFERROR('Tabel 2 H'!C232/'Tabel 1 H'!C230*100,"-")) -> - | D232: =IF(OR('Tabel 1 H'!C230<5,'Tabel 2 H'!D232<0.5),"-",IFERROR('Tabel 2 H'!D232/'Tabel 1 H'!C230*100,"-")) -> - | F232: =IF(OR('Tabel 1 H'!E230<5,'Tabel 2 H'!F232<0.5),"-",IFERROR('Tabel 2 H'!F232/'Tabel 1 H'!E230*100,"-")) -> - | G232: =IF(OR('Tabel 1 H'!E230<5,'Tabel 2 H'!G232<0.5),"-",IFERROR('Tabel 2 H'!G232/'Tabel 1 H'!E230*100,"-")) -> - | I232: =IF(OR('Tabel 1 H'!G230<5,'Tabel 2 H'!I232<0.5),"-",IFERROR('Tabel 2 H'!I232/'Tabel 1 H'!G230*100,"-")) -> - | J232: =IF(OR('Tabel 1 H'!G230<5,'Tabel 2 H'!J232<0.5),"-",IFERROR('Tabel 2 H'!J232/'Tabel 1 H'!G230*100,"-")) -> -
A233: Jordbrugsakad. | C233: =IF(OR('Tabel 1 H'!C231<5,'Tabel 2 H'!C233<0.5),"-",IFERROR('Tabel 2 H'!C233/'Tabel 1 H'!C231*100,"-")) -> - | D233: =IF(OR('Tabel 1 H'!C231<5,'Tabel 2 H'!D233<0.5),"-",IFERROR('Tabel 2 H'!D233/'Tabel 1 H'!C231*100,"-")) -> - | F233: =IF(OR('Tabel 1 H'!E231<5,'Tabel 2 H'!F233<0.5),"-",IFERROR('Tabel 2 H'!F233/'Tabel 1 H'!E231*100,"-")) -> 8.333333333 | G233: =IF(OR('Tabel 1 H'!E231<5,'Tabel 2 H'!G233<0.5),"-",IFERROR('Tabel 2 H'!G233/'Tabel 1 H'!E231*100,"-")) -> - | I233: =IF(OR('Tabel 1 H'!G231<5,'Tabel 2 H'!I233<0.5),"-",IFERROR('Tabel 2 H'!I233/'Tabel 1 H'!G231*100,"-")) -> 7.142857143 | J233: =IF(OR('Tabel 1 H'!G231<5,'Tabel 2 H'!J233<0.5),"-",IFERROR('Tabel 2 H'!J233/'Tabel 1 H'!G231*100,"-")) -> -
A234: Mejeriing. | C234: =IF(OR('Tabel 1 H'!C232<5,'Tabel 2 H'!C234<0.5),"-",IFERROR('Tabel 2 H'!C234/'Tabel 1 H'!C232*100,"-")) -> - | D234: =IF(OR('Tabel 1 H'!C232<5,'Tabel 2 H'!D234<0.5),"-",IFERROR('Tabel 2 H'!D234/'Tabel 1 H'!C232*100,"-")) -> - | F234: =IF(OR('Tabel 1 H'!E232<5,'Tabel 2 H'!F234<0.5),"-",IFERROR('Tabel 2 H'!F234/'Tabel 1 H'!E232*100,"-")) -> - | G234: =IF(OR('Tabel 1 H'!E232<5,'Tabel 2 H'!G234<0.5),"-",IFERROR('Tabel 2 H'!G234/'Tabel 1 H'!E232*100,"-")) -> - | I234: =IF(OR('Tabel 1 H'!G232<5,'Tabel 2 H'!I234<0.5),"-",IFERROR('Tabel 2 H'!I234/'Tabel 1 H'!G232*100,"-")) -> - | J234: =IF(OR('Tabel 1 H'!G232<5,'Tabel 2 H'!J234<0.5),"-",IFERROR('Tabel 2 H'!J234/'Tabel 1 H'!G232*100,"-")) -> -
A235: Levn.m.kand. | C235: =IF(OR('Tabel 1 H'!C233<5,'Tabel 2 H'!C235<0.5),"-",IFERROR('Tabel 2 H'!C235/'Tabel 1 H'!C233*100,"-")) -> - | D235: =IF(OR('Tabel 1 H'!C233<5,'Tabel 2 H'!D235<0.5),"-",IFERROR('Tabel 2 H'!D235/'Tabel 1 H'!C233*100,"-")) -> - | F235: =IF(OR('Tabel 1 H'!E233<5,'Tabel 2 H'!F235<0.5),"-",IFERROR('Tabel 2 H'!F235/'Tabel 1 H'!E233*100,"-")) -> - | G235: =IF(OR('Tabel 1 H'!E233<5,'Tabel 2 H'!G235<0.5),"-",IFERROR('Tabel 2 H'!G235/'Tabel 1 H'!E233*100,"-")) -> - | I235: =IF(OR('Tabel 1 H'!G233<5,'Tabel 2 H'!I235<0.5),"-",IFERROR('Tabel 2 H'!I235/'Tabel 1 H'!G233*100,"-")) -> - | J235: =IF(OR('Tabel 1 H'!G233<5,'Tabel 2 H'!J235<0.5),"-",IFERROR('Tabel 2 H'!J235/'Tabel 1 H'!G233*100,"-")) -> -
A236: Dyrlæge | C236: =IF(OR('Tabel 1 H'!C234<5,'Tabel 2 H'!C236<0.5),"-",IFERROR('Tabel 2 H'!C236/'Tabel 1 H'!C234*100,"-")) -> - | D236: =IF(OR('Tabel 1 H'!C234<5,'Tabel 2 H'!D236<0.5),"-",IFERROR('Tabel 2 H'!D236/'Tabel 1 H'!C234*100,"-")) -> - | F236: =IF(OR('Tabel 1 H'!E234<5,'Tabel 2 H'!F236<0.5),"-",IFERROR('Tabel 2 H'!F236/'Tabel 1 H'!E234*100,"-")) -> - | G236: =IF(OR('Tabel 1 H'!E234<5,'Tabel 2 H'!G236<0.5),"-",IFERROR('Tabel 2 H'!G236/'Tabel 1 H'!E234*100,"-")) -> - | I236: =IF(OR('Tabel 1 H'!G234<5,'Tabel 2 H'!I236<0.5),"-",IFERROR('Tabel 2 H'!I236/'Tabel 1 H'!G234*100,"-")) -> - | J236: =IF(OR('Tabel 1 H'!G234<5,'Tabel 2 H'!J236<0.5),"-",IFERROR('Tabel 2 H'!J236/'Tabel 1 H'!G234*100,"-")) -> -
A237: Farmaceut | C237: =IF(OR('Tabel 1 H'!C235<5,'Tabel 2 H'!C237<0.5),"-",IFERROR('Tabel 2 H'!C237/'Tabel 1 H'!C235*100,"-")) -> 9.090909091 | D237: =IF(OR('Tabel 1 H'!C235<5,'Tabel 2 H'!D237<0.5),"-",IFERROR('Tabel 2 H'!D237/'Tabel 1 H'!C235*100,"-")) -> 9.089208054 | F237: =IF(OR('Tabel 1 H'!E235<5,'Tabel 2 H'!F237<0.5),"-",IFERROR('Tabel 2 H'!F237/'Tabel 1 H'!E235*100,"-")) -> - | G237: =IF(OR('Tabel 1 H'!E235<5,'Tabel 2 H'!G237<0.5),"-",IFERROR('Tabel 2 H'!G237/'Tabel 1 H'!E235*100,"-")) -> - | I237: =IF(OR('Tabel 1 H'!G235<5,'Tabel 2 H'!I237<0.5),"-",IFERROR('Tabel 2 H'!I237/'Tabel 1 H'!G235*100,"-")) -> 2.941176471 | J237: =IF(OR('Tabel 1 H'!G235<5,'Tabel 2 H'!J237<0.5),"-",IFERROR('Tabel 2 H'!J237/'Tabel 1 H'!G235*100,"-")) -> 2.940626135
A238: Læge | C238: =IF(OR('Tabel 1 H'!C236<5,'Tabel 2 H'!C238<0.5),"-",IFERROR('Tabel 2 H'!C238/'Tabel 1 H'!C236*100,"-")) -> - | D238: =IF(OR('Tabel 1 H'!C236<5,'Tabel 2 H'!D238<0.5),"-",IFERROR('Tabel 2 H'!D238/'Tabel 1 H'!C236*100,"-")) -> - | F238: =IF(OR('Tabel 1 H'!E236<5,'Tabel 2 H'!F238<0.5),"-",IFERROR('Tabel 2 H'!F238/'Tabel 1 H'!E236*100,"-")) -> 5 | G238: =IF(OR('Tabel 1 H'!E236<5,'Tabel 2 H'!G238<0.5),"-",IFERROR('Tabel 2 H'!G238/'Tabel 1 H'!E236*100,"-")) -> 4.537516372 | I238: =IF(OR('Tabel 1 H'!G236<5,'Tabel 2 H'!I238<0.5),"-",IFERROR('Tabel 2 H'!I238/'Tabel 1 H'!G236*100,"-")) -> 3.125 | J238: =IF(OR('Tabel 1 H'!G236<5,'Tabel 2 H'!J238<0.5),"-",IFERROR('Tabel 2 H'!J238/'Tabel 1 H'!G236*100,"-")) -> 2.835947733
A239: Tandlæge | C239: =IF(OR('Tabel 1 H'!C237<5,'Tabel 2 H'!C239<0.5),"-",IFERROR('Tabel 2 H'!C239/'Tabel 1 H'!C237*100,"-")) -> - | D239: =IF(OR('Tabel 1 H'!C237<5,'Tabel 2 H'!D239<0.5),"-",IFERROR('Tabel 2 H'!D239/'Tabel 1 H'!C237*100,"-")) -> - | F239: =IF(OR('Tabel 1 H'!E237<5,'Tabel 2 H'!F239<0.5),"-",IFERROR('Tabel 2 H'!F239/'Tabel 1 H'!E237*100,"-")) -> 11.11111111 | G239: =IF(OR('Tabel 1 H'!E237<5,'Tabel 2 H'!G239<0.5),"-",IFERROR('Tabel 2 H'!G239/'Tabel 1 H'!E237*100,"-")) -> 11.10903207 | I239: =IF(OR('Tabel 1 H'!G237<5,'Tabel 2 H'!I239<0.5),"-",IFERROR('Tabel 2 H'!I239/'Tabel 1 H'!G237*100,"-")) -> 8.333333333 | J239: =IF(OR('Tabel 1 H'!G237<5,'Tabel 2 H'!J239<0.5),"-",IFERROR('Tabel 2 H'!J239/'Tabel 1 H'!G237*100,"-")) -> 8.331774049
A240: Arkitekt | C240: =IF(OR('Tabel 1 H'!C238<5,'Tabel 2 H'!C240<0.5),"-",IFERROR('Tabel 2 H'!C240/'Tabel 1 H'!C238*100,"-")) -> - | D240: =IF(OR('Tabel 1 H'!C238<5,'Tabel 2 H'!D240<0.5),"-",IFERROR('Tabel 2 H'!D240/'Tabel 1 H'!C238*100,"-")) -> - | F240: =IF(OR('Tabel 1 H'!E238<5,'Tabel 2 H'!F240<0.5),"-",IFERROR('Tabel 2 H'!F240/'Tabel 1 H'!E238*100,"-")) -> - | G240: =IF(OR('Tabel 1 H'!E238<5,'Tabel 2 H'!G240<0.5),"-",IFERROR('Tabel 2 H'!G240/'Tabel 1 H'!E238*100,"-")) -> - | I240: =IF(OR('Tabel 1 H'!G238<5,'Tabel 2 H'!I240<0.5),"-",IFERROR('Tabel 2 H'!I240/'Tabel 1 H'!G238*100,"-")) -> - | J240: =IF(OR('Tabel 1 H'!G238<5,'Tabel 2 H'!J240<0.5),"-",IFERROR('Tabel 2 H'!J240/'Tabel 1 H'!G238*100,"-")) -> -
... 1077 more rows

Sheet Tabel 4F H
A1: Tabel 4. Antal forsikrede - aldersfordelt
A3: Hovedstaden
C5: Under 30 år | D5: 30 - 39 år | E5: 40 - 49 år | F5: 50 - 59 år | G5: Over 60 år | I5: I alt
A7: Civ. ing. | C7: 2582 | D7: 5728 | E7: 4088 | F7: 3684 | G7: 1148 | I7: 17230
A8: Diplom ing. | C8: 1092 | D8: 2199 | E8: 3186 | F8: 4545 | G8: 1428 | I8: 12450
A9: Cand. Scient. Tek. | C9: 2909 | D9: 4866 | E9: 1508 | F9: 552 | G9: 100 | I9: 9935
A10: MA. Hum. | C10: 2550 | D10: 7152 | E10: 6480 | F10: 2579 | G10: 968 | I10: 19729
A11: MA. Nat. | C11: 474 | D11: 1616 | E11: 2570 | F11: 1827 | G11: 693 | I11: 7180
A12: MA. Ph.d. | C12: 18 | D12: 362 | E12: 448 | F12: 346 | G12: 83 | I12: 1257
A13: MA. Samf. | C13: 834 | D13: 1489 | E13: 581 | F13: 226 | G13: 43 | I13: 3173
A14: Øvrige Mag. | C14: 174 | D14: 348 | E14: 535 | F14: 396 | G14: 110 | I14: 1563
A15: Agronom | C15: 82 | D15: 160 | E15: 227 | F15: 247 | G15: 92 | I15: 808
A16: Landsk. Arkt. | C16: 63 | D16: 171 | E16: 139 | F16: 78 | G16: 21 | I16: 472
A17: Hortonom | C17: 0 | D17: 16 | E17: 48 | F17: 70 | G17: 21 | I17: 155
A18: Forstkand. | C18: 18 | D18: 40 | E18: 99 | F18: 71 | G18: 26 | I18: 254
A19: Jordbrugsakad. | C19: 163 | D19: 387 | E19: 513 | F19: 466 | G19: 160 | I19: 1689
A20: Mejeriing. | C20: 30 | D20: 37 | E20: 25 | F20: 33 | G20: 15 | I20: 140
A21: Levn.m.kand. | C21: 84 | D21: 149 | E21: 74 | F21: 6 | G21: 3 | I21: 316
A22: Dyrlæge | C22: 157 | D22: 349 | E22: 224 | F22: 163 | G22: 50 | I22: 943
A23: Farmaceut | C23: 582 | D23: 1287 | E23: 1000 | F23: 636 | G23: 197 | I23: 3702
A24: Læge | C24: 719 | D24: 2154 | E24: 1092 | F24: 725 | G24: 433 | I24: 5123
A25: Tandlæge | C25: 118 | D25: 297 | E25: 185 | F25: 148 | G25: 74 | I25: 822
A26: Arkitekt | C26: 243 | D26: 1144 | E26: 1131 | F26: 757 | G26: 343 | I26: 3618
A27: Landinspek. | C27: 14 | D27: 58 | E27: 53 | F27: 45 | G27: 22 | I27: 192
A28: Bibliotekar | C28: 53 | D28: 371 | E28: 587 | F28: 418 | G28: 283 | I28: 1712
A29: Musikudd. | C29: 8 | D29: 42 | E29: 67 | F29: 125 | G29: 74 | I29: 316
A30: Teolog | C30: 15 | D30: 102 | E30: 196 | F30: 171 | G30: 72 | I30: 556
A31: Psykolog | C31: 578 | D31: 1300 | E31: 925 | F31: 521 | G31: 241 | I31: 3565
A32: Jurist | C32: 1600 | D32: 2939 | E32: 2659 | F32: 1833 | G32: 518 | I32: 9549
A33: Økonom | C33: 895 | D33: 1621 | E33: 1449 | F33: 1225 | G33: 288 | I33: 5478
A34: Samf. Adm. | C34: 2468 | D34: 7065 | E34: 4625 | F34: 2134 | G34: 449 | I34: 16741
A35: Cand. Merc. | C35: 4384 | D35: 7845 | E35: 4429 | F35: 2688 | G35: 346 | I35: 19692
A36: HA | C36: 511 | D36: 507 | E36: 488 | F36: 671 | G36: 178 | I36: 2355
A37: HD | C37: 588 | D37: 539 | E37: 347 | F37: 762 | G37: 292 | I37: 2528
A38: Komm. og Sprog | C38: 610 | D38: 1110 | E38: 1114 | F38: 849 | G38: 273 | I38: 3956
A39: Cand. IT. | C39: 542 | D39: 1229 | E39: 647 | F39: 68 | G39: 8 | I39: 2494
A40: Bac. Samf. | C40: 165 | D40: 225 | E40: 215 | F40: 138 | G40: 18 | I40: 761
A41: Bac. Hum. | C41: 572 | D41: 397 | E41: 425 | F41: 342 | G41: 92 | I41: 1828
A42: Bac. Nat. | C42: 443 | D42: 508 | E42: 210 | F42: 92 | G42: 19 | I42: 1272
A43: Andre | C43: 1458 | D43: 4966 | E43: 3531 | F43: 2098 | G43: 805 | I43: 12858
A45: Total | C45: 27633 | D45: 60388 | E45: 45607 | F45: 31269 | G45: 9826 | I45: 174723
A47: Ingeniører i alt | C47: 3674 | D47: 7927 | E47: 7274 | F47: 8229 | G47: 2576 | I47: 29680
A48: Magistre i alt | C48: 4050 | D48: 10967 | E48: 10614 | F48: 5374 | G48: 1897 | I48: 32902
A49: DJØF'ere i alt | C49: 9858 | D49: 19977 | E49: 13650 | F49: 8551 | G49: 1779 | I49: 53815
A56: København
C58: Under 30 år | D58: 30 - 39 år | E58: 40 - 49 år | F58: 50 - 59 år | G58: Over 60 år | I58: I alt
A60: Civ. ing. | C60: 1438 | D60: 2493 | E60: 978 | F60: 673 | G60: 174 | I60: 5756
A61: Diplom ing. | C61: 558 | D61: 860 | E61: 733 | F61: 817 | G61: 246 | I61: 3214
A62: Cand. Scient. Tek. | C62: 1956 | D62: 2748 | E62: 571 | F62: 156 | G62: 31 | I62: 5462
A63: MA. Hum. | C63: 1977 | D63: 5041 | E63: 3588 | F63: 1300 | G63: 409 | I63: 12315
A64: MA. Nat. | C64: 338 | D64: 1000 | E64: 947 | F64: 585 | G64: 204 | I64: 3074
A65: MA. Ph.d. | C65: 14 | D65: 215 | E65: 238 | F65: 139 | G65: 46 | I65: 652
A66: MA. Samf. | C66: 663 | D66: 1087 | E66: 334 | F66: 108 | G66: 24 | I66: 2216
A67: Øvrige Mag. | C67: 140 | D67: 233 | E67: 282 | F67: 198 | G67: 57 | I67: 910
A68: Agronom | C68: 55 | D68: 77 | E68: 68 | F68: 55 | G68: 25 | I68: 280
A69: Landsk. Arkt. | C69: 52 | D69: 110 | E69: 56 | F69: 31 | G69: 6 | I69: 255
A70: Hortonom | C70: 0 | D70: 13 | E70: 13 | F70: 19 | G70: 7 | I70: 52
A71: Forstkand. | C71: 12 | D71: 25 | E71: 25 | F71: 19 | G71: 3 | I71: 84
A72: Jordbrugsakad. | C72: 119 | D72: 225 | E72: 162 | F72: 124 | G72: 41 | I72: 671
A73: Mejeriing. | C73: 18 | D73: 18 | E73: 9 | F73: 8 | G73: 1 | I73: 54
A74: Levn.m.kand. | C74: 58 | D74: 80 | E74: 22 | F74: 1 | G74: 1 | I74: 162
A75: Dyrlæge | C75: 92 | D75: 134 | E75: 56 | F75: 40 | G75: 10 | I75: 332
A76: Farmaceut | C76: 342 | D76: 537 | E76: 217 | F76: 107 | G76: 38 | I76: 1241
A77: Læge | C77: 508 | D77: 1225 | E77: 370 | F77: 188 | G77: 107 | I77: 2398
A78: Tandlæge | C78: 64 | D78: 127 | E78: 51 | F78: 44 | G78: 16 | I78: 302
A79: Arkitekt | C79: 200 | D79: 864 | E79: 683 | F79: 369 | G79: 149 | I79: 2265
A80: Landinspek. | C80: 10 | D80: 25 | E80: 13 | F80: 4 | G80: 7 | I80: 59
A81: Bibliotekar | C81: 37 | D81: 241 | E81: 259 | F81: 167 | G81: 113 | I81: 817
A82: Musikudd. | C82: 4 | D82: 24 | E82: 38 | F82: 61 | G82: 19 | I82: 146
A83: Teolog | C83: 12 | D83: 56 | E83: 92 | F83: 59 | G83: 28 | I83: 247
A84: Psykolog | C84: 439 | D84: 838 | E84: 436 | F84: 232 | G84: 99 | I84: 2044
A85: Jurist | C85: 1150 | D85: 1587 | E85: 908 | F85: 556 | G85: 154 | I85: 4355
A86: Økonom | C86: 696 | D86: 946 | E86: 486 | F86: 358 | G86: 77 | I86: 2563
A87: Samf. Adm. | C87: 1907 | D87: 4650 | E87: 2206 | F87: 948 | G87: 160 | I87: 9871
A88: Cand. Merc. | C88: 3134 | D88: 4339 | E88: 1343 | F88: 643 | G88: 75 | I88: 9534
A89: HA | C89: 366 | D89: 281 | E89: 138 | F89: 173 | G89: 29 | I89: 987
A90: HD | C90: 441 | D90: 337 | E90: 81 | F90: 151 | G90: 44 | I90: 1054
A91: Komm. og Sprog | C91: 457 | D91: 668 | E91: 453 | F91: 236 | G91: 69 | I91: 1883
A92: Cand. IT. | C92: 414 | D92: 809 | E92: 299 | F92: 34 | G92: 4 | I92: 1560
A93: Bac. Samf. | C93: 132 | D93: 138 | E93: 110 | F93: 75 | G93: 9 | I93: 464
A94: Bac. Hum. | C94: 434 | D94: 271 | E94: 234 | F94: 176 | G94: 44 | I94: 1159
A95: Bac. Nat. | C95: 311 | D95: 273 | E95: 85 | F95: 32 | G95: 4 | I95: 705
A96: Andre | C96: 1042 | D96: 3008 | E96: 1677 | F96: 865 | G96: 276 | I96: 6868
A98: Total | C98: 19471 | D98: 35378 | E98: 18099 | F98: 9627 | G98: 2765 | I98: 85340
A100: Ingeniører i alt | C100: 1996 | D100: 3353 | E100: 1711 | F100: 1490 | G100: 420 | I100: 8970
A101: Magistre i alt | C101: 3132 | D101: 7576 | E101: 5389 | F101: 2330 | G101: 740 | I101: 19167
A102: DJØF'ere i alt | C102: 7253 | D102: 11803 | E102: 5081 | F102: 2678 | G102: 495 | I102: 27310
A109: Frederiksberg
C111: Under 30 år | D111: 30 - 39 år | E111: 40 - 49 år | F111: 50 - 59 år | G111: Over 60 år | I111: I alt
A113: Civ. ing. | C113: 182 | D113: 433 | E113: 205 | F113: 189 | G113: 58 | I113: 1067
A114: Diplom ing. | C114: 67 | D114: 123 | E114: 137 | F114: 190 | G114: 56 | I114: 573
A115: Cand. Scient. Tek. | C115: 240 | D115: 421 | E115: 109 | F115: 26 | G115: 3 | I115: 799
A116: MA. Hum. | C116: 209 | D116: 593 | E116: 673 | F116: 257 | G116: 84 | I116: 1816
A117: MA. Nat. | C117: 36 | D117: 102 | E117: 191 | F117: 127 | G117: 44 | I117: 500
A118: MA. Ph.d. | C118: 3 | D118: 44 | E118: 53 | F118: 30 | G118: 7 | I118: 137
A119: MA. Samf. | C119: 71 | D119: 139 | E119: 56 | F119: 31 | G119: 2 | I119: 299
A120: Øvrige Mag. | C120: 10 | D120: 27 | E120: 44 | F120: 28 | G120: 9 | I120: 118
A121: Agronom | C121: 7 | D121: 20 | E121: 19 | F121: 25 | G121: 8 | I121: 79
A122: Landsk. Arkt. | C122: 2 | D122: 17 | E122: 8 | F122: 8 | G122: 1 | I122: 36
A123: Hortonom | C123: 0 | D123: 1 | E123: 3 | F123: 3 | G123: 0 | I123: 7
A124: Forstkand. | C124: 1 | D124: 1 | E124: 5 | F124: 3 | G124: 1 | I124: 11
A125: Jordbrugsakad. | C125: 10 | D125: 39 | E125: 35 | F125: 39 | G125: 10 | I125: 133
A126: Mejeriing. | C126: 5 | D126: 4 | E126: 2 | F126: 1 | G126: 2 | I126: 14
A127: Levn.m.kand. | C127: 14 | D127: 19 | E127: 5 | F127: 0 | G127: 0 | I127: 38
A128: Dyrlæge | C128: 21 | D128: 35 | E128: 8 | F128: 11 | G128: 5 | I128: 80
A129: Farmaceut | C129: 54 | D129: 80 | E129: 50 | F129: 45 | G129: 11 | I129: 240
A130: Læge | C130: 77 | D130: 191 | E130: 103 | F130: 67 | G130: 43 | I130: 481
A131: Tandlæge | C131: 12 | D131: 28 | E131: 7 | F131: 6 | G131: 7 | I131: 60
A132: Arkitekt | C132: 31 | D132: 123 | E132: 138 | F132: 92 | G132: 37 | I132: 421
A133: Landinspek. | C133: 1 | D133: 9 | E133: 3 | F133: 1 | G133: 0 | I133: 14
A134: Bibliotekar | C134: 7 | D134: 23 | E134: 60 | F134: 26 | G134: 24 | I134: 140
A135: Musikudd. | C135: 1 | D135: 3 | E135: 3 | F135: 7 | G135: 7 | I135: 21
A136: Teolog | C136: 1 | D136: 8 | E136: 14 | F136: 13 | G136: 2 | I136: 38
A137: Psykolog | C137: 56 | D137: 130 | E137: 71 | F137: 45 | G137: 29 | I137: 331
A138: Jurist | C138: 187 | D138: 339 | E138: 252 | F138: 188 | G138: 66 | I138: 1032
A139: Økonom | C139: 100 | D139: 209 | E139: 117 | F139: 111 | G139: 35 | I139: 572
A140: Samf. Adm. | C140: 260 | D140: 695 | E140: 476 | F140: 206 | G140: 49 | I140: 1686
A141: Cand. Merc. | C141: 656 | D141: 980 | E141: 380 | F141: 218 | G141: 22 | I141: 2256
A142: HA | C142: 67 | D142: 54 | E142: 29 | F142: 35 | G142: 16 | I142: 201
A143: HD | C143: 64 | D143: 52 | E143: 23 | F143: 50 | G143: 24 | I143: 213
A144: Komm. og Sprog | C144: 78 | D144: 135 | E144: 101 | F144: 58 | G144: 19 | I144: 391
A145: Cand. IT. | C145: 38 | D145: 96 | E145: 56 | F145: 11 | G145: 0 | I145: 201
A146: Bac. Samf. | C146: 14 | D146: 14 | E146: 22 | F146: 12 | G146: 1 | I146: 63
A147: Bac. Hum. | C147: 55 | D147: 36 | E147: 47 | F147: 39 | G147: 8 | I147: 185
A148: Bac. Nat. | C148: 37 | D148: 33 | E148: 16 | F148: 4 | G148: 0 | I148: 90
A149: Andre | C149: 150 | D149: 416 | E149: 329 | F149: 186 | G149: 93 | I149: 1174
A151: Total | C151: 2814 | D151: 5633 | E151: 3815 | F151: 2349 | G151: 773 | I151: 15384
A153: Ingeniører i alt | C153: 249 | D153: 556 | E153: 342 | F153: 379 | G153: 114 | I153: 1640
A154: Magistre i alt | C154: 329 | D154: 905 | E154: 1017 | F154: 473 | G154: 146 | I154: 2870
A155: DJØF'ere i alt | C155: 1270 | D155: 2277 | E155: 1254 | F155: 758 | G155: 188 | I155: 5747
A162: Ballerup
C164: Under 30 år | D164: 30 - 39 år | E164: 40 - 49 år | F164: 50 - 59 år | G164: Over 60 år | I164: I alt
A166: Civ. ing. | C166: 31 | D166: 132 | E166: 174 | F166: 136 | G166: 32 | I166: 505
A167: Diplom ing. | C167: 32 | D167: 84 | E167: 132 | F167: 207 | G167: 48 | I167: 503
A168: Cand. Scient. Tek. | C168: 38 | D168: 99 | E168: 34 | F168: 19 | G168: 0 | I168: 190
A169: MA. Hum. | C169: 16 | D169: 58 | E169: 87 | F169: 34 | G169: 17 | I169: 212
A170: MA. Nat. | C170: 6 | D170: 28 | E170: 69 | F170: 48 | G170: 17 | I170: 168
A171: MA. Ph.d. | C171: 0 | D171: 5 | E171: 5 | F171: 9 | G171: 3 | I171: 22
A172: MA. Samf. | C172: 5 | D172: 11 | E172: 6 | F172: 3 | G172: 1 | I172: 26
A173: Øvrige Mag. | C173: 1 | D173: 4 | E173: 10 | F173: 10 | G173: 0 | I173: 25
A174: Agronom | C174: 0 | D174: 5 | E174: 4 | F174: 9 | G174: 5 | I174: 23
A175: Landsk. Arkt. | C175: 1 | D175: 2 | E175: 5 | F175: 1 | G175: 0 | I175: 9
A176: Hortonom | C176: 0 | D176: 0 | E176: 1 | F176: 2 | G176: 0 | I176: 3
A177: Forstkand. | C177: 0 | D177: 1 | E177: 2 | F177: 1 | G177: 0 | I177: 4
A178: Jordbrugsakad. | C178: 1 | D178: 8 | E178: 12 | F178: 13 | G178: 5 | I178: 39
A179: Mejeriing. | C179: 0 | D179: 1 | E179: 1 | F179: 1 | G179: 0 | I179: 3
A180: Levn.m.kand. | C180: 0 | D180: 2 | E180: 1 | F180: 0 | G180: 0 | I180: 3
A181: Dyrlæge | C181: 2 | D181: 11 | E181: 8 | F181: 3 | G181: 2 | I181: 26
A182: Farmaceut | C182: 7 | D182: 41 | E182: 46 | F182: 26 | G182: 2 | I182: 122
A183: Læge | C183: 6 | D183: 33 | E183: 20 | F183: 15 | G183: 9 | I183: 83
A184: Tandlæge | C184: 1 | D184: 3 | E184: 3 | F184: 6 | G184: 2 | I184: 15
A185: Arkitekt | C185: 0 | D185: 3 | E185: 8 | F185: 7 | G185: 0 | I185: 18
A186: Landinspek. | C186: 0 | D186: 1 | E186: 3 | F186: 0 | G186: 1 | I186: 5
A187: Bibliotekar | C187: 3 | D187: 6 | E187: 15 | F187: 15 | G187: 5 | I187: 44
A188: Musikudd. | C188: 0 | D188: 1 | E188: 4 | F188: 1 | G188: 1 | I188: 7
A189: Teolog | C189: 0 | D189: 1 | E189: 2 | F189: 5 | G189: 1 | I189: 9
A190: Psykolog | C190: 4 | D190: 17 | E190: 13 | F190: 10 | G190: 1 | I190: 45
A191: Jurist | C191: 17 | D191: 28 | E191: 38 | F191: 19 | G191: 1 | I191: 103
A192: Økonom | C192: 3 | D192: 16 | E192: 31 | F192: 19 | G192: 4 | I192: 73
A193: Samf. Adm. | C193: 18 | D193: 71 | E193: 55 | F193: 40 | G193: 3 | I193: 187
A194: Cand. Merc. | C194: 27 | D194: 104 | E194: 90 | F194: 40 | G194: 7 | I194: 268
A195: HA | C195: 3 | D195: 3 | E195: 12 | F195: 16 | G195: 3 | I195: 37
A196: HD | C196: 0 | D196: 4 | E196: 9 | F196: 14 | G196: 8 | I196: 35
A197: Komm. og Sprog | C197: 2 | D197: 15 | E197: 24 | F197: 22 | G197: 9 | I197: 72
A198: Cand. IT. | C198: 2 | D198: 20 | E198: 13 | F198: 0 | G198: 0 | I198: 35
A199: Bac. Samf. | C199: 0 | D199: 1 | E199: 3 | F199: 3 | G199: 0 | I199: 7
A200: Bac. Hum. | C200: 1 | D200: 2 | E200: 5 | F200: 4 | G200: 0 | I200: 12
A201: Bac. Nat. | C201: 5 | D201: 11 | E201: 4 | F201: 2 | G201: 1 | I201: 23
A202: Andre | C202: 14 | D202: 58 | E202: 44 | F202: 47 | G202: 13 | I202: 176
A204: Total | C204: 245 | D204: 882 | E204: 981 | F204: 794 | G204: 196 | I204: 3098
A206: Ingeniører i alt | C206: 63 | D206: 216 | E206: 306 | F206: 343 | G206: 80 | I206: 1008
A207: Magistre i alt | C207: 28 | D207: 106 | E207: 177 | F207: 104 | G207: 38 | I207: 453
A208: DJØF'ere i alt | C208: 68 | D208: 222 | E208: 226 | F208: 134 | G208: 18 | I208: 668
A215: Brøndby
C217: Under 30 år | D217: 30 - 39 år | E217: 40 - 49 år | F217: 50 - 59 år | G217: Over 60 år | I217: I alt
A219: Civ. ing. | C219: 21 | D219: 25 | E219: 31 | F219: 39 | G219: 10 | I219: 126
A220: Diplom ing. | C220: 15 | D220: 32 | E220: 50 | F220: 50 | G220: 18 | I220: 165
A221: Cand. Scient. Tek. | C221: 17 | D221: 31 | E221: 10 | F221: 5 | G221: 0 | I221: 63
A222: MA. Hum. | C222: 17 | D222: 31 | E222: 20 | F222: 11 | G222: 1 | I222: 80
A223: MA. Nat. | C223: 4 | D223: 14 | E223: 19 | F223: 13 | G223: 8 | I223: 58
A224: MA. Ph.d. | C224: 0 | D224: 3 | E224: 2 | F224: 0 | G224: 1 | I224: 6
A225: MA. Samf. | C225: 5 | D225: 9 | E225: 3 | F225: 1 | G225: 0 | I225: 18
A226: Øvrige Mag. | C226: 4 | D226: 5 | E226: 3 | F226: 0 | G226: 2 | I226: 14
A227: Agronom | C227: 1 | D227: 2 | E227: 1 | F227: 1 | G227: 1 | I227: 6
A228: Landsk. Arkt. | C228: 0 | D228: 0 | E228: 4 | F228: 1 | G228: 0 | I228: 5
A229: Hortonom | C229: 0 | D229: 0 | E229: 1 | F229: 0 | G229: 1 | I229: 2
A230: Forstkand. | C230: 0 | D230: 0 | E230: 1 | F230: 0 | G230: 0 | I230: 1
A231: Jordbrugsakad. | C231: 1 | D231: 2 | E231: 7 | F231: 2 | G231: 2 | I231: 14
A232: Mejeriing. | C232: 0 | D232: 0 | E232: 0 | F232: 0 | G232: 0 | I232: 0
A233: Levn.m.kand. | C233: 0 | D233: 1 | E233: 0 | F233: 0 | G233: 0 | I233: 1
A234: Dyrlæge | C234: 1 | D234: 1 | E234: 2 | F234: 2 | G234: 0 | I234: 6
A235: Farmaceut | C235: 8 | D235: 14 | E235: 7 | F235: 4 | G235: 1 | I235: 34
A236: Læge | C236: 4 | D236: 10 | E236: 5 | F236: 9 | G236: 4 | I236: 32
A237: Tandlæge | C237: 5 | D237: 4 | E237: 0 | F237: 1 | G237: 2 | I237: 12
A238: Arkitekt | C238: 0 | D238: 2 | E238: 1 | F238: 1 | G238: 0 | I238: 4
A239: Landinspek. | C239: 0 | D239: 1 | E239: 0 | F239: 0 | G239: 0 | I239: 1
A240: Bibliotekar | C240: 0 | D240: 4 | E240: 5 | F240: 4 | G240: 2 | I240: 15
A241: Musikudd. | C241: 0 | D241: 0 | E241: 0 | F241: 0 | G241: 0 | I241: 0
A242: Teolog | C242: 0 | D242: 1 | E242: 1 | F242: 3 | G242: 1 | I242: 6
A243: Psykolog | C243: 3 | D243: 5 | E243: 4 | F243: 0 | G243: 1 | I243: 13
... 1048 more rows

Sheet Tabel 4 H
A1: Tabel 4. Ledighedsberørte - aldersfordelt
A3: Hovedstaden
C5: Under 30 år | D5: 30 - 39 år | E5: 40 - 49 år | F5: 50 - 59 år | G5: Over 60 år | I5: I alt
A7: Civ. ing. | C7: 340 | D7: 174 | E7: 66 | F7: 75 | G7: 29 | I7: 684
A8: Diplom ing. | C8: 153 | D8: 80 | E8: 81 | F8: 122 | G8: 44 | I8: 480
A9: Cand. Scient. Tek | C9: 544 | D9: 345 | E9: 64 | F9: 28 | G9: 5 | I9: 986
A10: MA. Hum. | C10: 713 | D10: 837 | E10: 384 | F10: 175 | G10: 73 | I10: 2182
A11: MA. Nat. | C11: 116 | D11: 97 | E11: 64 | F11: 38 | G11: 17 | I11: 332
A12: MA. Ph.d. | C12: 2 | D12: 23 | E12: 26 | F12: 21 | G12: 3 | I12: 75
A13: MA. Samf. | C13: 201 | D13: 200 | E13: 45 | F13: 12 | G13: 3 | I13: 461
A14: Øvrige Mag. | C14: 60 | D14: 39 | E14: 26 | F14: 18 | G14: 9 | I14: 152
A15: Agronom | C15: 20 | D15: 15 | E15: 7 | F15: 5 | G15: 4 | I15: 51
A16: Landsk. Arkt. | C16: 18 | D16: 16 | E16: 4 | F16: 3 | G16: 0 | I16: 41
A17: Hortonom | C17: 0 | D17: 0 | E17: 2 | F17: 2 | G17: 2 | I17: 6
A18: Forstkand. | C18: 5 | D18: 6 | E18: 2 | F18: 2 | G18: 1 | I18: 16
A19: Jordbrugsakad. | C19: 43 | D19: 37 | E19: 15 | F19: 12 | G19: 7 | I19: 114
A20: Mejeriing. | C20: 10 | D20: 4 | E20: 1 | F20: 0 | G20: 0 | I20: 15
A21: Levn.m.kand. | C21: 19 | D21: 10 | E21: 3 | F21: 1 | G21: 0 | I21: 33
A22: Dyrlæge | C22: 43 | D22: 32 | E22: 8 | F22: 5 | G22: 2 | I22: 90
A23: Farmaceut | C23: 76 | D23: 46 | E23: 8 | F23: 14 | G23: 5 | I23: 149
A24: Læge | C24: 46 | D24: 48 | E24: 16 | F24: 5 | G24: 1 | I24: 116
A25: Tandlæge | C25: 12 | D25: 17 | E25: 6 | F25: 3 | G25: 2 | I25: 40
A26: Arkitekt | C26: 59 | D26: 108 | E26: 63 | F26: 31 | G26: 27 | I26: 288
A27: Landinspek. | C27: 0 | D27: 2 | E27: 2 | F27: 0 | G27: 0 | I27: 4
A28: Bibliotekar | C28: 12 | D28: 30 | E28: 22 | F28: 14 | G28: 8 | I28: 86
A29: Musikudd. | C29: 2 | D29: 3 | E29: 9 | F29: 5 | G29: 4 | I29: 23
A30: Teolog | C30: 2 | D30: 11 | E30: 7 | F30: 10 | G30: 1 | I30: 31
A31: Psykolog | C31: 67 | D31: 99 | E31: 36 | F31: 10 | G31: 10 | I31: 222
A32: Jurist | C32: 71 | D32: 63 | E32: 39 | F32: 31 | G32: 18 | I32: 222
A33: Økonom | C33: 42 | D33: 38 | E33: 18 | F33: 25 | G33: 15 | I33: 138
A34: Samf. Adm. | C34: 382 | D34: 408 | E34: 151 | F34: 80 | G34: 19 | I34: 1040
A35: Cand. Merc. | C35: 375 | D35: 344 | E35: 154 | F35: 121 | G35: 25 | I35: 1019
A36: HA | C36: 106 | D36: 32 | E36: 16 | F36: 26 | G36: 18 | I36: 198
A37: HD | C37: 111 | D37: 45 | E37: 13 | F37: 26 | G37: 20 | I37: 215
A38: Komm. og Sprog | C38: 105 | D38: 111 | E38: 70 | F38: 46 | G38: 21 | I38: 353
A39: Cand. IT. | C39: 61 | D39: 74 | E39: 24 | F39: 8 | G39: 1 | I39: 168
A40: Bac. Samf. | C40: 44 | D40: 13 | E40: 11 | F40: 9 | G40: 1 | I40: 78
A41: Bac. Hum. | C41: 209 | D41: 57 | E41: 28 | F41: 23 | G41: 9 | I41: 326
A42: Bac. Nat. | C42: 113 | D42: 35 | E42: 6 | F42: 4 | G42: 1 | I42: 159
A43: Andre | C43: 215 | D43: 448 | E43: 256 | F43: 210 | G43: 90 | I43: 1219
A45: Total | C45: 4354 | D45: 3910 | E45: 1738 | F45: 1208 | G45: 488 | I45: 11698
A47: Ingeniører i alt | C47: 493 | D47: 254 | E47: 147 | F47: 197 | G47: 73 | I47: 1164
A48: Magistre i alt | C48: 1092 | D48: 1196 | E48: 545 | F48: 264 | G48: 105 | I48: 3202
A49: DJØF'ere i alt | C49: 976 | D49: 885 | E49: 378 | F49: 283 | G49: 95 | I49: 2617
A56: København
C58: Under 30 år | D58: 30 - 39 år | E58: 40 - 49 år | F58: 50 - 59 år | G58: Over 60 år | I58: I alt
A60: Civ. ing. | C60: 175 | D60: 91 | E60: 20 | F60: 18 | G60: 3 | I60: 307
A61: Diplom ing. | C61: 82 | D61: 35 | E61: 32 | F61: 27 | G61: 11 | I61: 187
A62: Cand. Scient. Tek | C62: 384 | D62: 235 | E62: 28 | F62: 10 | G62: 0 | I62: 657
A63: MA. Hum. | C63: 554 | D63: 644 | E63: 241 | F63: 90 | G63: 38 | I63: 1567
A64: MA. Nat. | C64: 82 | D64: 70 | E64: 25 | F64: 21 | G64: 7 | I64: 205
A65: MA. Ph.d. | C65: 2 | D65: 17 | E65: 19 | F65: 14 | G65: 2 | I65: 54
A66: MA. Samf. | C66: 159 | D66: 152 | E66: 30 | F66: 7 | G66: 3 | I66: 351
A67: Øvrige Mag. | C67: 50 | D67: 29 | E67: 15 | F67: 10 | G67: 4 | I67: 108
A68: Agronom | C68: 16 | D68: 8 | E68: 4 | F68: 0 | G68: 0 | I68: 28
A69: Landsk. Arkt. | C69: 16 | D69: 12 | E69: 3 | F69: 2 | G69: 0 | I69: 33
A70: Hortonom | C70: 0 | D70: 0 | E70: 1 | F70: 0 | G70: 1 | I70: 2
A71: Forstkand. | C71: 4 | D71: 4 | E71: 1 | F71: 2 | G71: 0 | I71: 11
A72: Jordbrugsakad. | C72: 36 | D72: 24 | E72: 9 | F72: 4 | G72: 1 | I72: 74
A73: Mejeriing. | C73: 8 | D73: 1 | E73: 0 | F73: 0 | G73: 0 | I73: 9
A74: Levn.m.kand. | C74: 14 | D74: 4 | E74: 2 | F74: 0 | G74: 0 | I74: 20
A75: Dyrlæge | C75: 26 | D75: 18 | E75: 4 | F75: 1 | G75: 1 | I75: 50
A76: Farmaceut | C76: 45 | D76: 25 | E76: 5 | F76: 5 | G76: 0 | I76: 80
A77: Læge | C77: 36 | D77: 29 | E77: 6 | F77: 1 | G77: 1 | I77: 73
A78: Tandlæge | C78: 7 | D78: 10 | E78: 2 | F78: 1 | G78: 0 | I78: 20
A79: Arkitekt | C79: 52 | D79: 93 | E79: 44 | F79: 14 | G79: 14 | I79: 217
A80: Landinspek. | C80: 0 | D80: 0 | E80: 1 | F80: 0 | G80: 0 | I80: 1
A81: Bibliotekar | C81: 9 | D81: 21 | E81: 12 | F81: 9 | G81: 1 | I81: 52
A82: Musikudd. | C82: 1 | D82: 1 | E82: 6 | F82: 2 | G82: 0 | I82: 10
A83: Teolog | C83: 2 | D83: 9 | E83: 3 | F83: 8 | G83: 0 | I83: 22
A84: Psykolog | C84: 50 | D84: 70 | E84: 22 | F84: 1 | G84: 5 | I84: 148
A85: Jurist | C85: 52 | D85: 32 | E85: 15 | F85: 13 | G85: 10 | I85: 122
A86: Økonom | C86: 33 | D86: 26 | E86: 12 | F86: 7 | G86: 7 | I86: 85
A87: Samf. Adm. | C87: 293 | D87: 293 | E87: 96 | F87: 42 | G87: 5 | I87: 729
A88: Cand. Merc. | C88: 278 | D88: 216 | E88: 63 | F88: 41 | G88: 8 | I88: 606
A89: HA | C89: 77 | D89: 15 | E89: 8 | F89: 7 | G89: 3 | I89: 110
A90: HD | C90: 86 | D90: 31 | E90: 3 | F90: 5 | G90: 1 | I90: 126
A91: Komm. og Sprog | C91: 80 | D91: 67 | E91: 40 | F91: 14 | G91: 6 | I91: 207
A92: Cand. IT. | C92: 48 | D92: 55 | E92: 11 | F92: 5 | G92: 0 | I92: 119
A93: Bac. Samf. | C93: 33 | D93: 6 | E93: 7 | F93: 3 | G93: 1 | I93: 50
A94: Bac. Hum. | C94: 163 | D94: 39 | E94: 16 | F94: 12 | G94: 5 | I94: 235
A95: Bac. Nat. | C95: 86 | D95: 21 | E95: 3 | F95: 2 | G95: 1 | I95: 113
A96: Andre | C96: 164 | D96: 309 | E96: 141 | F96: 109 | G96: 35 | I96: 758
A98: Total | C98: 3167 | D98: 2688 | E98: 941 | F98: 503 | G98: 173 | I98: 7472
A100: Ingeniører i alt | C100: 257 | D100: 126 | E100: 52 | F100: 45 | G100: 14 | I100: 494
A101: Magistre i alt | C101: 847 | D101: 912 | E101: 330 | F101: 142 | G101: 54 | I101: 2285
A102: DJØF'ere i alt | C102: 733 | D102: 582 | E102: 194 | F102: 110 | G102: 33 | I102: 1652
A109: Frederiksberg
C111: Under 30 år | D111: 30 - 39 år | E111: 40 - 49 år | F111: 50 - 59 år | G111: Over 60 år | I111: I alt
A113: Civ. ing. | C113: 16 | D113: 17 | E113: 3 | F113: 6 | G113: 2 | I113: 44
A114: Diplom ing. | C114: 7 | D114: 3 | E114: 4 | F114: 10 | G114: 1 | I114: 25
A115: Cand. Scient. Tek | C115: 31 | D115: 21 | E115: 3 | F115: 3 | G115: 0 | I115: 58
A116: MA. Hum. | C116: 50 | D116: 52 | E116: 47 | F116: 21 | G116: 7 | I116: 177
A117: MA. Nat. | C117: 7 | D117: 6 | E117: 5 | F117: 2 | G117: 2 | I117: 22
A118: MA. Ph.d. | C118: 0 | D118: 5 | E118: 2 | F118: 0 | G118: 0 | I118: 7
A119: MA. Samf. | C119: 14 | D119: 13 | E119: 5 | F119: 2 | G119: 0 | I119: 34
A120: Øvrige Mag. | C120: 4 | D120: 2 | E120: 5 | F120: 2 | G120: 1 | I120: 14
A121: Agronom | C121: 2 | D121: 3 | E121: 0 | F121: 1 | G121: 0 | I121: 6
A122: Landsk. Arkt. | C122: 0 | D122: 0 | E122: 0 | F122: 0 | G122: 0 | I122: 0
A123: Hortonom | C123: 0 | D123: 0 | E123: 0 | F123: 0 | G123: 0 | I123: 0
A124: Forstkand. | C124: 0 | D124: 0 | E124: 0 | F124: 0 | G124: 0 | I124: 0
A125: Jordbrugsakad. | C125: 2 | D125: 3 | E125: 0 | F125: 1 | G125: 0 | I125: 6
A126: Mejeriing. | C126: 1 | D126: 1 | E126: 0 | F126: 0 | G126: 0 | I126: 2
A127: Levn.m.kand. | C127: 4 | D127: 2 | E127: 0 | F127: 0 | G127: 0 | I127: 6
A128: Dyrlæge | C128: 6 | D128: 2 | E128: 0 | F128: 1 | G128: 0 | I128: 9
A129: Farmaceut | C129: 5 | D129: 2 | E129: 0 | F129: 1 | G129: 0 | I129: 8
A130: Læge | C130: 2 | D130: 5 | E130: 2 | F130: 1 | G130: 0 | I130: 10
A131: Tandlæge | C131: 0 | D131: 1 | E131: 0 | F131: 0 | G131: 0 | I131: 1
A132: Arkitekt | C132: 6 | D132: 6 | E132: 3 | F132: 8 | G132: 3 | I132: 26
A133: Landinspek. | C133: 0 | D133: 1 | E133: 1 | F133: 0 | G133: 0 | I133: 2
A134: Bibliotekar | C134: 1 | D134: 1 | E134: 2 | F134: 0 | G134: 1 | I134: 5
A135: Musikudd. | C135: 0 | D135: 0 | E135: 0 | F135: 1 | G135: 1 | I135: 2
A136: Teolog | C136: 0 | D136: 0 | E136: 2 | F136: 1 | G136: 0 | I136: 3
A137: Psykolog | C137: 6 | D137: 7 | E137: 2 | F137: 1 | G137: 2 | I137: 18
A138: Jurist | C138: 4 | D138: 10 | E138: 4 | F138: 3 | G138: 3 | I138: 24
A139: Økonom | C139: 2 | D139: 1 | E139: 1 | F139: 0 | G139: 0 | I139: 4
A140: Samf. Adm. | C140: 30 | D140: 38 | E140: 13 | F140: 7 | G140: 3 | I140: 91
A141: Cand. Merc. | C141: 51 | D141: 41 | E141: 17 | F141: 3 | G141: 2 | I141: 114
A142: HA | C142: 10 | D142: 6 | E142: 2 | F142: 2 | G142: 1 | I142: 21
A143: HD | C143: 10 | D143: 3 | E143: 0 | F143: 3 | G143: 1 | I143: 17
A144: Komm. og Sprog | C144: 10 | D144: 18 | E144: 6 | F144: 0 | G144: 0 | I144: 34
A145: Cand. IT. | C145: 2 | D145: 1 | E145: 3 | F145: 1 | G145: 0 | I145: 7
A146: Bac. Samf. | C146: 3 | D146: 2 | E146: 0 | F146: 3 | G146: 0 | I146: 8
A147: Bac. Hum. | C147: 19 | D147: 6 | E147: 2 | F147: 2 | G147: 0 | I147: 29
A148: Bac. Nat. | C148: 13 | D148: 3 | E148: 0 | F148: 0 | G148: 0 | I148: 16
A149: Andre | C149: 19 | D149: 37 | E149: 20 | F149: 20 | G149: 8 | I149: 104
A151: Total | C151: 335 | D151: 316 | E151: 154 | F151: 105 | G151: 38 | I151: 948
A153: Ingeniører i alt | C153: 23 | D153: 20 | E153: 7 | F153: 16 | G153: 3 | I153: 69
A154: Magistre i alt | C154: 75 | D154: 78 | E154: 64 | F154: 27 | G154: 10 | I154: 254
A155: DJØF'ere i alt | C155: 97 | D155: 96 | E155: 37 | F155: 15 | G155: 9 | I155: 254
A162: Ballerup
C164: Under 30 år | D164: 30 - 39 år | E164: 40 - 49 år | F164: 50 - 59 år | G164: Over 60 år | I164: I alt
A166: Civ. ing. | C166: 2 | D166: 5 | E166: 0 | F166: 4 | G166: 1 | I166: 12
A167: Diplom ing. | C167: 3 | D167: 2 | E167: 2 | F167: 5 | G167: 3 | I167: 15
A168: Cand. Scient. Tek | C168: 9 | D168: 4 | E168: 3 | F168: 0 | G168: 0 | I168: 16
A169: MA. Hum. | C169: 6 | D169: 3 | E169: 3 | F169: 1 | G169: 2 | I169: 15
A170: MA. Nat. | C170: 1 | D170: 0 | E170: 2 | F170: 0 | G170: 0 | I170: 3
A171: MA. Ph.d. | C171: 0 | D171: 0 | E171: 0 | F171: 1 | G171: 0 | I171: 1
A172: MA. Samf. | C172: 1 | D172: 1 | E172: 0 | F172: 0 | G172: 0 | I172: 2
A173: Øvrige Mag. | C173: 1 | D173: 0 | E173: 0 | F173: 1 | G173: 0 | I173: 2
A174: Agronom | C174: 0 | D174: 0 | E174: 0 | F174: 1 | G174: 0 | I174: 1
A175: Landsk. Arkt. | C175: 1 | D175: 0 | E175: 0 | F175: 0 | G175: 0 | I175: 1
A176: Hortonom | C176: 0 | D176: 0 | E176: 0 | F176: 0 | G176: 0 | I176: 0
A177: Forstkand. | C177: 0 | D177: 0 | E177: 0 | F177: 0 | G177: 0 | I177: 0
A178: Jordbrugsakad. | C178: 1 | D178: 0 | E178: 0 | F178: 1 | G178: 0 | I178: 2
A179: Mejeriing. | C179: 0 | D179: 0 | E179: 0 | F179: 0 | G179: 0 | I179: 0
A180: Levn.m.kand. | C180: 0 | D180: 0 | E180: 0 | F180: 0 | G180: 0 | I180: 0
A181: Dyrlæge | C181: 0 | D181: 2 | E181: 0 | F181: 0 | G181: 0 | I181: 2
A182: Farmaceut | C182: 1 | D182: 0 | E182: 0 | F182: 1 | G182: 0 | I182: 2
A183: Læge | C183: 0 | D183: 2 | E183: 1 | F183: 0 | G183: 0 | I183: 3
A184: Tandlæge | C184: 1 | D184: 0 | E184: 0 | F184: 0 | G184: 0 | I184: 1
A185: Arkitekt | C185: 0 | D185: 1 | E185: 0 | F185: 0 | G185: 0 | I185: 1
A186: Landinspek. | C186: 0 | D186: 0 | E186: 0 | F186: 0 | G186: 0 | I186: 0
A187: Bibliotekar | C187: 1 | D187: 1 | E187: 2 | F187: 0 | G187: 0 | I187: 4
A188: Musikudd. | C188: 0 | D188: 0 | E188: 1 | F188: 0 | G188: 0 | I188: 1
A189: Teolog | C189: 0 | D189: 0 | E189: 0 | F189: 0 | G189: 0 | I189: 0
A190: Psykolog | C190: 0 | D190: 1 | E190: 1 | F190: 1 | G190: 0 | I190: 3
A191: Jurist | C191: 2 | D191: 2 | E191: 1 | F191: 0 | G191: 0 | I191: 5
A192: Økonom | C192: 0 | D192: 2 | E192: 0 | F192: 0 | G192: 0 | I192: 2
A193: Samf. Adm. | C193: 3 | D193: 5 | E193: 2 | F193: 0 | G193: 0 | I193: 10
A194: Cand. Merc. | C194: 2 | D194: 2 | E194: 0 | F194: 3 | G194: 0 | I194: 7
A195: HA | C195: 0 | D195: 1 | E195: 0 | F195: 2 | G195: 1 | I195: 4
A196: HD | C196: 0 | D196: 0 | E196: 2 | F196: 1 | G196: 0 | I196: 3
A197: Komm. og Sprog | C197: 2 | D197: 0 | E197: 1 | F197: 1 | G197: 0 | I197: 4
A198: Cand. IT. | C198: 0 | D198: 1 | E198: 0 | F198: 0 | G198: 0 | I198: 1
A199: Bac. Samf. | C199: 0 | D199: 0 | E199: 0 | F199: 0 | G199: 0 | I199: 0
A200: Bac. Hum. | C200: 1 | D200: 0 | E200: 1 | F200: 0 | G200: 0 | I200: 2
A201: Bac. Nat. | C201: 1 | D201: 0 | E201: 0 | F201: 0 | G201: 0 | I201: 1
A202: Andre | C202: 1 | D202: 5 | E202: 3 | F202: 0 | G202: 0 | I202: 9
A204: Total | C204: 39 | D204: 40 | E204: 25 | F204: 22 | G204: 7 | I204: 133
A206: Ingeniører i alt | C206: 5 | D206: 7 | E206: 2 | F206: 9 | G206: 4 | I206: 27
A207: Magistre i alt | C207: 9 | D207: 4 | E207: 5 | F207: 3 | G207: 2 | I207: 23
A208: DJØF'ere i alt | C208: 7 | D208: 12 | E208: 3 | F208: 5 | G208: 1 | I208: 28
A215: Brøndby
C217: Under 30 år | D217: 30 - 39 år | E217: 40 - 49 år | F217: 50 - 59 år | G217: Over 60 år | I217: I alt
A219: Civ. ing. | C219: 5 | D219: 0 | E219: 0 | F219: 2 | G219: 0 | I219: 7
A220: Diplom ing. | C220: 3 | D220: 1 | E220: 1 | F220: 1 | G220: 0 | I220: 6
A221: Cand. Scient. Tek | C221: 5 | D221: 2 | E221: 1 | F221: 1 | G221: 0 | I221: 9
A222: MA. Hum. | C222: 4 | D222: 3 | E222: 0 | F222: 1 | G222: 0 | I222: 8
A223: MA. Nat. | C223: 2 | D223: 1 | E223: 2 | F223: 0 | G223: 0 | I223: 5
A224: MA. Ph.d. | C224: 0 | D224: 0 | E224: 0 | F224: 0 | G224: 0 | I224: 0
A225: MA. Samf. | C225: 1 | D225: 1 | E225: 1 | F225: 0 | G225: 0 | I225: 3
A226: Øvrige Mag. | C226: 2 | D226: 1 | E226: 0 | F226: 0 | G226: 0 | I226: 3
A227: Agronom | C227: 0 | D227: 1 | E227: 0 | F227: 0 | G227: 0 | I227: 1
A228: Landsk. Arkt. | C228: 0 | D228: 0 | E228: 0 | F228: 0 | G228: 0 | I228: 0
A229: Hortonom | C229: 0 | D229: 0 | E229: 0 | F229: 0 | G229: 0 | I229: 0
A230: Forstkand. | C230: 0 | D230: 0 | E230: 0 | F230: 0 | G230: 0 | I230: 0
A231: Jordbrugsakad. | C231: 0 | D231: 1 | E231: 0 | F231: 0 | G231: 0 | I231: 1
A232: Mejeriing. | C232: 0 | D232: 0 | E232: 0 | F232: 0 | G232: 0 | I232: 0
A233: Levn.m.kand. | C233: 0 | D233: 0 | E233: 0 | F233: 0 | G233: 0 | I233: 0
A234: Dyrlæge | C234: 0 | D234: 0 | E234: 0 | F234: 0 | G234: 0 | I234: 0
A235: Farmaceut | C235: 0 | D235: 1 | E235: 0 | F235: 0 | G235: 0 | I235: 1
A236: Læge | C236: 1 | D236: 0 | E236: 0 | F236: 0 | G236: 0 | I236: 1
A237: Tandlæge | C237: 0 | D237: 1 | E237: 0 | F237: 0 | G237: 0 | I237: 1
A238: Arkitekt | C238: 0 | D238: 0 | E238: 0 | F238: 0 | G238: 0 | I238: 0
A239: Landinspek. | C239: 0 | D239: 0 | E239: 0 | F239: 0 | G239: 0 | I239: 0
A240: Bibliotekar | C240: 0 | D240: 1 | E240: 0 | F240: 0 | G240: 0 | I240: 1
A241: Musikudd. | C241: 0 | D241: 0 | E241: 0 | F241: 0 | G241: 0 | I241: 0
A242: Teolog | C242: 0 | D242: 0 | E242: 0 | F242: 0 | G242: 0 | I242: 0
A243: Psykolog | C243: 3 | D243: 0 | E243: 0 | F243: 0 | G243: 0 | I243: 3
... 1048 more rows

Sheet Tabel 4(Br) H
A1: Tabel 4. Ledighedsberørte - aldersfordelt
A3: Hovedstaden
C5: Under 30 år | D5: 30 - 39 år | E5: 40 - 49 år | F5: 50 - 59 år | G5: Over 60 år | I5: I alt
A7: Civ. ing. | C7: 307.8213684 | D7: 154.5793052 | E7: 55.73567018 | F7: 62.817938 | G7: 23.98615356 | I7: 604.9404354
A8: Diplom ing. | C8: 143.845818 | D8: 70.75157488 | E8: 67.29932015 | F8: 106.8851743 | G8: 37.31553671 | I8: 426.0974241
A9: Cand. Scient. Tek | C9: 493.6580802 | D9: 302.2291524 | E9: 52.63331878 | F9: 24.25684526 | G9: 4.774527537 | I9: 877.5519242
A10: MA. Hum. | C10: 629.9856546 | D10: 714.4477016 | E10: 327.7596208 | F10: 147.8170024 | G10: 59.48044658 | I10: 1879.490426
A11: MA. Nat. | C11: 100.72725 | D11: 85.26351899 | E11: 51.64535645 | F11: 32.43934385 | G11: 12.10565708 | I11: 282.1811264
A12: MA. Ph.d. | C12: 1.445768103 | D12: 18.88978981 | E12: 21.94972868 | F12: 18.89477952 | G12: 2.799226595 | I12: 63.97929271
A13: MA. Samf. | C13: 179.7380403 | D13: 171.28485 | E13: 40.14532527 | F13: 10.05176823 | G13: 2.676355018 | I13: 403.8963388
A14: Øvrige Mag. | C14: 55.75687644 | D14: 34.1258654 | E14: 23.83334373 | F14: 14.24811327 | G14: 6.473523358 | I14: 134.4377222
A15: Agronom | C15: 18.9490426 | D15: 12.76118007 | E15: 5.997629888 | F15: 3.096737978 | G15: 2.855360818 | I15: 43.65995135
A16: Landsk. Arkt. | C16: 16.1772594 | D16: 15.76623215 | E16: 3.648724506 | F16: 2.999438658 | G16: 0 | I16: 38.59165471
A17: Hortonom | C17: 0 | D17: 0 | E17: 1.630387326 | F17: 1.538077715 | G17: 1.307303686 | I17: 4.475768727
A18: Forstkand. | C18: 4.56495977 | D18: 5.489303312 | E18: 1.815006549 | F18: 1.630387326 | G18: 0.9998128859 | I18: 14.49946984
A19: Jordbrugsakad. | C19: 39.69126177 | D19: 34.01671552 | E19: 13.09174827 | F19: 9.264641677 | G19: 5.16247739 | I19: 101.2268446
A20: Mejeriing. | C20: 8.778145076 | D20: 3.491548681 | E20: 0.9536580802 | F20: 0 | G20: 0 | I20: 13.22335184
A21: Levn.m.kand. | C21: 17.10534523 | D21: 8.709536581 | E21: 1.708351525 | F21: 0.9998128859 | G21: 0 | I21: 28.52304622
A22: Dyrlæge | C22: 34.82504834 | D22: 24.64042911 | E22: 6.539636999 | F22: 3.969937005 | G22: 1.690887544 | I22: 71.665939
A23: Farmaceut | C23: 70.06112393 | D23: 41.07091624 | E23: 6.169151126 | F23: 9.9357575 | G23: 4.629825984 | I23: 131.8667748
A24: Læge | C24: 38.52990707 | D24: 36.6544003 | E24: 12.82791742 | F24: 4.189484189 | G24: 0.9075032745 | I24: 93.10921225
A25: Tandlæge | C25: 8.733861411 | D25: 10.9867149 | E25: 3.186552735 | F25: 1.636000748 | G25: 1.999625772 | I25: 26.54275557
A26: Arkitekt | C26: 54.22378844 | D26: 88.6141084 | E26: 54.46641302 | F26: 27.6317595 | G26: 21.46323208 | I26: 246.3993014
A27: Landinspek. | C27: 0 | D27: 1.214994075 | E27: 1.999625772 | F27: 0 | G27: 0 | I27: 3.214619847
A28: Bibliotekar | C28: 11.23682405 | D28: 26.62508576 | E28: 18.58292272 | F28: 11.82373854 | G28: 6.599513503 | I28: 74.86808458
A29: Musikudd. | C29: 1.999625772 | D29: 2.738102663 | E29: 7.572506705 | F29: 4.012349529 | G29: 2.755566644 | I29: 19.07815131
A30: Teolog | C30: 1.999625772 | D30: 10.05800536 | E30: 5.540447826 | F30: 7.933636874 | G30: 0.3536456059 | I30: 25.88536144
A31: Psykolog | C31: 55.93463482 | D31: 84.81818749 | E31: 28.69456745 | F31: 6.968128236 | G31: 8.764423377 | I31: 185.1799414
A32: Jurist | C32: 63.37553795 | D32: 54.24686584 | E32: 30.43535209 | F32: 27.20888168 | G32: 15.70697936 | I32: 190.9736169
A33: Økonom | C33: 38.36649411 | D33: 34.91673424 | E33: 14.07347346 | F33: 20.66799726 | G33: 11.37466475 | I33: 119.3993638
A34: Samf. Adm. | C34: 349.5777459 | D34: 358.0951787 | E34: 132.2366369 | F34: 66.45169338 | G34: 15.3421069 | I34: 921.7033618
A35: Cand. Merc. | C35: 344.6660014 | D35: 292.6408033 | E35: 130.3174702 | F35: 100.5133163 | G35: 21.59421194 | I35: 889.7318032
A36: HA | C36: 96.23713591 | D36: 27.053577 | E36: 14.03168465 | F36: 21.79068172 | G36: 16.13671802 | I36: 175.2497973
A37: HD | C37: 106.9712468 | D37: 38.13821493 | E37: 9.480446579 | F37: 23.09611426 | G37: 18.54674733 | I37: 196.2327699
A38: Komm. og Sprog | C38: 88.30162789 | D38: 96.05501154 | E38: 58.92908376 | F38: 38.08707042 | G38: 18.95590345 | I38: 300.3286971
A39: Cand. IT. | C39: 55.50988586 | D39: 67.30867586 | E39: 21.42019585 | F39: 5.79991268 | G39: 0.9998128859 | I39: 151.0384831
A40: Bac. Samf. | C40: 40.60188362 | D40: 11.44826296 | E40: 9.905819248 | F40: 7.101602944 | G40: 0.9998128859 | I40: 70.05738165
A41: Bac. Hum. | C41: 176.2502339 | D41: 48.01035365 | E41: 24.23314414 | F41: 17.80702302 | G41: 7.238819934 | I41: 273.5395746
A42: Bac. Nat. | C42: 100.2844134 | D42: 30.64367243 | E42: 5.637123433 | F42: 3.906941932 | G42: 0.9998128859 | I42: 141.4719641
A43: Andre | C43: 194.2587164 | D43: 378.8361504 | E43: 215.7369176 | F43: 178.112019 | G43: 75.72693819 | I43: 1042.670742
A45: Total | C45: 3910.498971 | D45: 3362.604004 | E45: 1468.772532 | F45: 1016.319466 | G45: 407.5606561 | I45: 10165.75563
A47: Ingeniører i alt | C47: 451.6671864 | D47: 225.3308801 | E47: 123.0349903 | F47: 169.7031123 | G47: 61.30169026 | I47: 1031.037859
A48: Magistre i alt | C48: 967.6535895 | D48: 1024.011726 | E48: 465.3333749 | F48: 223.4510073 | G48: 83.53520863 | I48: 2763.984906
A49: DJØF'ere i alt | C49: 892.2229152 | D49: 766.9531591 | E49: 321.0946174 | F49: 236.6325703 | G49: 80.15468097 | I49: 2297.057943
A56: København
C58: Under 30 år | D58: 30 - 39 år | E58: 40 - 49 år | F58: 50 - 59 år | G58: Over 60 år | I58: I alt
A60: Civ. ing. | C60: 160.2002121 | D60: 83.70984844 | E60: 16.26956901 | F60: 13.3181563 | G60: 2.999438658 | I60: 276.4972245
A61: Diplom ing. | C61: 77.78706418 | D61: 29.37691012 | E61: 26.08307865 | F61: 24.2817938 | G61: 9.098110148 | I61: 166.6269569
A62: Cand. Scient. Tek | C62: 345.905944 | D62: 206.7230088 | E62: 23.61691511 | F62: 9.536580802 | G62: 0 | I62: 585.7824487
A63: MA. Hum. | C63: 489.9600823 | D63: 550.6929458 | E63: 205.4693445 | F63: 74.8188112 | G63: 30.19709349 | I63: 1351.138277
A64: MA. Nat. | C64: 70.15904697 | D64: 63.29008919 | E64: 21.49753633 | F64: 16.56832782 | G64: 4.314226907 | I64: 175.8292272
A65: MA. Ph.d. | C65: 1.445768103 | D65: 13.53707977 | E65: 16.67997256 | F65: 11.94224412 | G65: 1.90731616 | I65: 45.51238071
A66: MA. Samf. | C66: 141.622279 | D66: 132.0563837 | E66: 26.29701241 | F66: 5.14501341 | G66: 2.676355018 | I66: 307.7970436
A67: Øvrige Mag. | C67: 46.83215867 | D67: 24.95103848 | E67: 13.25079523 | F67: 7.903074908 | G67: 3.168465041 | I67: 96.10553234
A68: Agronom | C68: 14.94979106 | D68: 7.296825298 | E68: 2.998191231 | F68: 0 | G68: 0 | I68: 25.24480758
A69: Landsk. Arkt. | C69: 14.17763363 | D69: 11.7669806 | E69: 2.64891162 | F69: 1.999625772 | G69: 0 | I69: 30.59315162
A70: Hortonom | C70: 0 | D70: 0 | E70: 0.9998128859 | F70: 0 | G70: 0.3074908002 | I70: 1.307303686
A71: Forstkand. | C71: 3.565146885 | D71: 3.906941932 | E71: 0.8151936631 | F71: 1.630387326 | G71: 0 | I71: 9.917669806
A72: Jordbrugsakad. | C72: 32.69257157 | D72: 22.97074783 | E72: 7.462109399 | F72: 3.630013098 | G72: 0.3074908002 | I72: 67.0629327
A73: Mejeriing. | C73: 7.47084139 | D73: 0.9998128859 | E73: 0 | F73: 0 | G73: 0 | I73: 8.470654276
A74: Levn.m.kand. | C74: 12.23102351 | D74: 3.218362128 | E74: 0.7085386391 | F74: 0 | G74: 0 | I74: 16.15792428
A75: Dyrlæge | C75: 21.84993451 | D75: 12.36200337 | E75: 3.063057444 | F75: 0.8501216242 | G75: 0.9998128859 | I75: 39.12492983
A76: Farmaceut | C76: 41.8586665 | D76: 22.26283291 | E76: 4.274309237 | F76: 3.522110647 | G76: 0 | I76: 71.91791929
A77: Læge | C77: 29.74490114 | D77: 21.9091873 | E77: 5.491174453 | F77: 0.9998128859 | G77: 0.9075032745 | I77: 59.05257906
A78: Tandlæge | C78: 4.965383896 | D78: 6.64753945 | E78: 0.5407596832 | F78: 0.3998004117 | G78: 0 | I78: 12.55348344
A79: Arkitekt | C79: 48.79685648 | D79: 77.18081457 | E79: 38.61785068 | F79: 13.06430487 | G79: 12.06948169 | I79: 189.7293083
A80: Landinspek. | C80: 0 | D80: 0 | E80: 0.9998128859 | F80: 0 | G80: 0 | I80: 0.9998128859
A81: Bibliotekar | C81: 8.965882867 | D81: 19.42680721 | E81: 10.06611364 | F81: 7.286222167 | G81: 0.9860911869 | I81: 46.73111707
A82: Musikudd. | C82: 0.9998128859 | D82: 0.9998128859 | E82: 5.050832658 | F82: 1.241813759 | G82: 0 | I82: 8.292272189
A83: Teolog | C83: 1.999625772 | D83: 8.906006362 | E83: 2.307116572 | F83: 5.934011102 | G83: 0 | I83: 19.14675981
A84: Psykolog | C84: 40.81955966 | D84: 60.37921786 | E84: 17.94424 | F84: 0.6767292459 | G84: 4.269319528 | I84: 124.0890663
A85: Jurist | C85: 45.16372482 | D85: 27.32676355 | E85: 10.69419323 | F85: 11.68028441 | G85: 8.700804591 | I85: 103.5657706
A86: Økonom | C86: 29.36817813 | D86: 24.09467972 | E86: 10.19771721 | F86: 6.074970374 | G86: 5.581612923 | I86: 75.31715836
A87: Samf. Adm. | C87: 267.8188736 | D87: 259.7710971 | E87: 86.23900705 | F87: 34.49635128 | G87: 4.524418387 | I87: 652.8497474
A88: Cand. Merc. | C88: 253.4029814 | D88: 182.9663818 | E88: 55.27412212 | F88: 32.20046155 | G88: 7.26252105 | I88: 531.1064679
A89: HA | C89: 70.63431672 | D89: 13.51275494 | E89: 7.767729059 | F89: 6.054387825 | G89: 2.076342544 | I89: 100.0455311
A90: HD | C90: 82.85286596 | D90: 25.80240753 | E90: 2.473024387 | F90: 4.583671178 | G90: 0.9998128859 | I90: 116.7117819
A91: Komm. og Sprog | C91: 66.13359945 | D91: 57.39225348 | E91: 32.78363376 | F91: 11.92041415 | G91: 4.835651469 | I91: 173.0655523
A92: Cand. IT. | C92: 43.70922472 | D92: 48.62034554 | E92: 10.75968315 | F92: 3.937503898 | G92: 0 | I92: 107.0267573
A93: Bac. Samf. | C93: 30.53389883 | D93: 5.178693944 | E93: 6.299507266 | F93: 2.118131354 | G93: 0.9998128859 | I93: 45.13004428
A94: Bac. Hum. | C94: 135.1057195 | D94: 33.42543504 | E94: 14.20881931 | F94: 10.16091811 | G94: 3.839580864 | I94: 196.7404728
A95: Bac. Nat. | C95: 75.17058567 | D95: 18.17002432 | E95: 2.637684775 | F95: 1.90731616 | G95: 0.9998128859 | I95: 98.88542381
A96: Andre | C96: 148.9446766 | D96: 263.4466413 | E96: 116.3107341 | F96: 92.15742531 | G96: 29.80041165 | I96: 650.659889
A98: Total | C98: 2835.146261 | D98: 2321.307927 | E98: 801.3359945 | F98: 418.4107778 | G98: 143.5214869 | I98: 6519.722447
A100: Ingeniører i alt | C100: 237.9872762 | D100: 113.0867586 | E100: 42.35264766 | F100: 37.5999501 | G100: 12.09754881 | I100: 443.1241814
A101: Magistre i alt | C101: 750.0193351 | D101: 784.527537 | E101: 283.194661 | F101: 116.3774715 | G101: 42.26345662 | I101: 1976.382461
A102: DJØF'ere i alt | C102: 666.3880746 | D102: 507.6716772 | E102: 170.1727687 | F102: 90.50645544 | G102: 28.14569949 | I102: 1462.884675
A109: Frederiksberg
C111: Under 30 år | D111: 30 - 39 år | E111: 40 - 49 år | F111: 50 - 59 år | G111: Over 60 år | I111: I alt
A113: Civ. ing. | C113: 12.25222978 | D113: 15.06018836 | E113: 2.445580989 | F113: 5.814258093 | G113: 1.692134972 | I113: 37.26439219
A114: Diplom ing. | C114: 5.947109088 | D114: 2.999438658 | E114: 3.999251544 | F114: 9.067548182 | G114: 0.9998128859 | I114: 23.01316036
A115: Cand. Scient. Tek | C115: 28.39955093 | D115: 18.78562964 | E115: 2.584045406 | F115: 2.907129046 | G115: 0 | I115: 52.67635502
A116: MA. Hum. | C116: 45.09324518 | D116: 43.32065116 | E116: 42.80982973 | F116: 17.76273935 | G116: 5.638994574 | I116: 154.62546
A117: MA. Nat. | C117: 6.281419572 | D117: 4.752697561 | E117: 4.327324892 | F117: 1.427680409 | G117: 1.214994075 | I117: 18.00411651
A118: MA. Ph.d. | C118: 0 | D118: 4.99906443 | E118: 1.999625772 | F118: 0 | G118: 0 | I118: 6.998690201
A119: MA. Samf. | C119: 12.8684588 | D119: 10.72662633 | E119: 4.952909624 | F119: 1.90731616 | G119: 0 | I119: 30.45531092
A120: Øvrige Mag. | C120: 3.756626957 | D120: 1.912305869 | E120: 4.99906443 | F120: 1.815006549 | G120: 0.3074908002 | I120: 12.7904946
A121: Agronom | C121: 1.999625772 | D121: 2.768664629 | E121: 0 | F121: 0.9998128859 | G121: 0 | I121: 5.768103287
A122: Landsk. Arkt. | C122: 0 | D122: 0 | E122: 0 | F122: 0 | G122: 0 | I122: 0
A123: Hortonom | C123: 0 | D123: 0 | E123: 0 | F123: 0 | G123: 0 | I123: 0
A124: Forstkand. | C124: 0 | D124: 0 | E124: 0 | F124: 0 | G124: 0 | I124: 0
A125: Jordbrugsakad. | C125: 1.999625772 | D125: 2.768664629 | E125: 0 | F125: 0.9998128859 | G125: 0 | I125: 5.768103287
A126: Mejeriing. | C126: 0.9998128859 | D126: 0.4921100231 | E126: 0 | F126: 0 | G126: 0 | I126: 1.491922909
A127: Levn.m.kand. | C127: 3.874508826 | D127: 1.999625772 | E127: 0 | F127: 0 | G127: 0 | I127: 5.874134597
A128: Dyrlæge | C128: 4.371608557 | D128: 1.999625772 | E128: 0 | F128: 0.6193475956 | G128: 0 | I128: 6.990581925
A129: Farmaceut | C129: 4.722135595 | D129: 1.999625772 | E129: 0 | F129: 0.6305744402 | G129: 0 | I129: 7.352335807
A130: Læge | C130: 1.122684463 | D130: 3.752884675 | E130: 1.90731616 | F130: 0.9998128859 | G130: 0 | I130: 7.782698185
A131: Tandlæge | C131: 0 | D131: 0.2981350964 | E131: 0 | F131: 0 | G131: 0 | I131: 0.2981350964
A132: Arkitekt | C132: 4.427119067 | D132: 5.445019647 | E132: 2.999438658 | F132: 6.965009668 | G132: 2.537890601 | I132: 22.37447764
A133: Landinspek. | C133: 0 | D133: 0.2151811888 | E133: 0.9998128859 | F133: 0 | G133: 0 | I133: 1.214994075
A134: Bibliotekar | C134: 0.4659140523 | D134: 0.9998128859 | E134: 1.999625772 | F134: 0 | G134: 0.9998128859 | I134: 4.465165596
A135: Musikudd. | C135: 0 | D135: 0 | E135: 0 | F135: 0.9998128859 | G135: 0.6829663818 | I135: 1.682779268
A136: Teolog | C136: 0 | D136: 0 | E136: 1.464479511 | F136: 0.9998128859 | G136: 0 | I136: 2.464292397
A137: Psykolog | C137: 5.576623215 | D137: 5.413210254 | E137: 1.909187301 | F137: 0.9998128859 | G137: 1.974677228 | I137: 15.87351088
A138: Jurist | C138: 3.999251544 | D138: 8.605376411 | E138: 3.768477515 | F138: 2.73935009 | G138: 2.196095553 | I138: 21.30855111
A139: Økonom | C139: 1.999625772 | D139: 0.4459552174 | E139: 0.9998128859 | F139: 0 | G139: 0 | I139: 3.445393875
A140: Samf. Adm. | C140: 28.60787127 | D140: 29.61703986 | E140: 10.55011539 | F140: 6.825921537 | G140: 2.399426183 | I140: 78.00037423
A141: Cand. Merc. | C141: 47.47957338 | D141: 35.01029127 | E141: 14.55061436 | F141: 2.491735795 | G141: 1.995259777 | I141: 101.5274746
A142: HA | C142: 8.287906193 | D142: 5.998877316 | E142: 1.168839269 | F142: 1.999625772 | G142: 0.9998128859 | I142: 18.45506144
A143: HD | C143: 9.536580802 | D143: 2.999438658 | E143: 0 | F143: 2.399426183 | G143: 0.5195534211 | I143: 15.45499906
A144: Komm. og Sprog | C144: 9.859664442 | D144: 15.84544377 | E144: 5.108214308 | F144: 0 | G144: 0 | I144: 30.81332252
A145: Cand. IT. | C145: 1.916671864 | D145: 0.9998128859 | E145: 2.81045344 | F145: 0.6305744402 | G145: 0 | I145: 6.35751263
A146: Bac. Samf. | C146: 2.999438658 | D146: 1.408969001 | E146: 0 | F146: 2.260961766 | G146: 0 | I146: 6.669369426
A147: Bac. Hum. | C147: 16.57207011 | D147: 4.66038795 | E147: 1.168839269 | F147: 1.999625772 | G147: 0 | I147: 24.4009231
A148: Bac. Nat. | C148: 12.5241689 | D148: 2.999438658 | E148: 0 | F148: 0 | G148: 0 | I148: 15.52360756
A149: Andre | C149: 17.27686646 | D149: 30.23202146 | E149: 16.55647727 | F149: 16.06436724 | G149: 7.721574253 | I149: 87.85130668
A151: Total | C151: 303.2183621 | D151: 266.7635502 | E151: 136.0793364 | F151: 91.32726252 | G151: 31.88049648 | I151: 829.2690077
A153: Ingeniører i alt | C153: 18.19933886 | D153: 18.05962702 | E153: 6.444832533 | F153: 14.88180627 | G153: 2.691947858 | I153: 60.27755255
A154: Magistre i alt | C154: 67.99975051 | D154: 65.71134535 | E154: 59.08875444 | F154: 22.91274247 | G154: 7.161479449 | I154: 222.8740722
A155: DJØF'ere i alt | C155: 90.37422815 | D155: 79.67754007 | E155: 31.03785941 | F155: 14.05663319 | G155: 7.590594399 | I155: 222.7368552
A162: Ballerup
C164: Under 30 år | D164: 30 - 39 år | E164: 40 - 49 år | F164: 50 - 59 år | G164: Over 60 år | I164: I alt
A166: Civ. ing. | C166: 1.999625772 | D166: 4.537516372 | E166: 0 | F166: 2.014594898 | G166: 0.9998128859 | I166: 9.551549928
A167: Diplom ing. | C167: 2.461173829 | D167: 1.999625772 | E167: 1.322896526 | F167: 4.211314165 | G167: 2.907129046 | I167: 12.90213934
A168: Cand. Scient. Tek | C168: 8.259839082 | D168: 3.30381089 | E168: 2.860974241 | F168: 0 | G168: 0 | I168: 14.42462421
A169: MA. Hum. | C169: 5.62963887 | D169: 2.159920165 | E169: 1.989022641 | F169: 0.7690388574 | G169: 1.999625772 | I169: 12.5472463
A170: MA. Nat. | C170: 0.3592590283 | D170: 0 | E170: 1.168839269 | F170: 0 | G170: 0 | I170: 1.528098297
A171: MA. Ph.d. | C171: 0 | D171: 0 | E171: 0 | F171: 0.9998128859 | G171: 0 | I171: 0.9998128859
A172: MA. Samf. | C172: 0.9998128859 | D172: 0.5788062122 | E172: 0 | F172: 0 | G172: 0 | I172: 1.578619098
A173: Øvrige Mag. | C173: 0.9998128859 | D173: 0 | E173: 0 | F173: 0.9998128859 | G173: 0 | I173: 1.999625772
A174: Agronom | C174: 0 | D174: 0 | E174: 0 | F174: 0.3998004117 | G174: 0 | I174: 0.3998004117
A175: Landsk. Arkt. | C175: 0.9998128859 | D175: 0 | E175: 0 | F175: 0 | G175: 0 | I175: 0.9998128859
A176: Hortonom | C176: 0 | D176: 0 | E176: 0 | F176: 0 | G176: 0 | I176: 0
A177: Forstkand. | C177: 0 | D177: 0 | E177: 0 | F177: 0 | G177: 0 | I177: 0
A178: Jordbrugsakad. | C178: 0.9998128859 | D178: 0 | E178: 0 | F178: 0.3998004117 | G178: 0 | I178: 1.399613298
A179: Mejeriing. | C179: 0 | D179: 0 | E179: 0 | F179: 0 | G179: 0 | I179: 0
A180: Levn.m.kand. | C180: 0 | D180: 0 | E180: 0 | F180: 0 | G180: 0 | I180: 0
A181: Dyrlæge | C181: 0 | D181: 1.353458492 | E181: 0 | F181: 0 | G181: 0 | I181: 1.353458492
A182: Farmaceut | C182: 0.9998128859 | D182: 0 | E182: 0 | F182: 0.9998128859 | G182: 0 | I182: 1.999625772
A183: Læge | C183: 0 | D183: 0.6149816004 | E183: 0.9075032745 | F183: 0 | G183: 0 | I183: 1.522484875
A184: Tandlæge | C184: 0.7690388574 | D184: 0 | E184: 0 | F184: 0 | G184: 0 | I184: 0.7690388574
A185: Arkitekt | C185: 0 | D185: 0.9998128859 | E185: 0 | F185: 0 | G185: 0 | I185: 0.9998128859
A186: Landinspek. | C186: 0 | D186: 0 | E186: 0 | F186: 0 | G186: 0 | I186: 0
A187: Bibliotekar | C187: 0.8052142456 | D187: 0.5844196345 | E187: 1.999625772 | F187: 0 | G187: 0 | I187: 3.389259652
A188: Musikudd. | C188: 0 | D188: 0 | E188: 0.8613484688 | F188: 0 | G188: 0 | I188: 0.8613484688
A189: Teolog | C189: 0 | D189: 0 | E189: 0 | F189: 0 | G189: 0 | I189: 0
A190: Psykolog | C190: 0 | D190: 0.9998128859 | E190: 0.9998128859 | F190: 0.9998128859 | G190: 0 | I190: 2.999438658
A191: Jurist | C191: 1.999625772 | D191: 1.353458492 | E191: 0.9998128859 | F191: 0 | G191: 0 | I191: 4.35289715
A192: Økonom | C192: 0 | D192: 1.756377471 | E192: 0 | F192: 0 | G192: 0 | I192: 1.756377471
A193: Samf. Adm. | C193: 2.525416329 | D193: 4.922347658 | E193: 1.307303686 | F193: 0 | G193: 0 | I193: 8.755067673
A194: Cand. Merc. | C194: 1.999625772 | D194: 1.999625772 | E194: 0 | F194: 2.612112518 | G194: 0 | I194: 6.611364062
A195: HA | C195: 0 | D195: 0.9998128859 | E195: 0 | F195: 1.279236575 | G195: 0.9998128859 | I195: 3.278862346
A196: HD | C196: 0 | D196: 0 | E196: 1.90731616 | F196: 0.8376473523 | G196: 0 | I196: 2.744963513
A197: Komm. og Sprog | C197: 1.953470966 | D197: 0 | E197: 0.9998128859 | F197: 0.5382648288 | G197: 0 | I197: 3.491548681
A198: Cand. IT. | C198: 0 | D198: 0.9998128859 | E198: 0 | F198: 0 | G198: 0 | I198: 0.9998128859
A199: Bac. Samf. | C199: 0 | D199: 0 | E199: 0 | F199: 0 | G199: 0 | I199: 0
A200: Bac. Hum. | C200: 0.9998128859 | D200: 0 | E200: 0.9998128859 | F200: 0 | G200: 0 | I200: 1.999625772
A201: Bac. Nat. | C201: 0.2513565771 | D201: 0 | E201: 0 | F201: 0 | G201: 0 | I201: 0.2513565771
A202: Andre | C202: 0.9998128859 | D202: 4.399051955 | E202: 2.999438658 | F202: 0 | G202: 0 | I202: 8.398303499
A204: Total | C204: 35.01216242 | D204: 33.56265203 | E204: 21.32352024 | F204: 16.66126115 | G204: 6.90638059 | I204: 113.4659764
A206: Ingeniører i alt | C206: 4.460799601 | D206: 6.537142144 | E206: 1.322896526 | F206: 6.225909063 | G206: 3.906941932 | I206: 22.45368927
A207: Magistre i alt | C207: 7.98852367 | D207: 2.738726377 | E207: 3.15786191 | F207: 2.768664629 | G207: 1.999625772 | I207: 18.65340236
A208: DJØF'ere i alt | C208: 6.524667873 | D208: 11.03162228 | E208: 2.307116572 | F208: 3.891349092 | G208: 0.9998128859 | I208: 24.7545687
A215: Brøndby
C217: Under 30 år | D217: 30 - 39 år | E217: 40 - 49 år | F217: 50 - 59 år | G217: Over 60 år | I217: I alt
A219: Civ. ing. | C219: 4.491361567 | D219: 0 | E219: 0 | F219: 1.999625772 | G219: 0 | I219: 6.490987339
A220: Diplom ing. | C220: 2.999438658 | D220: 0.9998128859 | E220: 0.9998128859 | F220: 0.3074908002 | G220: 0 | I220: 5.30655523
A221: Cand. Scient. Tek | C221: 4.99906443 | D221: 1.110210191 | E221: 0.9998128859 | F221: 0.4921100231 | G221: 0 | I221: 7.60119753
A222: MA. Hum. | C222: 2.434977858 | D222: 2.419385018 | E222: 0 | F222: 0.9998128859 | G222: 0 | I222: 5.854175762
A223: MA. Nat. | C223: 1.861161355 | D223: 0.9998128859 | E223: 1.999625772 | F223: 0 | G223: 0 | I223: 4.860600012
A224: MA. Ph.d. | C224: 0 | D224: 0 | E224: 0 | F224: 0 | G224: 0 | I224: 0
A225: MA. Samf. | C225: 0.9998128859 | D225: 0.9998128859 | E225: 0.9998128859 | F225: 0 | G225: 0 | I225: 2.999438658
A226: Øvrige Mag. | C226: 1.999625772 | D226: 0.5382648288 | E226: 0 | F226: 0 | G226: 0 | I226: 2.537890601
A227: Agronom | C227: 0 | D227: 0.4459552174 | E227: 0 | F227: 0 | G227: 0 | I227: 0.4459552174
A228: Landsk. Arkt. | C228: 0 | D228: 0 | E228: 0 | F228: 0 | G228: 0 | I228: 0
A229: Hortonom | C229: 0 | D229: 0 | E229: 0 | F229: 0 | G229: 0 | I229: 0
A230: Forstkand. | C230: 0 | D230: 0 | E230: 0 | F230: 0 | G230: 0 | I230: 0
A231: Jordbrugsakad. | C231: 0 | D231: 0.4459552174 | E231: 0 | F231: 0 | G231: 0 | I231: 0.4459552174
A232: Mejeriing. | C232: 0 | D232: 0 | E232: 0 | F232: 0 | G232: 0 | I232: 0
A233: Levn.m.kand. | C233: 0 | D233: 0 | E233: 0 | F233: 0 | G233: 0 | I233: 0
A234: Dyrlæge | C234: 0 | D234: 0 | E234: 0 | F234: 0 | G234: 0 | I234: 0
A235: Farmaceut | C235: 0 | D235: 0.9998128859 | E235: 0 | F235: 0 | G235: 0 | I235: 0.9998128859
A236: Læge | C236: 0.9075032745 | D236: 0 | E236: 0 | F236: 0 | G236: 0 | I236: 0.9075032745
A237: Tandlæge | C237: 0 | D237: 0.9998128859 | E237: 0 | F237: 0 | G237: 0 | I237: 0.9998128859
A238: Arkitekt | C238: 0 | D238: 0 | E238: 0 | F238: 0 | G238: 0 | I238: 0
A239: Landinspek. | C239: 0 | D239: 0 | E239: 0 | F239: 0 | G239: 0 | I239: 0
A240: Bibliotekar | C240: 0 | D240: 0.9998128859 | E240: 0 | F240: 0 | G240: 0 | I240: 0.9998128859
A241: Musikudd. | C241: 0 | D241: 0 | E241: 0 | F241: 0 | G241: 0 | I241: 0
A242: Teolog | C242: 0 | D242: 0 | E242: 0 | F242: 0 | G242: 0 | I242: 0
A243: Psykolog | C243: 2.248487495 | D243: 0 | E243: 0 | F243: 0 | G243: 0 | I243: 2.248487495
... 1048 more rows

Sheet Tabel 4P H
A1: Tabel 4. Ledighedsberørte - aldersfordelt
A3: Hovedstaden
C5: Under 30 år | D5: 30 - 39 år | E5: 40 - 49 år | F5: 50 - 59 år | G5: Over 60 år | I5: I alt
A7: Civ. ing. | C7: =IF(OR('Tabel 4F H'!C7<5,'Tabel 4 H'!C7<0.5),"-",IFERROR('Tabel 4 H'!C7/'Tabel 4F H'!C7*100,"-")) -> 13.16808675 | D7: =IF(OR('Tabel 4F H'!D7<5,'Tabel 4 H'!D7<0.5),"-",IFERROR('Tabel 4 H'!D7/'Tabel 4F H'!D7*100,"-")) -> 3.037709497 | E7: =IF(OR('Tabel 4F H'!E7<5,'Tabel 4 H'!E7<0.5),"-",IFERROR('Tabel 4 H'!E7/'Tabel 4F H'!E7*100,"-")) -> 1.614481409 | F7: =IF(OR('Tabel 4F H'!F7<5,'Tabel 4 H'!F7<0.5),"-",IFERROR('Tabel 4 H'!F7/'Tabel 4F H'!F7*100,"-")) -> 2.035830619 | G7: =IF(OR('Tabel 4F H'!G7<5,'Tabel 4 H'!G7<0.5),"-",IFERROR('Tabel 4 H'!G7/'Tabel 4F H'!G7*100,"-")) -> 2.526132404 | I7: =IF(OR('Tabel 4F H'!I7<5,'Tabel 4 H'!I7<0.5),"-",IFERROR('Tabel 4 H'!I7/'Tabel 4F H'!I7*100,"-")) -> 3.969820081
A8: Diplom ing. | C8: =IF(OR('Tabel 4F H'!C8<5,'Tabel 4 H'!C8<0.5),"-",IFERROR('Tabel 4 H'!C8/'Tabel 4F H'!C8*100,"-")) -> 14.01098901 | D8: =IF(OR('Tabel 4F H'!D8<5,'Tabel 4 H'!D8<0.5),"-",IFERROR('Tabel 4 H'!D8/'Tabel 4F H'!D8*100,"-")) -> 3.638017281 | E8: =IF(OR('Tabel 4F H'!E8<5,'Tabel 4 H'!E8<0.5),"-",IFERROR('Tabel 4 H'!E8/'Tabel 4F H'!E8*100,"-")) -> 2.542372881 | F8: =IF(OR('Tabel 4F H'!F8<5,'Tabel 4 H'!F8<0.5),"-",IFERROR('Tabel 4 H'!F8/'Tabel 4F H'!F8*100,"-")) -> 2.684268427 | G8: =IF(OR('Tabel 4F H'!G8<5,'Tabel 4 H'!G8<0.5),"-",IFERROR('Tabel 4 H'!G8/'Tabel 4F H'!G8*100,"-")) -> 3.081232493 | I8: =IF(OR('Tabel 4F H'!I8<5,'Tabel 4 H'!I8<0.5),"-",IFERROR('Tabel 4 H'!I8/'Tabel 4F H'!I8*100,"-")) -> 3.855421687
A9: Cand. Scient. Tek | C9: =IF(OR('Tabel 4F H'!C9<5,'Tabel 4 H'!C9<0.5),"-",IFERROR('Tabel 4 H'!C9/'Tabel 4F H'!C9*100,"-")) -> 18.70058439 | D9: =IF(OR('Tabel 4F H'!D9<5,'Tabel 4 H'!D9<0.5),"-",IFERROR('Tabel 4 H'!D9/'Tabel 4F H'!D9*100,"-")) -> 7.09001233 | E9: =IF(OR('Tabel 4F H'!E9<5,'Tabel 4 H'!E9<0.5),"-",IFERROR('Tabel 4 H'!E9/'Tabel 4F H'!E9*100,"-")) -> 4.24403183 | F9: =IF(OR('Tabel 4F H'!F9<5,'Tabel 4 H'!F9<0.5),"-",IFERROR('Tabel 4 H'!F9/'Tabel 4F H'!F9*100,"-")) -> 5.072463768 | G9: =IF(OR('Tabel 4F H'!G9<5,'Tabel 4 H'!G9<0.5),"-",IFERROR('Tabel 4 H'!G9/'Tabel 4F H'!G9*100,"-")) -> 5 | I9: =IF(OR('Tabel 4F H'!I9<5,'Tabel 4 H'!I9<0.5),"-",IFERROR('Tabel 4 H'!I9/'Tabel 4F H'!I9*100,"-")) -> 9.924509311
A10: MA. Hum. | C10: =IF(OR('Tabel 4F H'!C10<5,'Tabel 4 H'!C10<0.5),"-",IFERROR('Tabel 4 H'!C10/'Tabel 4F H'!C10*100,"-")) -> 27.96078431 | D10: =IF(OR('Tabel 4F H'!D10<5,'Tabel 4 H'!D10<0.5),"-",IFERROR('Tabel 4 H'!D10/'Tabel 4F H'!D10*100,"-")) -> 11.70302013 | E10: =IF(OR('Tabel 4F H'!E10<5,'Tabel 4 H'!E10<0.5),"-",IFERROR('Tabel 4 H'!E10/'Tabel 4F H'!E10*100,"-")) -> 5.925925926 | F10: =IF(OR('Tabel 4F H'!F10<5,'Tabel 4 H'!F10<0.5),"-",IFERROR('Tabel 4 H'!F10/'Tabel 4F H'!F10*100,"-")) -> 6.785575805 | G10: =IF(OR('Tabel 4F H'!G10<5,'Tabel 4 H'!G10<0.5),"-",IFERROR('Tabel 4 H'!G10/'Tabel 4F H'!G10*100,"-")) -> 7.541322314 | I10: =IF(OR('Tabel 4F H'!I10<5,'Tabel 4 H'!I10<0.5),"-",IFERROR('Tabel 4 H'!I10/'Tabel 4F H'!I10*100,"-")) -> 11.05986112
A11: MA. Nat. | C11: =IF(OR('Tabel 4F H'!C11<5,'Tabel 4 H'!C11<0.5),"-",IFERROR('Tabel 4 H'!C11/'Tabel 4F H'!C11*100,"-")) -> 24.47257384 | D11: =IF(OR('Tabel 4F H'!D11<5,'Tabel 4 H'!D11<0.5),"-",IFERROR('Tabel 4 H'!D11/'Tabel 4F H'!D11*100,"-")) -> 6.002475248 | E11: =IF(OR('Tabel 4F H'!E11<5,'Tabel 4 H'!E11<0.5),"-",IFERROR('Tabel 4 H'!E11/'Tabel 4F H'!E11*100,"-")) -> 2.490272374 | F11: =IF(OR('Tabel 4F H'!F11<5,'Tabel 4 H'!F11<0.5),"-",IFERROR('Tabel 4 H'!F11/'Tabel 4F H'!F11*100,"-")) -> 2.079912425 | G11: =IF(OR('Tabel 4F H'!G11<5,'Tabel 4 H'!G11<0.5),"-",IFERROR('Tabel 4 H'!G11/'Tabel 4F H'!G11*100,"-")) -> 2.453102453 | I11: =IF(OR('Tabel 4F H'!I11<5,'Tabel 4 H'!I11<0.5),"-",IFERROR('Tabel 4 H'!I11/'Tabel 4F H'!I11*100,"-")) -> 4.623955432
A12: MA. Ph.d. | C12: =IF(OR('Tabel 4F H'!C12<5,'Tabel 4 H'!C12<0.5),"-",IFERROR('Tabel 4 H'!C12/'Tabel 4F H'!C12*100,"-")) -> 11.11111111 | D12: =IF(OR('Tabel 4F H'!D12<5,'Tabel 4 H'!D12<0.5),"-",IFERROR('Tabel 4 H'!D12/'Tabel 4F H'!D12*100,"-")) -> 6.35359116 | E12: =IF(OR('Tabel 4F H'!E12<5,'Tabel 4 H'!E12<0.5),"-",IFERROR('Tabel 4 H'!E12/'Tabel 4F H'!E12*100,"-")) -> 5.803571429 | F12: =IF(OR('Tabel 4F H'!F12<5,'Tabel 4 H'!F12<0.5),"-",IFERROR('Tabel 4 H'!F12/'Tabel 4F H'!F12*100,"-")) -> 6.069364162 | G12: =IF(OR('Tabel 4F H'!G12<5,'Tabel 4 H'!G12<0.5),"-",IFERROR('Tabel 4 H'!G12/'Tabel 4F H'!G12*100,"-")) -> 3.614457831 | I12: =IF(OR('Tabel 4F H'!I12<5,'Tabel 4 H'!I12<0.5),"-",IFERROR('Tabel 4 H'!I12/'Tabel 4F H'!I12*100,"-")) -> 5.966587112
A13: MA. Samf. | C13: =IF(OR('Tabel 4F H'!C13<5,'Tabel 4 H'!C13<0.5),"-",IFERROR('Tabel 4 H'!C13/'Tabel 4F H'!C13*100,"-")) -> 24.10071942 | D13: =IF(OR('Tabel 4F H'!D13<5,'Tabel 4 H'!D13<0.5),"-",IFERROR('Tabel 4 H'!D13/'Tabel 4F H'!D13*100,"-")) -> 13.43183345 | E13: =IF(OR('Tabel 4F H'!E13<5,'Tabel 4 H'!E13<0.5),"-",IFERROR('Tabel 4 H'!E13/'Tabel 4F H'!E13*100,"-")) -> 7.745266781 | F13: =IF(OR('Tabel 4F H'!F13<5,'Tabel 4 H'!F13<0.5),"-",IFERROR('Tabel 4 H'!F13/'Tabel 4F H'!F13*100,"-")) -> 5.309734513 | G13: =IF(OR('Tabel 4F H'!G13<5,'Tabel 4 H'!G13<0.5),"-",IFERROR('Tabel 4 H'!G13/'Tabel 4F H'!G13*100,"-")) -> 6.976744186 | I13: =IF(OR('Tabel 4F H'!I13<5,'Tabel 4 H'!I13<0.5),"-",IFERROR('Tabel 4 H'!I13/'Tabel 4F H'!I13*100,"-")) -> 14.52883706
A14: Øvrige Mag. | C14: =IF(OR('Tabel 4F H'!C14<5,'Tabel 4 H'!C14<0.5),"-",IFERROR('Tabel 4 H'!C14/'Tabel 4F H'!C14*100,"-")) -> 34.48275862 | D14: =IF(OR('Tabel 4F H'!D14<5,'Tabel 4 H'!D14<0.5),"-",IFERROR('Tabel 4 H'!D14/'Tabel 4F H'!D14*100,"-")) -> 11.20689655 | E14: =IF(OR('Tabel 4F H'!E14<5,'Tabel 4 H'!E14<0.5),"-",IFERROR('Tabel 4 H'!E14/'Tabel 4F H'!E14*100,"-")) -> 4.859813084 | F14: =IF(OR('Tabel 4F H'!F14<5,'Tabel 4 H'!F14<0.5),"-",IFERROR('Tabel 4 H'!F14/'Tabel 4F H'!F14*100,"-")) -> 4.545454545 | G14: =IF(OR('Tabel 4F H'!G14<5,'Tabel 4 H'!G14<0.5),"-",IFERROR('Tabel 4 H'!G14/'Tabel 4F H'!G14*100,"-")) -> 8.181818182 | I14: =IF(OR('Tabel 4F H'!I14<5,'Tabel 4 H'!I14<0.5),"-",IFERROR('Tabel 4 H'!I14/'Tabel 4F H'!I14*100,"-")) -> 9.724888036
A15: Agronom | C15: =IF(OR('Tabel 4F H'!C15<5,'Tabel 4 H'!C15<0.5),"-",IFERROR('Tabel 4 H'!C15/'Tabel 4F H'!C15*100,"-")) -> 24.3902439 | D15: =IF(OR('Tabel 4F H'!D15<5,'Tabel 4 H'!D15<0.5),"-",IFERROR('Tabel 4 H'!D15/'Tabel 4F H'!D15*100,"-")) -> 9.375 | E15: =IF(OR('Tabel 4F H'!E15<5,'Tabel 4 H'!E15<0.5),"-",IFERROR('Tabel 4 H'!E15/'Tabel 4F H'!E15*100,"-")) -> 3.083700441 | F15: =IF(OR('Tabel 4F H'!F15<5,'Tabel 4 H'!F15<0.5),"-",IFERROR('Tabel 4 H'!F15/'Tabel 4F H'!F15*100,"-")) -> 2.024291498 | G15: =IF(OR('Tabel 4F H'!G15<5,'Tabel 4 H'!G15<0.5),"-",IFERROR('Tabel 4 H'!G15/'Tabel 4F H'!G15*100,"-")) -> 4.347826087 | I15: =IF(OR('Tabel 4F H'!I15<5,'Tabel 4 H'!I15<0.5),"-",IFERROR('Tabel 4 H'!I15/'Tabel 4F H'!I15*100,"-")) -> 6.311881188
A16: Landsk. Arkt. | C16: =IF(OR('Tabel 4F H'!C16<5,'Tabel 4 H'!C16<0.5),"-",IFERROR('Tabel 4 H'!C16/'Tabel 4F H'!C16*100,"-")) -> 28.57142857 | D16: =IF(OR('Tabel 4F H'!D16<5,'Tabel 4 H'!D16<0.5),"-",IFERROR('Tabel 4 H'!D16/'Tabel 4F H'!D16*100,"-")) -> 9.356725146 | E16: =IF(OR('Tabel 4F H'!E16<5,'Tabel 4 H'!E16<0.5),"-",IFERROR('Tabel 4 H'!E16/'Tabel 4F H'!E16*100,"-")) -> 2.877697842 | F16: =IF(OR('Tabel 4F H'!F16<5,'Tabel 4 H'!F16<0.5),"-",IFERROR('Tabel 4 H'!F16/'Tabel 4F H'!F16*100,"-")) -> 3.846153846 | G16: =IF(OR('Tabel 4F H'!G16<5,'Tabel 4 H'!G16<0.5),"-",IFERROR('Tabel 4 H'!G16/'Tabel 4F H'!G16*100,"-")) -> - | I16: =IF(OR('Tabel 4F H'!I16<5,'Tabel 4 H'!I16<0.5),"-",IFERROR('Tabel 4 H'!I16/'Tabel 4F H'!I16*100,"-")) -> 8.686440678
A17: Hortonom | C17: =IF(OR('Tabel 4F H'!C17<5,'Tabel 4 H'!C17<0.5),"-",IFERROR('Tabel 4 H'!C17/'Tabel 4F H'!C17*100,"-")) -> - | D17: =IF(OR('Tabel 4F H'!D17<5,'Tabel 4 H'!D17<0.5),"-",IFERROR('Tabel 4 H'!D17/'Tabel 4F H'!D17*100,"-")) -> - | E17: =IF(OR('Tabel 4F H'!E17<5,'Tabel 4 H'!E17<0.5),"-",IFERROR('Tabel 4 H'!E17/'Tabel 4F H'!E17*100,"-")) -> 4.166666667 | F17: =IF(OR('Tabel 4F H'!F17<5,'Tabel 4 H'!F17<0.5),"-",IFERROR('Tabel 4 H'!F17/'Tabel 4F H'!F17*100,"-")) -> 2.857142857 | G17: =IF(OR('Tabel 4F H'!G17<5,'Tabel 4 H'!G17<0.5),"-",IFERROR('Tabel 4 H'!G17/'Tabel 4F H'!G17*100,"-")) -> 9.523809524 | I17: =IF(OR('Tabel 4F H'!I17<5,'Tabel 4 H'!I17<0.5),"-",IFERROR('Tabel 4 H'!I17/'Tabel 4F H'!I17*100,"-")) -> 3.870967742
A18: Forstkand. | C18: =IF(OR('Tabel 4F H'!C18<5,'Tabel 4 H'!C18<0.5),"-",IFERROR('Tabel 4 H'!C18/'Tabel 4F H'!C18*100,"-")) -> 27.77777778 | D18: =IF(OR('Tabel 4F H'!D18<5,'Tabel 4 H'!D18<0.5),"-",IFERROR('Tabel 4 H'!D18/'Tabel 4F H'!D18*100,"-")) -> 15 | E18: =IF(OR('Tabel 4F H'!E18<5,'Tabel 4 H'!E18<0.5),"-",IFERROR('Tabel 4 H'!E18/'Tabel 4F H'!E18*100,"-")) -> 2.02020202 | F18: =IF(OR('Tabel 4F H'!F18<5,'Tabel 4 H'!F18<0.5),"-",IFERROR('Tabel 4 H'!F18/'Tabel 4F H'!F18*100,"-")) -> 2.816901408 | G18: =IF(OR('Tabel 4F H'!G18<5,'Tabel 4 H'!G18<0.5),"-",IFERROR('Tabel 4 H'!G18/'Tabel 4F H'!G18*100,"-")) -> 3.846153846 | I18: =IF(OR('Tabel 4F H'!I18<5,'Tabel 4 H'!I18<0.5),"-",IFERROR('Tabel 4 H'!I18/'Tabel 4F H'!I18*100,"-")) -> 6.299212598
A19: Jordbrugsakad. | C19: =IF(OR('Tabel 4F H'!C19<5,'Tabel 4 H'!C19<0.5),"-",IFERROR('Tabel 4 H'!C19/'Tabel 4F H'!C19*100,"-")) -> 26.3803681 | D19: =IF(OR('Tabel 4F H'!D19<5,'Tabel 4 H'!D19<0.5),"-",IFERROR('Tabel 4 H'!D19/'Tabel 4F H'!D19*100,"-")) -> 9.560723514 | E19: =IF(OR('Tabel 4F H'!E19<5,'Tabel 4 H'!E19<0.5),"-",IFERROR('Tabel 4 H'!E19/'Tabel 4F H'!E19*100,"-")) -> 2.923976608 | F19: =IF(OR('Tabel 4F H'!F19<5,'Tabel 4 H'!F19<0.5),"-",IFERROR('Tabel 4 H'!F19/'Tabel 4F H'!F19*100,"-")) -> 2.575107296 | G19: =IF(OR('Tabel 4F H'!G19<5,'Tabel 4 H'!G19<0.5),"-",IFERROR('Tabel 4 H'!G19/'Tabel 4F H'!G19*100,"-")) -> 4.375 | I19: =IF(OR('Tabel 4F H'!I19<5,'Tabel 4 H'!I19<0.5),"-",IFERROR('Tabel 4 H'!I19/'Tabel 4F H'!I19*100,"-")) -> 6.74955595
A20: Mejeriing. | C20: =IF(OR('Tabel 4F H'!C20<5,'Tabel 4 H'!C20<0.5),"-",IFERROR('Tabel 4 H'!C20/'Tabel 4F H'!C20*100,"-")) -> 33.33333333 | D20: =IF(OR('Tabel 4F H'!D20<5,'Tabel 4 H'!D20<0.5),"-",IFERROR('Tabel 4 H'!D20/'Tabel 4F H'!D20*100,"-")) -> 10.81081081 | E20: =IF(OR('Tabel 4F H'!E20<5,'Tabel 4 H'!E20<0.5),"-",IFERROR('Tabel 4 H'!E20/'Tabel 4F H'!E20*100,"-")) -> 4 | F20: =IF(OR('Tabel 4F H'!F20<5,'Tabel 4 H'!F20<0.5),"-",IFERROR('Tabel 4 H'!F20/'Tabel 4F H'!F20*100,"-")) -> - | G20: =IF(OR('Tabel 4F H'!G20<5,'Tabel 4 H'!G20<0.5),"-",IFERROR('Tabel 4 H'!G20/'Tabel 4F H'!G20*100,"-")) -> - | I20: =IF(OR('Tabel 4F H'!I20<5,'Tabel 4 H'!I20<0.5),"-",IFERROR('Tabel 4 H'!I20/'Tabel 4F H'!I20*100,"-")) -> 10.71428571
A21: Levn.m.kand. | C21: =IF(OR('Tabel 4F H'!C21<5,'Tabel 4 H'!C21<0.5),"-",IFERROR('Tabel 4 H'!C21/'Tabel 4F H'!C21*100,"-")) -> 22.61904762 | D21: =IF(OR('Tabel 4F H'!D21<5,'Tabel 4 H'!D21<0.5),"-",IFERROR('Tabel 4 H'!D21/'Tabel 4F H'!D21*100,"-")) -> 6.711409396 | E21: =IF(OR('Tabel 4F H'!E21<5,'Tabel 4 H'!E21<0.5),"-",IFERROR('Tabel 4 H'!E21/'Tabel 4F H'!E21*100,"-")) -> 4.054054054 | F21: =IF(OR('Tabel 4F H'!F21<5,'Tabel 4 H'!F21<0.5),"-",IFERROR('Tabel 4 H'!F21/'Tabel 4F H'!F21*100,"-")) -> 16.66666667 | G21: =IF(OR('Tabel 4F H'!G21<5,'Tabel 4 H'!G21<0.5),"-",IFERROR('Tabel 4 H'!G21/'Tabel 4F H'!G21*100,"-")) -> - | I21: =IF(OR('Tabel 4F H'!I21<5,'Tabel 4 H'!I21<0.5),"-",IFERROR('Tabel 4 H'!I21/'Tabel 4F H'!I21*100,"-")) -> 10.44303797
A22: Dyrlæge | C22: =IF(OR('Tabel 4F H'!C22<5,'Tabel 4 H'!C22<0.5),"-",IFERROR('Tabel 4 H'!C22/'Tabel 4F H'!C22*100,"-")) -> 27.38853503 | D22: =IF(OR('Tabel 4F H'!D22<5,'Tabel 4 H'!D22<0.5),"-",IFERROR('Tabel 4 H'!D22/'Tabel 4F H'!D22*100,"-")) -> 9.169054441 | E22: =IF(OR('Tabel 4F H'!E22<5,'Tabel 4 H'!E22<0.5),"-",IFERROR('Tabel 4 H'!E22/'Tabel 4F H'!E22*100,"-")) -> 3.571428571 | F22: =IF(OR('Tabel 4F H'!F22<5,'Tabel 4 H'!F22<0.5),"-",IFERROR('Tabel 4 H'!F22/'Tabel 4F H'!F22*100,"-")) -> 3.067484663 | G22: =IF(OR('Tabel 4F H'!G22<5,'Tabel 4 H'!G22<0.5),"-",IFERROR('Tabel 4 H'!G22/'Tabel 4F H'!G22*100,"-")) -> 4 | I22: =IF(OR('Tabel 4F H'!I22<5,'Tabel 4 H'!I22<0.5),"-",IFERROR('Tabel 4 H'!I22/'Tabel 4F H'!I22*100,"-")) -> 9.544008484
A23: Farmaceut | C23: =IF(OR('Tabel 4F H'!C23<5,'Tabel 4 H'!C23<0.5),"-",IFERROR('Tabel 4 H'!C23/'Tabel 4F H'!C23*100,"-")) -> 13.05841924 | D23: =IF(OR('Tabel 4F H'!D23<5,'Tabel 4 H'!D23<0.5),"-",IFERROR('Tabel 4 H'!D23/'Tabel 4F H'!D23*100,"-")) -> 3.574203574 | E23: =IF(OR('Tabel 4F H'!E23<5,'Tabel 4 H'!E23<0.5),"-",IFERROR('Tabel 4 H'!E23/'Tabel 4F H'!E23*100,"-")) -> 0.8 | F23: =IF(OR('Tabel 4F H'!F23<5,'Tabel 4 H'!F23<0.5),"-",IFERROR('Tabel 4 H'!F23/'Tabel 4F H'!F23*100,"-")) -> 2.201257862 | G23: =IF(OR('Tabel 4F H'!G23<5,'Tabel 4 H'!G23<0.5),"-",IFERROR('Tabel 4 H'!G23/'Tabel 4F H'!G23*100,"-")) -> 2.538071066 | I23: =IF(OR('Tabel 4F H'!I23<5,'Tabel 4 H'!I23<0.5),"-",IFERROR('Tabel 4 H'!I23/'Tabel 4F H'!I23*100,"-")) -> 4.024851432
A24: Læge | C24: =IF(OR('Tabel 4F H'!C24<5,'Tabel 4 H'!C24<0.5),"-",IFERROR('Tabel 4 H'!C24/'Tabel 4F H'!C24*100,"-")) -> 6.397774687 | D24: =IF(OR('Tabel 4F H'!D24<5,'Tabel 4 H'!D24<0.5),"-",IFERROR('Tabel 4 H'!D24/'Tabel 4F H'!D24*100,"-")) -> 2.228412256 | E24: =IF(OR('Tabel 4F H'!E24<5,'Tabel 4 H'!E24<0.5),"-",IFERROR('Tabel 4 H'!E24/'Tabel 4F H'!E24*100,"-")) -> 1.465201465 | F24: =IF(OR('Tabel 4F H'!F24<5,'Tabel 4 H'!F24<0.5),"-",IFERROR('Tabel 4 H'!F24/'Tabel 4F H'!F24*100,"-")) -> 0.6896551724 | G24: =IF(OR('Tabel 4F H'!G24<5,'Tabel 4 H'!G24<0.5),"-",IFERROR('Tabel 4 H'!G24/'Tabel 4F H'!G24*100,"-")) -> 0.2309468822 | I24: =IF(OR('Tabel 4F H'!I24<5,'Tabel 4 H'!I24<0.5),"-",IFERROR('Tabel 4 H'!I24/'Tabel 4F H'!I24*100,"-")) -> 2.264298263
A25: Tandlæge | C25: =IF(OR('Tabel 4F H'!C25<5,'Tabel 4 H'!C25<0.5),"-",IFERROR('Tabel 4 H'!C25/'Tabel 4F H'!C25*100,"-")) -> 10.16949153 | D25: =IF(OR('Tabel 4F H'!D25<5,'Tabel 4 H'!D25<0.5),"-",IFERROR('Tabel 4 H'!D25/'Tabel 4F H'!D25*100,"-")) -> 5.723905724 | E25: =IF(OR('Tabel 4F H'!E25<5,'Tabel 4 H'!E25<0.5),"-",IFERROR('Tabel 4 H'!E25/'Tabel 4F H'!E25*100,"-")) -> 3.243243243 | F25: =IF(OR('Tabel 4F H'!F25<5,'Tabel 4 H'!F25<0.5),"-",IFERROR('Tabel 4 H'!F25/'Tabel 4F H'!F25*100,"-")) -> 2.027027027 | G25: =IF(OR('Tabel 4F H'!G25<5,'Tabel 4 H'!G25<0.5),"-",IFERROR('Tabel 4 H'!G25/'Tabel 4F H'!G25*100,"-")) -> 2.702702703 | I25: =IF(OR('Tabel 4F H'!I25<5,'Tabel 4 H'!I25<0.5),"-",IFERROR('Tabel 4 H'!I25/'Tabel 4F H'!I25*100,"-")) -> 4.866180049
A26: Arkitekt | C26: =IF(OR('Tabel 4F H'!C26<5,'Tabel 4 H'!C26<0.5),"-",IFERROR('Tabel 4 H'!C26/'Tabel 4F H'!C26*100,"-")) -> 24.27983539 | D26: =IF(OR('Tabel 4F H'!D26<5,'Tabel 4 H'!D26<0.5),"-",IFERROR('Tabel 4 H'!D26/'Tabel 4F H'!D26*100,"-")) -> 9.440559441 | E26: =IF(OR('Tabel 4F H'!E26<5,'Tabel 4 H'!E26<0.5),"-",IFERROR('Tabel 4 H'!E26/'Tabel 4F H'!E26*100,"-")) -> 5.570291777 | F26: =IF(OR('Tabel 4F H'!F26<5,'Tabel 4 H'!F26<0.5),"-",IFERROR('Tabel 4 H'!F26/'Tabel 4F H'!F26*100,"-")) -> 4.095112285 | G26: =IF(OR('Tabel 4F H'!G26<5,'Tabel 4 H'!G26<0.5),"-",IFERROR('Tabel 4 H'!G26/'Tabel 4F H'!G26*100,"-")) -> 7.871720117 | I26: =IF(OR('Tabel 4F H'!I26<5,'Tabel 4 H'!I26<0.5),"-",IFERROR('Tabel 4 H'!I26/'Tabel 4F H'!I26*100,"-")) -> 7.960199005
A27: Landinspek. | C27: =IF(OR('Tabel 4F H'!C27<5,'Tabel 4 H'!C27<0.5),"-",IFERROR('Tabel 4 H'!C27/'Tabel 4F H'!C27*100,"-")) -> - | D27: =IF(OR('Tabel 4F H'!D27<5,'Tabel 4 H'!D27<0.5),"-",IFERROR('Tabel 4 H'!D27/'Tabel 4F H'!D27*100,"-")) -> 3.448275862 | E27: =IF(OR('Tabel 4F H'!E27<5,'Tabel 4 H'!E27<0.5),"-",IFERROR('Tabel 4 H'!E27/'Tabel 4F H'!E27*100,"-")) -> 3.773584906 | F27: =IF(OR('Tabel 4F H'!F27<5,'Tabel 4 H'!F27<0.5),"-",IFERROR('Tabel 4 H'!F27/'Tabel 4F H'!F27*100,"-")) -> - | G27: =IF(OR('Tabel 4F H'!G27<5,'Tabel 4 H'!G27<0.5),"-",IFERROR('Tabel 4 H'!G27/'Tabel 4F H'!G27*100,"-")) -> - | I27: =IF(OR('Tabel 4F H'!I27<5,'Tabel 4 H'!I27<0.5),"-",IFERROR('Tabel 4 H'!I27/'Tabel 4F H'!I27*100,"-")) -> 2.083333333
A28: Bibliotekar | C28: =IF(OR('Tabel 4F H'!C28<5,'Tabel 4 H'!C28<0.5),"-",IFERROR('Tabel 4 H'!C28/'Tabel 4F H'!C28*100,"-")) -> 22.64150943 | D28: =IF(OR('Tabel 4F H'!D28<5,'Tabel 4 H'!D28<0.5),"-",IFERROR('Tabel 4 H'!D28/'Tabel 4F H'!D28*100,"-")) -> 8.086253369 | E28: =IF(OR('Tabel 4F H'!E28<5,'Tabel 4 H'!E28<0.5),"-",IFERROR('Tabel 4 H'!E28/'Tabel 4F H'!E28*100,"-")) -> 3.747870528 | F28: =IF(OR('Tabel 4F H'!F28<5,'Tabel 4 H'!F28<0.5),"-",IFERROR('Tabel 4 H'!F28/'Tabel 4F H'!F28*100,"-")) -> 3.349282297 | G28: =IF(OR('Tabel 4F H'!G28<5,'Tabel 4 H'!G28<0.5),"-",IFERROR('Tabel 4 H'!G28/'Tabel 4F H'!G28*100,"-")) -> 2.826855124 | I28: =IF(OR('Tabel 4F H'!I28<5,'Tabel 4 H'!I28<0.5),"-",IFERROR('Tabel 4 H'!I28/'Tabel 4F H'!I28*100,"-")) -> 5.023364486
A29: Musikudd. | C29: =IF(OR('Tabel 4F H'!C29<5,'Tabel 4 H'!C29<0.5),"-",IFERROR('Tabel 4 H'!C29/'Tabel 4F H'!C29*100,"-")) -> 25 | D29: =IF(OR('Tabel 4F H'!D29<5,'Tabel 4 H'!D29<0.5),"-",IFERROR('Tabel 4 H'!D29/'Tabel 4F H'!D29*100,"-")) -> 7.142857143 | E29: =IF(OR('Tabel 4F H'!E29<5,'Tabel 4 H'!E29<0.5),"-",IFERROR('Tabel 4 H'!E29/'Tabel 4F H'!E29*100,"-")) -> 13.43283582 | F29: =IF(OR('Tabel 4F H'!F29<5,'Tabel 4 H'!F29<0.5),"-",IFERROR('Tabel 4 H'!F29/'Tabel 4F H'!F29*100,"-")) -> 4 | G29: =IF(OR('Tabel 4F H'!G29<5,'Tabel 4 H'!G29<0.5),"-",IFERROR('Tabel 4 H'!G29/'Tabel 4F H'!G29*100,"-")) -> 5.405405405 | I29: =IF(OR('Tabel 4F H'!I29<5,'Tabel 4 H'!I29<0.5),"-",IFERROR('Tabel 4 H'!I29/'Tabel 4F H'!I29*100,"-")) -> 7.278481013
A30: Teolog | C30: =IF(OR('Tabel 4F H'!C30<5,'Tabel 4 H'!C30<0.5),"-",IFERROR('Tabel 4 H'!C30/'Tabel 4F H'!C30*100,"-")) -> 13.33333333 | D30: =IF(OR('Tabel 4F H'!D30<5,'Tabel 4 H'!D30<0.5),"-",IFERROR('Tabel 4 H'!D30/'Tabel 4F H'!D30*100,"-")) -> 10.78431373 | E30: =IF(OR('Tabel 4F H'!E30<5,'Tabel 4 H'!E30<0.5),"-",IFERROR('Tabel 4 H'!E30/'Tabel 4F H'!E30*100,"-")) -> 3.571428571 | F30: =IF(OR('Tabel 4F H'!F30<5,'Tabel 4 H'!F30<0.5),"-",IFERROR('Tabel 4 H'!F30/'Tabel 4F H'!F30*100,"-")) -> 5.847953216 | G30: =IF(OR('Tabel 4F H'!G30<5,'Tabel 4 H'!G30<0.5),"-",IFERROR('Tabel 4 H'!G30/'Tabel 4F H'!G30*100,"-")) -> 1.388888889 | I30: =IF(OR('Tabel 4F H'!I30<5,'Tabel 4 H'!I30<0.5),"-",IFERROR('Tabel 4 H'!I30/'Tabel 4F H'!I30*100,"-")) -> 5.575539568
A31: Psykolog | C31: =IF(OR('Tabel 4F H'!C31<5,'Tabel 4 H'!C31<0.5),"-",IFERROR('Tabel 4 H'!C31/'Tabel 4F H'!C31*100,"-")) -> 11.5916955 | D31: =IF(OR('Tabel 4F H'!D31<5,'Tabel 4 H'!D31<0.5),"-",IFERROR('Tabel 4 H'!D31/'Tabel 4F H'!D31*100,"-")) -> 7.615384615 | E31: =IF(OR('Tabel 4F H'!E31<5,'Tabel 4 H'!E31<0.5),"-",IFERROR('Tabel 4 H'!E31/'Tabel 4F H'!E31*100,"-")) -> 3.891891892 | F31: =IF(OR('Tabel 4F H'!F31<5,'Tabel 4 H'!F31<0.5),"-",IFERROR('Tabel 4 H'!F31/'Tabel 4F H'!F31*100,"-")) -> 1.919385797 | G31: =IF(OR('Tabel 4F H'!G31<5,'Tabel 4 H'!G31<0.5),"-",IFERROR('Tabel 4 H'!G31/'Tabel 4F H'!G31*100,"-")) -> 4.149377593 | I31: =IF(OR('Tabel 4F H'!I31<5,'Tabel 4 H'!I31<0.5),"-",IFERROR('Tabel 4 H'!I31/'Tabel 4F H'!I31*100,"-")) -> 6.227208976
A32: Jurist | C32: =IF(OR('Tabel 4F H'!C32<5,'Tabel 4 H'!C32<0.5),"-",IFERROR('Tabel 4 H'!C32/'Tabel 4F H'!C32*100,"-")) -> 4.4375 | D32: =IF(OR('Tabel 4F H'!D32<5,'Tabel 4 H'!D32<0.5),"-",IFERROR('Tabel 4 H'!D32/'Tabel 4F H'!D32*100,"-")) -> 2.143586254 | E32: =IF(OR('Tabel 4F H'!E32<5,'Tabel 4 H'!E32<0.5),"-",IFERROR('Tabel 4 H'!E32/'Tabel 4F H'!E32*100,"-")) -> 1.466716811 | F32: =IF(OR('Tabel 4F H'!F32<5,'Tabel 4 H'!F32<0.5),"-",IFERROR('Tabel 4 H'!F32/'Tabel 4F H'!F32*100,"-")) -> 1.691216585 | G32: =IF(OR('Tabel 4F H'!G32<5,'Tabel 4 H'!G32<0.5),"-",IFERROR('Tabel 4 H'!G32/'Tabel 4F H'!G32*100,"-")) -> 3.474903475 | I32: =IF(OR('Tabel 4F H'!I32<5,'Tabel 4 H'!I32<0.5),"-",IFERROR('Tabel 4 H'!I32/'Tabel 4F H'!I32*100,"-")) -> 2.32485077
A33: Økonom | C33: =IF(OR('Tabel 4F H'!C33<5,'Tabel 4 H'!C33<0.5),"-",IFERROR('Tabel 4 H'!C33/'Tabel 4F H'!C33*100,"-")) -> 4.69273743 | D33: =IF(OR('Tabel 4F H'!D33<5,'Tabel 4 H'!D33<0.5),"-",IFERROR('Tabel 4 H'!D33/'Tabel 4F H'!D33*100,"-")) -> 2.344231956 | E33: =IF(OR('Tabel 4F H'!E33<5,'Tabel 4 H'!E33<0.5),"-",IFERROR('Tabel 4 H'!E33/'Tabel 4F H'!E33*100,"-")) -> 1.242236025 | F33: =IF(OR('Tabel 4F H'!F33<5,'Tabel 4 H'!F33<0.5),"-",IFERROR('Tabel 4 H'!F33/'Tabel 4F H'!F33*100,"-")) -> 2.040816327 | G33: =IF(OR('Tabel 4F H'!G33<5,'Tabel 4 H'!G33<0.5),"-",IFERROR('Tabel 4 H'!G33/'Tabel 4F H'!G33*100,"-")) -> 5.208333333 | I33: =IF(OR('Tabel 4F H'!I33<5,'Tabel 4 H'!I33<0.5),"-",IFERROR('Tabel 4 H'!I33/'Tabel 4F H'!I33*100,"-")) -> 2.519167579
A34: Samf. Adm. | C34: =IF(OR('Tabel 4F H'!C34<5,'Tabel 4 H'!C34<0.5),"-",IFERROR('Tabel 4 H'!C34/'Tabel 4F H'!C34*100,"-")) -> 15.47811994 | D34: =IF(OR('Tabel 4F H'!D34<5,'Tabel 4 H'!D34<0.5),"-",IFERROR('Tabel 4 H'!D34/'Tabel 4F H'!D34*100,"-")) -> 5.774946921 | E34: =IF(OR('Tabel 4F H'!E34<5,'Tabel 4 H'!E34<0.5),"-",IFERROR('Tabel 4 H'!E34/'Tabel 4F H'!E34*100,"-")) -> 3.264864865 | F34: =IF(OR('Tabel 4F H'!F34<5,'Tabel 4 H'!F34<0.5),"-",IFERROR('Tabel 4 H'!F34/'Tabel 4F H'!F34*100,"-")) -> 3.748828491 | G34: =IF(OR('Tabel 4F H'!G34<5,'Tabel 4 H'!G34<0.5),"-",IFERROR('Tabel 4 H'!G34/'Tabel 4F H'!G34*100,"-")) -> 4.231625835 | I34: =IF(OR('Tabel 4F H'!I34<5,'Tabel 4 H'!I34<0.5),"-",IFERROR('Tabel 4 H'!I34/'Tabel 4F H'!I34*100,"-")) -> 6.212293172
A35: Cand. Merc. | C35: =IF(OR('Tabel 4F H'!C35<5,'Tabel 4 H'!C35<0.5),"-",IFERROR('Tabel 4 H'!C35/'Tabel 4F H'!C35*100,"-")) -> 8.553832117 | D35: =IF(OR('Tabel 4F H'!D35<5,'Tabel 4 H'!D35<0.5),"-",IFERROR('Tabel 4 H'!D35/'Tabel 4F H'!D35*100,"-")) -> 4.384958572 | E35: =IF(OR('Tabel 4F H'!E35<5,'Tabel 4 H'!E35<0.5),"-",IFERROR('Tabel 4 H'!E35/'Tabel 4F H'!E35*100,"-")) -> 3.477082863 | F35: =IF(OR('Tabel 4F H'!F35<5,'Tabel 4 H'!F35<0.5),"-",IFERROR('Tabel 4 H'!F35/'Tabel 4F H'!F35*100,"-")) -> 4.501488095 | G35: =IF(OR('Tabel 4F H'!G35<5,'Tabel 4 H'!G35<0.5),"-",IFERROR('Tabel 4 H'!G35/'Tabel 4F H'!G35*100,"-")) -> 7.225433526 | I35: =IF(OR('Tabel 4F H'!I35<5,'Tabel 4 H'!I35<0.5),"-",IFERROR('Tabel 4 H'!I35/'Tabel 4F H'!I35*100,"-")) -> 5.17469023
A36: HA | C36: =IF(OR('Tabel 4F H'!C36<5,'Tabel 4 H'!C36<0.5),"-",IFERROR('Tabel 4 H'!C36/'Tabel 4F H'!C36*100,"-")) -> 20.74363992 | D36: =IF(OR('Tabel 4F H'!D36<5,'Tabel 4 H'!D36<0.5),"-",IFERROR('Tabel 4 H'!D36/'Tabel 4F H'!D36*100,"-")) -> 6.311637081 | E36: =IF(OR('Tabel 4F H'!E36<5,'Tabel 4 H'!E36<0.5),"-",IFERROR('Tabel 4 H'!E36/'Tabel 4F H'!E36*100,"-")) -> 3.278688525 | F36: =IF(OR('Tabel 4F H'!F36<5,'Tabel 4 H'!F36<0.5),"-",IFERROR('Tabel 4 H'!F36/'Tabel 4F H'!F36*100,"-")) -> 3.874813711 | G36: =IF(OR('Tabel 4F H'!G36<5,'Tabel 4 H'!G36<0.5),"-",IFERROR('Tabel 4 H'!G36/'Tabel 4F H'!G36*100,"-")) -> 10.11235955 | I36: =IF(OR('Tabel 4F H'!I36<5,'Tabel 4 H'!I36<0.5),"-",IFERROR('Tabel 4 H'!I36/'Tabel 4F H'!I36*100,"-")) -> 8.407643312
A37: HD | C37: =IF(OR('Tabel 4F H'!C37<5,'Tabel 4 H'!C37<0.5),"-",IFERROR('Tabel 4 H'!C37/'Tabel 4F H'!C37*100,"-")) -> 18.87755102 | D37: =IF(OR('Tabel 4F H'!D37<5,'Tabel 4 H'!D37<0.5),"-",IFERROR('Tabel 4 H'!D37/'Tabel 4F H'!D37*100,"-")) -> 8.348794063 | E37: =IF(OR('Tabel 4F H'!E37<5,'Tabel 4 H'!E37<0.5),"-",IFERROR('Tabel 4 H'!E37/'Tabel 4F H'!E37*100,"-")) -> 3.746397695 | F37: =IF(OR('Tabel 4F H'!F37<5,'Tabel 4 H'!F37<0.5),"-",IFERROR('Tabel 4 H'!F37/'Tabel 4F H'!F37*100,"-")) -> 3.412073491 | G37: =IF(OR('Tabel 4F H'!G37<5,'Tabel 4 H'!G37<0.5),"-",IFERROR('Tabel 4 H'!G37/'Tabel 4F H'!G37*100,"-")) -> 6.849315068 | I37: =IF(OR('Tabel 4F H'!I37<5,'Tabel 4 H'!I37<0.5),"-",IFERROR('Tabel 4 H'!I37/'Tabel 4F H'!I37*100,"-")) -> 8.504746835
A38: Komm. og Sprog | C38: =IF(OR('Tabel 4F H'!C38<5,'Tabel 4 H'!C38<0.5),"-",IFERROR('Tabel 4 H'!C38/'Tabel 4F H'!C38*100,"-")) -> 17.21311475 | D38: =IF(OR('Tabel 4F H'!D38<5,'Tabel 4 H'!D38<0.5),"-",IFERROR('Tabel 4 H'!D38/'Tabel 4F H'!D38*100,"-")) -> 10 | E38: =IF(OR('Tabel 4F H'!E38<5,'Tabel 4 H'!E38<0.5),"-",IFERROR('Tabel 4 H'!E38/'Tabel 4F H'!E38*100,"-")) -> 6.283662478 | F38: =IF(OR('Tabel 4F H'!F38<5,'Tabel 4 H'!F38<0.5),"-",IFERROR('Tabel 4 H'!F38/'Tabel 4F H'!F38*100,"-")) -> 5.418138987 | G38: =IF(OR('Tabel 4F H'!G38<5,'Tabel 4 H'!G38<0.5),"-",IFERROR('Tabel 4 H'!G38/'Tabel 4F H'!G38*100,"-")) -> 7.692307692 | I38: =IF(OR('Tabel 4F H'!I38<5,'Tabel 4 H'!I38<0.5),"-",IFERROR('Tabel 4 H'!I38/'Tabel 4F H'!I38*100,"-")) -> 8.923154702
A39: Cand. IT. | C39: =IF(OR('Tabel 4F H'!C39<5,'Tabel 4 H'!C39<0.5),"-",IFERROR('Tabel 4 H'!C39/'Tabel 4F H'!C39*100,"-")) -> 11.25461255 | D39: =IF(OR('Tabel 4F H'!D39<5,'Tabel 4 H'!D39<0.5),"-",IFERROR('Tabel 4 H'!D39/'Tabel 4F H'!D39*100,"-")) -> 6.021155411 | E39: =IF(OR('Tabel 4F H'!E39<5,'Tabel 4 H'!E39<0.5),"-",IFERROR('Tabel 4 H'!E39/'Tabel 4F H'!E39*100,"-")) -> 3.70942813 | F39: =IF(OR('Tabel 4F H'!F39<5,'Tabel 4 H'!F39<0.5),"-",IFERROR('Tabel 4 H'!F39/'Tabel 4F H'!F39*100,"-")) -> 11.76470588 | G39: =IF(OR('Tabel 4F H'!G39<5,'Tabel 4 H'!G39<0.5),"-",IFERROR('Tabel 4 H'!G39/'Tabel 4F H'!G39*100,"-")) -> 12.5 | I39: =IF(OR('Tabel 4F H'!I39<5,'Tabel 4 H'!I39<0.5),"-",IFERROR('Tabel 4 H'!I39/'Tabel 4F H'!I39*100,"-")) -> 6.7361668
A40: Bac. Samf. | C40: =IF(OR('Tabel 4F H'!C40<5,'Tabel 4 H'!C40<0.5),"-",IFERROR('Tabel 4 H'!C40/'Tabel 4F H'!C40*100,"-")) -> 26.66666667 | D40: =IF(OR('Tabel 4F H'!D40<5,'Tabel 4 H'!D40<0.5),"-",IFERROR('Tabel 4 H'!D40/'Tabel 4F H'!D40*100,"-")) -> 5.777777778 | E40: =IF(OR('Tabel 4F H'!E40<5,'Tabel 4 H'!E40<0.5),"-",IFERROR('Tabel 4 H'!E40/'Tabel 4F H'!E40*100,"-")) -> 5.11627907 | F40: =IF(OR('Tabel 4F H'!F40<5,'Tabel 4 H'!F40<0.5),"-",IFERROR('Tabel 4 H'!F40/'Tabel 4F H'!F40*100,"-")) -> 6.52173913 | G40: =IF(OR('Tabel 4F H'!G40<5,'Tabel 4 H'!G40<0.5),"-",IFERROR('Tabel 4 H'!G40/'Tabel 4F H'!G40*100,"-")) -> 5.555555556 | I40: =IF(OR('Tabel 4F H'!I40<5,'Tabel 4 H'!I40<0.5),"-",IFERROR('Tabel 4 H'!I40/'Tabel 4F H'!I40*100,"-")) -> 10.24967148
A41: Bac. Hum. | C41: =IF(OR('Tabel 4F H'!C41<5,'Tabel 4 H'!C41<0.5),"-",IFERROR('Tabel 4 H'!C41/'Tabel 4F H'!C41*100,"-")) -> 36.53846154 | D41: =IF(OR('Tabel 4F H'!D41<5,'Tabel 4 H'!D41<0.5),"-",IFERROR('Tabel 4 H'!D41/'Tabel 4F H'!D41*100,"-")) -> 14.35768262 | E41: =IF(OR('Tabel 4F H'!E41<5,'Tabel 4 H'!E41<0.5),"-",IFERROR('Tabel 4 H'!E41/'Tabel 4F H'!E41*100,"-")) -> 6.588235294 | F41: =IF(OR('Tabel 4F H'!F41<5,'Tabel 4 H'!F41<0.5),"-",IFERROR('Tabel 4 H'!F41/'Tabel 4F H'!F41*100,"-")) -> 6.725146199 | G41: =IF(OR('Tabel 4F H'!G41<5,'Tabel 4 H'!G41<0.5),"-",IFERROR('Tabel 4 H'!G41/'Tabel 4F H'!G41*100,"-")) -> 9.782608696 | I41: =IF(OR('Tabel 4F H'!I41<5,'Tabel 4 H'!I41<0.5),"-",IFERROR('Tabel 4 H'!I41/'Tabel 4F H'!I41*100,"-")) -> 17.83369803
A42: Bac. Nat. | C42: =IF(OR('Tabel 4F H'!C42<5,'Tabel 4 H'!C42<0.5),"-",IFERROR('Tabel 4 H'!C42/'Tabel 4F H'!C42*100,"-")) -> 25.50790068 | D42: =IF(OR('Tabel 4F H'!D42<5,'Tabel 4 H'!D42<0.5),"-",IFERROR('Tabel 4 H'!D42/'Tabel 4F H'!D42*100,"-")) -> 6.88976378 | E42: =IF(OR('Tabel 4F H'!E42<5,'Tabel 4 H'!E42<0.5),"-",IFERROR('Tabel 4 H'!E42/'Tabel 4F H'!E42*100,"-")) -> 2.857142857 | F42: =IF(OR('Tabel 4F H'!F42<5,'Tabel 4 H'!F42<0.5),"-",IFERROR('Tabel 4 H'!F42/'Tabel 4F H'!F42*100,"-")) -> 4.347826087 | G42: =IF(OR('Tabel 4F H'!G42<5,'Tabel 4 H'!G42<0.5),"-",IFERROR('Tabel 4 H'!G42/'Tabel 4F H'!G42*100,"-")) -> 5.263157895 | I42: =IF(OR('Tabel 4F H'!I42<5,'Tabel 4 H'!I42<0.5),"-",IFERROR('Tabel 4 H'!I42/'Tabel 4F H'!I42*100,"-")) -> 12.5
A43: Andre | C43: =IF(OR('Tabel 4F H'!C43<5,'Tabel 4 H'!C43<0.5),"-",IFERROR('Tabel 4 H'!C43/'Tabel 4F H'!C43*100,"-")) -> 14.74622771 | D43: =IF(OR('Tabel 4F H'!D43<5,'Tabel 4 H'!D43<0.5),"-",IFERROR('Tabel 4 H'!D43/'Tabel 4F H'!D43*100,"-")) -> 9.021345147 | E43: =IF(OR('Tabel 4F H'!E43<5,'Tabel 4 H'!E43<0.5),"-",IFERROR('Tabel 4 H'!E43/'Tabel 4F H'!E43*100,"-")) -> 7.250070801 | F43: =IF(OR('Tabel 4F H'!F43<5,'Tabel 4 H'!F43<0.5),"-",IFERROR('Tabel 4 H'!F43/'Tabel 4F H'!F43*100,"-")) -> 10.00953289 | G43: =IF(OR('Tabel 4F H'!G43<5,'Tabel 4 H'!G43<0.5),"-",IFERROR('Tabel 4 H'!G43/'Tabel 4F H'!G43*100,"-")) -> 11.18012422 | I43: =IF(OR('Tabel 4F H'!I43<5,'Tabel 4 H'!I43<0.5),"-",IFERROR('Tabel 4 H'!I43/'Tabel 4F H'!I43*100,"-")) -> 9.480479079
A45: Total | C45: =IF(OR('Tabel 4F H'!C45<5,'Tabel 4 H'!C45<0.5),"-",IFERROR('Tabel 4 H'!C45/'Tabel 4F H'!C45*100,"-")) -> 15.756523 | D45: =IF(OR('Tabel 4F H'!D45<5,'Tabel 4 H'!D45<0.5),"-",IFERROR('Tabel 4 H'!D45/'Tabel 4F H'!D45*100,"-")) -> 6.474796317 | E45: =IF(OR('Tabel 4F H'!E45<5,'Tabel 4 H'!E45<0.5),"-",IFERROR('Tabel 4 H'!E45/'Tabel 4F H'!E45*100,"-")) -> 3.810818515 | F45: =IF(OR('Tabel 4F H'!F45<5,'Tabel 4 H'!F45<0.5),"-",IFERROR('Tabel 4 H'!F45/'Tabel 4F H'!F45*100,"-")) -> 3.863251143 | G45: =IF(OR('Tabel 4F H'!G45<5,'Tabel 4 H'!G45<0.5),"-",IFERROR('Tabel 4 H'!G45/'Tabel 4F H'!G45*100,"-")) -> 4.966415632 | I45: =IF(OR('Tabel 4F H'!I45<5,'Tabel 4 H'!I45<0.5),"-",IFERROR('Tabel 4 H'!I45/'Tabel 4F H'!I45*100,"-")) -> 6.695168925
A47: Ingeniører i alt | C47: =IF(OR('Tabel 4F H'!C47<5,'Tabel 4 H'!C47<0.5),"-",IFERROR('Tabel 4 H'!C47/'Tabel 4F H'!C47*100,"-")) -> 13.41861731 | D47: =IF(OR('Tabel 4F H'!D47<5,'Tabel 4 H'!D47<0.5),"-",IFERROR('Tabel 4 H'!D47/'Tabel 4F H'!D47*100,"-")) -> 3.204238678 | E47: =IF(OR('Tabel 4F H'!E47<5,'Tabel 4 H'!E47<0.5),"-",IFERROR('Tabel 4 H'!E47/'Tabel 4F H'!E47*100,"-")) -> 2.020896343 | F47: =IF(OR('Tabel 4F H'!F47<5,'Tabel 4 H'!F47<0.5),"-",IFERROR('Tabel 4 H'!F47/'Tabel 4F H'!F47*100,"-")) -> 2.393972536 | G47: =IF(OR('Tabel 4F H'!G47<5,'Tabel 4 H'!G47<0.5),"-",IFERROR('Tabel 4 H'!G47/'Tabel 4F H'!G47*100,"-")) -> 2.833850932 | I47: =IF(OR('Tabel 4F H'!I47<5,'Tabel 4 H'!I47<0.5),"-",IFERROR('Tabel 4 H'!I47/'Tabel 4F H'!I47*100,"-")) -> 3.921832884
A48: Magistre i alt | C48: =IF(OR('Tabel 4F H'!C48<5,'Tabel 4 H'!C48<0.5),"-",IFERROR('Tabel 4 H'!C48/'Tabel 4F H'!C48*100,"-")) -> 26.96296296 | D48: =IF(OR('Tabel 4F H'!D48<5,'Tabel 4 H'!D48<0.5),"-",IFERROR('Tabel 4 H'!D48/'Tabel 4F H'!D48*100,"-")) -> 10.9054436 | E48: =IF(OR('Tabel 4F H'!E48<5,'Tabel 4 H'!E48<0.5),"-",IFERROR('Tabel 4 H'!E48/'Tabel 4F H'!E48*100,"-")) -> 5.134727718 | F48: =IF(OR('Tabel 4F H'!F48<5,'Tabel 4 H'!F48<0.5),"-",IFERROR('Tabel 4 H'!F48/'Tabel 4F H'!F48*100,"-")) -> 4.912541868 | G48: =IF(OR('Tabel 4F H'!G48<5,'Tabel 4 H'!G48<0.5),"-",IFERROR('Tabel 4 H'!G48/'Tabel 4F H'!G48*100,"-")) -> 5.535055351 | I48: =IF(OR('Tabel 4F H'!I48<5,'Tabel 4 H'!I48<0.5),"-",IFERROR('Tabel 4 H'!I48/'Tabel 4F H'!I48*100,"-")) -> 9.73193119
A49: DJØF'ere i alt | C49: =IF(OR('Tabel 4F H'!C49<5,'Tabel 4 H'!C49<0.5),"-",IFERROR('Tabel 4 H'!C49/'Tabel 4F H'!C49*100,"-")) -> 9.900588355 | D49: =IF(OR('Tabel 4F H'!D49<5,'Tabel 4 H'!D49<0.5),"-",IFERROR('Tabel 4 H'!D49/'Tabel 4F H'!D49*100,"-")) -> 4.430094609 | E49: =IF(OR('Tabel 4F H'!E49<5,'Tabel 4 H'!E49<0.5),"-",IFERROR('Tabel 4 H'!E49/'Tabel 4F H'!E49*100,"-")) -> 2.769230769 | F49: =IF(OR('Tabel 4F H'!F49<5,'Tabel 4 H'!F49<0.5),"-",IFERROR('Tabel 4 H'!F49/'Tabel 4F H'!F49*100,"-")) -> 3.309554438 | G49: =IF(OR('Tabel 4F H'!G49<5,'Tabel 4 H'!G49<0.5),"-",IFERROR('Tabel 4 H'!G49/'Tabel 4F H'!G49*100,"-")) -> 5.340078696 | I49: =IF(OR('Tabel 4F H'!I49<5,'Tabel 4 H'!I49<0.5),"-",IFERROR('Tabel 4 H'!I49/'Tabel 4F H'!I49*100,"-")) -> 4.862956425
A56: København
C58: Under 30 år | D58: 30 - 39 år | E58: 40 - 49 år | F58: 50 - 59 år | G58: Over 60 år | I58: I alt
A60: Civ. ing. | C60: =IF(OR('Tabel 4F H'!C60<5,'Tabel 4 H'!C60<0.5),"-",IFERROR('Tabel 4 H'!C60/'Tabel 4F H'!C60*100,"-")) -> 12.16968011 | D60: =IF(OR('Tabel 4F H'!D60<5,'Tabel 4 H'!D60<0.5),"-",IFERROR('Tabel 4 H'!D60/'Tabel 4F H'!D60*100,"-")) -> 3.650220618 | E60: =IF(OR('Tabel 4F H'!E60<5,'Tabel 4 H'!E60<0.5),"-",IFERROR('Tabel 4 H'!E60/'Tabel 4F H'!E60*100,"-")) -> 2.044989775 | F60: =IF(OR('Tabel 4F H'!F60<5,'Tabel 4 H'!F60<0.5),"-",IFERROR('Tabel 4 H'!F60/'Tabel 4F H'!F60*100,"-")) -> 2.674591382 | G60: =IF(OR('Tabel 4F H'!G60<5,'Tabel 4 H'!G60<0.5),"-",IFERROR('Tabel 4 H'!G60/'Tabel 4F H'!G60*100,"-")) -> 1.724137931 | I60: =IF(OR('Tabel 4F H'!I60<5,'Tabel 4 H'!I60<0.5),"-",IFERROR('Tabel 4 H'!I60/'Tabel 4F H'!I60*100,"-")) -> 5.333564976
A61: Diplom ing. | C61: =IF(OR('Tabel 4F H'!C61<5,'Tabel 4 H'!C61<0.5),"-",IFERROR('Tabel 4 H'!C61/'Tabel 4F H'!C61*100,"-")) -> 14.6953405 | D61: =IF(OR('Tabel 4F H'!D61<5,'Tabel 4 H'!D61<0.5),"-",IFERROR('Tabel 4 H'!D61/'Tabel 4F H'!D61*100,"-")) -> 4.069767442 | E61: =IF(OR('Tabel 4F H'!E61<5,'Tabel 4 H'!E61<0.5),"-",IFERROR('Tabel 4 H'!E61/'Tabel 4F H'!E61*100,"-")) -> 4.365620737 | F61: =IF(OR('Tabel 4F H'!F61<5,'Tabel 4 H'!F61<0.5),"-",IFERROR('Tabel 4 H'!F61/'Tabel 4F H'!F61*100,"-")) -> 3.304773562 | G61: =IF(OR('Tabel 4F H'!G61<5,'Tabel 4 H'!G61<0.5),"-",IFERROR('Tabel 4 H'!G61/'Tabel 4F H'!G61*100,"-")) -> 4.471544715 | I61: =IF(OR('Tabel 4F H'!I61<5,'Tabel 4 H'!I61<0.5),"-",IFERROR('Tabel 4 H'!I61/'Tabel 4F H'!I61*100,"-")) -> 5.81829496
A62: Cand. Scient. Tek | C62: =IF(OR('Tabel 4F H'!C62<5,'Tabel 4 H'!C62<0.5),"-",IFERROR('Tabel 4 H'!C62/'Tabel 4F H'!C62*100,"-")) -> 19.63190184 | D62: =IF(OR('Tabel 4F H'!D62<5,'Tabel 4 H'!D62<0.5),"-",IFERROR('Tabel 4 H'!D62/'Tabel 4F H'!D62*100,"-")) -> 8.551673945 | E62: =IF(OR('Tabel 4F H'!E62<5,'Tabel 4 H'!E62<0.5),"-",IFERROR('Tabel 4 H'!E62/'Tabel 4F H'!E62*100,"-")) -> 4.903677758 | F62: =IF(OR('Tabel 4F H'!F62<5,'Tabel 4 H'!F62<0.5),"-",IFERROR('Tabel 4 H'!F62/'Tabel 4F H'!F62*100,"-")) -> 6.41025641 | G62: =IF(OR('Tabel 4F H'!G62<5,'Tabel 4 H'!G62<0.5),"-",IFERROR('Tabel 4 H'!G62/'Tabel 4F H'!G62*100,"-")) -> - | I62: =IF(OR('Tabel 4F H'!I62<5,'Tabel 4 H'!I62<0.5),"-",IFERROR('Tabel 4 H'!I62/'Tabel 4F H'!I62*100,"-")) -> 12.02856097
A63: MA. Hum. | C63: =IF(OR('Tabel 4F H'!C63<5,'Tabel 4 H'!C63<0.5),"-",IFERROR('Tabel 4 H'!C63/'Tabel 4F H'!C63*100,"-")) -> 28.02225594 | D63: =IF(OR('Tabel 4F H'!D63<5,'Tabel 4 H'!D63<0.5),"-",IFERROR('Tabel 4 H'!D63/'Tabel 4F H'!D63*100,"-")) -> 12.77524301 | E63: =IF(OR('Tabel 4F H'!E63<5,'Tabel 4 H'!E63<0.5),"-",IFERROR('Tabel 4 H'!E63/'Tabel 4F H'!E63*100,"-")) -> 6.716833891 | F63: =IF(OR('Tabel 4F H'!F63<5,'Tabel 4 H'!F63<0.5),"-",IFERROR('Tabel 4 H'!F63/'Tabel 4F H'!F63*100,"-")) -> 6.923076923 | G63: =IF(OR('Tabel 4F H'!G63<5,'Tabel 4 H'!G63<0.5),"-",IFERROR('Tabel 4 H'!G63/'Tabel 4F H'!G63*100,"-")) -> 9.290953545 | I63: =IF(OR('Tabel 4F H'!I63<5,'Tabel 4 H'!I63<0.5),"-",IFERROR('Tabel 4 H'!I63/'Tabel 4F H'!I63*100,"-")) -> 12.72431994
A64: MA. Nat. | C64: =IF(OR('Tabel 4F H'!C64<5,'Tabel 4 H'!C64<0.5),"-",IFERROR('Tabel 4 H'!C64/'Tabel 4F H'!C64*100,"-")) -> 24.26035503 | D64: =IF(OR('Tabel 4F H'!D64<5,'Tabel 4 H'!D64<0.5),"-",IFERROR('Tabel 4 H'!D64/'Tabel 4F H'!D64*100,"-")) -> 7 | E64: =IF(OR('Tabel 4F H'!E64<5,'Tabel 4 H'!E64<0.5),"-",IFERROR('Tabel 4 H'!E64/'Tabel 4F H'!E64*100,"-")) -> 2.639915523 | F64: =IF(OR('Tabel 4F H'!F64<5,'Tabel 4 H'!F64<0.5),"-",IFERROR('Tabel 4 H'!F64/'Tabel 4F H'!F64*100,"-")) -> 3.58974359 | G64: =IF(OR('Tabel 4F H'!G64<5,'Tabel 4 H'!G64<0.5),"-",IFERROR('Tabel 4 H'!G64/'Tabel 4F H'!G64*100,"-")) -> 3.431372549 | I64: =IF(OR('Tabel 4F H'!I64<5,'Tabel 4 H'!I64<0.5),"-",IFERROR('Tabel 4 H'!I64/'Tabel 4F H'!I64*100,"-")) -> 6.668835394
A65: MA. Ph.d. | C65: =IF(OR('Tabel 4F H'!C65<5,'Tabel 4 H'!C65<0.5),"-",IFERROR('Tabel 4 H'!C65/'Tabel 4F H'!C65*100,"-")) -> 14.28571429 | D65: =IF(OR('Tabel 4F H'!D65<5,'Tabel 4 H'!D65<0.5),"-",IFERROR('Tabel 4 H'!D65/'Tabel 4F H'!D65*100,"-")) -> 7.906976744 | E65: =IF(OR('Tabel 4F H'!E65<5,'Tabel 4 H'!E65<0.5),"-",IFERROR('Tabel 4 H'!E65/'Tabel 4F H'!E65*100,"-")) -> 7.983193277 | F65: =IF(OR('Tabel 4F H'!F65<5,'Tabel 4 H'!F65<0.5),"-",IFERROR('Tabel 4 H'!F65/'Tabel 4F H'!F65*100,"-")) -> 10.07194245 | G65: =IF(OR('Tabel 4F H'!G65<5,'Tabel 4 H'!G65<0.5),"-",IFERROR('Tabel 4 H'!G65/'Tabel 4F H'!G65*100,"-")) -> 4.347826087 | I65: =IF(OR('Tabel 4F H'!I65<5,'Tabel 4 H'!I65<0.5),"-",IFERROR('Tabel 4 H'!I65/'Tabel 4F H'!I65*100,"-")) -> 8.282208589
A66: MA. Samf. | C66: =IF(OR('Tabel 4F H'!C66<5,'Tabel 4 H'!C66<0.5),"-",IFERROR('Tabel 4 H'!C66/'Tabel 4F H'!C66*100,"-")) -> 23.98190045 | D66: =IF(OR('Tabel 4F H'!D66<5,'Tabel 4 H'!D66<0.5),"-",IFERROR('Tabel 4 H'!D66/'Tabel 4F H'!D66*100,"-")) -> 13.98344066 | E66: =IF(OR('Tabel 4F H'!E66<5,'Tabel 4 H'!E66<0.5),"-",IFERROR('Tabel 4 H'!E66/'Tabel 4F H'!E66*100,"-")) -> 8.982035928 | F66: =IF(OR('Tabel 4F H'!F66<5,'Tabel 4 H'!F66<0.5),"-",IFERROR('Tabel 4 H'!F66/'Tabel 4F H'!F66*100,"-")) -> 6.481481481 | G66: =IF(OR('Tabel 4F H'!G66<5,'Tabel 4 H'!G66<0.5),"-",IFERROR('Tabel 4 H'!G66/'Tabel 4F H'!G66*100,"-")) -> 12.5 | I66: =IF(OR('Tabel 4F H'!I66<5,'Tabel 4 H'!I66<0.5),"-",IFERROR('Tabel 4 H'!I66/'Tabel 4F H'!I66*100,"-")) -> 15.83935018
A67: Øvrige Mag. | C67: =IF(OR('Tabel 4F H'!C67<5,'Tabel 4 H'!C67<0.5),"-",IFERROR('Tabel 4 H'!C67/'Tabel 4F H'!C67*100,"-")) -> 35.71428571 | D67: =IF(OR('Tabel 4F H'!D67<5,'Tabel 4 H'!D67<0.5),"-",IFERROR('Tabel 4 H'!D67/'Tabel 4F H'!D67*100,"-")) -> 12.44635193 | E67: =IF(OR('Tabel 4F H'!E67<5,'Tabel 4 H'!E67<0.5),"-",IFERROR('Tabel 4 H'!E67/'Tabel 4F H'!E67*100,"-")) -> 5.319148936 | F67: =IF(OR('Tabel 4F H'!F67<5,'Tabel 4 H'!F67<0.5),"-",IFERROR('Tabel 4 H'!F67/'Tabel 4F H'!F67*100,"-")) -> 5.050505051 | G67: =IF(OR('Tabel 4F H'!G67<5,'Tabel 4 H'!G67<0.5),"-",IFERROR('Tabel 4 H'!G67/'Tabel 4F H'!G67*100,"-")) -> 7.01754386 | I67: =IF(OR('Tabel 4F H'!I67<5,'Tabel 4 H'!I67<0.5),"-",IFERROR('Tabel 4 H'!I67/'Tabel 4F H'!I67*100,"-")) -> 11.86813187
A68: Agronom | C68: =IF(OR('Tabel 4F H'!C68<5,'Tabel 4 H'!C68<0.5),"-",IFERROR('Tabel 4 H'!C68/'Tabel 4F H'!C68*100,"-")) -> 29.09090909 | D68: =IF(OR('Tabel 4F H'!D68<5,'Tabel 4 H'!D68<0.5),"-",IFERROR('Tabel 4 H'!D68/'Tabel 4F H'!D68*100,"-")) -> 10.38961039 | E68: =IF(OR('Tabel 4F H'!E68<5,'Tabel 4 H'!E68<0.5),"-",IFERROR('Tabel 4 H'!E68/'Tabel 4F H'!E68*100,"-")) -> 5.882352941 | F68: =IF(OR('Tabel 4F H'!F68<5,'Tabel 4 H'!F68<0.5),"-",IFERROR('Tabel 4 H'!F68/'Tabel 4F H'!F68*100,"-")) -> - | G68: =IF(OR('Tabel 4F H'!G68<5,'Tabel 4 H'!G68<0.5),"-",IFERROR('Tabel 4 H'!G68/'Tabel 4F H'!G68*100,"-")) -> - | I68: =IF(OR('Tabel 4F H'!I68<5,'Tabel 4 H'!I68<0.5),"-",IFERROR('Tabel 4 H'!I68/'Tabel 4F H'!I68*100,"-")) -> 10
A69: Landsk. Arkt. | C69: =IF(OR('Tabel 4F H'!C69<5,'Tabel 4 H'!C69<0.5),"-",IFERROR('Tabel 4 H'!C69/'Tabel 4F H'!C69*100,"-")) -> 30.76923077 | D69: =IF(OR('Tabel 4F H'!D69<5,'Tabel 4 H'!D69<0.5),"-",IFERROR('Tabel 4 H'!D69/'Tabel 4F H'!D69*100,"-")) -> 10.90909091 | E69: =IF(OR('Tabel 4F H'!E69<5,'Tabel 4 H'!E69<0.5),"-",IFERROR('Tabel 4 H'!E69/'Tabel 4F H'!E69*100,"-")) -> 5.357142857 | F69: =IF(OR('Tabel 4F H'!F69<5,'Tabel 4 H'!F69<0.5),"-",IFERROR('Tabel 4 H'!F69/'Tabel 4F H'!F69*100,"-")) -> 6.451612903 | G69: =IF(OR('Tabel 4F H'!G69<5,'Tabel 4 H'!G69<0.5),"-",IFERROR('Tabel 4 H'!G69/'Tabel 4F H'!G69*100,"-")) -> - | I69: =IF(OR('Tabel 4F H'!I69<5,'Tabel 4 H'!I69<0.5),"-",IFERROR('Tabel 4 H'!I69/'Tabel 4F H'!I69*100,"-")) -> 12.94117647
A70: Hortonom | C70: =IF(OR('Tabel 4F H'!C70<5,'Tabel 4 H'!C70<0.5),"-",IFERROR('Tabel 4 H'!C70/'Tabel 4F H'!C70*100,"-")) -> - | D70: =IF(OR('Tabel 4F H'!D70<5,'Tabel 4 H'!D70<0.5),"-",IFERROR('Tabel 4 H'!D70/'Tabel 4F H'!D70*100,"-")) -> - | E70: =IF(OR('Tabel 4F H'!E70<5,'Tabel 4 H'!E70<0.5),"-",IFERROR('Tabel 4 H'!E70/'Tabel 4F H'!E70*100,"-")) -> 7.692307692 | F70: =IF(OR('Tabel 4F H'!F70<5,'Tabel 4 H'!F70<0.5),"-",IFERROR('Tabel 4 H'!F70/'Tabel 4F H'!F70*100,"-")) -> - | G70: =IF(OR('Tabel 4F H'!G70<5,'Tabel 4 H'!G70<0.5),"-",IFERROR('Tabel 4 H'!G70/'Tabel 4F H'!G70*100,"-")) -> 14.28571429 | I70: =IF(OR('Tabel 4F H'!I70<5,'Tabel 4 H'!I70<0.5),"-",IFERROR('Tabel 4 H'!I70/'Tabel 4F H'!I70*100,"-")) -> 3.846153846
A71: Forstkand. | C71: =IF(OR('Tabel 4F H'!C71<5,'Tabel 4 H'!C71<0.5),"-",IFERROR('Tabel 4 H'!C71/'Tabel 4F H'!C71*100,"-")) -> 33.33333333 | D71: =IF(OR('Tabel 4F H'!D71<5,'Tabel 4 H'!D71<0.5),"-",IFERROR('Tabel 4 H'!D71/'Tabel 4F H'!D71*100,"-")) -> 16 | E71: =IF(OR('Tabel 4F H'!E71<5,'Tabel 4 H'!E71<0.5),"-",IFERROR('Tabel 4 H'!E71/'Tabel 4F H'!E71*100,"-")) -> 4 | F71: =IF(OR('Tabel 4F H'!F71<5,'Tabel 4 H'!F71<0.5),"-",IFERROR('Tabel 4 H'!F71/'Tabel 4F H'!F71*100,"-")) -> 10.52631579 | G71: =IF(OR('Tabel 4F H'!G71<5,'Tabel 4 H'!G71<0.5),"-",IFERROR('Tabel 4 H'!G71/'Tabel 4F H'!G71*100,"-")) -> - | I71: =IF(OR('Tabel 4F H'!I71<5,'Tabel 4 H'!I71<0.5),"-",IFERROR('Tabel 4 H'!I71/'Tabel 4F H'!I71*100,"-")) -> 13.0952381
A72: Jordbrugsakad. | C72: =IF(OR('Tabel 4F H'!C72<5,'Tabel 4 H'!C72<0.5),"-",IFERROR('Tabel 4 H'!C72/'Tabel 4F H'!C72*100,"-")) -> 30.25210084 | D72: =IF(OR('Tabel 4F H'!D72<5,'Tabel 4 H'!D72<0.5),"-",IFERROR('Tabel 4 H'!D72/'Tabel 4F H'!D72*100,"-")) -> 10.66666667 | E72: =IF(OR('Tabel 4F H'!E72<5,'Tabel 4 H'!E72<0.5),"-",IFERROR('Tabel 4 H'!E72/'Tabel 4F H'!E72*100,"-")) -> 5.555555556 | F72: =IF(OR('Tabel 4F H'!F72<5,'Tabel 4 H'!F72<0.5),"-",IFERROR('Tabel 4 H'!F72/'Tabel 4F H'!F72*100,"-")) -> 3.225806452 | G72: =IF(OR('Tabel 4F H'!G72<5,'Tabel 4 H'!G72<0.5),"-",IFERROR('Tabel 4 H'!G72/'Tabel 4F H'!G72*100,"-")) -> 2.43902439 | I72: =IF(OR('Tabel 4F H'!I72<5,'Tabel 4 H'!I72<0.5),"-",IFERROR('Tabel 4 H'!I72/'Tabel 4F H'!I72*100,"-")) -> 11.02831595
A73: Mejeriing. | C73: =IF(OR('Tabel 4F H'!C73<5,'Tabel 4 H'!C73<0.5),"-",IFERROR('Tabel 4 H'!C73/'Tabel 4F H'!C73*100,"-")) -> 44.44444444 | D73: =IF(OR('Tabel 4F H'!D73<5,'Tabel 4 H'!D73<0.5),"-",IFERROR('Tabel 4 H'!D73/'Tabel 4F H'!D73*100,"-")) -> 5.555555556 | E73: =IF(OR('Tabel 4F H'!E73<5,'Tabel 4 H'!E73<0.5),"-",IFERROR('Tabel 4 H'!E73/'Tabel 4F H'!E73*100,"-")) -> - | F73: =IF(OR('Tabel 4F H'!F73<5,'Tabel 4 H'!F73<0.5),"-",IFERROR('Tabel 4 H'!F73/'Tabel 4F H'!F73*100,"-")) -> - | G73: =IF(OR('Tabel 4F H'!G73<5,'Tabel 4 H'!G73<0.5),"-",IFERROR('Tabel 4 H'!G73/'Tabel 4F H'!G73*100,"-")) -> - | I73: =IF(OR('Tabel 4F H'!I73<5,'Tabel 4 H'!I73<0.5),"-",IFERROR('Tabel 4 H'!I73/'Tabel 4F H'!I73*100,"-")) -> 16.66666667
A74: Levn.m.kand. | C74: =IF(OR('Tabel 4F H'!C74<5,'Tabel 4 H'!C74<0.5),"-",IFERROR('Tabel 4 H'!C74/'Tabel 4F H'!C74*100,"-")) -> 24.13793103 | D74: =IF(OR('Tabel 4F H'!D74<5,'Tabel 4 H'!D74<0.5),"-",IFERROR('Tabel 4 H'!D74/'Tabel 4F H'!D74*100,"-")) -> 5 | E74: =IF(OR('Tabel 4F H'!E74<5,'Tabel 4 H'!E74<0.5),"-",IFERROR('Tabel 4 H'!E74/'Tabel 4F H'!E74*100,"-")) -> 9.090909091 | F74: =IF(OR('Tabel 4F H'!F74<5,'Tabel 4 H'!F74<0.5),"-",IFERROR('Tabel 4 H'!F74/'Tabel 4F H'!F74*100,"-")) -> - | G74: =IF(OR('Tabel 4F H'!G74<5,'Tabel 4 H'!G74<0.5),"-",IFERROR('Tabel 4 H'!G74/'Tabel 4F H'!G74*100,"-")) -> - | I74: =IF(OR('Tabel 4F H'!I74<5,'Tabel 4 H'!I74<0.5),"-",IFERROR('Tabel 4 H'!I74/'Tabel 4F H'!I74*100,"-")) -> 12.34567901
A75: Dyrlæge | C75: =IF(OR('Tabel 4F H'!C75<5,'Tabel 4 H'!C75<0.5),"-",IFERROR('Tabel 4 H'!C75/'Tabel 4F H'!C75*100,"-")) -> 28.26086957 | D75: =IF(OR('Tabel 4F H'!D75<5,'Tabel 4 H'!D75<0.5),"-",IFERROR('Tabel 4 H'!D75/'Tabel 4F H'!D75*100,"-")) -> 13.43283582 | E75: =IF(OR('Tabel 4F H'!E75<5,'Tabel 4 H'!E75<0.5),"-",IFERROR('Tabel 4 H'!E75/'Tabel 4F H'!E75*100,"-")) -> 7.142857143 | F75: =IF(OR('Tabel 4F H'!F75<5,'Tabel 4 H'!F75<0.5),"-",IFERROR('Tabel 4 H'!F75/'Tabel 4F H'!F75*100,"-")) -> 2.5 | G75: =IF(OR('Tabel 4F H'!G75<5,'Tabel 4 H'!G75<0.5),"-",IFERROR('Tabel 4 H'!G75/'Tabel 4F H'!G75*100,"-")) -> 10 | I75: =IF(OR('Tabel 4F H'!I75<5,'Tabel 4 H'!I75<0.5),"-",IFERROR('Tabel 4 H'!I75/'Tabel 4F H'!I75*100,"-")) -> 15.06024096
A76: Farmaceut | C76: =IF(OR('Tabel 4F H'!C76<5,'Tabel 4 H'!C76<0.5),"-",IFERROR('Tabel 4 H'!C76/'Tabel 4F H'!C76*100,"-")) -> 13.15789474 | D76: =IF(OR('Tabel 4F H'!D76<5,'Tabel 4 H'!D76<0.5),"-",IFERROR('Tabel 4 H'!D76/'Tabel 4F H'!D76*100,"-")) -> 4.655493482 | E76: =IF(OR('Tabel 4F H'!E76<5,'Tabel 4 H'!E76<0.5),"-",IFERROR('Tabel 4 H'!E76/'Tabel 4F H'!E76*100,"-")) -> 2.304147465 | F76: =IF(OR('Tabel 4F H'!F76<5,'Tabel 4 H'!F76<0.5),"-",IFERROR('Tabel 4 H'!F76/'Tabel 4F H'!F76*100,"-")) -> 4.672897196 | G76: =IF(OR('Tabel 4F H'!G76<5,'Tabel 4 H'!G76<0.5),"-",IFERROR('Tabel 4 H'!G76/'Tabel 4F H'!G76*100,"-")) -> - | I76: =IF(OR('Tabel 4F H'!I76<5,'Tabel 4 H'!I76<0.5),"-",IFERROR('Tabel 4 H'!I76/'Tabel 4F H'!I76*100,"-")) -> 6.446414182
A77: Læge | C77: =IF(OR('Tabel 4F H'!C77<5,'Tabel 4 H'!C77<0.5),"-",IFERROR('Tabel 4 H'!C77/'Tabel 4F H'!C77*100,"-")) -> 7.086614173 | D77: =IF(OR('Tabel 4F H'!D77<5,'Tabel 4 H'!D77<0.5),"-",IFERROR('Tabel 4 H'!D77/'Tabel 4F H'!D77*100,"-")) -> 2.367346939 | E77: =IF(OR('Tabel 4F H'!E77<5,'Tabel 4 H'!E77<0.5),"-",IFERROR('Tabel 4 H'!E77/'Tabel 4F H'!E77*100,"-")) -> 1.621621622 | F77: =IF(OR('Tabel 4F H'!F77<5,'Tabel 4 H'!F77<0.5),"-",IFERROR('Tabel 4 H'!F77/'Tabel 4F H'!F77*100,"-")) -> 0.5319148936 | G77: =IF(OR('Tabel 4F H'!G77<5,'Tabel 4 H'!G77<0.5),"-",IFERROR('Tabel 4 H'!G77/'Tabel 4F H'!G77*100,"-")) -> 0.9345794393 | I77: =IF(OR('Tabel 4F H'!I77<5,'Tabel 4 H'!I77<0.5),"-",IFERROR('Tabel 4 H'!I77/'Tabel 4F H'!I77*100,"-")) -> 3.044203503
A78: Tandlæge | C78: =IF(OR('Tabel 4F H'!C78<5,'Tabel 4 H'!C78<0.5),"-",IFERROR('Tabel 4 H'!C78/'Tabel 4F H'!C78*100,"-")) -> 10.9375 | D78: =IF(OR('Tabel 4F H'!D78<5,'Tabel 4 H'!D78<0.5),"-",IFERROR('Tabel 4 H'!D78/'Tabel 4F H'!D78*100,"-")) -> 7.874015748 | E78: =IF(OR('Tabel 4F H'!E78<5,'Tabel 4 H'!E78<0.5),"-",IFERROR('Tabel 4 H'!E78/'Tabel 4F H'!E78*100,"-")) -> 3.921568627 | F78: =IF(OR('Tabel 4F H'!F78<5,'Tabel 4 H'!F78<0.5),"-",IFERROR('Tabel 4 H'!F78/'Tabel 4F H'!F78*100,"-")) -> 2.272727273 | G78: =IF(OR('Tabel 4F H'!G78<5,'Tabel 4 H'!G78<0.5),"-",IFERROR('Tabel 4 H'!G78/'Tabel 4F H'!G78*100,"-")) -> - | I78: =IF(OR('Tabel 4F H'!I78<5,'Tabel 4 H'!I78<0.5),"-",IFERROR('Tabel 4 H'!I78/'Tabel 4F H'!I78*100,"-")) -> 6.622516556
A79: Arkitekt | C79: =IF(OR('Tabel 4F H'!C79<5,'Tabel 4 H'!C79<0.5),"-",IFERROR('Tabel 4 H'!C79/'Tabel 4F H'!C79*100,"-")) -> 26 | D79: =IF(OR('Tabel 4F H'!D79<5,'Tabel 4 H'!D79<0.5),"-",IFERROR('Tabel 4 H'!D79/'Tabel 4F H'!D79*100,"-")) -> 10.76388889 | E79: =IF(OR('Tabel 4F H'!E79<5,'Tabel 4 H'!E79<0.5),"-",IFERROR('Tabel 4 H'!E79/'Tabel 4F H'!E79*100,"-")) -> 6.442166911 | F79: =IF(OR('Tabel 4F H'!F79<5,'Tabel 4 H'!F79<0.5),"-",IFERROR('Tabel 4 H'!F79/'Tabel 4F H'!F79*100,"-")) -> 3.79403794 | G79: =IF(OR('Tabel 4F H'!G79<5,'Tabel 4 H'!G79<0.5),"-",IFERROR('Tabel 4 H'!G79/'Tabel 4F H'!G79*100,"-")) -> 9.395973154 | I79: =IF(OR('Tabel 4F H'!I79<5,'Tabel 4 H'!I79<0.5),"-",IFERROR('Tabel 4 H'!I79/'Tabel 4F H'!I79*100,"-")) -> 9.580573951
A80: Landinspek. | C80: =IF(OR('Tabel 4F H'!C80<5,'Tabel 4 H'!C80<0.5),"-",IFERROR('Tabel 4 H'!C80/'Tabel 4F H'!C80*100,"-")) -> - | D80: =IF(OR('Tabel 4F H'!D80<5,'Tabel 4 H'!D80<0.5),"-",IFERROR('Tabel 4 H'!D80/'Tabel 4F H'!D80*100,"-")) -> - | E80: =IF(OR('Tabel 4F H'!E80<5,'Tabel 4 H'!E80<0.5),"-",IFERROR('Tabel 4 H'!E80/'Tabel 4F H'!E80*100,"-")) -> 7.692307692 | F80: =IF(OR('Tabel 4F H'!F80<5,'Tabel 4 H'!F80<0.5),"-",IFERROR('Tabel 4 H'!F80/'Tabel 4F H'!F80*100,"-")) -> - | G80: =IF(OR('Tabel 4F H'!G80<5,'Tabel 4 H'!G80<0.5),"-",IFERROR('Tabel 4 H'!G80/'Tabel 4F H'!G80*100,"-")) -> - | I80: =IF(OR('Tabel 4F H'!I80<5,'Tabel 4 H'!I80<0.5),"-",IFERROR('Tabel 4 H'!I80/'Tabel 4F H'!I80*100,"-")) -> 1.694915254
A81: Bibliotekar | C81: =IF(OR('Tabel 4F H'!C81<5,'Tabel 4 H'!C81<0.5),"-",IFERROR('Tabel 4 H'!C81/'Tabel 4F H'!C81*100,"-")) -> 24.32432432 | D81: =IF(OR('Tabel 4F H'!D81<5,'Tabel 4 H'!D81<0.5),"-",IFERROR('Tabel 4 H'!D81/'Tabel 4F H'!D81*100,"-")) -> 8.713692946 | E81: =IF(OR('Tabel 4F H'!E81<5,'Tabel 4 H'!E81<0.5),"-",IFERROR('Tabel 4 H'!E81/'Tabel 4F H'!E81*100,"-")) -> 4.633204633 | F81: =IF(OR('Tabel 4F H'!F81<5,'Tabel 4 H'!F81<0.5),"-",IFERROR('Tabel 4 H'!F81/'Tabel 4F H'!F81*100,"-")) -> 5.389221557 | G81: =IF(OR('Tabel 4F H'!G81<5,'Tabel 4 H'!G81<0.5),"-",IFERROR('Tabel 4 H'!G81/'Tabel 4F H'!G81*100,"-")) -> 0.8849557522 | I81: =IF(OR('Tabel 4F H'!I81<5,'Tabel 4 H'!I81<0.5),"-",IFERROR('Tabel 4 H'!I81/'Tabel 4F H'!I81*100,"-")) -> 6.364749082
A82: Musikudd. | C82: =IF(OR('Tabel 4F H'!C82<5,'Tabel 4 H'!C82<0.5),"-",IFERROR('Tabel 4 H'!C82/'Tabel 4F H'!C82*100,"-")) -> - | D82: =IF(OR('Tabel 4F H'!D82<5,'Tabel 4 H'!D82<0.5),"-",IFERROR('Tabel 4 H'!D82/'Tabel 4F H'!D82*100,"-")) -> 4.166666667 | E82: =IF(OR('Tabel 4F H'!E82<5,'Tabel 4 H'!E82<0.5),"-",IFERROR('Tabel 4 H'!E82/'Tabel 4F H'!E82*100,"-")) -> 15.78947368 | F82: =IF(OR('Tabel 4F H'!F82<5,'Tabel 4 H'!F82<0.5),"-",IFERROR('Tabel 4 H'!F82/'Tabel 4F H'!F82*100,"-")) -> 3.278688525 | G82: =IF(OR('Tabel 4F H'!G82<5,'Tabel 4 H'!G82<0.5),"-",IFERROR('Tabel 4 H'!G82/'Tabel 4F H'!G82*100,"-")) -> - | I82: =IF(OR('Tabel 4F H'!I82<5,'Tabel 4 H'!I82<0.5),"-",IFERROR('Tabel 4 H'!I82/'Tabel 4F H'!I82*100,"-")) -> 6.849315068
A83: Teolog | C83: =IF(OR('Tabel 4F H'!C83<5,'Tabel 4 H'!C83<0.5),"-",IFERROR('Tabel 4 H'!C83/'Tabel 4F H'!C83*100,"-")) -> 16.66666667 | D83: =IF(OR('Tabel 4F H'!D83<5,'Tabel 4 H'!D83<0.5),"-",IFERROR('Tabel 4 H'!D83/'Tabel 4F H'!D83*100,"-")) -> 16.07142857 | E83: =IF(OR('Tabel 4F H'!E83<5,'Tabel 4 H'!E83<0.5),"-",IFERROR('Tabel 4 H'!E83/'Tabel 4F H'!E83*100,"-")) -> 3.260869565 | F83: =IF(OR('Tabel 4F H'!F83<5,'Tabel 4 H'!F83<0.5),"-",IFERROR('Tabel 4 H'!F83/'Tabel 4F H'!F83*100,"-")) -> 13.55932203 | G83: =IF(OR('Tabel 4F H'!G83<5,'Tabel 4 H'!G83<0.5),"-",IFERROR('Tabel 4 H'!G83/'Tabel 4F H'!G83*100,"-")) -> - | I83: =IF(OR('Tabel 4F H'!I83<5,'Tabel 4 H'!I83<0.5),"-",IFERROR('Tabel 4 H'!I83/'Tabel 4F H'!I83*100,"-")) -> 8.906882591
A84: Psykolog | C84: =IF(OR('Tabel 4F H'!C84<5,'Tabel 4 H'!C84<0.5),"-",IFERROR('Tabel 4 H'!C84/'Tabel 4F H'!C84*100,"-")) -> 11.38952164 | D84: =IF(OR('Tabel 4F H'!D84<5,'Tabel 4 H'!D84<0.5),"-",IFERROR('Tabel 4 H'!D84/'Tabel 4F H'!D84*100,"-")) -> 8.353221957 | E84: =IF(OR('Tabel 4F H'!E84<5,'Tabel 4 H'!E84<0.5),"-",IFERROR('Tabel 4 H'!E84/'Tabel 4F H'!E84*100,"-")) -> 5.04587156 | F84: =IF(OR('Tabel 4F H'!F84<5,'Tabel 4 H'!F84<0.5),"-",IFERROR('Tabel 4 H'!F84/'Tabel 4F H'!F84*100,"-")) -> 0.4310344828 | G84: =IF(OR('Tabel 4F H'!G84<5,'Tabel 4 H'!G84<0.5),"-",IFERROR('Tabel 4 H'!G84/'Tabel 4F H'!G84*100,"-")) -> 5.050505051 | I84: =IF(OR('Tabel 4F H'!I84<5,'Tabel 4 H'!I84<0.5),"-",IFERROR('Tabel 4 H'!I84/'Tabel 4F H'!I84*100,"-")) -> 7.240704501
A85: Jurist | C85: =IF(OR('Tabel 4F H'!C85<5,'Tabel 4 H'!C85<0.5),"-",IFERROR('Tabel 4 H'!C85/'Tabel 4F H'!C85*100,"-")) -> 4.52173913 | D85: =IF(OR('Tabel 4F H'!D85<5,'Tabel 4 H'!D85<0.5),"-",IFERROR('Tabel 4 H'!D85/'Tabel 4F H'!D85*100,"-")) -> 2.016383113 | E85: =IF(OR('Tabel 4F H'!E85<5,'Tabel 4 H'!E85<0.5),"-",IFERROR('Tabel 4 H'!E85/'Tabel 4F H'!E85*100,"-")) -> 1.651982379 | F85: =IF(OR('Tabel 4F H'!F85<5,'Tabel 4 H'!F85<0.5),"-",IFERROR('Tabel 4 H'!F85/'Tabel 4F H'!F85*100,"-")) -> 2.338129496 | G85: =IF(OR('Tabel 4F H'!G85<5,'Tabel 4 H'!G85<0.5),"-",IFERROR('Tabel 4 H'!G85/'Tabel 4F H'!G85*100,"-")) -> 6.493506494 | I85: =IF(OR('Tabel 4F H'!I85<5,'Tabel 4 H'!I85<0.5),"-",IFERROR('Tabel 4 H'!I85/'Tabel 4F H'!I85*100,"-")) -> 2.801377727
A86: Økonom | C86: =IF(OR('Tabel 4F H'!C86<5,'Tabel 4 H'!C86<0.5),"-",IFERROR('Tabel 4 H'!C86/'Tabel 4F H'!C86*100,"-")) -> 4.74137931 | D86: =IF(OR('Tabel 4F H'!D86<5,'Tabel 4 H'!D86<0.5),"-",IFERROR('Tabel 4 H'!D86/'Tabel 4F H'!D86*100,"-")) -> 2.748414376 | E86: =IF(OR('Tabel 4F H'!E86<5,'Tabel 4 H'!E86<0.5),"-",IFERROR('Tabel 4 H'!E86/'Tabel 4F H'!E86*100,"-")) -> 2.469135802 | F86: =IF(OR('Tabel 4F H'!F86<5,'Tabel 4 H'!F86<0.5),"-",IFERROR('Tabel 4 H'!F86/'Tabel 4F H'!F86*100,"-")) -> 1.955307263 | G86: =IF(OR('Tabel 4F H'!G86<5,'Tabel 4 H'!G86<0.5),"-",IFERROR('Tabel 4 H'!G86/'Tabel 4F H'!G86*100,"-")) -> 9.090909091 | I86: =IF(OR('Tabel 4F H'!I86<5,'Tabel 4 H'!I86<0.5),"-",IFERROR('Tabel 4 H'!I86/'Tabel 4F H'!I86*100,"-")) -> 3.316426063
A87: Samf. Adm. | C87: =IF(OR('Tabel 4F H'!C87<5,'Tabel 4 H'!C87<0.5),"-",IFERROR('Tabel 4 H'!C87/'Tabel 4F H'!C87*100,"-")) -> 15.36444678 | D87: =IF(OR('Tabel 4F H'!D87<5,'Tabel 4 H'!D87<0.5),"-",IFERROR('Tabel 4 H'!D87/'Tabel 4F H'!D87*100,"-")) -> 6.301075269 | E87: =IF(OR('Tabel 4F H'!E87<5,'Tabel 4 H'!E87<0.5),"-",IFERROR('Tabel 4 H'!E87/'Tabel 4F H'!E87*100,"-")) -> 4.351767906 | F87: =IF(OR('Tabel 4F H'!F87<5,'Tabel 4 H'!F87<0.5),"-",IFERROR('Tabel 4 H'!F87/'Tabel 4F H'!F87*100,"-")) -> 4.430379747 | G87: =IF(OR('Tabel 4F H'!G87<5,'Tabel 4 H'!G87<0.5),"-",IFERROR('Tabel 4 H'!G87/'Tabel 4F H'!G87*100,"-")) -> 3.125 | I87: =IF(OR('Tabel 4F H'!I87<5,'Tabel 4 H'!I87<0.5),"-",IFERROR('Tabel 4 H'!I87/'Tabel 4F H'!I87*100,"-")) -> 7.385269983
A88: Cand. Merc. | C88: =IF(OR('Tabel 4F H'!C88<5,'Tabel 4 H'!C88<0.5),"-",IFERROR('Tabel 4 H'!C88/'Tabel 4F H'!C88*100,"-")) -> 8.870453095 | D88: =IF(OR('Tabel 4F H'!D88<5,'Tabel 4 H'!D88<0.5),"-",IFERROR('Tabel 4 H'!D88/'Tabel 4F H'!D88*100,"-")) -> 4.978105554 | E88: =IF(OR('Tabel 4F H'!E88<5,'Tabel 4 H'!E88<0.5),"-",IFERROR('Tabel 4 H'!E88/'Tabel 4F H'!E88*100,"-")) -> 4.69099032 | F88: =IF(OR('Tabel 4F H'!F88<5,'Tabel 4 H'!F88<0.5),"-",IFERROR('Tabel 4 H'!F88/'Tabel 4F H'!F88*100,"-")) -> 6.376360809 | G88: =IF(OR('Tabel 4F H'!G88<5,'Tabel 4 H'!G88<0.5),"-",IFERROR('Tabel 4 H'!G88/'Tabel 4F H'!G88*100,"-")) -> 10.66666667 | I88: =IF(OR('Tabel 4F H'!I88<5,'Tabel 4 H'!I88<0.5),"-",IFERROR('Tabel 4 H'!I88/'Tabel 4F H'!I88*100,"-")) -> 6.356198867
A89: HA | C89: =IF(OR('Tabel 4F H'!C89<5,'Tabel 4 H'!C89<0.5),"-",IFERROR('Tabel 4 H'!C89/'Tabel 4F H'!C89*100,"-")) -> 21.03825137 | D89: =IF(OR('Tabel 4F H'!D89<5,'Tabel 4 H'!D89<0.5),"-",IFERROR('Tabel 4 H'!D89/'Tabel 4F H'!D89*100,"-")) -> 5.338078292 | E89: =IF(OR('Tabel 4F H'!E89<5,'Tabel 4 H'!E89<0.5),"-",IFERROR('Tabel 4 H'!E89/'Tabel 4F H'!E89*100,"-")) -> 5.797101449 | F89: =IF(OR('Tabel 4F H'!F89<5,'Tabel 4 H'!F89<0.5),"-",IFERROR('Tabel 4 H'!F89/'Tabel 4F H'!F89*100,"-")) -> 4.046242775 | G89: =IF(OR('Tabel 4F H'!G89<5,'Tabel 4 H'!G89<0.5),"-",IFERROR('Tabel 4 H'!G89/'Tabel 4F H'!G89*100,"-")) -> 10.34482759 | I89: =IF(OR('Tabel 4F H'!I89<5,'Tabel 4 H'!I89<0.5),"-",IFERROR('Tabel 4 H'!I89/'Tabel 4F H'!I89*100,"-")) -> 11.14488349
A90: HD | C90: =IF(OR('Tabel 4F H'!C90<5,'Tabel 4 H'!C90<0.5),"-",IFERROR('Tabel 4 H'!C90/'Tabel 4F H'!C90*100,"-")) -> 19.50113379 | D90: =IF(OR('Tabel 4F H'!D90<5,'Tabel 4 H'!D90<0.5),"-",IFERROR('Tabel 4 H'!D90/'Tabel 4F H'!D90*100,"-")) -> 9.198813056 | E90: =IF(OR('Tabel 4F H'!E90<5,'Tabel 4 H'!E90<0.5),"-",IFERROR('Tabel 4 H'!E90/'Tabel 4F H'!E90*100,"-")) -> 3.703703704 | F90: =IF(OR('Tabel 4F H'!F90<5,'Tabel 4 H'!F90<0.5),"-",IFERROR('Tabel 4 H'!F90/'Tabel 4F H'!F90*100,"-")) -> 3.311258278 | G90: =IF(OR('Tabel 4F H'!G90<5,'Tabel 4 H'!G90<0.5),"-",IFERROR('Tabel 4 H'!G90/'Tabel 4F H'!G90*100,"-")) -> 2.272727273 | I90: =IF(OR('Tabel 4F H'!I90<5,'Tabel 4 H'!I90<0.5),"-",IFERROR('Tabel 4 H'!I90/'Tabel 4F H'!I90*100,"-")) -> 11.9544592
A91: Komm. og Sprog | C91: =IF(OR('Tabel 4F H'!C91<5,'Tabel 4 H'!C91<0.5),"-",IFERROR('Tabel 4 H'!C91/'Tabel 4F H'!C91*100,"-")) -> 17.50547046 | D91: =IF(OR('Tabel 4F H'!D91<5,'Tabel 4 H'!D91<0.5),"-",IFERROR('Tabel 4 H'!D91/'Tabel 4F H'!D91*100,"-")) -> 10.02994012 | E91: =IF(OR('Tabel 4F H'!E91<5,'Tabel 4 H'!E91<0.5),"-",IFERROR('Tabel 4 H'!E91/'Tabel 4F H'!E91*100,"-")) -> 8.830022075 | F91: =IF(OR('Tabel 4F H'!F91<5,'Tabel 4 H'!F91<0.5),"-",IFERROR('Tabel 4 H'!F91/'Tabel 4F H'!F91*100,"-")) -> 5.93220339 | G91: =IF(OR('Tabel 4F H'!G91<5,'Tabel 4 H'!G91<0.5),"-",IFERROR('Tabel 4 H'!G91/'Tabel 4F H'!G91*100,"-")) -> 8.695652174 | I91: =IF(OR('Tabel 4F H'!I91<5,'Tabel 4 H'!I91<0.5),"-",IFERROR('Tabel 4 H'!I91/'Tabel 4F H'!I91*100,"-")) -> 10.99309612
A92: Cand. IT. | C92: =IF(OR('Tabel 4F H'!C92<5,'Tabel 4 H'!C92<0.5),"-",IFERROR('Tabel 4 H'!C92/'Tabel 4F H'!C92*100,"-")) -> 11.5942029 | D92: =IF(OR('Tabel 4F H'!D92<5,'Tabel 4 H'!D92<0.5),"-",IFERROR('Tabel 4 H'!D92/'Tabel 4F H'!D92*100,"-")) -> 6.798516687 | E92: =IF(OR('Tabel 4F H'!E92<5,'Tabel 4 H'!E92<0.5),"-",IFERROR('Tabel 4 H'!E92/'Tabel 4F H'!E92*100,"-")) -> 3.678929766 | F92: =IF(OR('Tabel 4F H'!F92<5,'Tabel 4 H'!F92<0.5),"-",IFERROR('Tabel 4 H'!F92/'Tabel 4F H'!F92*100,"-")) -> 14.70588235 | G92: =IF(OR('Tabel 4F H'!G92<5,'Tabel 4 H'!G92<0.5),"-",IFERROR('Tabel 4 H'!G92/'Tabel 4F H'!G92*100,"-")) -> - | I92: =IF(OR('Tabel 4F H'!I92<5,'Tabel 4 H'!I92<0.5),"-",IFERROR('Tabel 4 H'!I92/'Tabel 4F H'!I92*100,"-")) -> 7.628205128
A93: Bac. Samf. | C93: =IF(OR('Tabel 4F H'!C93<5,'Tabel 4 H'!C93<0.5),"-",IFERROR('Tabel 4 H'!C93/'Tabel 4F H'!C93*100,"-")) -> 25 | D93: =IF(OR('Tabel 4F H'!D93<5,'Tabel 4 H'!D93<0.5),"-",IFERROR('Tabel 4 H'!D93/'Tabel 4F H'!D93*100,"-")) -> 4.347826087 | E93: =IF(OR('Tabel 4F H'!E93<5,'Tabel 4 H'!E93<0.5),"-",IFERROR('Tabel 4 H'!E93/'Tabel 4F H'!E93*100,"-")) -> 6.363636364 | F93: =IF(OR('Tabel 4F H'!F93<5,'Tabel 4 H'!F93<0.5),"-",IFERROR('Tabel 4 H'!F93/'Tabel 4F H'!F93*100,"-")) -> 4 | G93: =IF(OR('Tabel 4F H'!G93<5,'Tabel 4 H'!G93<0.5),"-",IFERROR('Tabel 4 H'!G93/'Tabel 4F H'!G93*100,"-")) -> 11.11111111 | I93: =IF(OR('Tabel 4F H'!I93<5,'Tabel 4 H'!I93<0.5),"-",IFERROR('Tabel 4 H'!I93/'Tabel 4F H'!I93*100,"-")) -> 10.77586207
A94: Bac. Hum. | C94: =IF(OR('Tabel 4F H'!C94<5,'Tabel 4 H'!C94<0.5),"-",IFERROR('Tabel 4 H'!C94/'Tabel 4F H'!C94*100,"-")) -> 37.55760369 | D94: =IF(OR('Tabel 4F H'!D94<5,'Tabel 4 H'!D94<0.5),"-",IFERROR('Tabel 4 H'!D94/'Tabel 4F H'!D94*100,"-")) -> 14.39114391 | E94: =IF(OR('Tabel 4F H'!E94<5,'Tabel 4 H'!E94<0.5),"-",IFERROR('Tabel 4 H'!E94/'Tabel 4F H'!E94*100,"-")) -> 6.837606838 | F94: =IF(OR('Tabel 4F H'!F94<5,'Tabel 4 H'!F94<0.5),"-",IFERROR('Tabel 4 H'!F94/'Tabel 4F H'!F94*100,"-")) -> 6.818181818 | G94: =IF(OR('Tabel 4F H'!G94<5,'Tabel 4 H'!G94<0.5),"-",IFERROR('Tabel 4 H'!G94/'Tabel 4F H'!G94*100,"-")) -> 11.36363636 | I94: =IF(OR('Tabel 4F H'!I94<5,'Tabel 4 H'!I94<0.5),"-",IFERROR('Tabel 4 H'!I94/'Tabel 4F H'!I94*100,"-")) -> 20.27610009
A95: Bac. Nat. | C95: =IF(OR('Tabel 4F H'!C95<5,'Tabel 4 H'!C95<0.5),"-",IFERROR('Tabel 4 H'!C95/'Tabel 4F H'!C95*100,"-")) -> 27.65273312 | D95: =IF(OR('Tabel 4F H'!D95<5,'Tabel 4 H'!D95<0.5),"-",IFERROR('Tabel 4 H'!D95/'Tabel 4F H'!D95*100,"-")) -> 7.692307692 | E95: =IF(OR('Tabel 4F H'!E95<5,'Tabel 4 H'!E95<0.5),"-",IFERROR('Tabel 4 H'!E95/'Tabel 4F H'!E95*100,"-")) -> 3.529411765 | F95: =IF(OR('Tabel 4F H'!F95<5,'Tabel 4 H'!F95<0.5),"-",IFERROR('Tabel 4 H'!F95/'Tabel 4F H'!F95*100,"-")) -> 6.25 | G95: =IF(OR('Tabel 4F H'!G95<5,'Tabel 4 H'!G95<0.5),"-",IFERROR('Tabel 4 H'!G95/'Tabel 4F H'!G95*100,"-")) -> - | I95: =IF(OR('Tabel 4F H'!I95<5,'Tabel 4 H'!I95<0.5),"-",IFERROR('Tabel 4 H'!I95/'Tabel 4F H'!I95*100,"-")) -> 16.02836879
A96: Andre | C96: =IF(OR('Tabel 4F H'!C96<5,'Tabel 4 H'!C96<0.5),"-",IFERROR('Tabel 4 H'!C96/'Tabel 4F H'!C96*100,"-")) -> 15.73896353 | D96: =IF(OR('Tabel 4F H'!D96<5,'Tabel 4 H'!D96<0.5),"-",IFERROR('Tabel 4 H'!D96/'Tabel 4F H'!D96*100,"-")) -> 10.27260638 | E96: =IF(OR('Tabel 4F H'!E96<5,'Tabel 4 H'!E96<0.5),"-",IFERROR('Tabel 4 H'!E96/'Tabel 4F H'!E96*100,"-")) -> 8.407871199 | F96: =IF(OR('Tabel 4F H'!F96<5,'Tabel 4 H'!F96<0.5),"-",IFERROR('Tabel 4 H'!F96/'Tabel 4F H'!F96*100,"-")) -> 12.60115607 | G96: =IF(OR('Tabel 4F H'!G96<5,'Tabel 4 H'!G96<0.5),"-",IFERROR('Tabel 4 H'!G96/'Tabel 4F H'!G96*100,"-")) -> 12.68115942 | I96: =IF(OR('Tabel 4F H'!I96<5,'Tabel 4 H'!I96<0.5),"-",IFERROR('Tabel 4 H'!I96/'Tabel 4F H'!I96*100,"-")) -> 11.0366919
A98: Total | C98: =IF(OR('Tabel 4F H'!C98<5,'Tabel 4 H'!C98<0.5),"-",IFERROR('Tabel 4 H'!C98/'Tabel 4F H'!C98*100,"-")) -> 16.26521494 | D98: =IF(OR('Tabel 4F H'!D98<5,'Tabel 4 H'!D98<0.5),"-",IFERROR('Tabel 4 H'!D98/'Tabel 4F H'!D98*100,"-")) -> 7.597942224 | E98: =IF(OR('Tabel 4F H'!E98<5,'Tabel 4 H'!E98<0.5),"-",IFERROR('Tabel 4 H'!E98/'Tabel 4F H'!E98*100,"-")) -> 5.199182275 | F98: =IF(OR('Tabel 4F H'!F98<5,'Tabel 4 H'!F98<0.5),"-",IFERROR('Tabel 4 H'!F98/'Tabel 4F H'!F98*100,"-")) -> 5.224888335 | G98: =IF(OR('Tabel 4F H'!G98<5,'Tabel 4 H'!G98<0.5),"-",IFERROR('Tabel 4 H'!G98/'Tabel 4F H'!G98*100,"-")) -> 6.256781193 | I98: =IF(OR('Tabel 4F H'!I98<5,'Tabel 4 H'!I98<0.5),"-",IFERROR('Tabel 4 H'!I98/'Tabel 4F H'!I98*100,"-")) -> 8.755565971
A100: Ingeniører i alt | C100: =IF(OR('Tabel 4F H'!C100<5,'Tabel 4 H'!C100<0.5),"-",IFERROR('Tabel 4 H'!C100/'Tabel 4F H'!C100*100,"-")) -> 12.8757515 | D100: =IF(OR('Tabel 4F H'!D100<5,'Tabel 4 H'!D100<0.5),"-",IFERROR('Tabel 4 H'!D100/'Tabel 4F H'!D100*100,"-")) -> 3.75782881 | E100: =IF(OR('Tabel 4F H'!E100<5,'Tabel 4 H'!E100<0.5),"-",IFERROR('Tabel 4 H'!E100/'Tabel 4F H'!E100*100,"-")) -> 3.039158387 | F100: =IF(OR('Tabel 4F H'!F100<5,'Tabel 4 H'!F100<0.5),"-",IFERROR('Tabel 4 H'!F100/'Tabel 4F H'!F100*100,"-")) -> 3.020134228 | G100: =IF(OR('Tabel 4F H'!G100<5,'Tabel 4 H'!G100<0.5),"-",IFERROR('Tabel 4 H'!G100/'Tabel 4F H'!G100*100,"-")) -> 3.333333333 | I100: =IF(OR('Tabel 4F H'!I100<5,'Tabel 4 H'!I100<0.5),"-",IFERROR('Tabel 4 H'!I100/'Tabel 4F H'!I100*100,"-")) -> 5.507246377
A101: Magistre i alt | C101: =IF(OR('Tabel 4F H'!C101<5,'Tabel 4 H'!C101<0.5),"-",IFERROR('Tabel 4 H'!C101/'Tabel 4F H'!C101*100,"-")) -> 27.04342273 | D101: =IF(OR('Tabel 4F H'!D101<5,'Tabel 4 H'!D101<0.5),"-",IFERROR('Tabel 4 H'!D101/'Tabel 4F H'!D101*100,"-")) -> 12.03801478 | E101: =IF(OR('Tabel 4F H'!E101<5,'Tabel 4 H'!E101<0.5),"-",IFERROR('Tabel 4 H'!E101/'Tabel 4F H'!E101*100,"-")) -> 6.123585081 | F101: =IF(OR('Tabel 4F H'!F101<5,'Tabel 4 H'!F101<0.5),"-",IFERROR('Tabel 4 H'!F101/'Tabel 4F H'!F101*100,"-")) -> 6.094420601 | G101: =IF(OR('Tabel 4F H'!G101<5,'Tabel 4 H'!G101<0.5),"-",IFERROR('Tabel 4 H'!G101/'Tabel 4F H'!G101*100,"-")) -> 7.297297297 | I101: =IF(OR('Tabel 4F H'!I101<5,'Tabel 4 H'!I101<0.5),"-",IFERROR('Tabel 4 H'!I101/'Tabel 4F H'!I101*100,"-")) -> 11.9215318
A102: DJØF'ere i alt | C102: =IF(OR('Tabel 4F H'!C102<5,'Tabel 4 H'!C102<0.5),"-",IFERROR('Tabel 4 H'!C102/'Tabel 4F H'!C102*100,"-")) -> 10.10616297 | D102: =IF(OR('Tabel 4F H'!D102<5,'Tabel 4 H'!D102<0.5),"-",IFERROR('Tabel 4 H'!D102/'Tabel 4F H'!D102*100,"-")) -> 4.930949759 | E102: =IF(OR('Tabel 4F H'!E102<5,'Tabel 4 H'!E102<0.5),"-",IFERROR('Tabel 4 H'!E102/'Tabel 4F H'!E102*100,"-")) -> 3.818146034 | F102: =IF(OR('Tabel 4F H'!F102<5,'Tabel 4 H'!F102<0.5),"-",IFERROR('Tabel 4 H'!F102/'Tabel 4F H'!F102*100,"-")) -> 4.107542942 | G102: =IF(OR('Tabel 4F H'!G102<5,'Tabel 4 H'!G102<0.5),"-",IFERROR('Tabel 4 H'!G102/'Tabel 4F H'!G102*100,"-")) -> 6.666666667 | I102: =IF(OR('Tabel 4F H'!I102<5,'Tabel 4 H'!I102<0.5),"-",IFERROR('Tabel 4 H'!I102/'Tabel 4F H'!I102*100,"-")) -> 6.049066276
A109: Frederiksberg
C111: Under 30 år | D111: 30 - 39 år | E111: 40 - 49 år | F111: 50 - 59 år | G111: Over 60 år | I111: I alt
A113: Civ. ing. | C113: =IF(OR('Tabel 4F H'!C113<5,'Tabel 4 H'!C113<0.5),"-",IFERROR('Tabel 4 H'!C113/'Tabel 4F H'!C113*100,"-")) -> 8.791208791 | D113: =IF(OR('Tabel 4F H'!D113<5,'Tabel 4 H'!D113<0.5),"-",IFERROR('Tabel 4 H'!D113/'Tabel 4F H'!D113*100,"-")) -> 3.926096998 | E113: =IF(OR('Tabel 4F H'!E113<5,'Tabel 4 H'!E113<0.5),"-",IFERROR('Tabel 4 H'!E113/'Tabel 4F H'!E113*100,"-")) -> 1.463414634 | F113: =IF(OR('Tabel 4F H'!F113<5,'Tabel 4 H'!F113<0.5),"-",IFERROR('Tabel 4 H'!F113/'Tabel 4F H'!F113*100,"-")) -> 3.174603175 | G113: =IF(OR('Tabel 4F H'!G113<5,'Tabel 4 H'!G113<0.5),"-",IFERROR('Tabel 4 H'!G113/'Tabel 4F H'!G113*100,"-")) -> 3.448275862 | I113: =IF(OR('Tabel 4F H'!I113<5,'Tabel 4 H'!I113<0.5),"-",IFERROR('Tabel 4 H'!I113/'Tabel 4F H'!I113*100,"-")) -> 4.12371134
A114: Diplom ing. | C114: =IF(OR('Tabel 4F H'!C114<5,'Tabel 4 H'!C114<0.5),"-",IFERROR('Tabel 4 H'!C114/'Tabel 4F H'!C114*100,"-")) -> 10.44776119 | D114: =IF(OR('Tabel 4F H'!D114<5,'Tabel 4 H'!D114<0.5),"-",IFERROR('Tabel 4 H'!D114/'Tabel 4F H'!D114*100,"-")) -> 2.43902439 | E114: =IF(OR('Tabel 4F H'!E114<5,'Tabel 4 H'!E114<0.5),"-",IFERROR('Tabel 4 H'!E114/'Tabel 4F H'!E114*100,"-")) -> 2.919708029 | F114: =IF(OR('Tabel 4F H'!F114<5,'Tabel 4 H'!F114<0.5),"-",IFERROR('Tabel 4 H'!F114/'Tabel 4F H'!F114*100,"-")) -> 5.263157895 | G114: =IF(OR('Tabel 4F H'!G114<5,'Tabel 4 H'!G114<0.5),"-",IFERROR('Tabel 4 H'!G114/'Tabel 4F H'!G114*100,"-")) -> 1.785714286 | I114: =IF(OR('Tabel 4F H'!I114<5,'Tabel 4 H'!I114<0.5),"-",IFERROR('Tabel 4 H'!I114/'Tabel 4F H'!I114*100,"-")) -> 4.363001745
A115: Cand. Scient. Tek | C115: =IF(OR('Tabel 4F H'!C115<5,'Tabel 4 H'!C115<0.5),"-",IFERROR('Tabel 4 H'!C115/'Tabel 4F H'!C115*100,"-")) -> 12.91666667 | D115: =IF(OR('Tabel 4F H'!D115<5,'Tabel 4 H'!D115<0.5),"-",IFERROR('Tabel 4 H'!D115/'Tabel 4F H'!D115*100,"-")) -> 4.988123515 | E115: =IF(OR('Tabel 4F H'!E115<5,'Tabel 4 H'!E115<0.5),"-",IFERROR('Tabel 4 H'!E115/'Tabel 4F H'!E115*100,"-")) -> 2.752293578 | F115: =IF(OR('Tabel 4F H'!F115<5,'Tabel 4 H'!F115<0.5),"-",IFERROR('Tabel 4 H'!F115/'Tabel 4F H'!F115*100,"-")) -> 11.53846154 | G115: =IF(OR('Tabel 4F H'!G115<5,'Tabel 4 H'!G115<0.5),"-",IFERROR('Tabel 4 H'!G115/'Tabel 4F H'!G115*100,"-")) -> - | I115: =IF(OR('Tabel 4F H'!I115<5,'Tabel 4 H'!I115<0.5),"-",IFERROR('Tabel 4 H'!I115/'Tabel 4F H'!I115*100,"-")) -> 7.259073842
A116: MA. Hum. | C116: =IF(OR('Tabel 4F H'!C116<5,'Tabel 4 H'!C116<0.5),"-",IFERROR('Tabel 4 H'!C116/'Tabel 4F H'!C116*100,"-")) -> 23.92344498 | D116: =IF(OR('Tabel 4F H'!D116<5,'Tabel 4 H'!D116<0.5),"-",IFERROR('Tabel 4 H'!D116/'Tabel 4F H'!D116*100,"-")) -> 8.768971332 | E116: =IF(OR('Tabel 4F H'!E116<5,'Tabel 4 H'!E116<0.5),"-",IFERROR('Tabel 4 H'!E116/'Tabel 4F H'!E116*100,"-")) -> 6.983655275 | F116: =IF(OR('Tabel 4F H'!F116<5,'Tabel 4 H'!F116<0.5),"-",IFERROR('Tabel 4 H'!F116/'Tabel 4F H'!F116*100,"-")) -> 8.171206226 | G116: =IF(OR('Tabel 4F H'!G116<5,'Tabel 4 H'!G116<0.5),"-",IFERROR('Tabel 4 H'!G116/'Tabel 4F H'!G116*100,"-")) -> 8.333333333 | I116: =IF(OR('Tabel 4F H'!I116<5,'Tabel 4 H'!I116<0.5),"-",IFERROR('Tabel 4 H'!I116/'Tabel 4F H'!I116*100,"-")) -> 9.746696035
A117: MA. Nat. | C117: =IF(OR('Tabel 4F H'!C117<5,'Tabel 4 H'!C117<0.5),"-",IFERROR('Tabel 4 H'!C117/'Tabel 4F H'!C117*100,"-")) -> 19.44444444 | D117: =IF(OR('Tabel 4F H'!D117<5,'Tabel 4 H'!D117<0.5),"-",IFERROR('Tabel 4 H'!D117/'Tabel 4F H'!D117*100,"-")) -> 5.882352941 | E117: =IF(OR('Tabel 4F H'!E117<5,'Tabel 4 H'!E117<0.5),"-",IFERROR('Tabel 4 H'!E117/'Tabel 4F H'!E117*100,"-")) -> 2.617801047 | F117: =IF(OR('Tabel 4F H'!F117<5,'Tabel 4 H'!F117<0.5),"-",IFERROR('Tabel 4 H'!F117/'Tabel 4F H'!F117*100,"-")) -> 1.57480315 | G117: =IF(OR('Tabel 4F H'!G117<5,'Tabel 4 H'!G117<0.5),"-",IFERROR('Tabel 4 H'!G117/'Tabel 4F H'!G117*100,"-")) -> 4.545454545 | I117: =IF(OR('Tabel 4F H'!I117<5,'Tabel 4 H'!I117<0.5),"-",IFERROR('Tabel 4 H'!I117/'Tabel 4F H'!I117*100,"-")) -> 4.4
A118: MA. Ph.d. | C118: =IF(OR('Tabel 4F H'!C118<5,'Tabel 4 H'!C118<0.5),"-",IFERROR('Tabel 4 H'!C118/'Tabel 4F H'!C118*100,"-")) -> - | D118: =IF(OR('Tabel 4F H'!D118<5,'Tabel 4 H'!D118<0.5),"-",IFERROR('Tabel 4 H'!D118/'Tabel 4F H'!D118*100,"-")) -> 11.36363636 | E118: =IF(OR('Tabel 4F H'!E118<5,'Tabel 4 H'!E118<0.5),"-",IFERROR('Tabel 4 H'!E118/'Tabel 4F H'!E118*100,"-")) -> 3.773584906 | F118: =IF(OR('Tabel 4F H'!F118<5,'Tabel 4 H'!F118<0.5),"-",IFERROR('Tabel 4 H'!F118/'Tabel 4F H'!F118*100,"-")) -> - | G118: =IF(OR('Tabel 4F H'!G118<5,'Tabel 4 H'!G118<0.5),"-",IFERROR('Tabel 4 H'!G118/'Tabel 4F H'!G118*100,"-")) -> - | I118: =IF(OR('Tabel 4F H'!I118<5,'Tabel 4 H'!I118<0.5),"-",IFERROR('Tabel 4 H'!I118/'Tabel 4F H'!I118*100,"-")) -> 5.109489051
A119: MA. Samf. | C119: =IF(OR('Tabel 4F H'!C119<5,'Tabel 4 H'!C119<0.5),"-",IFERROR('Tabel 4 H'!C119/'Tabel 4F H'!C119*100,"-")) -> 19.71830986 | D119: =IF(OR('Tabel 4F H'!D119<5,'Tabel 4 H'!D119<0.5),"-",IFERROR('Tabel 4 H'!D119/'Tabel 4F H'!D119*100,"-")) -> 9.352517986 | E119: =IF(OR('Tabel 4F H'!E119<5,'Tabel 4 H'!E119<0.5),"-",IFERROR('Tabel 4 H'!E119/'Tabel 4F H'!E119*100,"-")) -> 8.928571429 | F119: =IF(OR('Tabel 4F H'!F119<5,'Tabel 4 H'!F119<0.5),"-",IFERROR('Tabel 4 H'!F119/'Tabel 4F H'!F119*100,"-")) -> 6.451612903 | G119: =IF(OR('Tabel 4F H'!G119<5,'Tabel 4 H'!G119<0.5),"-",IFERROR('Tabel 4 H'!G119/'Tabel 4F H'!G119*100,"-")) -> - | I119: =IF(OR('Tabel 4F H'!I119<5,'Tabel 4 H'!I119<0.5),"-",IFERROR('Tabel 4 H'!I119/'Tabel 4F H'!I119*100,"-")) -> 11.37123746
A120: Øvrige Mag. | C120: =IF(OR('Tabel 4F H'!C120<5,'Tabel 4 H'!C120<0.5),"-",IFERROR('Tabel 4 H'!C120/'Tabel 4F H'!C120*100,"-")) -> 40 | D120: =IF(OR('Tabel 4F H'!D120<5,'Tabel 4 H'!D120<0.5),"-",IFERROR('Tabel 4 H'!D120/'Tabel 4F H'!D120*100,"-")) -> 7.407407407 | E120: =IF(OR('Tabel 4F H'!E120<5,'Tabel 4 H'!E120<0.5),"-",IFERROR('Tabel 4 H'!E120/'Tabel 4F H'!E120*100,"-")) -> 11.36363636 | F120: =IF(OR('Tabel 4F H'!F120<5,'Tabel 4 H'!F120<0.5),"-",IFERROR('Tabel 4 H'!F120/'Tabel 4F H'!F120*100,"-")) -> 7.142857143 | G120: =IF(OR('Tabel 4F H'!G120<5,'Tabel 4 H'!G120<0.5),"-",IFERROR('Tabel 4 H'!G120/'Tabel 4F H'!G120*100,"-")) -> 11.11111111 | I120: =IF(OR('Tabel 4F H'!I120<5,'Tabel 4 H'!I120<0.5),"-",IFERROR('Tabel 4 H'!I120/'Tabel 4F H'!I120*100,"-")) -> 11.86440678
A121: Agronom | C121: =IF(OR('Tabel 4F H'!C121<5,'Tabel 4 H'!C121<0.5),"-",IFERROR('Tabel 4 H'!C121/'Tabel 4F H'!C121*100,"-")) -> 28.57142857 | D121: =IF(OR('Tabel 4F H'!D121<5,'Tabel 4 H'!D121<0.5),"-",IFERROR('Tabel 4 H'!D121/'Tabel 4F H'!D121*100,"-")) -> 15 | E121: =IF(OR('Tabel 4F H'!E121<5,'Tabel 4 H'!E121<0.5),"-",IFERROR('Tabel 4 H'!E121/'Tabel 4F H'!E121*100,"-")) -> - | F121: =IF(OR('Tabel 4F H'!F121<5,'Tabel 4 H'!F121<0.5),"-",IFERROR('Tabel 4 H'!F121/'Tabel 4F H'!F121*100,"-")) -> 4 | G121: =IF(OR('Tabel 4F H'!G121<5,'Tabel 4 H'!G121<0.5),"-",IFERROR('Tabel 4 H'!G121/'Tabel 4F H'!G121*100,"-")) -> - | I121: =IF(OR('Tabel 4F H'!I121<5,'Tabel 4 H'!I121<0.5),"-",IFERROR('Tabel 4 H'!I121/'Tabel 4F H'!I121*100,"-")) -> 7.594936709
A122: Landsk. Arkt. | C122: =IF(OR('Tabel 4F H'!C122<5,'Tabel 4 H'!C122<0.5),"-",IFERROR('Tabel 4 H'!C122/'Tabel 4F H'!C122*100,"-")) -> - | D122: =IF(OR('Tabel 4F H'!D122<5,'Tabel 4 H'!D122<0.5),"-",IFERROR('Tabel 4 H'!D122/'Tabel 4F H'!D122*100,"-")) -> - | E122: =IF(OR('Tabel 4F H'!E122<5,'Tabel 4 H'!E122<0.5),"-",IFERROR('Tabel 4 H'!E122/'Tabel 4F H'!E122*100,"-")) -> - | F122: =IF(OR('Tabel 4F H'!F122<5,'Tabel 4 H'!F122<0.5),"-",IFERROR('Tabel 4 H'!F122/'Tabel 4F H'!F122*100,"-")) -> - | G122: =IF(OR('Tabel 4F H'!G122<5,'Tabel 4 H'!G122<0.5),"-",IFERROR('Tabel 4 H'!G122/'Tabel 4F H'!G122*100,"-")) -> - | I122: =IF(OR('Tabel 4F H'!I122<5,'Tabel 4 H'!I122<0.5),"-",IFERROR('Tabel 4 H'!I122/'Tabel 4F H'!I122*100,"-")) -> -
A123: Hortonom | C123: =IF(OR('Tabel 4F H'!C123<5,'Tabel 4 H'!C123<0.5),"-",IFERROR('Tabel 4 H'!C123/'Tabel 4F H'!C123*100,"-")) -> - | D123: =IF(OR('Tabel 4F H'!D123<5,'Tabel 4 H'!D123<0.5),"-",IFERROR('Tabel 4 H'!D123/'Tabel 4F H'!D123*100,"-")) -> - | E123: =IF(OR('Tabel 4F H'!E123<5,'Tabel 4 H'!E123<0.5),"-",IFERROR('Tabel 4 H'!E123/'Tabel 4F H'!E123*100,"-")) -> - | F123: =IF(OR('Tabel 4F H'!F123<5,'Tabel 4 H'!F123<0.5),"-",IFERROR('Tabel 4 H'!F123/'Tabel 4F H'!F123*100,"-")) -> - | G123: =IF(OR('Tabel 4F H'!G123<5,'Tabel 4 H'!G123<0.5),"-",IFERROR('Tabel 4 H'!G123/'Tabel 4F H'!G123*100,"-")) -> - | I123: =IF(OR('Tabel 4F H'!I123<5,'Tabel 4 H'!I123<0.5),"-",IFERROR('Tabel 4 H'!I123/'Tabel 4F H'!I123*100,"-")) -> -
A124: Forstkand. | C124: =IF(OR('Tabel 4F H'!C124<5,'Tabel 4 H'!C124<0.5),"-",IFERROR('Tabel 4 H'!C124/'Tabel 4F H'!C124*100,"-")) -> - | D124: =IF(OR('Tabel 4F H'!D124<5,'Tabel 4 H'!D124<0.5),"-",IFERROR('Tabel 4 H'!D124/'Tabel 4F H'!D124*100,"-")) -> - | E124: =IF(OR('Tabel 4F H'!E124<5,'Tabel 4 H'!E124<0.5),"-",IFERROR('Tabel 4 H'!E124/'Tabel 4F H'!E124*100,"-")) -> - | F124: =IF(OR('Tabel 4F H'!F124<5,'Tabel 4 H'!F124<0.5),"-",IFERROR('Tabel 4 H'!F124/'Tabel 4F H'!F124*100,"-")) -> - | G124: =IF(OR('Tabel 4F H'!G124<5,'Tabel 4 H'!G124<0.5),"-",IFERROR('Tabel 4 H'!G124/'Tabel 4F H'!G124*100,"-")) -> - | I124: =IF(OR('Tabel 4F H'!I124<5,'Tabel 4 H'!I124<0.5),"-",IFERROR('Tabel 4 H'!I124/'Tabel 4F H'!I124*100,"-")) -> -
A125: Jordbrugsakad. | C125: =IF(OR('Tabel 4F H'!C125<5,'Tabel 4 H'!C125<0.5),"-",IFERROR('Tabel 4 H'!C125/'Tabel 4F H'!C125*100,"-")) -> 20 | D125: =IF(OR('Tabel 4F H'!D125<5,'Tabel 4 H'!D125<0.5),"-",IFERROR('Tabel 4 H'!D125/'Tabel 4F H'!D125*100,"-")) -> 7.692307692 | E125: =IF(OR('Tabel 4F H'!E125<5,'Tabel 4 H'!E125<0.5),"-",IFERROR('Tabel 4 H'!E125/'Tabel 4F H'!E125*100,"-")) -> - | F125: =IF(OR('Tabel 4F H'!F125<5,'Tabel 4 H'!F125<0.5),"-",IFERROR('Tabel 4 H'!F125/'Tabel 4F H'!F125*100,"-")) -> 2.564102564 | G125: =IF(OR('Tabel 4F H'!G125<5,'Tabel 4 H'!G125<0.5),"-",IFERROR('Tabel 4 H'!G125/'Tabel 4F H'!G125*100,"-")) -> - | I125: =IF(OR('Tabel 4F H'!I125<5,'Tabel 4 H'!I125<0.5),"-",IFERROR('Tabel 4 H'!I125/'Tabel 4F H'!I125*100,"-")) -> 4.511278195
A126: Mejeriing. | C126: =IF(OR('Tabel 4F H'!C126<5,'Tabel 4 H'!C126<0.5),"-",IFERROR('Tabel 4 H'!C126/'Tabel 4F H'!C126*100,"-")) -> 20 | D126: =IF(OR('Tabel 4F H'!D126<5,'Tabel 4 H'!D126<0.5),"-",IFERROR('Tabel 4 H'!D126/'Tabel 4F H'!D126*100,"-")) -> - | E126: =IF(OR('Tabel 4F H'!E126<5,'Tabel 4 H'!E126<0.5),"-",IFERROR('Tabel 4 H'!E126/'Tabel 4F H'!E126*100,"-")) -> - | F126: =IF(OR('Tabel 4F H'!F126<5,'Tabel 4 H'!F126<0.5),"-",IFERROR('Tabel 4 H'!F126/'Tabel 4F H'!F126*100,"-")) -> - | G126: =IF(OR('Tabel 4F H'!G126<5,'Tabel 4 H'!G126<0.5),"-",IFERROR('Tabel 4 H'!G126/'Tabel 4F H'!G126*100,"-")) -> - | I126: =IF(OR('Tabel 4F H'!I126<5,'Tabel 4 H'!I126<0.5),"-",IFERROR('Tabel 4 H'!I126/'Tabel 4F H'!I126*100,"-")) -> 14.28571429
A127: Levn.m.kand. | C127: =IF(OR('Tabel 4F H'!C127<5,'Tabel 4 H'!C127<0.5),"-",IFERROR('Tabel 4 H'!C127/'Tabel 4F H'!C127*100,"-")) -> 28.57142857 | D127: =IF(OR('Tabel 4F H'!D127<5,'Tabel 4 H'!D127<0.5),"-",IFERROR('Tabel 4 H'!D127/'Tabel 4F H'!D127*100,"-")) -> 10.52631579 | E127: =IF(OR('Tabel 4F H'!E127<5,'Tabel 4 H'!E127<0.5),"-",IFERROR('Tabel 4 H'!E127/'Tabel 4F H'!E127*100,"-")) -> - | F127: =IF(OR('Tabel 4F H'!F127<5,'Tabel 4 H'!F127<0.5),"-",IFERROR('Tabel 4 H'!F127/'Tabel 4F H'!F127*100,"-")) -> - | G127: =IF(OR('Tabel 4F H'!G127<5,'Tabel 4 H'!G127<0.5),"-",IFERROR('Tabel 4 H'!G127/'Tabel 4F H'!G127*100,"-")) -> - | I127: =IF(OR('Tabel 4F H'!I127<5,'Tabel 4 H'!I127<0.5),"-",IFERROR('Tabel 4 H'!I127/'Tabel 4F H'!I127*100,"-")) -> 15.78947368
A128: Dyrlæge | C128: =IF(OR('Tabel 4F H'!C128<5,'Tabel 4 H'!C128<0.5),"-",IFERROR('Tabel 4 H'!C128/'Tabel 4F H'!C128*100,"-")) -> 28.57142857 | D128: =IF(OR('Tabel 4F H'!D128<5,'Tabel 4 H'!D128<0.5),"-",IFERROR('Tabel 4 H'!D128/'Tabel 4F H'!D128*100,"-")) -> 5.714285714 | E128: =IF(OR('Tabel 4F H'!E128<5,'Tabel 4 H'!E128<0.5),"-",IFERROR('Tabel 4 H'!E128/'Tabel 4F H'!E128*100,"-")) -> - | F128: =IF(OR('Tabel 4F H'!F128<5,'Tabel 4 H'!F128<0.5),"-",IFERROR('Tabel 4 H'!F128/'Tabel 4F H'!F128*100,"-")) -> 9.090909091 | G128: =IF(OR('Tabel 4F H'!G128<5,'Tabel 4 H'!G128<0.5),"-",IFERROR('Tabel 4 H'!G128/'Tabel 4F H'!G128*100,"-")) -> - | I128: =IF(OR('Tabel 4F H'!I128<5,'Tabel 4 H'!I128<0.5),"-",IFERROR('Tabel 4 H'!I128/'Tabel 4F H'!I128*100,"-")) -> 11.25
A129: Farmaceut | C129: =IF(OR('Tabel 4F H'!C129<5,'Tabel 4 H'!C129<0.5),"-",IFERROR('Tabel 4 H'!C129/'Tabel 4F H'!C129*100,"-")) -> 9.259259259 | D129: =IF(OR('Tabel 4F H'!D129<5,'Tabel 4 H'!D129<0.5),"-",IFERROR('Tabel 4 H'!D129/'Tabel 4F H'!D129*100,"-")) -> 2.5 | E129: =IF(OR('Tabel 4F H'!E129<5,'Tabel 4 H'!E129<0.5),"-",IFERROR('Tabel 4 H'!E129/'Tabel 4F H'!E129*100,"-")) -> - | F129: =IF(OR('Tabel 4F H'!F129<5,'Tabel 4 H'!F129<0.5),"-",IFERROR('Tabel 4 H'!F129/'Tabel 4F H'!F129*100,"-")) -> 2.222222222 | G129: =IF(OR('Tabel 4F H'!G129<5,'Tabel 4 H'!G129<0.5),"-",IFERROR('Tabel 4 H'!G129/'Tabel 4F H'!G129*100,"-")) -> - | I129: =IF(OR('Tabel 4F H'!I129<5,'Tabel 4 H'!I129<0.5),"-",IFERROR('Tabel 4 H'!I129/'Tabel 4F H'!I129*100,"-")) -> 3.333333333
A130: Læge | C130: =IF(OR('Tabel 4F H'!C130<5,'Tabel 4 H'!C130<0.5),"-",IFERROR('Tabel 4 H'!C130/'Tabel 4F H'!C130*100,"-")) -> 2.597402597 | D130: =IF(OR('Tabel 4F H'!D130<5,'Tabel 4 H'!D130<0.5),"-",IFERROR('Tabel 4 H'!D130/'Tabel 4F H'!D130*100,"-")) -> 2.617801047 | E130: =IF(OR('Tabel 4F H'!E130<5,'Tabel 4 H'!E130<0.5),"-",IFERROR('Tabel 4 H'!E130/'Tabel 4F H'!E130*100,"-")) -> 1.941747573 | F130: =IF(OR('Tabel 4F H'!F130<5,'Tabel 4 H'!F130<0.5),"-",IFERROR('Tabel 4 H'!F130/'Tabel 4F H'!F130*100,"-")) -> 1.492537313 | G130: =IF(OR('Tabel 4F H'!G130<5,'Tabel 4 H'!G130<0.5),"-",IFERROR('Tabel 4 H'!G130/'Tabel 4F H'!G130*100,"-")) -> - | I130: =IF(OR('Tabel 4F H'!I130<5,'Tabel 4 H'!I130<0.5),"-",IFERROR('Tabel 4 H'!I130/'Tabel 4F H'!I130*100,"-")) -> 2.079002079
A131: Tandlæge | C131: =IF(OR('Tabel 4F H'!C131<5,'Tabel 4 H'!C131<0.5),"-",IFERROR('Tabel 4 H'!C131/'Tabel 4F H'!C131*100,"-")) -> - | D131: =IF(OR('Tabel 4F H'!D131<5,'Tabel 4 H'!D131<0.5),"-",IFERROR('Tabel 4 H'!D131/'Tabel 4F H'!D131*100,"-")) -> 3.571428571 | E131: =IF(OR('Tabel 4F H'!E131<5,'Tabel 4 H'!E131<0.5),"-",IFERROR('Tabel 4 H'!E131/'Tabel 4F H'!E131*100,"-")) -> - | F131: =IF(OR('Tabel 4F H'!F131<5,'Tabel 4 H'!F131<0.5),"-",IFERROR('Tabel 4 H'!F131/'Tabel 4F H'!F131*100,"-")) -> - | G131: =IF(OR('Tabel 4F H'!G131<5,'Tabel 4 H'!G131<0.5),"-",IFERROR('Tabel 4 H'!G131/'Tabel 4F H'!G131*100,"-")) -> - | I131: =IF(OR('Tabel 4F H'!I131<5,'Tabel 4 H'!I131<0.5),"-",IFERROR('Tabel 4 H'!I131/'Tabel 4F H'!I131*100,"-")) -> 1.666666667
